Workbook

Sheet DataInput
A1: Systematic Random Sampling Workbook
A3: Area of Contamination (Sq. feet.): | B3: 4000
A4: Depth Zone (feet.): | B4: 2 | C4: - | D4: 10
A5: Volume of Contaminated Soil (Cubic Yards): | B5: 1185
A6: Number of Soil Samples: (If you are applying
A7: 75%/10X or 75%/2X rule, the spreadsheet
A8: will determine the minimum number of samples
A9: for you. Otherwise, please specify the number
A10: of samples here. Limitations: The maximum
A11: number of samples per row is ten. The
A12: maximum number of rows is ten.======>)
A13: Number of Soil Samples: | B13: =IF(B12="",IF(B5<=125,8,12*ROUNDUP(B5/3000,0)),B12) -> 12
A15: L= Cell Spacing (feet): | B15: =ROUND(SQRT(B3/0.866/B13),1) -> 19.6
A16: 0.866*L(feet): | B16: =ROUND(0.866*B15,1) -> 17
A18: Xmin (feet): | B18: 0
A19: Xmax (feet): | B19: 100
A20: Ymin (feet): | B20: 0
A21: Ymax (feet): | B21: 50
A23: Xo (feet): | B23: =ROUND(B18+(B19-B18)*RAND(),1) -> 15.2
A24: Yo (feet): | B24: =ROUND(B20+(B21-B20)*RAND(),1) -> 4.1

Sheet Xi,Yi
A1: Triangular Grid Node Coordinate Pairs
C3: 0th Row | H3: 1st Row | M3: 2nd Row | R3: 3rd Row | W3: 4th Row | AB3: 5th Row | AG3: 6th Row | AL3: 7th Row | AQ3: 8th Row | AV3: 9th Row | BA3: 10th Row
C4: (Xi, | D4: Yi) | H4: (Xi, | I4: Yi) | M4: (Xi, | N4: Yi) | R4: (Xi, | S4: Yi) | W4: (Xi, | X4: Yi) | AB4: (Xi, | AC4: Yi) | AG4: (Xi, | AH4: Yi) | AL4: (Xi, | AM4: Yi) | AQ4: (Xi, | AR4: Yi) | AV4: (Xi, | AW4: Yi) | BA4: (Xi, | BB4: Yi)
C5: =Grid!$C4 ->  | D5: =IF(C5="","",Grid!$E$14) ->  | H5: =IF(Grid!$E$15="","",Grid!$D4) ->  | I5: =IF(H5="","",Grid!$E$15) ->  | M5: =IF(Grid!$E$16="","",Grid!$C4) ->  | N5: =IF(M5="","",Grid!$E$16) ->  | R5: =IF(Grid!$E$17="","",Grid!$D4) ->  | S5: =IF(R5="","",Grid!$E$17) ->  | W5: =IF(Grid!$E$18="","",Grid!$C4) ->  | X5: =IF(W5="","",Grid!$E$18) ->  | AB5: =IF(Grid!$E$19="","",Grid!$D4) ->  | AC5: =IF(AB5="","",Grid!$E$19) ->  | AG5: =IF(Grid!$E$20="","",Grid!$C4) ->  | AH5: =IF(AG5="","",Grid!$E$20) ->  | AL5: =IF(Grid!$E$21="","",Grid!$D4) ->  | AM5: =IF(AL5="","",Grid!$E$21) ->  | AQ5: =IF(Grid!$E$22="","",Grid!$C4) ->  | AR5: =IF(AQ5="","",Grid!$E$22) ->  | AV5: =IF(Grid!$E$23="","",Grid!$D4) ->  | AW5: =IF(AV5="","",Grid!$E$23) ->  | BA5: =IF(Grid!$E$24="","",Grid!$C4) ->  | BB5: =IF(BA5="","",Grid!$E$24) -> 
C6: =Grid!$C5 ->  | D6: =IF(C6="","",Grid!$E$14) ->  | H6: =IF(Grid!$E$15="","",Grid!$D5) ->  | I6: =IF(H6="","",Grid!$E$15) ->  | M6: =IF(Grid!$E$16="","",Grid!$C5) ->  | N6: =IF(M6="","",Grid!$E$16) ->  | R6: =IF(Grid!$E$17="","",Grid!$D5) ->  | S6: =IF(R6="","",Grid!$E$17) ->  | W6: =IF(Grid!$E$18="","",Grid!$C5) ->  | X6: =IF(W6="","",Grid!$E$18) ->  | AB6: =IF(Grid!$E$19="","",Grid!$D5) ->  | AC6: =IF(AB6="","",Grid!$E$19) ->  | AG6: =IF(Grid!$E$20="","",Grid!$C5) ->  | AH6: =IF(AG6="","",Grid!$E$20) ->  | AL6: =IF(Grid!$E$21="","",Grid!$D5) ->  | AM6: =IF(AL6="","",Grid!$E$21) ->  | AQ6: =IF(Grid!$E$22="","",Grid!$C5) ->  | AR6: =IF(AQ6="","",Grid!$E$22) ->  | AV6: =IF(Grid!$E$23="","",Grid!$D5) ->  | AW6: =IF(AV6="","",Grid!$E$23) ->  | BA6: =IF(Grid!$E$24="","",Grid!$C5) ->  | BB6: =IF(BA6="","",Grid!$E$24) -> 
C7: =Grid!$C6 ->  | D7: =IF(C7="","",Grid!$E$14) ->  | H7: =IF(Grid!$E$15="","",Grid!$D6) ->  | I7: =IF(H7="","",Grid!$E$15) ->  | M7: =IF(Grid!$E$16="","",Grid!$C6) ->  | N7: =IF(M7="","",Grid!$E$16) ->  | R7: =IF(Grid!$E$17="","",Grid!$D6) ->  | S7: =IF(R7="","",Grid!$E$17) ->  | W7: =IF(Grid!$E$18="","",Grid!$C6) ->  | X7: =IF(W7="","",Grid!$E$18) ->  | AB7: =IF(Grid!$E$19="","",Grid!$D6) ->  | AC7: =IF(AB7="","",Grid!$E$19) ->  | AG7: =IF(Grid!$E$20="","",Grid!$C6) ->  | AH7: =IF(AG7="","",Grid!$E$20) ->  | AL7: =IF(Grid!$E$21="","",Grid!$D6) ->  | AM7: =IF(AL7="","",Grid!$E$21) ->  | AQ7: =IF(Grid!$E$22="","",Grid!$C6) ->  | AR7: =IF(AQ7="","",Grid!$E$22) ->  | AV7: =IF(Grid!$E$23="","",Grid!$D6) ->  | AW7: =IF(AV7="","",Grid!$E$23) ->  | BA7: =IF(Grid!$E$24="","",Grid!$C6) ->  | BB7: =IF(BA7="","",Grid!$E$24) -> 
C8: =Grid!$C7 ->  | D8: =IF(C8="","",Grid!$E$14) ->  | H8: =IF(Grid!$E$15="","",Grid!$D7) ->  | I8: =IF(H8="","",Grid!$E$15) ->  | M8: =IF(Grid!$E$16="","",Grid!$C7) ->  | N8: =IF(M8="","",Grid!$E$16) ->  | R8: =IF(Grid!$E$17="","",Grid!$D7) ->  | S8: =IF(R8="","",Grid!$E$17) ->  | W8: =IF(Grid!$E$18="","",Grid!$C7) ->  | X8: =IF(W8="","",Grid!$E$18) ->  | AB8: =IF(Grid!$E$19="","",Grid!$D7) ->  | AC8: =IF(AB8="","",Grid!$E$19) ->  | AG8: =IF(Grid!$E$20="","",Grid!$C7) ->  | AH8: =IF(AG8="","",Grid!$E$20) ->  | AL8: =IF(Grid!$E$21="","",Grid!$D7) ->  | AM8: =IF(AL8="","",Grid!$E$21) ->  | AQ8: =IF(Grid!$E$22="","",Grid!$C7) ->  | AR8: =IF(AQ8="","",Grid!$E$22) ->  | AV8: =IF(Grid!$E$23="","",Grid!$D7) ->  | AW8: =IF(AV8="","",Grid!$E$23) ->  | BA8: =IF(Grid!$E$24="","",Grid!$C7) ->  | BB8: =IF(BA8="","",Grid!$E$24) -> 
C9: =Grid!$C8 ->  | D9: =IF(C9="","",Grid!$E$14) ->  | H9: =IF(Grid!$E$15="","",Grid!$D8) ->  | I9: =IF(H9="","",Grid!$E$15) ->  | M9: =IF(Grid!$E$16="","",Grid!$C8) ->  | N9: =IF(M9="","",Grid!$E$16) ->  | R9: =IF(Grid!$E$17="","",Grid!$D8) ->  | S9: =IF(R9="","",Grid!$E$17) ->  | W9: =IF(Grid!$E$18="","",Grid!$C8) ->  | X9: =IF(W9="","",Grid!$E$18) ->  | AB9: =IF(Grid!$E$19="","",Grid!$D8) ->  | AC9: =IF(AB9="","",Grid!$E$19) ->  | AG9: =IF(Grid!$E$20="","",Grid!$C8) ->  | AH9: =IF(AG9="","",Grid!$E$20) ->  | AL9: =IF(Grid!$E$21="","",Grid!$D8) ->  | AM9: =IF(AL9="","",Grid!$E$21) ->  | AQ9: =IF(Grid!$E$22="","",Grid!$C8) ->  | AR9: =IF(AQ9="","",Grid!$E$22) ->  | AV9: =IF(Grid!$E$23="","",Grid!$D8) ->  | AW9: =IF(AV9="","",Grid!$E$23) ->  | BA9: =IF(Grid!$E$24="","",Grid!$C8) ->  | BB9: =IF(BA9="","",Grid!$E$24) -> 
C10: =Grid!$C9 ->  | D10: =IF(C10="","",Grid!$E$14) ->  | H10: =IF(Grid!$E$15="","",Grid!$D9) ->  | I10: =IF(H10="","",Grid!$E$15) ->  | M10: =IF(Grid!$E$16="","",Grid!$C9) ->  | N10: =IF(M10="","",Grid!$E$16) ->  | R10: =IF(Grid!$E$17="","",Grid!$D9) ->  | S10: =IF(R10="","",Grid!$E$17) ->  | W10: =IF(Grid!$E$18="","",Grid!$C9) ->  | X10: =IF(W10="","",Grid!$E$18) ->  | AB10: =IF(Grid!$E$19="","",Grid!$D9) ->  | AC10: =IF(AB10="","",Grid!$E$19) ->  | AG10: =IF(Grid!$E$20="","",Grid!$C9) ->  | AH10: =IF(AG10="","",Grid!$E$20) ->  | AL10: =IF(Grid!$E$21="","",Grid!$D9) ->  | AM10: =IF(AL10="","",Grid!$E$21) ->  | AQ10: =IF(Grid!$E$22="","",Grid!$C9) ->  | AR10: =IF(AQ10="","",Grid!$E$22) ->  | AV10: =IF(Grid!$E$23="","",Grid!$D9) ->  | AW10: =IF(AV10="","",Grid!$E$23) ->  | BA10: =IF(Grid!$E$24="","",Grid!$C9) ->  | BB10: =IF(BA10="","",Grid!$E$24) -> 
C11: =Grid!$C10 ->  | D11: =IF(C11="","",Grid!$E$14) ->  | H11: =IF(Grid!$E$15="","",Grid!$D10) ->  | I11: =IF(H11="","",Grid!$E$15) ->  | M11: =IF(Grid!$E$16="","",Grid!$C10) ->  | N11: =IF(M11="","",Grid!$E$16) ->  | R11: =IF(Grid!$E$17="","",Grid!$D10) ->  | S11: =IF(R11="","",Grid!$E$17) ->  | W11: =IF(Grid!$E$18="","",Grid!$C10) ->  | X11: =IF(W11="","",Grid!$E$18) ->  | AB11: =IF(Grid!$E$19="","",Grid!$D10) ->  | AC11: =IF(AB11="","",Grid!$E$19) ->  | AG11: =IF(Grid!$E$20="","",Grid!$C10) ->  | AH11: =IF(AG11="","",Grid!$E$20) ->  | AL11: =IF(Grid!$E$21="","",Grid!$D10) ->  | AM11: =IF(AL11="","",Grid!$E$21) ->  | AQ11: =IF(Grid!$E$22="","",Grid!$C10) ->  | AR11: =IF(AQ11="","",Grid!$E$22) ->  | AV11: =IF(Grid!$E$23="","",Grid!$D10) ->  | AW11: =IF(AV11="","",Grid!$E$23) ->  | BA11: =IF(Grid!$E$24="","",Grid!$C10) ->  | BB11: =IF(BA11="","",Grid!$E$24) -> 
C12: =Grid!$C11 ->  | D12: =IF(C12="","",Grid!$E$14) ->  | H12: =IF(Grid!$E$15="","",Grid!$D11) ->  | I12: =IF(H12="","",Grid!$E$15) ->  | M12: =IF(Grid!$E$16="","",Grid!$C11) ->  | N12: =IF(M12="","",Grid!$E$16) ->  | R12: =IF(Grid!$E$17="","",Grid!$D11) ->  | S12: =IF(R12="","",Grid!$E$17) ->  | W12: =IF(Grid!$E$18="","",Grid!$C11) ->  | X12: =IF(W12="","",Grid!$E$18) ->  | AB12: =IF(Grid!$E$19="","",Grid!$D11) ->  | AC12: =IF(AB12="","",Grid!$E$19) ->  | AG12: =IF(Grid!$E$20="","",Grid!$C11) ->  | AH12: =IF(AG12="","",Grid!$E$20) ->  | AL12: =IF(Grid!$E$21="","",Grid!$D11) ->  | AM12: =IF(AL12="","",Grid!$E$21) ->  | AQ12: =IF(Grid!$E$22="","",Grid!$C11) ->  | AR12: =IF(AQ12="","",Grid!$E$22) ->  | AV12: =IF(Grid!$E$23="","",Grid!$D11) ->  | AW12: =IF(AV12="","",Grid!$E$23) ->  | BA12: =IF(Grid!$E$24="","",Grid!$C11) ->  | BB12: =IF(BA12="","",Grid!$E$24) -> 
C13: =Grid!$C12 ->  | D13: =IF(C13="","",Grid!$E$14) ->  | H13: =IF(Grid!$E$15="","",Grid!$D12) -> -14.2 | I13: =IF(H13="","",Grid!$E$15) -> 21.1 | M13: =IF(Grid!$E$16="","",Grid!$C12) ->  | N13: =IF(M13="","",Grid!$E$16) ->  | R13: =IF(Grid!$E$17="","",Grid!$D12) ->  | S13: =IF(R13="","",Grid!$E$17) ->  | W13: =IF(Grid!$E$18="","",Grid!$C12) ->  | X13: =IF(W13="","",Grid!$E$18) ->  | AB13: =IF(Grid!$E$19="","",Grid!$D12) ->  | AC13: =IF(AB13="","",Grid!$E$19) ->  | AG13: =IF(Grid!$E$20="","",Grid!$C12) ->  | AH13: =IF(AG13="","",Grid!$E$20) ->  | AL13: =IF(Grid!$E$21="","",Grid!$D12) ->  | AM13: =IF(AL13="","",Grid!$E$21) ->  | AQ13: =IF(Grid!$E$22="","",Grid!$C12) ->  | AR13: =IF(AQ13="","",Grid!$E$22) ->  | AV13: =IF(Grid!$E$23="","",Grid!$D12) ->  | AW13: =IF(AV13="","",Grid!$E$23) ->  | BA13: =IF(Grid!$E$24="","",Grid!$C12) ->  | BB13: =IF(BA13="","",Grid!$E$24) -> 
C14: =Grid!$C13 -> -4.4 | D14: =IF(C14="","",Grid!$E$14) -> 4.1 | H14: =IF(Grid!$E$15="","",Grid!$D13) -> 5.4 | I14: =IF(H14="","",Grid!$E$15) -> 21.1 | M14: =IF(Grid!$E$16="","",Grid!$C13) -> -4.4 | N14: =IF(M14="","",Grid!$E$16) -> 38.1 | R14: =IF(Grid!$E$17="","",Grid!$D13) ->  | S14: =IF(R14="","",Grid!$E$17) ->  | W14: =IF(Grid!$E$18="","",Grid!$C13) ->  | X14: =IF(W14="","",Grid!$E$18) ->  | AB14: =IF(Grid!$E$19="","",Grid!$D13) ->  | AC14: =IF(AB14="","",Grid!$E$19) ->  | AG14: =IF(Grid!$E$20="","",Grid!$C13) ->  | AH14: =IF(AG14="","",Grid!$E$20) ->  | AL14: =IF(Grid!$E$21="","",Grid!$D13) ->  | AM14: =IF(AL14="","",Grid!$E$21) ->  | AQ14: =IF(Grid!$E$22="","",Grid!$C13) ->  | AR14: =IF(AQ14="","",Grid!$E$22) ->  | AV14: =IF(Grid!$E$23="","",Grid!$D13) ->  | AW14: =IF(AV14="","",Grid!$E$23) ->  | BA14: =IF(Grid!$E$24="","",Grid!$C13) ->  | BB14: =IF(BA14="","",Grid!$E$24) -> 
A15: Starting Point ----> | C15: =Grid!$C14 -> 15.2 | D15: =IF(C15="","",Grid!$E$14) -> 4.1 | H15: =IF(Grid!$E$15="","",Grid!$D14) -> 25 | I15: =IF(H15="","",Grid!$E$15) -> 21.1 | M15: =IF(Grid!$E$16="","",Grid!$C14) -> 15.2 | N15: =IF(M15="","",Grid!$E$16) -> 38.1 | R15: =IF(Grid!$E$17="","",Grid!$D14) ->  | S15: =IF(R15="","",Grid!$E$17) ->  | W15: =IF(Grid!$E$18="","",Grid!$C14) ->  | X15: =IF(W15="","",Grid!$E$18) ->  | AB15: =IF(Grid!$E$19="","",Grid!$D14) ->  | AC15: =IF(AB15="","",Grid!$E$19) ->  | AG15: =IF(Grid!$E$20="","",Grid!$C14) ->  | AH15: =IF(AG15="","",Grid!$E$20) ->  | AL15: =IF(Grid!$E$21="","",Grid!$D14) ->  | AM15: =IF(AL15="","",Grid!$E$21) ->  | AQ15: =IF(Grid!$E$22="","",Grid!$C14) ->  | AR15: =IF(AQ15="","",Grid!$E$22) ->  | AV15: =IF(Grid!$E$23="","",Grid!$D14) ->  | AW15: =IF(AV15="","",Grid!$E$23) ->  | BA15: =IF(Grid!$E$24="","",Grid!$C14) ->  | BB15: =IF(BA15="","",Grid!$E$24) -> 
C16: =Grid!$C15 -> 34.8 | D16: =IF(C16="","",Grid!$E$14) -> 4.1 | H16: =IF(Grid!$E$15="","",Grid!$D15) -> 44.6 | I16: =IF(H16="","",Grid!$E$15) -> 21.1 | M16: =IF(Grid!$E$16="","",Grid!$C15) -> 34.8 | N16: =IF(M16="","",Grid!$E$16) -> 38.1 | R16: =IF(Grid!$E$17="","",Grid!$D15) ->  | S16: =IF(R16="","",Grid!$E$17) ->  | W16: =IF(Grid!$E$18="","",Grid!$C15) ->  | X16: =IF(W16="","",Grid!$E$18) ->  | AB16: =IF(Grid!$E$19="","",Grid!$D15) ->  | AC16: =IF(AB16="","",Grid!$E$19) ->  | AG16: =IF(Grid!$E$20="","",Grid!$C15) ->  | AH16: =IF(AG16="","",Grid!$E$20) ->  | AL16: =IF(Grid!$E$21="","",Grid!$D15) ->  | AM16: =IF(AL16="","",Grid!$E$21) ->  | AQ16: =IF(Grid!$E$22="","",Grid!$C15) ->  | AR16: =IF(AQ16="","",Grid!$E$22) ->  | AV16: =IF(Grid!$E$23="","",Grid!$D15) ->  | AW16: =IF(AV16="","",Grid!$E$23) ->  | BA16: =IF(Grid!$E$24="","",Grid!$C15) ->  | BB16: =IF(BA16="","",Grid!$E$24) -> 
C17: =Grid!$C16 -> 54.4 | D17: =IF(C17="","",Grid!$E$14) -> 4.1 | H17: =IF(Grid!$E$15="","",Grid!$D16) -> 64.2 | I17: =IF(H17="","",Grid!$E$15) -> 21.1 | M17: =IF(Grid!$E$16="","",Grid!$C16) -> 54.4 | N17: =IF(M17="","",Grid!$E$16) -> 38.1 | R17: =IF(Grid!$E$17="","",Grid!$D16) ->  | S17: =IF(R17="","",Grid!$E$17) ->  | W17: =IF(Grid!$E$18="","",Grid!$C16) ->  | X17: =IF(W17="","",Grid!$E$18) ->  | AB17: =IF(Grid!$E$19="","",Grid!$D16) ->  | AC17: =IF(AB17="","",Grid!$E$19) ->  | AG17: =IF(Grid!$E$20="","",Grid!$C16) ->  | AH17: =IF(AG17="","",Grid!$E$20) ->  | AL17: =IF(Grid!$E$21="","",Grid!$D16) ->  | AM17: =IF(AL17="","",Grid!$E$21) ->  | AQ17: =IF(Grid!$E$22="","",Grid!$C16) ->  | AR17: =IF(AQ17="","",Grid!$E$22) ->  | AV17: =IF(Grid!$E$23="","",Grid!$D16) ->  | AW17: =IF(AV17="","",Grid!$E$23) ->  | BA17: =IF(Grid!$E$24="","",Grid!$C16) ->  | BB17: =IF(BA17="","",Grid!$E$24) -> 
C18: =Grid!$C17 -> 74 | D18: =IF(C18="","",Grid!$E$14) -> 4.1 | H18: =IF(Grid!$E$15="","",Grid!$D17) -> 83.8 | I18: =IF(H18="","",Grid!$E$15) -> 21.1 | M18: =IF(Grid!$E$16="","",Grid!$C17) -> 74 | N18: =IF(M18="","",Grid!$E$16) -> 38.1 | R18: =IF(Grid!$E$17="","",Grid!$D17) ->  | S18: =IF(R18="","",Grid!$E$17) ->  | W18: =IF(Grid!$E$18="","",Grid!$C17) ->  | X18: =IF(W18="","",Grid!$E$18) ->  | AB18: =IF(Grid!$E$19="","",Grid!$D17) ->  | AC18: =IF(AB18="","",Grid!$E$19) ->  | AG18: =IF(Grid!$E$20="","",Grid!$C17) ->  | AH18: =IF(AG18="","",Grid!$E$20) ->  | AL18: =IF(Grid!$E$21="","",Grid!$D17) ->  | AM18: =IF(AL18="","",Grid!$E$21) ->  | AQ18: =IF(Grid!$E$22="","",Grid!$C17) ->  | AR18: =IF(AQ18="","",Grid!$E$22) ->  | AV18: =IF(Grid!$E$23="","",Grid!$D17) ->  | AW18: =IF(AV18="","",Grid!$E$23) ->  | BA18: =IF(Grid!$E$24="","",Grid!$C17) ->  | BB18: =IF(BA18="","",Grid!$E$24) -> 
C19: =Grid!$C18 -> 93.6 | D19: =IF(C19="","",Grid!$E$14) -> 4.1 | H19: =IF(Grid!$E$15="","",Grid!$D18) ->  | I19: =IF(H19="","",Grid!$E$15) ->  | M19: =IF(Grid!$E$16="","",Grid!$C18) -> 93.6 | N19: =IF(M19="","",Grid!$E$16) -> 38.1 | R19: =IF(Grid!$E$17="","",Grid!$D18) ->  | S19: =IF(R19="","",Grid!$E$17) ->  | W19: =IF(Grid!$E$18="","",Grid!$C18) ->  | X19: =IF(W19="","",Grid!$E$18) ->  | AB19: =IF(Grid!$E$19="","",Grid!$D18) ->  | AC19: =IF(AB19="","",Grid!$E$19) ->  | AG19: =IF(Grid!$E$20="","",Grid!$C18) ->  | AH19: =IF(AG19="","",Grid!$E$20) ->  | AL19: =IF(Grid!$E$21="","",Grid!$D18) ->  | AM19: =IF(AL19="","",Grid!$E$21) ->  | AQ19: =IF(Grid!$E$22="","",Grid!$C18) ->  | AR19: =IF(AQ19="","",Grid!$E$22) ->  | AV19: =IF(Grid!$E$23="","",Grid!$D18) ->  | AW19: =IF(AV19="","",Grid!$E$23) ->  | BA19: =IF(Grid!$E$24="","",Grid!$C18) ->  | BB19: =IF(BA19="","",Grid!$E$24) -> 
C20: =Grid!$C19 ->  | D20: =IF(C20="","",Grid!$E$14) ->  | H20: =IF(Grid!$E$15="","",Grid!$D19) ->  | I20: =IF(H20="","",Grid!$E$15) ->  | M20: =IF(Grid!$E$16="","",Grid!$C19) ->  | N20: =IF(M20="","",Grid!$E$16) ->  | R20: =IF(Grid!$E$17="","",Grid!$D19) ->  | S20: =IF(R20="","",Grid!$E$17) ->  | W20: =IF(Grid!$E$18="","",Grid!$C19) ->  | X20: =IF(W20="","",Grid!$E$18) ->  | AB20: =IF(Grid!$E$19="","",Grid!$D19) ->  | AC20: =IF(AB20="","",Grid!$E$19) ->  | AG20: =IF(Grid!$E$20="","",Grid!$C19) ->  | AH20: =IF(AG20="","",Grid!$E$20) ->  | AL20: =IF(Grid!$E$21="","",Grid!$D19) ->  | AM20: =IF(AL20="","",Grid!$E$21) ->  | AQ20: =IF(Grid!$E$22="","",Grid!$C19) ->  | AR20: =IF(AQ20="","",Grid!$E$22) ->  | AV20: =IF(Grid!$E$23="","",Grid!$D19) ->  | AW20: =IF(AV20="","",Grid!$E$23) ->  | BA20: =IF(Grid!$E$24="","",Grid!$C19) ->  | BB20: =IF(BA20="","",Grid!$E$24) -> 
C21: =Grid!$C20 ->  | D21: =IF(C21="","",Grid!$E$14) ->  | H21: =IF(Grid!$E$15="","",Grid!$D20) ->  | I21: =IF(H21="","",Grid!$E$15) ->  | M21: =IF(Grid!$E$16="","",Grid!$C20) ->  | N21: =IF(M21="","",Grid!$E$16) ->  | R21: =IF(Grid!$E$17="","",Grid!$D20) ->  | S21: =IF(R21="","",Grid!$E$17) ->  | W21: =IF(Grid!$E$18="","",Grid!$C20) ->  | X21: =IF(W21="","",Grid!$E$18) ->  | AB21: =IF(Grid!$E$19="","",Grid!$D20) ->  | AC21: =IF(AB21="","",Grid!$E$19) ->  | AG21: =IF(Grid!$E$20="","",Grid!$C20) ->  | AH21: =IF(AG21="","",Grid!$E$20) ->  | AL21: =IF(Grid!$E$21="","",Grid!$D20) ->  | AM21: =IF(AL21="","",Grid!$E$21) ->  | AQ21: =IF(Grid!$E$22="","",Grid!$C20) ->  | AR21: =IF(AQ21="","",Grid!$E$22) ->  | AV21: =IF(Grid!$E$23="","",Grid!$D20) ->  | AW21: =IF(AV21="","",Grid!$E$23) ->  | BA21: =IF(Grid!$E$24="","",Grid!$C20) ->  | BB21: =IF(BA21="","",Grid!$E$24) -> 
C22: =Grid!$C21 ->  | D22: =IF(C22="","",Grid!$E$14) ->  | H22: =IF(Grid!$E$15="","",Grid!$D21) ->  | I22: =IF(H22="","",Grid!$E$15) ->  | M22: =IF(Grid!$E$16="","",Grid!$C21) ->  | N22: =IF(M22="","",Grid!$E$16) ->  | R22: =IF(Grid!$E$17="","",Grid!$D21) ->  | S22: =IF(R22="","",Grid!$E$17) ->  | W22: =IF(Grid!$E$18="","",Grid!$C21) ->  | X22: =IF(W22="","",Grid!$E$18) ->  | AB22: =IF(Grid!$E$19="","",Grid!$D21) ->  | AC22: =IF(AB22="","",Grid!$E$19) ->  | AG22: =IF(Grid!$E$20="","",Grid!$C21) ->  | AH22: =IF(AG22="","",Grid!$E$20) ->  | AL22: =IF(Grid!$E$21="","",Grid!$D21) ->  | AM22: =IF(AL22="","",Grid!$E$21) ->  | AQ22: =IF(Grid!$E$22="","",Grid!$C21) ->  | AR22: =IF(AQ22="","",Grid!$E$22) ->  | AV22: =IF(Grid!$E$23="","",Grid!$D21) ->  | AW22: =IF(AV22="","",Grid!$E$23) ->  | BA22: =IF(Grid!$E$24="","",Grid!$C21) ->  | BB22: =IF(BA22="","",Grid!$E$24) -> 
C23: =Grid!$C22 ->  | D23: =IF(C23="","",Grid!$E$14) ->  | H23: =IF(Grid!$E$15="","",Grid!$D22) ->  | I23: =IF(H23="","",Grid!$E$15) ->  | M23: =IF(Grid!$E$16="","",Grid!$C22) ->  | N23: =IF(M23="","",Grid!$E$16) ->  | R23: =IF(Grid!$E$17="","",Grid!$D22) ->  | S23: =IF(R23="","",Grid!$E$17) ->  | W23: =IF(Grid!$E$18="","",Grid!$C22) ->  | X23: =IF(W23="","",Grid!$E$18) ->  | AB23: =IF(Grid!$E$19="","",Grid!$D22) ->  | AC23: =IF(AB23="","",Grid!$E$19) ->  | AG23: =IF(Grid!$E$20="","",Grid!$C22) ->  | AH23: =IF(AG23="","",Grid!$E$20) ->  | AL23: =IF(Grid!$E$21="","",Grid!$D22) ->  | AM23: =IF(AL23="","",Grid!$E$21) ->  | AQ23: =IF(Grid!$E$22="","",Grid!$C22) ->  | AR23: =IF(AQ23="","",Grid!$E$22) ->  | AV23: =IF(Grid!$E$23="","",Grid!$D22) ->  | AW23: =IF(AV23="","",Grid!$E$23) ->  | BA23: =IF(Grid!$E$24="","",Grid!$C22) ->  | BB23: =IF(BA23="","",Grid!$E$24) -> 
C24: =Grid!$C23 ->  | D24: =IF(C24="","",Grid!$E$14) ->  | H24: =IF(Grid!$E$15="","",Grid!$D23) ->  | I24: =IF(H24="","",Grid!$E$15) ->  | M24: =IF(Grid!$E$16="","",Grid!$C23) ->  | N24: =IF(M24="","",Grid!$E$16) ->  | R24: =IF(Grid!$E$17="","",Grid!$D23) ->  | S24: =IF(R24="","",Grid!$E$17) ->  | W24: =IF(Grid!$E$18="","",Grid!$C23) ->  | X24: =IF(W24="","",Grid!$E$18) ->  | AB24: =IF(Grid!$E$19="","",Grid!$D23) ->  | AC24: =IF(AB24="","",Grid!$E$19) ->  | AG24: =IF(Grid!$E$20="","",Grid!$C23) ->  | AH24: =IF(AG24="","",Grid!$E$20) ->  | AL24: =IF(Grid!$E$21="","",Grid!$D23) ->  | AM24: =IF(AL24="","",Grid!$E$21) ->  | AQ24: =IF(Grid!$E$22="","",Grid!$C23) ->  | AR24: =IF(AQ24="","",Grid!$E$22) ->  | AV24: =IF(Grid!$E$23="","",Grid!$D23) ->  | AW24: =IF(AV24="","",Grid!$E$23) ->  | BA24: =IF(Grid!$E$24="","",Grid!$C23) ->  | BB24: =IF(BA24="","",Grid!$E$24) -> 
C25: =Grid!$C24 ->  | D25: =IF(C25="","",Grid!$E$14) ->  | H25: =IF(Grid!$E$15="","",Grid!$D24) ->  | I25: =IF(H25="","",Grid!$E$15) ->  | M25: =IF(Grid!$E$16="","",Grid!$C24) ->  | N25: =IF(M25="","",Grid!$E$16) ->  | R25: =IF(Grid!$E$17="","",Grid!$D24) ->  | S25: =IF(R25="","",Grid!$E$17) ->  | W25: =IF(Grid!$E$18="","",Grid!$C24) ->  | X25: =IF(W25="","",Grid!$E$18) ->  | AB25: =IF(Grid!$E$19="","",Grid!$D24) ->  | AC25: =IF(AB25="","",Grid!$E$19) ->  | AG25: =IF(Grid!$E$20="","",Grid!$C24) ->  | AH25: =IF(AG25="","",Grid!$E$20) ->  | AL25: =IF(Grid!$E$21="","",Grid!$D24) ->  | AM25: =IF(AL25="","",Grid!$E$21) ->  | AQ25: =IF(Grid!$E$22="","",Grid!$C24) ->  | AR25: =IF(AQ25="","",Grid!$E$22) ->  | AV25: =IF(Grid!$E$23="","",Grid!$D24) ->  | AW25: =IF(AV25="","",Grid!$E$23) ->  | BA25: =IF(Grid!$E$24="","",Grid!$C24) ->  | BB25: =IF(BA25="","",Grid!$E$24) -> 
D26: =IF(C26="","",Grid!$E$14) -> 
D27: =IF(C27="","",Grid!$E$14) ->  | H27: -1st Row | M27: -2nd Row | R27: -3rd Row | W27: -4th Row | AB27: -5th Row | AG27: -6th Row | AL27: -7th Row | AQ27: -8th Row | AV27: -9th Row | BA27: -10th Row
D28: =IF(C28="","",Grid!$E$14) ->  | H28: (Xi, | I28: Yi) | M28: (Xi, | N28: Yi) | R28: (Xi, | S28: Yi) | W28: (Xi, | X28: Yi) | AB28: (Xi, | AC28: Yi) | AG28: (Xi, | AH28: Yi) | AL28: (Xi, | AM28: Yi) | AQ28: (Xi, | AR28: Yi) | AV28: (Xi, | AW28: Yi) | BA28: (Xi, | BB28: Yi)
H29: =IF(Grid!$E$13="","",Grid!$D4) ->  | I29: =IF(H29="","",Grid!$E$13) ->  | M29: =IF(Grid!$E$12="","",Grid!$C4) ->  | N29: =IF(M29="","",Grid!$E$12) ->  | R29: =IF(Grid!$E$11="","",Grid!$D4) ->  | S29: =IF(R29="","",Grid!$E$11) ->  | W29: =IF(Grid!$E$10="","",Grid!$C4) ->  | X29: =IF(W29="","",Grid!$E$10) ->  | AB29: =IF(Grid!$E$9="","",Grid!$D4) ->  | AC29: =IF(AB29="","",Grid!$E$9) ->  | AG29: =IF(Grid!$E$8="","",Grid!$C4) ->  | AH29: =IF(AG29="","",Grid!$E$8) ->  | AL29: =IF(Grid!$E$7="","",Grid!$D4) ->  | AM29: =IF(AL29="","",Grid!$E$7) ->  | AQ29: =IF(Grid!$E$6="","",Grid!$C4) ->  | AR29: =IF(AQ29="","",Grid!$E$6) ->  | AV29: =IF(Grid!$E$5="","",Grid!$D4) ->  | AW29: =IF(AV29="","",Grid!$E$5) ->  | BA29: =IF(Grid!$E$4="","",Grid!$C4) ->  | BB29: =IF(BA29="","",Grid!$E$4) -> 
H30: =IF(Grid!$E$13="","",Grid!$D5) ->  | I30: =IF(H30="","",Grid!$E$13) ->  | M30: =IF(Grid!$E$12="","",Grid!$C5) ->  | N30: =IF(M30="","",Grid!$E$12) ->  | R30: =IF(Grid!$E$11="","",Grid!$D5) ->  | S30: =IF(R30="","",Grid!$E$11) ->  | W30: =IF(Grid!$E$10="","",Grid!$C5) ->  | X30: =IF(W30="","",Grid!$E$10) ->  | AB30: =IF(Grid!$E$9="","",Grid!$D5) ->  | AC30: =IF(AB30="","",Grid!$E$9) ->  | AG30: =IF(Grid!$E$8="","",Grid!$C5) ->  | AH30: =IF(AG30="","",Grid!$E$8) ->  | AL30: =IF(Grid!$E$7="","",Grid!$D5) ->  | AM30: =IF(AL30="","",Grid!$E$7) ->  | AQ30: =IF(Grid!$E$6="","",Grid!$C5) ->  | AR30: =IF(AQ30="","",Grid!$E$6) ->  | AV30: =IF(Grid!$E$5="","",Grid!$D5) ->  | AW30: =IF(AV30="","",Grid!$E$5) ->  | BA30: =IF(Grid!$E$4="","",Grid!$C5) ->  | BB30: =IF(BA30="","",Grid!$E$4) -> 
H31: =IF(Grid!$E$13="","",Grid!$D6) ->  | I31: =IF(H31="","",Grid!$E$13) ->  | M31: =IF(Grid!$E$12="","",Grid!$C6) ->  | N31: =IF(M31="","",Grid!$E$12) ->  | R31: =IF(Grid!$E$11="","",Grid!$D6) ->  | S31: =IF(R31="","",Grid!$E$11) ->  | W31: =IF(Grid!$E$10="","",Grid!$C6) ->  | X31: =IF(W31="","",Grid!$E$10) ->  | AB31: =IF(Grid!$E$9="","",Grid!$D6) ->  | AC31: =IF(AB31="","",Grid!$E$9) ->  | AG31: =IF(Grid!$E$8="","",Grid!$C6) ->  | AH31: =IF(AG31="","",Grid!$E$8) ->  | AL31: =IF(Grid!$E$7="","",Grid!$D6) ->  | AM31: =IF(AL31="","",Grid!$E$7) ->  | AQ31: =IF(Grid!$E$6="","",Grid!$C6) ->  | AR31: =IF(AQ31="","",Grid!$E$6) ->  | AV31: =IF(Grid!$E$5="","",Grid!$D6) ->  | AW31: =IF(AV31="","",Grid!$E$5) ->  | BA31: =IF(Grid!$E$4="","",Grid!$C6) ->  | BB31: =IF(BA31="","",Grid!$E$4) -> 
H32: =IF(Grid!$E$13="","",Grid!$D7) ->  | I32: =IF(H32="","",Grid!$E$13) ->  | M32: =IF(Grid!$E$12="","",Grid!$C7) ->  | N32: =IF(M32="","",Grid!$E$12) ->  | R32: =IF(Grid!$E$11="","",Grid!$D7) ->  | S32: =IF(R32="","",Grid!$E$11) ->  | W32: =IF(Grid!$E$10="","",Grid!$C7) ->  | X32: =IF(W32="","",Grid!$E$10) ->  | AB32: =IF(Grid!$E$9="","",Grid!$D7) ->  | AC32: =IF(AB32="","",Grid!$E$9) ->  | AG32: =IF(Grid!$E$8="","",Grid!$C7) ->  | AH32: =IF(AG32="","",Grid!$E$8) ->  | AL32: =IF(Grid!$E$7="","",Grid!$D7) ->  | AM32: =IF(AL32="","",Grid!$E$7) ->  | AQ32: =IF(Grid!$E$6="","",Grid!$C7) ->  | AR32: =IF(AQ32="","",Grid!$E$6) ->  | AV32: =IF(Grid!$E$5="","",Grid!$D7) ->  | AW32: =IF(AV32="","",Grid!$E$5) ->  | BA32: =IF(Grid!$E$4="","",Grid!$C7) ->  | BB32: =IF(BA32="","",Grid!$E$4) -> 
H33: =IF(Grid!$E$13="","",Grid!$D8) ->  | I33: =IF(H33="","",Grid!$E$13) ->  | M33: =IF(Grid!$E$12="","",Grid!$C8) ->  | N33: =IF(M33="","",Grid!$E$12) ->  | R33: =IF(Grid!$E$11="","",Grid!$D8) ->  | S33: =IF(R33="","",Grid!$E$11) ->  | W33: =IF(Grid!$E$10="","",Grid!$C8) ->  | X33: =IF(W33="","",Grid!$E$10) ->  | AB33: =IF(Grid!$E$9="","",Grid!$D8) ->  | AC33: =IF(AB33="","",Grid!$E$9) ->  | AG33: =IF(Grid!$E$8="","",Grid!$C8) ->  | AH33: =IF(AG33="","",Grid!$E$8) ->  | AL33: =IF(Grid!$E$7="","",Grid!$D8) ->  | AM33: =IF(AL33="","",Grid!$E$7) ->  | AQ33: =IF(Grid!$E$6="","",Grid!$C8) ->  | AR33: =IF(AQ33="","",Grid!$E$6) ->  | AV33: =IF(Grid!$E$5="","",Grid!$D8) ->  | AW33: =IF(AV33="","",Grid!$E$5) ->  | BA33: =IF(Grid!$E$4="","",Grid!$C8) ->  | BB33: =IF(BA33="","",Grid!$E$4) -> 
H34: =IF(Grid!$E$13="","",Grid!$D9) ->  | I34: =IF(H34="","",Grid!$E$13) ->  | M34: =IF(Grid!$E$12="","",Grid!$C9) ->  | N34: =IF(M34="","",Grid!$E$12) ->  | R34: =IF(Grid!$E$11="","",Grid!$D9) ->  | S34: =IF(R34="","",Grid!$E$11) ->  | W34: =IF(Grid!$E$10="","",Grid!$C9) ->  | X34: =IF(W34="","",Grid!$E$10) ->  | AB34: =IF(Grid!$E$9="","",Grid!$D9) ->  | AC34: =IF(AB34="","",Grid!$E$9) ->  | AG34: =IF(Grid!$E$8="","",Grid!$C9) ->  | AH34: =IF(AG34="","",Grid!$E$8) ->  | AL34: =IF(Grid!$E$7="","",Grid!$D9) ->  | AM34: =IF(AL34="","",Grid!$E$7) ->  | AQ34: =IF(Grid!$E$6="","",Grid!$C9) ->  | AR34: =IF(AQ34="","",Grid!$E$6) ->  | AV34: =IF(Grid!$E$5="","",Grid!$D9) ->  | AW34: =IF(AV34="","",Grid!$E$5) ->  | BA34: =IF(Grid!$E$4="","",Grid!$C9) ->  | BB34: =IF(BA34="","",Grid!$E$4) -> 
H35: =IF(Grid!$E$13="","",Grid!$D10) ->  | I35: =IF(H35="","",Grid!$E$13) ->  | M35: =IF(Grid!$E$12="","",Grid!$C10) ->  | N35: =IF(M35="","",Grid!$E$12) ->  | R35: =IF(Grid!$E$11="","",Grid!$D10) ->  | S35: =IF(R35="","",Grid!$E$11) ->  | W35: =IF(Grid!$E$10="","",Grid!$C10) ->  | X35: =IF(W35="","",Grid!$E$10) ->  | AB35: =IF(Grid!$E$9="","",Grid!$D10) ->  | AC35: =IF(AB35="","",Grid!$E$9) ->  | AG35: =IF(Grid!$E$8="","",Grid!$C10) ->  | AH35: =IF(AG35="","",Grid!$E$8) ->  | AL35: =IF(Grid!$E$7="","",Grid!$D10) ->  | AM35: =IF(AL35="","",Grid!$E$7) ->  | AQ35: =IF(Grid!$E$6="","",Grid!$C10) ->  | AR35: =IF(AQ35="","",Grid!$E$6) ->  | AV35: =IF(Grid!$E$5="","",Grid!$D10) ->  | AW35: =IF(AV35="","",Grid!$E$5) ->  | BA35: =IF(Grid!$E$4="","",Grid!$C10) ->  | BB35: =IF(BA35="","",Grid!$E$4) -> 
H36: =IF(Grid!$E$13="","",Grid!$D11) ->  | I36: =IF(H36="","",Grid!$E$13) ->  | M36: =IF(Grid!$E$12="","",Grid!$C11) ->  | N36: =IF(M36="","",Grid!$E$12) ->  | R36: =IF(Grid!$E$11="","",Grid!$D11) ->  | S36: =IF(R36="","",Grid!$E$11) ->  | W36: =IF(Grid!$E$10="","",Grid!$C11) ->  | X36: =IF(W36="","",Grid!$E$10) ->  | AB36: =IF(Grid!$E$9="","",Grid!$D11) ->  | AC36: =IF(AB36="","",Grid!$E$9) ->  | AG36: =IF(Grid!$E$8="","",Grid!$C11) ->  | AH36: =IF(AG36="","",Grid!$E$8) ->  | AL36: =IF(Grid!$E$7="","",Grid!$D11) ->  | AM36: =IF(AL36="","",Grid!$E$7) ->  | AQ36: =IF(Grid!$E$6="","",Grid!$C11) ->  | AR36: =IF(AQ36="","",Grid!$E$6) ->  | AV36: =IF(Grid!$E$5="","",Grid!$D11) ->  | AW36: =IF(AV36="","",Grid!$E$5) ->  | BA36: =IF(Grid!$E$4="","",Grid!$C11) ->  | BB36: =IF(BA36="","",Grid!$E$4) -> 
H37: =IF(Grid!$E$13="","",Grid!$D12) -> -14.2 | I37: =IF(H37="","",Grid!$E$13) -> -12.9 | M37: =IF(Grid!$E$12="","",Grid!$C12) ->  | N37: =IF(M37="","",Grid!$E$12) ->  | R37: =IF(Grid!$E$11="","",Grid!$D12) ->  | S37: =IF(R37="","",Grid!$E$11) ->  | W37: =IF(Grid!$E$10="","",Grid!$C12) ->  | X37: =IF(W37="","",Grid!$E$10) ->  | AB37: =IF(Grid!$E$9="","",Grid!$D12) ->  | AC37: =IF(AB37="","",Grid!$E$9) ->  | AG37: =IF(Grid!$E$8="","",Grid!$C12) ->  | AH37: =IF(AG37="","",Grid!$E$8) ->  | AL37: =IF(Grid!$E$7="","",Grid!$D12) ->  | AM37: =IF(AL37="","",Grid!$E$7) ->  | AQ37: =IF(Grid!$E$6="","",Grid!$C12) ->  | AR37: =IF(AQ37="","",Grid!$E$6) ->  | AV37: =IF(Grid!$E$5="","",Grid!$D12) ->  | AW37: =IF(AV37="","",Grid!$E$5) ->  | BA37: =IF(Grid!$E$4="","",Grid!$C12) ->  | BB37: =IF(BA37="","",Grid!$E$4) -> 
H38: =IF(Grid!$E$13="","",Grid!$D13) -> 5.4 | I38: =IF(H38="","",Grid!$E$13) -> -12.9 | M38: =IF(Grid!$E$12="","",Grid!$C13) ->  | N38: =IF(M38="","",Grid!$E$12) ->  | R38: =IF(Grid!$E$11="","",Grid!$D13) ->  | S38: =IF(R38="","",Grid!$E$11) ->  | W38: =IF(Grid!$E$10="","",Grid!$C13) ->  | X38: =IF(W38="","",Grid!$E$10) ->  | AB38: =IF(Grid!$E$9="","",Grid!$D13) ->  | AC38: =IF(AB38="","",Grid!$E$9) ->  | AG38: =IF(Grid!$E$8="","",Grid!$C13) ->  | AH38: =IF(AG38="","",Grid!$E$8) ->  | AL38: =IF(Grid!$E$7="","",Grid!$D13) ->  | AM38: =IF(AL38="","",Grid!$E$7) ->  | AQ38: =IF(Grid!$E$6="","",Grid!$C13) ->  | AR38: =IF(AQ38="","",Grid!$E$6) ->  | AV38: =IF(Grid!$E$5="","",Grid!$D13) ->  | AW38: =IF(AV38="","",Grid!$E$5) ->  | BA38: =IF(Grid!$E$4="","",Grid!$C13) ->  | BB38: =IF(BA38="","",Grid!$E$4) -> 
H39: =IF(Grid!$E$13="","",Grid!$D14) -> 25 | I39: =IF(H39="","",Grid!$E$13) -> -12.9 | M39: =IF(Grid!$E$12="","",Grid!$C14) ->  | N39: =IF(M39="","",Grid!$E$12) ->  | R39: =IF(Grid!$E$11="","",Grid!$D14) ->  | S39: =IF(R39="","",Grid!$E$11) ->  | W39: =IF(Grid!$E$10="","",Grid!$C14) ->  | X39: =IF(W39="","",Grid!$E$10) ->  | AB39: =IF(Grid!$E$9="","",Grid!$D14) ->  | AC39: =IF(AB39="","",Grid!$E$9) ->  | AG39: =IF(Grid!$E$8="","",Grid!$C14) ->  | AH39: =IF(AG39="","",Grid!$E$8) ->  | AL39: =IF(Grid!$E$7="","",Grid!$D14) ->  | AM39: =IF(AL39="","",Grid!$E$7) ->  | AQ39: =IF(Grid!$E$6="","",Grid!$C14) ->  | AR39: =IF(AQ39="","",Grid!$E$6) ->  | AV39: =IF(Grid!$E$5="","",Grid!$D14) ->  | AW39: =IF(AV39="","",Grid!$E$5) ->  | BA39: =IF(Grid!$E$4="","",Grid!$C14) ->  | BB39: =IF(BA39="","",Grid!$E$4) -> 
H40: =IF(Grid!$E$13="","",Grid!$D15) -> 44.6 | I40: =IF(H40="","",Grid!$E$13) -> -12.9 | M40: =IF(Grid!$E$12="","",Grid!$C15) ->  | N40: =IF(M40="","",Grid!$E$12) ->  | R40: =IF(Grid!$E$11="","",Grid!$D15) ->  | S40: =IF(R40="","",Grid!$E$11) ->  | W40: =IF(Grid!$E$10="","",Grid!$C15) ->  | X40: =IF(W40="","",Grid!$E$10) ->  | AB40: =IF(Grid!$E$9="","",Grid!$D15) ->  | AC40: =IF(AB40="","",Grid!$E$9) ->  | AG40: =IF(Grid!$E$8="","",Grid!$C15) ->  | AH40: =IF(AG40="","",Grid!$E$8) ->  | AL40: =IF(Grid!$E$7="","",Grid!$D15) ->  | AM40: =IF(AL40="","",Grid!$E$7) ->  | AQ40: =IF(Grid!$E$6="","",Grid!$C15) ->  | AR40: =IF(AQ40="","",Grid!$E$6) ->  | AV40: =IF(Grid!$E$5="","",Grid!$D15) ->  | AW40: =IF(AV40="","",Grid!$E$5) ->  | BA40: =IF(Grid!$E$4="","",Grid!$C15) ->  | BB40: =IF(BA40="","",Grid!$E$4) -> 
H41: =IF(Grid!$E$13="","",Grid!$D16) -> 64.2 | I41: =IF(H41="","",Grid!$E$13) -> -12.9 | M41: =IF(Grid!$E$12="","",Grid!$C16) ->  | N41: =IF(M41="","",Grid!$E$12) ->  | R41: =IF(Grid!$E$11="","",Grid!$D16) ->  | S41: =IF(R41="","",Grid!$E$11) ->  | W41: =IF(Grid!$E$10="","",Grid!$C16) ->  | X41: =IF(W41="","",Grid!$E$10) ->  | AB41: =IF(Grid!$E$9="","",Grid!$D16) ->  | AC41: =IF(AB41="","",Grid!$E$9) ->  | AG41: =IF(Grid!$E$8="","",Grid!$C16) ->  | AH41: =IF(AG41="","",Grid!$E$8) ->  | AL41: =IF(Grid!$E$7="","",Grid!$D16) ->  | AM41: =IF(AL41="","",Grid!$E$7) ->  | AQ41: =IF(Grid!$E$6="","",Grid!$C16) ->  | AR41: =IF(AQ41="","",Grid!$E$6) ->  | AV41: =IF(Grid!$E$5="","",Grid!$D16) ->  | AW41: =IF(AV41="","",Grid!$E$5) ->  | BA41: =IF(Grid!$E$4="","",Grid!$C16) ->  | BB41: =IF(BA41="","",Grid!$E$4) -> 
H42: =IF(Grid!$E$13="","",Grid!$D17) -> 83.8 | I42: =IF(H42="","",Grid!$E$13) -> -12.9 | M42: =IF(Grid!$E$12="","",Grid!$C17) ->  | N42: =IF(M42="","",Grid!$E$12) ->  | R42: =IF(Grid!$E$11="","",Grid!$D17) ->  | S42: =IF(R42="","",Grid!$E$11) ->  | W42: =IF(Grid!$E$10="","",Grid!$C17) ->  | X42: =IF(W42="","",Grid!$E$10) ->  | AB42: =IF(Grid!$E$9="","",Grid!$D17) ->  | AC42: =IF(AB42="","",Grid!$E$9) ->  | AG42: =IF(Grid!$E$8="","",Grid!$C17) ->  | AH42: =IF(AG42="","",Grid!$E$8) ->  | AL42: =IF(Grid!$E$7="","",Grid!$D17) ->  | AM42: =IF(AL42="","",Grid!$E$7) ->  | AQ42: =IF(Grid!$E$6="","",Grid!$C17) ->  | AR42: =IF(AQ42="","",Grid!$E$6) ->  | AV42: =IF(Grid!$E$5="","",Grid!$D17) ->  | AW42: =IF(AV42="","",Grid!$E$5) ->  | BA42: =IF(Grid!$E$4="","",Grid!$C17) ->  | BB42: =IF(BA42="","",Grid!$E$4) -> 
H43: =IF(Grid!$E$13="","",Grid!$D18) ->  | I43: =IF(H43="","",Grid!$E$13) ->  | M43: =IF(Grid!$E$12="","",Grid!$C18) ->  | N43: =IF(M43="","",Grid!$E$12) ->  | R43: =IF(Grid!$E$11="","",Grid!$D18) ->  | S43: =IF(R43="","",Grid!$E$11) ->  | W43: =IF(Grid!$E$10="","",Grid!$C18) ->  | X43: =IF(W43="","",Grid!$E$10) ->  | AB43: =IF(Grid!$E$9="","",Grid!$D18) ->  | AC43: =IF(AB43="","",Grid!$E$9) ->  | AG43: =IF(Grid!$E$8="","",Grid!$C18) ->  | AH43: =IF(AG43="","",Grid!$E$8) ->  | AL43: =IF(Grid!$E$7="","",Grid!$D18) ->  | AM43: =IF(AL43="","",Grid!$E$7) ->  | AQ43: =IF(Grid!$E$6="","",Grid!$C18) ->  | AR43: =IF(AQ43="","",Grid!$E$6) ->  | AV43: =IF(Grid!$E$5="","",Grid!$D18) ->  | AW43: =IF(AV43="","",Grid!$E$5) ->  | BA43: =IF(Grid!$E$4="","",Grid!$C18) ->  | BB43: =IF(BA43="","",Grid!$E$4) -> 
H44: =IF(Grid!$E$13="","",Grid!$D19) ->  | I44: =IF(H44="","",Grid!$E$13) ->  | M44: =IF(Grid!$E$12="","",Grid!$C19) ->  | N44: =IF(M44="","",Grid!$E$12) ->  | R44: =IF(Grid!$E$11="","",Grid!$D19) ->  | S44: =IF(R44="","",Grid!$E$11) ->  | W44: =IF(Grid!$E$10="","",Grid!$C19) ->  | X44: =IF(W44="","",Grid!$E$10) ->  | AB44: =IF(Grid!$E$9="","",Grid!$D19) ->  | AC44: =IF(AB44="","",Grid!$E$9) ->  | AG44: =IF(Grid!$E$8="","",Grid!$C19) ->  | AH44: =IF(AG44="","",Grid!$E$8) ->  | AL44: =IF(Grid!$E$7="","",Grid!$D19) ->  | AM44: =IF(AL44="","",Grid!$E$7) ->  | AQ44: =IF(Grid!$E$6="","",Grid!$C19) ->  | AR44: =IF(AQ44="","",Grid!$E$6) ->  | AV44: =IF(Grid!$E$5="","",Grid!$D19) ->  | AW44: =IF(AV44="","",Grid!$E$5) ->  | BA44: =IF(Grid!$E$4="","",Grid!$C19) ->  | BB44: =IF(BA44="","",Grid!$E$4) -> 
H45: =IF(Grid!$E$13="","",Grid!$D20) ->  | I45: =IF(H45="","",Grid!$E$13) ->  | M45: =IF(Grid!$E$12="","",Grid!$C20) ->  | N45: =IF(M45="","",Grid!$E$12) ->  | R45: =IF(Grid!$E$11="","",Grid!$D20) ->  | S45: =IF(R45="","",Grid!$E$11) ->  | W45: =IF(Grid!$E$10="","",Grid!$C20) ->  | X45: =IF(W45="","",Grid!$E$10) ->  | AB45: =IF(Grid!$E$9="","",Grid!$D20) ->  | AC45: =IF(AB45="","",Grid!$E$9) ->  | AG45: =IF(Grid!$E$8="","",Grid!$C20) ->  | AH45: =IF(AG45="","",Grid!$E$8) ->  | AL45: =IF(Grid!$E$7="","",Grid!$D20) ->  | AM45: =IF(AL45="","",Grid!$E$7) ->  | AQ45: =IF(Grid!$E$6="","",Grid!$C20) ->  | AR45: =IF(AQ45="","",Grid!$E$6) ->  | AV45: =IF(Grid!$E$5="","",Grid!$D20) ->  | AW45: =IF(AV45="","",Grid!$E$5) ->  | BA45: =IF(Grid!$E$4="","",Grid!$C20) ->  | BB45: =IF(BA45="","",Grid!$E$4) -> 
H46: =IF(Grid!$E$13="","",Grid!$D21) ->  | I46: =IF(H46="","",Grid!$E$13) ->  | M46: =IF(Grid!$E$12="","",Grid!$C21) ->  | N46: =IF(M46="","",Grid!$E$12) ->  | R46: =IF(Grid!$E$11="","",Grid!$D21) ->  | S46: =IF(R46="","",Grid!$E$11) ->  | W46: =IF(Grid!$E$10="","",Grid!$C21) ->  | X46: =IF(W46="","",Grid!$E$10) ->  | AB46: =IF(Grid!$E$9="","",Grid!$D21) ->  | AC46: =IF(AB46="","",Grid!$E$9) ->  | AG46: =IF(Grid!$E$8="","",Grid!$C21) ->  | AH46: =IF(AG46="","",Grid!$E$8) ->  | AL46: =IF(Grid!$E$7="","",Grid!$D21) ->  | AM46: =IF(AL46="","",Grid!$E$7) ->  | AQ46: =IF(Grid!$E$6="","",Grid!$C21) ->  | AR46: =IF(AQ46="","",Grid!$E$6) ->  | AV46: =IF(Grid!$E$5="","",Grid!$D21) ->  | AW46: =IF(AV46="","",Grid!$E$5) ->  | BA46: =IF(Grid!$E$4="","",Grid!$C21) ->  | BB46: =IF(BA46="","",Grid!$E$4) -> 
H47: =IF(Grid!$E$13="","",Grid!$D22) ->  | I47: =IF(H47="","",Grid!$E$13) ->  | M47: =IF(Grid!$E$12="","",Grid!$C22) ->  | N47: =IF(M47="","",Grid!$E$12) ->  | R47: =IF(Grid!$E$11="","",Grid!$D22) ->  | S47: =IF(R47="","",Grid!$E$11) ->  | W47: =IF(Grid!$E$10="","",Grid!$C22) ->  | X47: =IF(W47="","",Grid!$E$10) ->  | AB47: =IF(Grid!$E$9="","",Grid!$D22) ->  | AC47: =IF(AB47="","",Grid!$E$9) ->  | AG47: =IF(Grid!$E$8="","",Grid!$C22) ->  | AH47: =IF(AG47="","",Grid!$E$8) ->  | AL47: =IF(Grid!$E$7="","",Grid!$D22) ->  | AM47: =IF(AL47="","",Grid!$E$7) ->  | AQ47: =IF(Grid!$E$6="","",Grid!$C22) ->  | AR47: =IF(AQ47="","",Grid!$E$6) ->  | AV47: =IF(Grid!$E$5="","",Grid!$D22) ->  | AW47: =IF(AV47="","",Grid!$E$5) ->  | BA47: =IF(Grid!$E$4="","",Grid!$C22) ->  | BB47: =IF(BA47="","",Grid!$E$4) -> 
H48: =IF(Grid!$E$13="","",Grid!$D23) ->  | I48: =IF(H48="","",Grid!$E$13) ->  | M48: =IF(Grid!$E$12="","",Grid!$C23) ->  | N48: =IF(M48="","",Grid!$E$12) ->  | R48: =IF(Grid!$E$11="","",Grid!$D23) ->  | S48: =IF(R48="","",Grid!$E$11) ->  | W48: =IF(Grid!$E$10="","",Grid!$C23) ->  | X48: =IF(W48="","",Grid!$E$10) ->  | AB48: =IF(Grid!$E$9="","",Grid!$D23) ->  | AC48: =IF(AB48="","",Grid!$E$9) ->  | AG48: =IF(Grid!$E$8="","",Grid!$C23) ->  | AH48: =IF(AG48="","",Grid!$E$8) ->  | AL48: =IF(Grid!$E$7="","",Grid!$D23) ->  | AM48: =IF(AL48="","",Grid!$E$7) ->  | AQ48: =IF(Grid!$E$6="","",Grid!$C23) ->  | AR48: =IF(AQ48="","",Grid!$E$6) ->  | AV48: =IF(Grid!$E$5="","",Grid!$D23) ->  | AW48: =IF(AV48="","",Grid!$E$5) ->  | BA48: =IF(Grid!$E$4="","",Grid!$C23) ->  | BB48: =IF(BA48="","",Grid!$E$4) -> 
H49: =IF(Grid!$E$13="","",Grid!$D24) ->  | I49: =IF(H49="","",Grid!$E$13) ->  | M49: =IF(Grid!$E$12="","",Grid!$C24) ->  | N49: =IF(M49="","",Grid!$E$12) ->  | R49: =IF(Grid!$E$11="","",Grid!$D24) ->  | S49: =IF(R49="","",Grid!$E$11) ->  | W49: =IF(Grid!$E$10="","",Grid!$C24) ->  | X49: =IF(W49="","",Grid!$E$10) ->  | AB49: =IF(Grid!$E$9="","",Grid!$D24) ->  | AC49: =IF(AB49="","",Grid!$E$9) ->  | AG49: =IF(Grid!$E$8="","",Grid!$C24) ->  | AH49: =IF(AG49="","",Grid!$E$8) ->  | AL49: =IF(Grid!$E$7="","",Grid!$D24) ->  | AM49: =IF(AL49="","",Grid!$E$7) ->  | AQ49: =IF(Grid!$E$6="","",Grid!$C24) ->  | AR49: =IF(AQ49="","",Grid!$E$6) ->  | AV49: =IF(Grid!$E$5="","",Grid!$D24) ->  | AW49: =IF(AV49="","",Grid!$E$5) ->  | BA49: =IF(Grid!$E$4="","",Grid!$C24) ->  | BB49: =IF(BA49="","",Grid!$E$4) -> 

Sheet SamplingPoints
A1: Coordinates of 3-D Systematic Random Sampling Points
A2: Note: Sampling points that are not within the area of contamination should be discarded. You will need to generate another group of data sets if the number of valid data sets in a group is less than the minimum number of samples otherwise required.
C3: 0th Row | H3: 1st Row | M3: 2nd Row | R3: 3rd Row | W3: 4th Row | AB3: 5th Row | AG3: 6th Row | AL3: 7th Row | AQ3: 8th Row | AV3: 9th Row | BA3: 10th Row
C4: Xi, | D4: Yi | E4: Zi | H4: Xi, | I4: Yi | J4: Zi | M4: Xi, | N4: Yi | O4: Zi | R4: Xi, | S4: Yi | T4: Zi | W4: Xi, | X4: Yi | Y4: Zi | AB4: Xi, | AC4: Yi | AD4: Zi | AG4: Xi, | AH4: Yi | AI4: Zi | AL4: Xi, | AM4: Yi | AN4: Zi | AQ4: Xi, | AR4: Yi | AS4: Zi | AV4: Xi, | AW4: Yi | AX4: Zi | BA4: Xi, | BB4: Yi | BC4: Zi
C5: =(IF('Xi,Yi'!C5="","",(IF((('Xi,Yi'!C5+G5+F5/SQRT(3))<DataInput!$B$18),"",(IF((('Xi,Yi'!C5+G5+F5/SQRT(3))>DataInput!$B$19),"",(IF('Xi,Yi'!D5="","",(IF(('Xi,Yi'!D5+F5<DataInput!$B$20),"",(IF((('Xi,Yi'!D5+F5)>DataInput!$B$21),"",('Xi,Yi'!C5+G5+F5/SQRT(3)))))))))))))) ->  | D5: =IF(C5="","",(IF('Xi,Yi'!D5="","",(IF(('Xi,Yi'!D5+F5<DataInput!$B$20),"",(IF((('Xi,Yi'!D5+F5)>DataInput!$B$21),"",('Xi,Yi'!D5+F5)))))))) ->  | E5: =IF(C5="","",IF(D5="","",(DataInput!$B$4+(DataInput!$D$4-DataInput!$B$4)*RAND()))) ->  | F5: =DataInput!$B$16*RAND() -> 11.19617167 | G5: =DataInput!$B$15*RAND() -> 3.726290488 | H5: =(IF('Xi,Yi'!H5="","",(IF((('Xi,Yi'!H5+L5+K5/SQRT(3))<DataInput!$B$18),"",(IF((('Xi,Yi'!H5+L5+K5/SQRT(3))>DataInput!$B$19),"",(IF('Xi,Yi'!I5="","",(IF(('Xi,Yi'!I5+K5<DataInput!$B$20),"",(IF((('Xi,Yi'!I5+K5)>DataInput!$B$21),"",('Xi,Yi'!H5+L5+K5/SQRT(3)))))))))))))) ->  | I5: =IF(H5="","",(IF('Xi,Yi'!I5="","",(IF(('Xi,Yi'!I5+K5<DataInput!$B$20),"",(IF((('Xi,Yi'!I5+K5)>DataInput!$B$21),"",('Xi,Yi'!I5+K5)))))))) ->  | J5: =IF(H5="","",IF(I5="","",(DataInput!$B$4+(DataInput!$D$4-DataInput!$B$4)*RAND()))) ->  | K5: =DataInput!$B$16*RAND() -> 8.716964297 | L5: =DataInput!$B$15*RAND() -> 13.19054068 | M5: =(IF('Xi,Yi'!M5="","",(IF((('Xi,Yi'!M5+Q5+P5/SQRT(3))<DataInput!$B$18),"",(IF((('Xi,Yi'!M5+Q5+P5/SQRT(3))>DataInput!$B$19),"",(IF('Xi,Yi'!N5="","",(IF(('Xi,Yi'!N5+P5<DataInput!$B$20),"",(IF((('Xi,Yi'!N5+P5)>DataInput!$B$21),"",('Xi,Yi'!M5+Q5+P5/SQRT(3)))))))))))))) ->  | N5: =IF(M5="","",(IF('Xi,Yi'!N5="","",(IF(('Xi,Yi'!N5+P5<DataInput!$B$20),"",(IF((('Xi,Yi'!N5+P5)>DataInput!$B$21),"",('Xi,Yi'!N5+P5)))))))) ->  | O5: =IF(M5="","",IF(N5="","",(DataInput!$B$4+(DataInput!$D$4-DataInput!$B$4)*RAND()))) ->  | P5: =DataInput!$B$16*RAND() -> 4.386138306 | Q5: =DataInput!$B$15*RAND() -> 15.93897901 | R5: =(IF('Xi,Yi'!R5="","",(IF((('Xi,Yi'!R5+V5+U5/SQRT(3))<DataInput!$B$18),"",(IF((('Xi,Yi'!R5+V5+U5/SQRT(3))>DataInput!$B$19),"",(IF('Xi,Yi'!S5="","",(IF(('Xi,Yi'!S5+U5<DataInput!$B$20),"",(IF((('Xi,Yi'!S5+U5)>DataInput!$B$21),"",('Xi,Yi'!R5+V5+U5/SQRT(3)))))))))))))) ->  | S5: =IF(R5="","",(IF('Xi,Yi'!S5="","",(IF(('Xi,Yi'!S5+U5<DataInput!$B$20),"",(IF((('Xi,Yi'!S5+U5)>DataInput!$B$21),"",('Xi,Yi'!S5+U5)))))))) ->  | T5: =IF(R5="","",IF(S5="","",(DataInput!$B$4+(DataInput!$D$4-DataInput!$B$4)*RAND()))) ->  | U5: =DataInput!$B$16*RAND() -> 12.3119667 | V5: =DataInput!$B$15*RAND() -> 9.308640554 | W5: =(IF('Xi,Yi'!W5="","",(IF((('Xi,Yi'!W5+AA5+Z5/SQRT(3))<DataInput!$B$18),"",(IF((('Xi,Yi'!W5+AA5+Z5/SQRT(3))>DataInput!$B$19),"",(IF('Xi,Yi'!X5="","",(IF(('Xi,Yi'!X5+Z5<DataInput!$B$20),"",(IF((('Xi,Yi'!X5+Z5)>DataInput!$B$21),"",('Xi,Yi'!W5+AA5+Z5/SQRT(3)))))))))))))) ->  | X5: =IF(W5="","",(IF('Xi,Yi'!X5="","",(IF(('Xi,Yi'!X5+Z5<DataInput!$B$20),"",(IF((('Xi,Yi'!X5+Z5)>DataInput!$B$21),"",('Xi,Yi'!X5+Z5)))))))) ->  | Y5: =IF(W5="","",IF(X5="","",(DataInput!$B$4+(DataInput!$D$4-DataInput!$B$4)*RAND()))) ->  | Z5: =DataInput!$B$16*RAND() -> 9.619161506 | AA5: =DataInput!$B$15*RAND() -> 13.05778351 | AB5: =(IF('Xi,Yi'!AB5="","",(IF((('Xi,Yi'!AB5+AF5+AE5/SQRT(3))<DataInput!$B$18),"",(IF((('Xi,Yi'!AB5+AF5+AE5/SQRT(3))>DataInput!$B$19),"",(IF('Xi,Yi'!AC5="","",(IF(('Xi,Yi'!AC5+AE5<DataInput!$B$20),"",(IF((('Xi,Yi'!AC5+AE5)>DataInput!$B$21),"",('Xi,Yi'!AB5+AF5+AE5/SQRT(3)))))))))))))) ->  | AC5: =IF(AB5="","",(IF('Xi,Yi'!AC5="","",(IF(('Xi,Yi'!AC5+AE5<DataInput!$B$20),"",(IF((('Xi,Yi'!AC5+AE5)>DataInput!$B$21),"",('Xi,Yi'!AC5+AE5)))))))) ->  | AD5: =IF(AB5="","",IF(AC5="","",(DataInput!$B$4+(DataInput!$D$4-DataInput!$B$4)*RAND()))) ->  | AE5: =DataInput!$B$16*RAND() -> 16.11711132 | AF5: =DataInput!$B$15*RAND() -> 13.9889081 | AG5: =(IF('Xi,Yi'!AG5="","",(IF((('Xi,Yi'!AG5+AK5+AJ5/SQRT(3))<DataInput!$B$18),"",(IF((('Xi,Yi'!AG5+AK5+AJ5/SQRT(3))>DataInput!$B$19),"",(IF('Xi,Yi'!AH5="","",(IF(('Xi,Yi'!AH5+AJ5<DataInput!$B$20),"",(IF((('Xi,Yi'!AH5+AJ5)>DataInput!$B$21),"",('Xi,Yi'!AG5+AK5+AJ5/SQRT(3)))))))))))))) ->  | AH5: =IF(AG5="","",(IF('Xi,Yi'!AH5="","",(IF(('Xi,Yi'!AH5+AJ5<DataInput!$B$20),"",(IF((('Xi,Yi'!AH5+AJ5)>DataInput!$B$21),"",('Xi,Yi'!AH5+AJ5)))))))) ->  | AI5: =IF(AG5="","",IF(AH5="","",(DataInput!$B$4+(DataInput!$D$4-DataInput!$B$4)*RAND()))) ->  | AJ5: =DataInput!$B$16*RAND() -> 0.4498261568 | AK5: =DataInput!$B$15*RAND() -> 7.722274906 | AL5: =(IF('Xi,Yi'!AL5="","",(IF((('Xi,Yi'!AL5+AP5+AO5/SQRT(3))<DataInput!$B$18),"",(IF((('Xi,Yi'!AL5+AP5+AO5/SQRT(3))>DataInput!$B$19),"",(IF('Xi,Yi'!AM5="","",(IF(('Xi,Yi'!AM5+AO5<DataInput!$B$20),"",(IF((('Xi,Yi'!AM5+AO5)>DataInput!$B$21),"",('Xi,Yi'!AL5+AP5+AO5/SQRT(3)))))))))))))) ->  | AM5: =IF(AL5="","",(IF('Xi,Yi'!AM5="","",(IF(('Xi,Yi'!AM5+AO5<DataInput!$B$20),"",(IF((('Xi,Yi'!AM5+AO5)>DataInput!$B$21),"",('Xi,Yi'!AM5+AO5)))))))) ->  | AN5: =IF(AL5="","",IF(AM5="","",(DataInput!$B$4+(DataInput!$D$4-DataInput!$B$4)*RAND()))) ->  | AO5: =DataInput!$B$16*RAND() -> 14.38394035 | AP5: =DataInput!$B$15*RAND() -> 0.9431369817 | AQ5: =(IF('Xi,Yi'!AQ5="","",(IF((('Xi,Yi'!AQ5+AU5+AT5/SQRT(3))<DataInput!$B$18),"",(IF((('Xi,Yi'!AQ5+AU5+AT5/SQRT(3))>DataInput!$B$19),"",(IF('Xi,Yi'!AR5="","",(IF(('Xi,Yi'!AR5+AT5<DataInput!$B$20),"",(IF((('Xi,Yi'!AR5+AT5)>DataInput!$B$21),"",('Xi,Yi'!AQ5+AU5+AT5/SQRT(3)))))))))))))) ->  | AR5: =IF(AQ5="","",(IF('Xi,Yi'!AR5="","",(IF(('Xi,Yi'!AR5+AT5<DataInput!$B$20),"",(IF((('Xi,Yi'!AR5+AT5)>DataInput!$B$21),"",('Xi,Yi'!AR5+AT5)))))))) ->  | AS5: =IF(AQ5="","",IF(AR5="","",(DataInput!$B$4+(DataInput!$D$4-DataInput!$B$4)*RAND()))) ->  | AT5: =DataInput!$B$16*RAND() -> 0.2527587205 | AU5: =DataInput!$B$15*RAND() -> 8.43779911 | AV5: =(IF('Xi,Yi'!AV5="","",(IF((('Xi,Yi'!AV5+AZ5+AY5/SQRT(3))<DataInput!$B$18),"",(IF((('Xi,Yi'!AV5+AZ5+AY5/SQRT(3))>DataInput!$B$19),"",(IF('Xi,Yi'!AW5="","",(IF(('Xi,Yi'!AW5+AY5<DataInput!$B$20),"",(IF((('Xi,Yi'!AW5+AY5)>DataInput!$B$21),"",('Xi,Yi'!AV5+AZ5+AY5/SQRT(3)))))))))))))) ->  | AW5: =IF(AV5="","",(IF('Xi,Yi'!AW5="","",(IF(('Xi,Yi'!AW5+AY5<DataInput!$B$20),"",(IF((('Xi,Yi'!AW5+AY5)>DataInput!$B$21),"",('Xi,Yi'!AW5+AY5)))))))) ->  | AX5: =IF(AV5="","",IF(AW5="","",(DataInput!$B$4+(DataInput!$D$4-DataInput!$B$4)*RAND()))) ->  | AY5: =DataInput!$B$16*RAND() -> 10.63517267 | AZ5: =DataInput!$B$15*RAND() -> 9.40904838 | BA5: =(IF('Xi,Yi'!BA5="","",(IF((('Xi,Yi'!BA5+BE5+BD5/SQRT(3))<DataInput!$B$18),"",(IF((('Xi,Yi'!BA5+BE5+BD5/SQRT(3))>DataInput!$B$19),"",(IF('Xi,Yi'!BB5="","",(IF(('Xi,Yi'!BB5+BD5<DataInput!$B$20),"",(IF((('Xi,Yi'!BB5+BD5)>DataInput!$B$21),"",('Xi,Yi'!BA5+BE5+BD5/SQRT(3)))))))))))))) ->  | BB5: =IF(BA5="","",(IF('Xi,Yi'!BB5="","",(IF(('Xi,Yi'!BB5+BD5<DataInput!$B$20),"",(IF((('Xi,Yi'!BB5+BD5)>DataInput!$B$21),"",('Xi,Yi'!BB5+BD5)))))))) ->  | BC5: =IF(BA5="","",IF(BB5="","",(DataInput!$B$4+(DataInput!$D$4-DataInput!$B$4)*RAND()))) ->  | BD5: =DataInput!$B$16*RAND() -> 7.599611503 | BE5: =DataInput!$B$15*RAND() -> 0.3272590747
C6: =(IF('Xi,Yi'!C6="","",(IF((('Xi,Yi'!C6+G6+F6/SQRT(3))<DataInput!$B$18),"",(IF((('Xi,Yi'!C6+G6+F6/SQRT(3))>DataInput!$B$19),"",(IF('Xi,Yi'!D6="","",(IF(('Xi,Yi'!D6+F6<DataInput!$B$20),"",(IF((('Xi,Yi'!D6+F6)>DataInput!$B$21),"",('Xi,Yi'!C6+G6+F6/SQRT(3)))))))))))))) ->  | D6: =IF(C6="","",(IF('Xi,Yi'!D6="","",(IF(('Xi,Yi'!D6+F6<DataInput!$B$20),"",(IF((('Xi,Yi'!D6+F6)>DataInput!$B$21),"",('Xi,Yi'!D6+F6)))))))) ->  | E6: =IF(C6="","",IF(D6="","",(DataInput!$B$4+(DataInput!$D$4-DataInput!$B$4)*RAND()))) ->  | F6: =DataInput!$B$16*RAND() -> 3.77611028 | G6: =DataInput!$B$15*RAND() -> 13.1910382 | H6: =(IF('Xi,Yi'!H6="","",(IF((('Xi,Yi'!H6+L6+K6/SQRT(3))<DataInput!$B$18),"",(IF((('Xi,Yi'!H6+L6+K6/SQRT(3))>DataInput!$B$19),"",(IF('Xi,Yi'!I6="","",(IF(('Xi,Yi'!I6+K6<DataInput!$B$20),"",(IF((('Xi,Yi'!I6+K6)>DataInput!$B$21),"",('Xi,Yi'!H6+L6+K6/SQRT(3)))))))))))))) ->  | I6: =IF(H6="","",(IF('Xi,Yi'!I6="","",(IF(('Xi,Yi'!I6+K6<DataInput!$B$20),"",(IF((('Xi,Yi'!I6+K6)>DataInput!$B$21),"",('Xi,Yi'!I6+K6)))))))) ->  | J6: =IF(H6="","",IF(I6="","",(DataInput!$B$4+(DataInput!$D$4-DataInput!$B$4)*RAND()))) ->  | K6: =DataInput!$B$16*RAND() -> 11.87751923 | L6: =DataInput!$B$15*RAND() -> 14.53905912 | M6: =(IF('Xi,Yi'!M6="","",(IF((('Xi,Yi'!M6+Q6+P6/SQRT(3))<DataInput!$B$18),"",(IF((('Xi,Yi'!M6+Q6+P6/SQRT(3))>DataInput!$B$19),"",(IF('Xi,Yi'!N6="","",(IF(('Xi,Yi'!N6+P6<DataInput!$B$20),"",(IF((('Xi,Yi'!N6+P6)>DataInput!$B$21),"",('Xi,Yi'!M6+Q6+P6/SQRT(3)))))))))))))) ->  | N6: =IF(M6="","",(IF('Xi,Yi'!N6="","",(IF(('Xi,Yi'!N6+P6<DataInput!$B$20),"",(IF((('Xi,Yi'!N6+P6)>DataInput!$B$21),"",('Xi,Yi'!N6+P6)))))))) ->  | O6: =IF(M6="","",IF(N6="","",(DataInput!$B$4+(DataInput!$D$4-DataInput!$B$4)*RAND()))) ->  | P6: =DataInput!$B$16*RAND() -> 1.564929776 | Q6: =DataInput!$B$15*RAND() -> 17.65594469 | R6: =(IF('Xi,Yi'!R6="","",(IF((('Xi,Yi'!R6+V6+U6/SQRT(3))<DataInput!$B$18),"",(IF((('Xi,Yi'!R6+V6+U6/SQRT(3))>DataInput!$B$19),"",(IF('Xi,Yi'!S6="","",(IF(('Xi,Yi'!S6+U6<DataInput!$B$20),"",(IF((('Xi,Yi'!S6+U6)>DataInput!$B$21),"",('Xi,Yi'!R6+V6+U6/SQRT(3)))))))))))))) ->  | S6: =IF(R6="","",(IF('Xi,Yi'!S6="","",(IF(('Xi,Yi'!S6+U6<DataInput!$B$20),"",(IF((('Xi,Yi'!S6+U6)>DataInput!$B$21),"",('Xi,Yi'!S6+U6)))))))) ->  | T6: =IF(R6="","",IF(S6="","",(DataInput!$B$4+(DataInput!$D$4-DataInput!$B$4)*RAND()))) ->  | U6: =DataInput!$B$16*RAND() -> 13.32761151 | V6: =DataInput!$B$15*RAND() -> 9.829162055 | W6: =(IF('Xi,Yi'!W6="","",(IF((('Xi,Yi'!W6+AA6+Z6/SQRT(3))<DataInput!$B$18),"",(IF((('Xi,Yi'!W6+AA6+Z6/SQRT(3))>DataInput!$B$19),"",(IF('Xi,Yi'!X6="","",(IF(('Xi,Yi'!X6+Z6<DataInput!$B$20),"",(IF((('Xi,Yi'!X6+Z6)>DataInput!$B$21),"",('Xi,Yi'!W6+AA6+Z6/SQRT(3)))))))))))))) ->  | X6: =IF(W6="","",(IF('Xi,Yi'!X6="","",(IF(('Xi,Yi'!X6+Z6<DataInput!$B$20),"",(IF((('Xi,Yi'!X6+Z6)>DataInput!$B$21),"",('Xi,Yi'!X6+Z6)))))))) ->  | Y6: =IF(W6="","",IF(X6="","",(DataInput!$B$4+(DataInput!$D$4-DataInput!$B$4)*RAND()))) ->  | Z6: =DataInput!$B$16*RAND() -> 13.40292577 | AA6: =DataInput!$B$15*RAND() -> 0.144084557 | AB6: =(IF('Xi,Yi'!AB6="","",(IF((('Xi,Yi'!AB6+AF6+AE6/SQRT(3))<DataInput!$B$18),"",(IF((('Xi,Yi'!AB6+AF6+AE6/SQRT(3))>DataInput!$B$19),"",(IF('Xi,Yi'!AC6="","",(IF(('Xi,Yi'!AC6+AE6<DataInput!$B$20),"",(IF((('Xi,Yi'!AC6+AE6)>DataInput!$B$21),"",('Xi,Yi'!AB6+AF6+AE6/SQRT(3)))))))))))))) ->  | AC6: =IF(AB6="","",(IF('Xi,Yi'!AC6="","",(IF(('Xi,Yi'!AC6+AE6<DataInput!$B$20),"",(IF((('Xi,Yi'!AC6+AE6)>DataInput!$B$21),"",('Xi,Yi'!AC6+AE6)))))))) ->  | AD6: =IF(AB6="","",IF(AC6="","",(DataInput!$B$4+(DataInput!$D$4-DataInput!$B$4)*RAND()))) ->  | AE6: =DataInput!$B$16*RAND() -> 5.991817942 | AF6: =DataInput!$B$15*RAND() -> 3.409033814 | AG6: =(IF('Xi,Yi'!AG6="","",(IF((('Xi,Yi'!AG6+AK6+AJ6/SQRT(3))<DataInput!$B$18),"",(IF((('Xi,Yi'!AG6+AK6+AJ6/SQRT(3))>DataInput!$B$19),"",(IF('Xi,Yi'!AH6="","",(IF(('Xi,Yi'!AH6+AJ6<DataInput!$B$20),"",(IF((('Xi,Yi'!AH6+AJ6)>DataInput!$B$21),"",('Xi,Yi'!AG6+AK6+AJ6/SQRT(3)))))))))))))) ->  | AH6: =IF(AG6="","",(IF('Xi,Yi'!AH6="","",(IF(('Xi,Yi'!AH6+AJ6<DataInput!$B$20),"",(IF((('Xi,Yi'!AH6+AJ6)>DataInput!$B$21),"",('Xi,Yi'!AH6+AJ6)))))))) ->  | AI6: =IF(AG6="","",IF(AH6="","",(DataInput!$B$4+(DataInput!$D$4-DataInput!$B$4)*RAND()))) ->  | AJ6: =DataInput!$B$16*RAND() -> 3.218029499 | AK6: =DataInput!$B$15*RAND() -> 8.389676343 | AL6: =(IF('Xi,Yi'!AL6="","",(IF((('Xi,Yi'!AL6+AP6+AO6/SQRT(3))<DataInput!$B$18),"",(IF((('Xi,Yi'!AL6+AP6+AO6/SQRT(3))>DataInput!$B$19),"",(IF('Xi,Yi'!AM6="","",(IF(('Xi,Yi'!AM6+AO6<DataInput!$B$20),"",(IF((('Xi,Yi'!AM6+AO6)>DataInput!$B$21),"",('Xi,Yi'!AL6+AP6+AO6/SQRT(3)))))))))))))) ->  | AM6: =IF(AL6="","",(IF('Xi,Yi'!AM6="","",(IF(('Xi,Yi'!AM6+AO6<DataInput!$B$20),"",(IF((('Xi,Yi'!AM6+AO6)>DataInput!$B$21),"",('Xi,Yi'!AM6+AO6)))))))) ->  | AN6: =IF(AL6="","",IF(AM6="","",(DataInput!$B$4+(DataInput!$D$4-DataInput!$B$4)*RAND()))) ->  | AO6: =DataInput!$B$16*RAND() -> 3.400971904 | AP6: =DataInput!$B$15*RAND() -> 18.80432718 | AQ6: =(IF('Xi,Yi'!AQ6="","",(IF((('Xi,Yi'!AQ6+AU6+AT6/SQRT(3))<DataInput!$B$18),"",(IF((('Xi,Yi'!AQ6+AU6+AT6/SQRT(3))>DataInput!$B$19),"",(IF('Xi,Yi'!AR6="","",(IF(('Xi,Yi'!AR6+AT6<DataInput!$B$20),"",(IF((('Xi,Yi'!AR6+AT6)>DataInput!$B$21),"",('Xi,Yi'!AQ6+AU6+AT6/SQRT(3)))))))))))))) ->  | AR6: =IF(AQ6="","",(IF('Xi,Yi'!AR6="","",(IF(('Xi,Yi'!AR6+AT6<DataInput!$B$20),"",(IF((('Xi,Yi'!AR6+AT6)>DataInput!$B$21),"",('Xi,Yi'!AR6+AT6)))))))) ->  | AS6: =IF(AQ6="","",IF(AR6="","",(DataInput!$B$4+(DataInput!$D$4-DataInput!$B$4)*RAND()))) ->  | AT6: =DataInput!$B$16*RAND() -> 9.689070636 | AU6: =DataInput!$B$15*RAND() -> 17.97956201 | AV6: =(IF('Xi,Yi'!AV6="","",(IF((('Xi,Yi'!AV6+AZ6+AY6/SQRT(3))<DataInput!$B$18),"",(IF((('Xi,Yi'!AV6+AZ6+AY6/SQRT(3))>DataInput!$B$19),"",(IF('Xi,Yi'!AW6="","",(IF(('Xi,Yi'!AW6+AY6<DataInput!$B$20),"",(IF((('Xi,Yi'!AW6+AY6)>DataInput!$B$21),"",('Xi,Yi'!AV6+AZ6+AY6/SQRT(3)))))))))))))) ->  | AW6: =IF(AV6="","",(IF('Xi,Yi'!AW6="","",(IF(('Xi,Yi'!AW6+AY6<DataInput!$B$20),"",(IF((('Xi,Yi'!AW6+AY6)>DataInput!$B$21),"",('Xi,Yi'!AW6+AY6)))))))) ->  | AX6: =IF(AV6="","",IF(AW6="","",(DataInput!$B$4+(DataInput!$D$4-DataInput!$B$4)*RAND()))) ->  | AY6: =DataInput!$B$16*RAND() -> 9.877446158 | AZ6: =DataInput!$B$15*RAND() -> 15.65882518 | BA6: =(IF('Xi,Yi'!BA6="","",(IF((('Xi,Yi'!BA6+BE6+BD6/SQRT(3))<DataInput!$B$18),"",(IF((('Xi,Yi'!BA6+BE6+BD6/SQRT(3))>DataInput!$B$19),"",(IF('Xi,Yi'!BB6="","",(IF(('Xi,Yi'!BB6+BD6<DataInput!$B$20),"",(IF((('Xi,Yi'!BB6+BD6)>DataInput!$B$21),"",('Xi,Yi'!BA6+BE6+BD6/SQRT(3)))))))))))))) ->  | BB6: =IF(BA6="","",(IF('Xi,Yi'!BB6="","",(IF(('Xi,Yi'!BB6+BD6<DataInput!$B$20),"",(IF((('Xi,Yi'!BB6+BD6)>DataInput!$B$21),"",('Xi,Yi'!BB6+BD6)))))))) ->  | BC6: =IF(BA6="","",IF(BB6="","",(DataInput!$B$4+(DataInput!$D$4-DataInput!$B$4)*RAND()))) ->  | BD6: =DataInput!$B$16*RAND() -> 6.241384071 | BE6: =DataInput!$B$15*RAND() -> 6.015723319
C7: =(IF('Xi,Yi'!C7="","",(IF((('Xi,Yi'!C7+G7+F7/SQRT(3))<DataInput!$B$18),"",(IF((('Xi,Yi'!C7+G7+F7/SQRT(3))>DataInput!$B$19),"",(IF('Xi,Yi'!D7="","",(IF(('Xi,Yi'!D7+F7<DataInput!$B$20),"",(IF((('Xi,Yi'!D7+F7)>DataInput!$B$21),"",('Xi,Yi'!C7+G7+F7/SQRT(3)))))))))))))) ->  | D7: =IF(C7="","",(IF('Xi,Yi'!D7="","",(IF(('Xi,Yi'!D7+F7<DataInput!$B$20),"",(IF((('Xi,Yi'!D7+F7)>DataInput!$B$21),"",('Xi,Yi'!D7+F7)))))))) ->  | E7: =IF(C7="","",IF(D7="","",(DataInput!$B$4+(DataInput!$D$4-DataInput!$B$4)*RAND()))) ->  | F7: =DataInput!$B$16*RAND() -> 3.756811469 | G7: =DataInput!$B$15*RAND() -> 16.81982083 | H7: =(IF('Xi,Yi'!H7="","",(IF((('Xi,Yi'!H7+L7+K7/SQRT(3))<DataInput!$B$18),"",(IF((('Xi,Yi'!H7+L7+K7/SQRT(3))>DataInput!$B$19),"",(IF('Xi,Yi'!I7="","",(IF(('Xi,Yi'!I7+K7<DataInput!$B$20),"",(IF((('Xi,Yi'!I7+K7)>DataInput!$B$21),"",('Xi,Yi'!H7+L7+K7/SQRT(3)))))))))))))) ->  | I7: =IF(H7="","",(IF('Xi,Yi'!I7="","",(IF(('Xi,Yi'!I7+K7<DataInput!$B$20),"",(IF((('Xi,Yi'!I7+K7)>DataInput!$B$21),"",('Xi,Yi'!I7+K7)))))))) ->  | J7: =IF(H7="","",IF(I7="","",(DataInput!$B$4+(DataInput!$D$4-DataInput!$B$4)*RAND()))) ->  | K7: =DataInput!$B$16*RAND() -> 5.079432468 | L7: =DataInput!$B$15*RAND() -> 0.5889404214 | M7: =(IF('Xi,Yi'!M7="","",(IF((('Xi,Yi'!M7+Q7+P7/SQRT(3))<DataInput!$B$18),"",(IF((('Xi,Yi'!M7+Q7+P7/SQRT(3))>DataInput!$B$19),"",(IF('Xi,Yi'!N7="","",(IF(('Xi,Yi'!N7+P7<DataInput!$B$20),"",(IF((('Xi,Yi'!N7+P7)>DataInput!$B$21),"",('Xi,Yi'!M7+Q7+P7/SQRT(3)))))))))))))) ->  | N7: =IF(M7="","",(IF('Xi,Yi'!N7="","",(IF(('Xi,Yi'!N7+P7<DataInput!$B$20),"",(IF((('Xi,Yi'!N7+P7)>DataInput!$B$21),"",('Xi,Yi'!N7+P7)))))))) ->  | O7: =IF(M7="","",IF(N7="","",(DataInput!$B$4+(DataInput!$D$4-DataInput!$B$4)*RAND()))) ->  | P7: =DataInput!$B$16*RAND() -> 14.48558052 | Q7: =DataInput!$B$15*RAND() -> 11.7969587 | R7: =(IF('Xi,Yi'!R7="","",(IF((('Xi,Yi'!R7+V7+U7/SQRT(3))<DataInput!$B$18),"",(IF((('Xi,Yi'!R7+V7+U7/SQRT(3))>DataInput!$B$19),"",(IF('Xi,Yi'!S7="","",(IF(('Xi,Yi'!S7+U7<DataInput!$B$20),"",(IF((('Xi,Yi'!S7+U7)>DataInput!$B$21),"",('Xi,Yi'!R7+V7+U7/SQRT(3)))))))))))))) ->  | S7: =IF(R7="","",(IF('Xi,Yi'!S7="","",(IF(('Xi,Yi'!S7+U7<DataInput!$B$20),"",(IF((('Xi,Yi'!S7+U7)>DataInput!$B$21),"",('Xi,Yi'!S7+U7)))))))) ->  | T7: =IF(R7="","",IF(S7="","",(DataInput!$B$4+(DataInput!$D$4-DataInput!$B$4)*RAND()))) ->  | U7: =DataInput!$B$16*RAND() -> 3.614381278 | V7: =DataInput!$B$15*RAND() -> 15.82890879 | W7: =(IF('Xi,Yi'!W7="","",(IF((('Xi,Yi'!W7+AA7+Z7/SQRT(3))<DataInput!$B$18),"",(IF((('Xi,Yi'!W7+AA7+Z7/SQRT(3))>DataInput!$B$19),"",(IF('Xi,Yi'!X7="","",(IF(('Xi,Yi'!X7+Z7<DataInput!$B$20),"",(IF((('Xi,Yi'!X7+Z7)>DataInput!$B$21),"",('Xi,Yi'!W7+AA7+Z7/SQRT(3)))))))))))))) ->  | X7: =IF(W7="","",(IF('Xi,Yi'!X7="","",(IF(('Xi,Yi'!X7+Z7<DataInput!$B$20),"",(IF((('Xi,Yi'!X7+Z7)>DataInput!$B$21),"",('Xi,Yi'!X7+Z7)))))))) ->  | Y7: =IF(W7="","",IF(X7="","",(DataInput!$B$4+(DataInput!$D$4-DataInput!$B$4)*RAND()))) ->  | Z7: =DataInput!$B$16*RAND() -> 0.9169417891 | AA7: =DataInput!$B$15*RAND() -> 11.41888682 | AB7: =(IF('Xi,Yi'!AB7="","",(IF((('Xi,Yi'!AB7+AF7+AE7/SQRT(3))<DataInput!$B$18),"",(IF((('Xi,Yi'!AB7+AF7+AE7/SQRT(3))>DataInput!$B$19),"",(IF('Xi,Yi'!AC7="","",(IF(('Xi,Yi'!AC7+AE7<DataInput!$B$20),"",(IF((('Xi,Yi'!AC7+AE7)>DataInput!$B$21),"",('Xi,Yi'!AB7+AF7+AE7/SQRT(3)))))))))))))) ->  | AC7: =IF(AB7="","",(IF('Xi,Yi'!AC7="","",(IF(('Xi,Yi'!AC7+AE7<DataInput!$B$20),"",(IF((('Xi,Yi'!AC7+AE7)>DataInput!$B$21),"",('Xi,Yi'!AC7+AE7)))))))) ->  | AD7: =IF(AB7="","",IF(AC7="","",(DataInput!$B$4+(DataInput!$D$4-DataInput!$B$4)*RAND()))) ->  | AE7: =DataInput!$B$16*RAND() -> 13.38769934 | AF7: =DataInput!$B$15*RAND() -> 7.187432479 | AG7: =(IF('Xi,Yi'!AG7="","",(IF((('Xi,Yi'!AG7+AK7+AJ7/SQRT(3))<DataInput!$B$18),"",(IF((('Xi,Yi'!AG7+AK7+AJ7/SQRT(3))>DataInput!$B$19),"",(IF('Xi,Yi'!AH7="","",(IF(('Xi,Yi'!AH7+AJ7<DataInput!$B$20),"",(IF((('Xi,Yi'!AH7+AJ7)>DataInput!$B$21),"",('Xi,Yi'!AG7+AK7+AJ7/SQRT(3)))))))))))))) ->  | AH7: =IF(AG7="","",(IF('Xi,Yi'!AH7="","",(IF(('Xi,Yi'!AH7+AJ7<DataInput!$B$20),"",(IF((('Xi,Yi'!AH7+AJ7)>DataInput!$B$21),"",('Xi,Yi'!AH7+AJ7)))))))) ->  | AI7: =IF(AG7="","",IF(AH7="","",(DataInput!$B$4+(DataInput!$D$4-DataInput!$B$4)*RAND()))) ->  | AJ7: =DataInput!$B$16*RAND() -> 1.41927468 | AK7: =DataInput!$B$15*RAND() -> 13.2876824 | AL7: =(IF('Xi,Yi'!AL7="","",(IF((('Xi,Yi'!AL7+AP7+AO7/SQRT(3))<DataInput!$B$18),"",(IF((('Xi,Yi'!AL7+AP7+AO7/SQRT(3))>DataInput!$B$19),"",(IF('Xi,Yi'!AM7="","",(IF(('Xi,Yi'!AM7+AO7<DataInput!$B$20),"",(IF((('Xi,Yi'!AM7+AO7)>DataInput!$B$21),"",('Xi,Yi'!AL7+AP7+AO7/SQRT(3)))))))))))))) ->  | AM7: =IF(AL7="","",(IF('Xi,Yi'!AM7="","",(IF(('Xi,Yi'!AM7+AO7<DataInput!$B$20),"",(IF((('Xi,Yi'!AM7+AO7)>DataInput!$B$21),"",('Xi,Yi'!AM7+AO7)))))))) ->  | AN7: =IF(AL7="","",IF(AM7="","",(DataInput!$B$4+(DataInput!$D$4-DataInput!$B$4)*RAND()))) ->  | AO7: =DataInput!$B$16*RAND() -> 5.514607619 | AP7: =DataInput!$B$15*RAND() -> 5.291024922 | AQ7: =(IF('Xi,Yi'!AQ7="","",(IF((('Xi,Yi'!AQ7+AU7+AT7/SQRT(3))<DataInput!$B$18),"",(IF((('Xi,Yi'!AQ7+AU7+AT7/SQRT(3))>DataInput!$B$19),"",(IF('Xi,Yi'!AR7="","",(IF(('Xi,Yi'!AR7+AT7<DataInput!$B$20),"",(IF((('Xi,Yi'!AR7+AT7)>DataInput!$B$21),"",('Xi,Yi'!AQ7+AU7+AT7/SQRT(3)))))))))))))) ->  | AR7: =IF(AQ7="","",(IF('Xi,Yi'!AR7="","",(IF(('Xi,Yi'!AR7+AT7<DataInput!$B$20),"",(IF((('Xi,Yi'!AR7+AT7)>DataInput!$B$21),"",('Xi,Yi'!AR7+AT7)))))))) ->  | AS7: =IF(AQ7="","",IF(AR7="","",(DataInput!$B$4+(DataInput!$D$4-DataInput!$B$4)*RAND()))) ->  | AT7: =DataInput!$B$16*RAND() -> 13.58922889 | AU7: =DataInput!$B$15*RAND() -> 7.452622884 | AV7: =(IF('Xi,Yi'!AV7="","",(IF((('Xi,Yi'!AV7+AZ7+AY7/SQRT(3))<DataInput!$B$18),"",(IF((('Xi,Yi'!AV7+AZ7+AY7/SQRT(3))>DataInput!$B$19),"",(IF('Xi,Yi'!AW7="","",(IF(('Xi,Yi'!AW7+AY7<DataInput!$B$20),"",(IF((('Xi,Yi'!AW7+AY7)>DataInput!$B$21),"",('Xi,Yi'!AV7+AZ7+AY7/SQRT(3)))))))))))))) ->  | AW7: =IF(AV7="","",(IF('Xi,Yi'!AW7="","",(IF(('Xi,Yi'!AW7+AY7<DataInput!$B$20),"",(IF((('Xi,Yi'!AW7+AY7)>DataInput!$B$21),"",('Xi,Yi'!AW7+AY7)))))))) ->  | AX7: =IF(AV7="","",IF(AW7="","",(DataInput!$B$4+(DataInput!$D$4-DataInput!$B$4)*RAND()))) ->  | AY7: =DataInput!$B$16*RAND() -> 1.603522219 | AZ7: =DataInput!$B$15*RAND() -> 18.64665106 | BA7: =(IF('Xi,Yi'!BA7="","",(IF((('Xi,Yi'!BA7+BE7+BD7/SQRT(3))<DataInput!$B$18),"",(IF((('Xi,Yi'!BA7+BE7+BD7/SQRT(3))>DataInput!$B$19),"",(IF('Xi,Yi'!BB7="","",(IF(('Xi,Yi'!BB7+BD7<DataInput!$B$20),"",(IF((('Xi,Yi'!BB7+BD7)>DataInput!$B$21),"",('Xi,Yi'!BA7+BE7+BD7/SQRT(3)))))))))))))) ->  | BB7: =IF(BA7="","",(IF('Xi,Yi'!BB7="","",(IF(('Xi,Yi'!BB7+BD7<DataInput!$B$20),"",(IF((('Xi,Yi'!BB7+BD7)>DataInput!$B$21),"",('Xi,Yi'!BB7+BD7)))))))) ->  | BC7: =IF(BA7="","",IF(BB7="","",(DataInput!$B$4+(DataInput!$D$4-DataInput!$B$4)*RAND()))) ->  | BD7: =DataInput!$B$16*RAND() -> 6.062712839 | BE7: =DataInput!$B$15*RAND() -> 14.94086588
C8: =(IF('Xi,Yi'!C8="","",(IF((('Xi,Yi'!C8+G8+F8/SQRT(3))<DataInput!$B$18),"",(IF((('Xi,Yi'!C8+G8+F8/SQRT(3))>DataInput!$B$19),"",(IF('Xi,Yi'!D8="","",(IF(('Xi,Yi'!D8+F8<DataInput!$B$20),"",(IF((('Xi,Yi'!D8+F8)>DataInput!$B$21),"",('Xi,Yi'!C8+G8+F8/SQRT(3)))))))))))))) ->  | D8: =IF(C8="","",(IF('Xi,Yi'!D8="","",(IF(('Xi,Yi'!D8+F8<DataInput!$B$20),"",(IF((('Xi,Yi'!D8+F8)>DataInput!$B$21),"",('Xi,Yi'!D8+F8)))))))) ->  | E8: =IF(C8="","",IF(D8="","",(DataInput!$B$4+(DataInput!$D$4-DataInput!$B$4)*RAND()))) ->  | F8: =DataInput!$B$16*RAND() -> 3.216432708 | G8: =DataInput!$B$15*RAND() -> 5.439254395 | H8: =(IF('Xi,Yi'!H8="","",(IF((('Xi,Yi'!H8+L8+K8/SQRT(3))<DataInput!$B$18),"",(IF((('Xi,Yi'!H8+L8+K8/SQRT(3))>DataInput!$B$19),"",(IF('Xi,Yi'!I8="","",(IF(('Xi,Yi'!I8+K8<DataInput!$B$20),"",(IF((('Xi,Yi'!I8+K8)>DataInput!$B$21),"",('Xi,Yi'!H8+L8+K8/SQRT(3)))))))))))))) ->  | I8: =IF(H8="","",(IF('Xi,Yi'!I8="","",(IF(('Xi,Yi'!I8+K8<DataInput!$B$20),"",(IF((('Xi,Yi'!I8+K8)>DataInput!$B$21),"",('Xi,Yi'!I8+K8)))))))) ->  | J8: =IF(H8="","",IF(I8="","",(DataInput!$B$4+(DataInput!$D$4-DataInput!$B$4)*RAND()))) ->  | K8: =DataInput!$B$16*RAND() -> 10.08396302 | L8: =DataInput!$B$15*RAND() -> 0.3908882635 | M8: =(IF('Xi,Yi'!M8="","",(IF((('Xi,Yi'!M8+Q8+P8/SQRT(3))<DataInput!$B$18),"",(IF((('Xi,Yi'!M8+Q8+P8/SQRT(3))>DataInput!$B$19),"",(IF('Xi,Yi'!N8="","",(IF(('Xi,Yi'!N8+P8<DataInput!$B$20),"",(IF((('Xi,Yi'!N8+P8)>DataInput!$B$21),"",('Xi,Yi'!M8+Q8+P8/SQRT(3)))))))))))))) ->  | N8: =IF(M8="","",(IF('Xi,Yi'!N8="","",(IF(('Xi,Yi'!N8+P8<DataInput!$B$20),"",(IF((('Xi,Yi'!N8+P8)>DataInput!$B$21),"",('Xi,Yi'!N8+P8)))))))) ->  | O8: =IF(M8="","",IF(N8="","",(DataInput!$B$4+(DataInput!$D$4-DataInput!$B$4)*RAND()))) ->  | P8: =DataInput!$B$16*RAND() -> 5.108237672 | Q8: =DataInput!$B$15*RAND() -> 17.78356411 | R8: =(IF('Xi,Yi'!R8="","",(IF((('Xi,Yi'!R8+V8+U8/SQRT(3))<DataInput!$B$18),"",(IF((('Xi,Yi'!R8+V8+U8/SQRT(3))>DataInput!$B$19),"",(IF('Xi,Yi'!S8="","",(IF(('Xi,Yi'!S8+U8<DataInput!$B$20),"",(IF((('Xi,Yi'!S8+U8)>DataInput!$B$21),"",('Xi,Yi'!R8+V8+U8/SQRT(3)))))))))))))) ->  | S8: =IF(R8="","",(IF('Xi,Yi'!S8="","",(IF(('Xi,Yi'!S8+U8<DataInput!$B$20),"",(IF((('Xi,Yi'!S8+U8)>DataInput!$B$21),"",('Xi,Yi'!S8+U8)))))))) ->  | T8: =IF(R8="","",IF(S8="","",(DataInput!$B$4+(DataInput!$D$4-DataInput!$B$4)*RAND()))) ->  | U8: =DataInput!$B$16*RAND() -> 4.348363588 | V8: =DataInput!$B$15*RAND() -> 16.98118195 | W8: =(IF('Xi,Yi'!W8="","",(IF((('Xi,Yi'!W8+AA8+Z8/SQRT(3))<DataInput!$B$18),"",(IF((('Xi,Yi'!W8+AA8+Z8/SQRT(3))>DataInput!$B$19),"",(IF('Xi,Yi'!X8="","",(IF(('Xi,Yi'!X8+Z8<DataInput!$B$20),"",(IF((('Xi,Yi'!X8+Z8)>DataInput!$B$21),"",('Xi,Yi'!W8+AA8+Z8/SQRT(3)))))))))))))) ->  | X8: =IF(W8="","",(IF('Xi,Yi'!X8="","",(IF(('Xi,Yi'!X8+Z8<DataInput!$B$20),"",(IF((('Xi,Yi'!X8+Z8)>DataInput!$B$21),"",('Xi,Yi'!X8+Z8)))))))) ->  | Y8: =IF(W8="","",IF(X8="","",(DataInput!$B$4+(DataInput!$D$4-DataInput!$B$4)*RAND()))) ->  | Z8: =DataInput!$B$16*RAND() -> 13.35681646 | AA8: =DataInput!$B$15*RAND() -> 0.5550209773 | AB8: =(IF('Xi,Yi'!AB8="","",(IF((('Xi,Yi'!AB8+AF8+AE8/SQRT(3))<DataInput!$B$18),"",(IF((('Xi,Yi'!AB8+AF8+AE8/SQRT(3))>DataInput!$B$19),"",(IF('Xi,Yi'!AC8="","",(IF(('Xi,Yi'!AC8+AE8<DataInput!$B$20),"",(IF((('Xi,Yi'!AC8+AE8)>DataInput!$B$21),"",('Xi,Yi'!AB8+AF8+AE8/SQRT(3)))))))))))))) ->  | AC8: =IF(AB8="","",(IF('Xi,Yi'!AC8="","",(IF(('Xi,Yi'!AC8+AE8<DataInput!$B$20),"",(IF((('Xi,Yi'!AC8+AE8)>DataInput!$B$21),"",('Xi,Yi'!AC8+AE8)))))))) ->  | AD8: =IF(AB8="","",IF(AC8="","",(DataInput!$B$4+(DataInput!$D$4-DataInput!$B$4)*RAND()))) ->  | AE8: =DataInput!$B$16*RAND() -> 0.3594045804 | AF8: =DataInput!$B$15*RAND() -> 11.5806464 | AG8: =(IF('Xi,Yi'!AG8="","",(IF((('Xi,Yi'!AG8+AK8+AJ8/SQRT(3))<DataInput!$B$18),"",(IF((('Xi,Yi'!AG8+AK8+AJ8/SQRT(3))>DataInput!$B$19),"",(IF('Xi,Yi'!AH8="","",(IF(('Xi,Yi'!AH8+AJ8<DataInput!$B$20),"",(IF((('Xi,Yi'!AH8+AJ8)>DataInput!$B$21),"",('Xi,Yi'!AG8+AK8+AJ8/SQRT(3)))))))))))))) ->  | AH8: =IF(AG8="","",(IF('Xi,Yi'!AH8="","",(IF(('Xi,Yi'!AH8+AJ8<DataInput!$B$20),"",(IF((('Xi,Yi'!AH8+AJ8)>DataInput!$B$21),"",('Xi,Yi'!AH8+AJ8)))))))) ->  | AI8: =IF(AG8="","",IF(AH8="","",(DataInput!$B$4+(DataInput!$D$4-DataInput!$B$4)*RAND()))) ->  | AJ8: =DataInput!$B$16*RAND() -> 15.07818244 | AK8: =DataInput!$B$15*RAND() -> 6.341859029 | AL8: =(IF('Xi,Yi'!AL8="","",(IF((('Xi,Yi'!AL8+AP8+AO8/SQRT(3))<DataInput!$B$18),"",(IF((('Xi,Yi'!AL8+AP8+AO8/SQRT(3))>DataInput!$B$19),"",(IF('Xi,Yi'!AM8="","",(IF(('Xi,Yi'!AM8+AO8<DataInput!$B$20),"",(IF((('Xi,Yi'!AM8+AO8)>DataInput!$B$21),"",('Xi,Yi'!AL8+AP8+AO8/SQRT(3)))))))))))))) ->  | AM8: =IF(AL8="","",(IF('Xi,Yi'!AM8="","",(IF(('Xi,Yi'!AM8+AO8<DataInput!$B$20),"",(IF((('Xi,Yi'!AM8+AO8)>DataInput!$B$21),"",('Xi,Yi'!AM8+AO8)))))))) ->  | AN8: =IF(AL8="","",IF(AM8="","",(DataInput!$B$4+(DataInput!$D$4-DataInput!$B$4)*RAND()))) ->  | AO8: =DataInput!$B$16*RAND() -> 15.47182978 | AP8: =DataInput!$B$15*RAND() -> 9.672071801 | AQ8: =(IF('Xi,Yi'!AQ8="","",(IF((('Xi,Yi'!AQ8+AU8+AT8/SQRT(3))<DataInput!$B$18),"",(IF((('Xi,Yi'!AQ8+AU8+AT8/SQRT(3))>DataInput!$B$19),"",(IF('Xi,Yi'!AR8="","",(IF(('Xi,Yi'!AR8+AT8<DataInput!$B$20),"",(IF((('Xi,Yi'!AR8+AT8)>DataInput!$B$21),"",('Xi,Yi'!AQ8+AU8+AT8/SQRT(3)))))))))))))) ->  | AR8: =IF(AQ8="","",(IF('Xi,Yi'!AR8="","",(IF(('Xi,Yi'!AR8+AT8<DataInput!$B$20),"",(IF((('Xi,Yi'!AR8+AT8)>DataInput!$B$21),"",('Xi,Yi'!AR8+AT8)))))))) ->  | AS8: =IF(AQ8="","",IF(AR8="","",(DataInput!$B$4+(DataInput!$D$4-DataInput!$B$4)*RAND()))) ->  | AT8: =DataInput!$B$16*RAND() -> 15.85110652 | AU8: =DataInput!$B$15*RAND() -> 7.24273394 | AV8: =(IF('Xi,Yi'!AV8="","",(IF((('Xi,Yi'!AV8+AZ8+AY8/SQRT(3))<DataInput!$B$18),"",(IF((('Xi,Yi'!AV8+AZ8+AY8/SQRT(3))>DataInput!$B$19),"",(IF('Xi,Yi'!AW8="","",(IF(('Xi,Yi'!AW8+AY8<DataInput!$B$20),"",(IF((('Xi,Yi'!AW8+AY8)>DataInput!$B$21),"",('Xi,Yi'!AV8+AZ8+AY8/SQRT(3)))))))))))))) ->  | AW8: =IF(AV8="","",(IF('Xi,Yi'!AW8="","",(IF(('Xi,Yi'!AW8+AY8<DataInput!$B$20),"",(IF((('Xi,Yi'!AW8+AY8)>DataInput!$B$21),"",('Xi,Yi'!AW8+AY8)))))))) ->  | AX8: =IF(AV8="","",IF(AW8="","",(DataInput!$B$4+(DataInput!$D$4-DataInput!$B$4)*RAND()))) ->  | AY8: =DataInput!$B$16*RAND() -> 3.025912524 | AZ8: =DataInput!$B$15*RAND() -> 2.645461387 | BA8: =(IF('Xi,Yi'!BA8="","",(IF((('Xi,Yi'!BA8+BE8+BD8/SQRT(3))<DataInput!$B$18),"",(IF((('Xi,Yi'!BA8+BE8+BD8/SQRT(3))>DataInput!$B$19),"",(IF('Xi,Yi'!BB8="","",(IF(('Xi,Yi'!BB8+BD8<DataInput!$B$20),"",(IF((('Xi,Yi'!BB8+BD8)>DataInput!$B$21),"",('Xi,Yi'!BA8+BE8+BD8/SQRT(3)))))))))))))) ->  | BB8: =IF(BA8="","",(IF('Xi,Yi'!BB8="","",(IF(('Xi,Yi'!BB8+BD8<DataInput!$B$20),"",(IF((('Xi,Yi'!BB8+BD8)>DataInput!$B$21),"",('Xi,Yi'!BB8+BD8)))))))) ->  | BC8: =IF(BA8="","",IF(BB8="","",(DataInput!$B$4+(DataInput!$D$4-DataInput!$B$4)*RAND()))) ->  | BD8: =DataInput!$B$16*RAND() -> 7.350404505 | BE8: =DataInput!$B$15*RAND() -> 16.09156041
C9: =(IF('Xi,Yi'!C9="","",(IF((('Xi,Yi'!C9+G9+F9/SQRT(3))<DataInput!$B$18),"",(IF((('Xi,Yi'!C9+G9+F9/SQRT(3))>DataInput!$B$19),"",(IF('Xi,Yi'!D9="","",(IF(('Xi,Yi'!D9+F9<DataInput!$B$20),"",(IF((('Xi,Yi'!D9+F9)>DataInput!$B$21),"",('Xi,Yi'!C9+G9+F9/SQRT(3)))))))))))))) ->  | D9: =IF(C9="","",(IF('Xi,Yi'!D9="","",(IF(('Xi,Yi'!D9+F9<DataInput!$B$20),"",(IF((('Xi,Yi'!D9+F9)>DataInput!$B$21),"",('Xi,Yi'!D9+F9)))))))) ->  | E9: =IF(C9="","",IF(D9="","",(DataInput!$B$4+(DataInput!$D$4-DataInput!$B$4)*RAND()))) ->  | F9: =DataInput!$B$16*RAND() -> 2.060597769 | G9: =DataInput!$B$15*RAND() -> 19.18469066 | H9: =(IF('Xi,Yi'!H9="","",(IF((('Xi,Yi'!H9+L9+K9/SQRT(3))<DataInput!$B$18),"",(IF((('Xi,Yi'!H9+L9+K9/SQRT(3))>DataInput!$B$19),"",(IF('Xi,Yi'!I9="","",(IF(('Xi,Yi'!I9+K9<DataInput!$B$20),"",(IF((('Xi,Yi'!I9+K9)>DataInput!$B$21),"",('Xi,Yi'!H9+L9+K9/SQRT(3)))))))))))))) ->  | I9: =IF(H9="","",(IF('Xi,Yi'!I9="","",(IF(('Xi,Yi'!I9+K9<DataInput!$B$20),"",(IF((('Xi,Yi'!I9+K9)>DataInput!$B$21),"",('Xi,Yi'!I9+K9)))))))) ->  | J9: =IF(H9="","",IF(I9="","",(DataInput!$B$4+(DataInput!$D$4-DataInput!$B$4)*RAND()))) ->  | K9: =DataInput!$B$16*RAND() -> 8.995851171 | L9: =DataInput!$B$15*RAND() -> 19.18262739 | M9: =(IF('Xi,Yi'!M9="","",(IF((('Xi,Yi'!M9+Q9+P9/SQRT(3))<DataInput!$B$18),"",(IF((('Xi,Yi'!M9+Q9+P9/SQRT(3))>DataInput!$B$19),"",(IF('Xi,Yi'!N9="","",(IF(('Xi,Yi'!N9+P9<DataInput!$B$20),"",(IF((('Xi,Yi'!N9+P9)>DataInput!$B$21),"",('Xi,Yi'!M9+Q9+P9/SQRT(3)))))))))))))) ->  | N9: =IF(M9="","",(IF('Xi,Yi'!N9="","",(IF(('Xi,Yi'!N9+P9<DataInput!$B$20),"",(IF((('Xi,Yi'!N9+P9)>DataInput!$B$21),"",('Xi,Yi'!N9+P9)))))))) ->  | O9: =IF(M9="","",IF(N9="","",(DataInput!$B$4+(DataInput!$D$4-DataInput!$B$4)*RAND()))) ->  | P9: =DataInput!$B$16*RAND() -> 8.608585496 | Q9: =DataInput!$B$15*RAND() -> 17.10533845 | R9: =(IF('Xi,Yi'!R9="","",(IF((('Xi,Yi'!R9+V9+U9/SQRT(3))<DataInput!$B$18),"",(IF((('Xi,Yi'!R9+V9+U9/SQRT(3))>DataInput!$B$19),"",(IF('Xi,Yi'!S9="","",(IF(('Xi,Yi'!S9+U9<DataInput!$B$20),"",(IF((('Xi,Yi'!S9+U9)>DataInput!$B$21),"",('Xi,Yi'!R9+V9+U9/SQRT(3)))))))))))))) ->  | S9: =IF(R9="","",(IF('Xi,Yi'!S9="","",(IF(('Xi,Yi'!S9+U9<DataInput!$B$20),"",(IF((('Xi,Yi'!S9+U9)>DataInput!$B$21),"",('Xi,Yi'!S9+U9)))))))) ->  | T9: =IF(R9="","",IF(S9="","",(DataInput!$B$4+(DataInput!$D$4-DataInput!$B$4)*RAND()))) ->  | U9: =DataInput!$B$16*RAND() -> 8.034548067 | V9: =DataInput!$B$15*RAND() -> 8.839077403 | W9: =(IF('Xi,Yi'!W9="","",(IF((('Xi,Yi'!W9+AA9+Z9/SQRT(3))<DataInput!$B$18),"",(IF((('Xi,Yi'!W9+AA9+Z9/SQRT(3))>DataInput!$B$19),"",(IF('Xi,Yi'!X9="","",(IF(('Xi,Yi'!X9+Z9<DataInput!$B$20),"",(IF((('Xi,Yi'!X9+Z9)>DataInput!$B$21),"",('Xi,Yi'!W9+AA9+Z9/SQRT(3)))))))))))))) ->  | X9: =IF(W9="","",(IF('Xi,Yi'!X9="","",(IF(('Xi,Yi'!X9+Z9<DataInput!$B$20),"",(IF((('Xi,Yi'!X9+Z9)>DataInput!$B$21),"",('Xi,Yi'!X9+Z9)))))))) ->  | Y9: =IF(W9="","",IF(X9="","",(DataInput!$B$4+(DataInput!$D$4-DataInput!$B$4)*RAND()))) ->  | Z9: =DataInput!$B$16*RAND() -> 2.948476404 | AA9: =DataInput!$B$15*RAND() -> 19.56843659 | AB9: =(IF('Xi,Yi'!AB9="","",(IF((('Xi,Yi'!AB9+AF9+AE9/SQRT(3))<DataInput!$B$18),"",(IF((('Xi,Yi'!AB9+AF9+AE9/SQRT(3))>DataInput!$B$19),"",(IF('Xi,Yi'!AC9="","",(IF(('Xi,Yi'!AC9+AE9<DataInput!$B$20),"",(IF((('Xi,Yi'!AC9+AE9)>DataInput!$B$21),"",('Xi,Yi'!AB9+AF9+AE9/SQRT(3)))))))))))))) ->  | AC9: =IF(AB9="","",(IF('Xi,Yi'!AC9="","",(IF(('Xi,Yi'!AC9+AE9<DataInput!$B$20),"",(IF((('Xi,Yi'!AC9+AE9)>DataInput!$B$21),"",('Xi,Yi'!AC9+AE9)))))))) ->  | AD9: =IF(AB9="","",IF(AC9="","",(DataInput!$B$4+(DataInput!$D$4-DataInput!$B$4)*RAND()))) ->  | AE9: =DataInput!$B$16*RAND() -> 12.29896708 | AF9: =DataInput!$B$15*RAND() -> 16.5877418 | AG9: =(IF('Xi,Yi'!AG9="","",(IF((('Xi,Yi'!AG9+AK9+AJ9/SQRT(3))<DataInput!$B$18),"",(IF((('Xi,Yi'!AG9+AK9+AJ9/SQRT(3))>DataInput!$B$19),"",(IF('Xi,Yi'!AH9="","",(IF(('Xi,Yi'!AH9+AJ9<DataInput!$B$20),"",(IF((('Xi,Yi'!AH9+AJ9)>DataInput!$B$21),"",('Xi,Yi'!AG9+AK9+AJ9/SQRT(3)))))))))))))) ->  | AH9: =IF(AG9="","",(IF('Xi,Yi'!AH9="","",(IF(('Xi,Yi'!AH9+AJ9<DataInput!$B$20),"",(IF((('Xi,Yi'!AH9+AJ9)>DataInput!$B$21),"",('Xi,Yi'!AH9+AJ9)))))))) ->  | AI9: =IF(AG9="","",IF(AH9="","",(DataInput!$B$4+(DataInput!$D$4-DataInput!$B$4)*RAND()))) ->  | AJ9: =DataInput!$B$16*RAND() -> 7.065043621 | AK9: =DataInput!$B$15*RAND() -> 8.474461232 | AL9: =(IF('Xi,Yi'!AL9="","",(IF((('Xi,Yi'!AL9+AP9+AO9/SQRT(3))<DataInput!$B$18),"",(IF((('Xi,Yi'!AL9+AP9+AO9/SQRT(3))>DataInput!$B$19),"",(IF('Xi,Yi'!AM9="","",(IF(('Xi,Yi'!AM9+AO9<DataInput!$B$20),"",(IF((('Xi,Yi'!AM9+AO9)>DataInput!$B$21),"",('Xi,Yi'!AL9+AP9+AO9/SQRT(3)))))))))))))) ->  | AM9: =IF(AL9="","",(IF('Xi,Yi'!AM9="","",(IF(('Xi,Yi'!AM9+AO9<DataInput!$B$20),"",(IF((('Xi,Yi'!AM9+AO9)>DataInput!$B$21),"",('Xi,Yi'!AM9+AO9)))))))) ->  | AN9: =IF(AL9="","",IF(AM9="","",(DataInput!$B$4+(DataInput!$D$4-DataInput!$B$4)*RAND()))) ->  | AO9: =DataInput!$B$16*RAND() -> 12.60716917 | AP9: =DataInput!$B$15*RAND() -> 5.429822783 | AQ9: =(IF('Xi,Yi'!AQ9="","",(IF((('Xi,Yi'!AQ9+AU9+AT9/SQRT(3))<DataInput!$B$18),"",(IF((('Xi,Yi'!AQ9+AU9+AT9/SQRT(3))>DataInput!$B$19),"",(IF('Xi,Yi'!AR9="","",(IF(('Xi,Yi'!AR9+AT9<DataInput!$B$20),"",(IF((('Xi,Yi'!AR9+AT9)>DataInput!$B$21),"",('Xi,Yi'!AQ9+AU9+AT9/SQRT(3)))))))))))))) ->  | AR9: =IF(AQ9="","",(IF('Xi,Yi'!AR9="","",(IF(('Xi,Yi'!AR9+AT9<DataInput!$B$20),"",(IF((('Xi,Yi'!AR9+AT9)>DataInput!$B$21),"",('Xi,Yi'!AR9+AT9)))))))) ->  | AS9: =IF(AQ9="","",IF(AR9="","",(DataInput!$B$4+(DataInput!$D$4-DataInput!$B$4)*RAND()))) ->  | AT9: =DataInput!$B$16*RAND() -> 4.084617672 | AU9: =DataInput!$B$15*RAND() -> 0.7854860677 | AV9: =(IF('Xi,Yi'!AV9="","",(IF((('Xi,Yi'!AV9+AZ9+AY9/SQRT(3))<DataInput!$B$18),"",(IF((('Xi,Yi'!AV9+AZ9+AY9/SQRT(3))>DataInput!$B$19),"",(IF('Xi,Yi'!AW9="","",(IF(('Xi,Yi'!AW9+AY9<DataInput!$B$20),"",(IF((('Xi,Yi'!AW9+AY9)>DataInput!$B$21),"",('Xi,Yi'!AV9+AZ9+AY9/SQRT(3)))))))))))))) ->  | AW9: =IF(AV9="","",(IF('Xi,Yi'!AW9="","",(IF(('Xi,Yi'!AW9+AY9<DataInput!$B$20),"",(IF((('Xi,Yi'!AW9+AY9)>DataInput!$B$21),"",('Xi,Yi'!AW9+AY9)))))))) ->  | AX9: =IF(AV9="","",IF(AW9="","",(DataInput!$B$4+(DataInput!$D$4-DataInput!$B$4)*RAND()))) ->  | AY9: =DataInput!$B$16*RAND() -> 6.977615729 | AZ9: =DataInput!$B$15*RAND() -> 18.42462426 | BA9: =(IF('Xi,Yi'!BA9="","",(IF((('Xi,Yi'!BA9+BE9+BD9/SQRT(3))<DataInput!$B$18),"",(IF((('Xi,Yi'!BA9+BE9+BD9/SQRT(3))>DataInput!$B$19),"",(IF('Xi,Yi'!BB9="","",(IF(('Xi,Yi'!BB9+BD9<DataInput!$B$20),"",(IF((('Xi,Yi'!BB9+BD9)>DataInput!$B$21),"",('Xi,Yi'!BA9+BE9+BD9/SQRT(3)))))))))))))) ->  | BB9: =IF(BA9="","",(IF('Xi,Yi'!BB9="","",(IF(('Xi,Yi'!BB9+BD9<DataInput!$B$20),"",(IF((('Xi,Yi'!BB9+BD9)>DataInput!$B$21),"",('Xi,Yi'!BB9+BD9)))))))) ->  | BC9: =IF(BA9="","",IF(BB9="","",(DataInput!$B$4+(DataInput!$D$4-DataInput!$B$4)*RAND()))) ->  | BD9: =DataInput!$B$16*RAND() -> 11.41943166 | BE9: =DataInput!$B$15*RAND() -> 7.280548551
C10: =(IF('Xi,Yi'!C10="","",(IF((('Xi,Yi'!C10+G10+F10/SQRT(3))<DataInput!$B$18),"",(IF((('Xi,Yi'!C10+G10+F10/SQRT(3))>DataInput!$B$19),"",(IF('Xi,Yi'!D10="","",(IF(('Xi,Yi'!D10+F10<DataInput!$B$20),"",(IF((('Xi,Yi'!D10+F10)>DataInput!$B$21),"",('Xi,Yi'!C10+G10+F10/SQRT(3)))))))))))))) ->  | D10: =IF(C10="","",(IF('Xi,Yi'!D10="","",(IF(('Xi,Yi'!D10+F10<DataInput!$B$20),"",(IF((('Xi,Yi'!D10+F10)>DataInput!$B$21),"",('Xi,Yi'!D10+F10)))))))) ->  | E10: =IF(C10="","",IF(D10="","",(DataInput!$B$4+(DataInput!$D$4-DataInput!$B$4)*RAND()))) ->  | F10: =DataInput!$B$16*RAND() -> 3.33649707 | G10: =DataInput!$B$15*RAND() -> 10.06135338 | H10: =(IF('Xi,Yi'!H10="","",(IF((('Xi,Yi'!H10+L10+K10/SQRT(3))<DataInput!$B$18),"",(IF((('Xi,Yi'!H10+L10+K10/SQRT(3))>DataInput!$B$19),"",(IF('Xi,Yi'!I10="","",(IF(('Xi,Yi'!I10+K10<DataInput!$B$20),"",(IF((('Xi,Yi'!I10+K10)>DataInput!$B$21),"",('Xi,Yi'!H10+L10+K10/SQRT(3)))))))))))))) ->  | I10: =IF(H10="","",(IF('Xi,Yi'!I10="","",(IF(('Xi,Yi'!I10+K10<DataInput!$B$20),"",(IF((('Xi,Yi'!I10+K10)>DataInput!$B$21),"",('Xi,Yi'!I10+K10)))))))) ->  | J10: =IF(H10="","",IF(I10="","",(DataInput!$B$4+(DataInput!$D$4-DataInput!$B$4)*RAND()))) ->  | K10: =DataInput!$B$16*RAND() -> 4.58873622 | L10: =DataInput!$B$15*RAND() -> 18.46630157 | M10: =(IF('Xi,Yi'!M10="","",(IF((('Xi,Yi'!M10+Q10+P10/SQRT(3))<DataInput!$B$18),"",(IF((('Xi,Yi'!M10+Q10+P10/SQRT(3))>DataInput!$B$19),"",(IF('Xi,Yi'!N10="","",(IF(('Xi,Yi'!N10+P10<DataInput!$B$20),"",(IF((('Xi,Yi'!N10+P10)>DataInput!$B$21),"",('Xi,Yi'!M10+Q10+P10/SQRT(3)))))))))))))) ->  | N10: =IF(M10="","",(IF('Xi,Yi'!N10="","",(IF(('Xi,Yi'!N10+P10<DataInput!$B$20),"",(IF((('Xi,Yi'!N10+P10)>DataInput!$B$21),"",('Xi,Yi'!N10+P10)))))))) ->  | O10: =IF(M10="","",IF(N10="","",(DataInput!$B$4+(DataInput!$D$4-DataInput!$B$4)*RAND()))) ->  | P10: =DataInput!$B$16*RAND() -> 2.714735008 | Q10: =DataInput!$B$15*RAND() -> 2.589336686 | R10: =(IF('Xi,Yi'!R10="","",(IF((('Xi,Yi'!R10+V10+U10/SQRT(3))<DataInput!$B$18),"",(IF((('Xi,Yi'!R10+V10+U10/SQRT(3))>DataInput!$B$19),"",(IF('Xi,Yi'!S10="","",(IF(('Xi,Yi'!S10+U10<DataInput!$B$20),"",(IF((('Xi,Yi'!S10+U10)>DataInput!$B$21),"",('Xi,Yi'!R10+V10+U10/SQRT(3)))))))))))))) ->  | S10: =IF(R10="","",(IF('Xi,Yi'!S10="","",(IF(('Xi,Yi'!S10+U10<DataInput!$B$20),"",(IF((('Xi,Yi'!S10+U10)>DataInput!$B$21),"",('Xi,Yi'!S10+U10)))))))) ->  | T10: =IF(R10="","",IF(S10="","",(DataInput!$B$4+(DataInput!$D$4-DataInput!$B$4)*RAND()))) ->  | U10: =DataInput!$B$16*RAND() -> 4.190320651 | V10: =DataInput!$B$15*RAND() -> 11.86883172 | W10: =(IF('Xi,Yi'!W10="","",(IF((('Xi,Yi'!W10+AA10+Z10/SQRT(3))<DataInput!$B$18),"",(IF((('Xi,Yi'!W10+AA10+Z10/SQRT(3))>DataInput!$B$19),"",(IF('Xi,Yi'!X10="","",(IF(('Xi,Yi'!X10+Z10<DataInput!$B$20),"",(IF((('Xi,Yi'!X10+Z10)>DataInput!$B$21),"",('Xi,Yi'!W10+AA10+Z10/SQRT(3)))))))))))))) ->  | X10: =IF(W10="","",(IF('Xi,Yi'!X10="","",(IF(('Xi,Yi'!X10+Z10<DataInput!$B$20),"",(IF((('Xi,Yi'!X10+Z10)>DataInput!$B$21),"",('Xi,Yi'!X10+Z10)))))))) ->  | Y10: =IF(W10="","",IF(X10="","",(DataInput!$B$4+(DataInput!$D$4-DataInput!$B$4)*RAND()))) ->  | Z10: =DataInput!$B$16*RAND() -> 5.130384704 | AA10: =DataInput!$B$15*RAND() -> 2.96635561 | AB10: =(IF('Xi,Yi'!AB10="","",(IF((('Xi,Yi'!AB10+AF10+AE10/SQRT(3))<DataInput!$B$18),"",(IF((('Xi,Yi'!AB10+AF10+AE10/SQRT(3))>DataInput!$B$19),"",(IF('Xi,Yi'!AC10="","",(IF(('Xi,Yi'!AC10+AE10<DataInput!$B$20),"",(IF((('Xi,Yi'!AC10+AE10)>DataInput!$B$21),"",('Xi,Yi'!AB10+AF10+AE10/SQRT(3)))))))))))))) ->  | AC10: =IF(AB10="","",(IF('Xi,Yi'!AC10="","",(IF(('Xi,Yi'!AC10+AE10<DataInput!$B$20),"",(IF((('Xi,Yi'!AC10+AE10)>DataInput!$B$21),"",('Xi,Yi'!AC10+AE10)))))))) ->  | AD10: =IF(AB10="","",IF(AC10="","",(DataInput!$B$4+(DataInput!$D$4-DataInput!$B$4)*RAND()))) ->  | AE10: =DataInput!$B$16*RAND() -> 13.86616947 | AF10: =DataInput!$B$15*RAND() -> 4.608946384 | AG10: =(IF('Xi,Yi'!AG10="","",(IF((('Xi,Yi'!AG10+AK10+AJ10/SQRT(3))<DataInput!$B$18),"",(IF((('Xi,Yi'!AG10+AK10+AJ10/SQRT(3))>DataInput!$B$19),"",(IF('Xi,Yi'!AH10="","",(IF(('Xi,Yi'!AH10+AJ10<DataInput!$B$20),"",(IF((('Xi,Yi'!AH10+AJ10)>DataInput!$B$21),"",('Xi,Yi'!AG10+AK10+AJ10/SQRT(3)))))))))))))) ->  | AH10: =IF(AG10="","",(IF('Xi,Yi'!AH10="","",(IF(('Xi,Yi'!AH10+AJ10<DataInput!$B$20),"",(IF((('Xi,Yi'!AH10+AJ10)>DataInput!$B$21),"",('Xi,Yi'!AH10+AJ10)))))))) ->  | AI10: =IF(AG10="","",IF(AH10="","",(DataInput!$B$4+(DataInput!$D$4-DataInput!$B$4)*RAND()))) ->  | AJ10: =DataInput!$B$16*RAND() -> 0.7059299213 | AK10: =DataInput!$B$15*RAND() -> 18.87843036 | AL10: =(IF('Xi,Yi'!AL10="","",(IF((('Xi,Yi'!AL10+AP10+AO10/SQRT(3))<DataInput!$B$18),"",(IF((('Xi,Yi'!AL10+AP10+AO10/SQRT(3))>DataInput!$B$19),"",(IF('Xi,Yi'!AM10="","",(IF(('Xi,Yi'!AM10+AO10<DataInput!$B$20),"",(IF((('Xi,Yi'!AM10+AO10)>DataInput!$B$21),"",('Xi,Yi'!AL10+AP10+AO10/SQRT(3)))))))))))))) ->  | AM10: =IF(AL10="","",(IF('Xi,Yi'!AM10="","",(IF(('Xi,Yi'!AM10+AO10<DataInput!$B$20),"",(IF((('Xi,Yi'!AM10+AO10)>DataInput!$B$21),"",('Xi,Yi'!AM10+AO10)))))))) ->  | AN10: =IF(AL10="","",IF(AM10="","",(DataInput!$B$4+(DataInput!$D$4-DataInput!$B$4)*RAND()))) ->  | AO10: =DataInput!$B$16*RAND() -> 2.518891701 | AP10: =DataInput!$B$15*RAND() -> 1.312765896 | AQ10: =(IF('Xi,Yi'!AQ10="","",(IF((('Xi,Yi'!AQ10+AU10+AT10/SQRT(3))<DataInput!$B$18),"",(IF((('Xi,Yi'!AQ10+AU10+AT10/SQRT(3))>DataInput!$B$19),"",(IF('Xi,Yi'!AR10="","",(IF(('Xi,Yi'!AR10+AT10<DataInput!$B$20),"",(IF((('Xi,Yi'!AR10+AT10)>DataInput!$B$21),"",('Xi,Yi'!AQ10+AU10+AT10/SQRT(3)))))))))))))) ->  | AR10: =IF(AQ10="","",(IF('Xi,Yi'!AR10="","",(IF(('Xi,Yi'!AR10+AT10<DataInput!$B$20),"",(IF((('Xi,Yi'!AR10+AT10)>DataInput!$B$21),"",('Xi,Yi'!AR10+AT10)))))))) ->  | AS10: =IF(AQ10="","",IF(AR10="","",(DataInput!$B$4+(DataInput!$D$4-DataInput!$B$4)*RAND()))) ->  | AT10: =DataInput!$B$16*RAND() -> 5.113670113 | AU10: =DataInput!$B$15*RAND() -> 13.02098741 | AV10: =(IF('Xi,Yi'!AV10="","",(IF((('Xi,Yi'!AV10+AZ10+AY10/SQRT(3))<DataInput!$B$18),"",(IF((('Xi,Yi'!AV10+AZ10+AY10/SQRT(3))>DataInput!$B$19),"",(IF('Xi,Yi'!AW10="","",(IF(('Xi,Yi'!AW10+AY10<DataInput!$B$20),"",(IF((('Xi,Yi'!AW10+AY10)>DataInput!$B$21),"",('Xi,Yi'!AV10+AZ10+AY10/SQRT(3)))))))))))))) ->  | AW10: =IF(AV10="","",(IF('Xi,Yi'!AW10="","",(IF(('Xi,Yi'!AW10+AY10<DataInput!$B$20),"",(IF((('Xi,Yi'!AW10+AY10)>DataInput!$B$21),"",('Xi,Yi'!AW10+AY10)))))))) ->  | AX10: =IF(AV10="","",IF(AW10="","",(DataInput!$B$4+(DataInput!$D$4-DataInput!$B$4)*RAND()))) ->  | AY10: =DataInput!$B$16*RAND() -> 12.54094218 | AZ10: =DataInput!$B$15*RAND() -> 5.095757217 | BA10: =(IF('Xi,Yi'!BA10="","",(IF((('Xi,Yi'!BA10+BE10+BD10/SQRT(3))<DataInput!$B$18),"",(IF((('Xi,Yi'!BA10+BE10+BD10/SQRT(3))>DataInput!$B$19),"",(IF('Xi,Yi'!BB10="","",(IF(('Xi,Yi'!BB10+BD10<DataInput!$B$20),"",(IF((('Xi,Yi'!BB10+BD10)>DataInput!$B$21),"",('Xi,Yi'!BA10+BE10+BD10/SQRT(3)))))))))))))) ->  | BB10: =IF(BA10="","",(IF('Xi,Yi'!BB10="","",(IF(('Xi,Yi'!BB10+BD10<DataInput!$B$20),"",(IF((('Xi,Yi'!BB10+BD10)>DataInput!$B$21),"",('Xi,Yi'!BB10+BD10)))))))) ->  | BC10: =IF(BA10="","",IF(BB10="","",(DataInput!$B$4+(DataInput!$D$4-DataInput!$B$4)*RAND()))) ->  | BD10: =DataInput!$B$16*RAND() -> 9.734400746 | BE10: =DataInput!$B$15*RAND() -> 5.304949581
C11: =(IF('Xi,Yi'!C11="","",(IF((('Xi,Yi'!C11+G11+F11/SQRT(3))<DataInput!$B$18),"",(IF((('Xi,Yi'!C11+G11+F11/SQRT(3))>DataInput!$B$19),"",(IF('Xi,Yi'!D11="","",(IF(('Xi,Yi'!D11+F11<DataInput!$B$20),"",(IF((('Xi,Yi'!D11+F11)>DataInput!$B$21),"",('Xi,Yi'!C11+G11+F11/SQRT(3)))))))))))))) ->  | D11: =IF(C11="","",(IF('Xi,Yi'!D11="","",(IF(('Xi,Yi'!D11+F11<DataInput!$B$20),"",(IF((('Xi,Yi'!D11+F11)>DataInput!$B$21),"",('Xi,Yi'!D11+F11)))))))) ->  | E11: =IF(C11="","",IF(D11="","",(DataInput!$B$4+(DataInput!$D$4-DataInput!$B$4)*RAND()))) ->  | F11: =DataInput!$B$16*RAND() -> 7.10849498 | G11: =DataInput!$B$15*RAND() -> 9.768183086 | H11: =(IF('Xi,Yi'!H11="","",(IF((('Xi,Yi'!H11+L11+K11/SQRT(3))<DataInput!$B$18),"",(IF((('Xi,Yi'!H11+L11+K11/SQRT(3))>DataInput!$B$19),"",(IF('Xi,Yi'!I11="","",(IF(('Xi,Yi'!I11+K11<DataInput!$B$20),"",(IF((('Xi,Yi'!I11+K11)>DataInput!$B$21),"",('Xi,Yi'!H11+L11+K11/SQRT(3)))))))))))))) ->  | I11: =IF(H11="","",(IF('Xi,Yi'!I11="","",(IF(('Xi,Yi'!I11+K11<DataInput!$B$20),"",(IF((('Xi,Yi'!I11+K11)>DataInput!$B$21),"",('Xi,Yi'!I11+K11)))))))) ->  | J11: =IF(H11="","",IF(I11="","",(DataInput!$B$4+(DataInput!$D$4-DataInput!$B$4)*RAND()))) ->  | K11: =DataInput!$B$16*RAND() -> 6.639787522 | L11: =DataInput!$B$15*RAND() -> 15.89571296 | M11: =(IF('Xi,Yi'!M11="","",(IF((('Xi,Yi'!M11+Q11+P11/SQRT(3))<DataInput!$B$18),"",(IF((('Xi,Yi'!M11+Q11+P11/SQRT(3))>DataInput!$B$19),"",(IF('Xi,Yi'!N11="","",(IF(('Xi,Yi'!N11+P11<DataInput!$B$20),"",(IF((('Xi,Yi'!N11+P11)>DataInput!$B$21),"",('Xi,Yi'!M11+Q11+P11/SQRT(3)))))))))))))) ->  | N11: =IF(M11="","",(IF('Xi,Yi'!N11="","",(IF(('Xi,Yi'!N11+P11<DataInput!$B$20),"",(IF((('Xi,Yi'!N11+P11)>DataInput!$B$21),"",('Xi,Yi'!N11+P11)))))))) ->  | O11: =IF(M11="","",IF(N11="","",(DataInput!$B$4+(DataInput!$D$4-DataInput!$B$4)*RAND()))) ->  | P11: =DataInput!$B$16*RAND() -> 12.98775162 | Q11: =DataInput!$B$15*RAND() -> 15.12863725 | R11: =(IF('Xi,Yi'!R11="","",(IF((('Xi,Yi'!R11+V11+U11/SQRT(3))<DataInput!$B$18),"",(IF((('Xi,Yi'!R11+V11+U11/SQRT(3))>DataInput!$B$19),"",(IF('Xi,Yi'!S11="","",(IF(('Xi,Yi'!S11+U11<DataInput!$B$20),"",(IF((('Xi,Yi'!S11+U11)>DataInput!$B$21),"",('Xi,Yi'!R11+V11+U11/SQRT(3)))))))))))))) ->  | S11: =IF(R11="","",(IF('Xi,Yi'!S11="","",(IF(('Xi,Yi'!S11+U11<DataInput!$B$20),"",(IF((('Xi,Yi'!S11+U11)>DataInput!$B$21),"",('Xi,Yi'!S11+U11)))))))) ->  | T11: =IF(R11="","",IF(S11="","",(DataInput!$B$4+(DataInput!$D$4-DataInput!$B$4)*RAND()))) ->  | U11: =DataInput!$B$16*RAND() -> 11.14215107 | V11: =DataInput!$B$15*RAND() -> 1.82417027 | W11: =(IF('Xi,Yi'!W11="","",(IF((('Xi,Yi'!W11+AA11+Z11/SQRT(3))<DataInput!$B$18),"",(IF((('Xi,Yi'!W11+AA11+Z11/SQRT(3))>DataInput!$B$19),"",(IF('Xi,Yi'!X11="","",(IF(('Xi,Yi'!X11+Z11<DataInput!$B$20),"",(IF((('Xi,Yi'!X11+Z11)>DataInput!$B$21),"",('Xi,Yi'!W11+AA11+Z11/SQRT(3)))))))))))))) ->  | X11: =IF(W11="","",(IF('Xi,Yi'!X11="","",(IF(('Xi,Yi'!X11+Z11<DataInput!$B$20),"",(IF((('Xi,Yi'!X11+Z11)>DataInput!$B$21),"",('Xi,Yi'!X11+Z11)))))))) ->  | Y11: =IF(W11="","",IF(X11="","",(DataInput!$B$4+(DataInput!$D$4-DataInput!$B$4)*RAND()))) ->  | Z11: =DataInput!$B$16*RAND() -> 2.469064878 | AA11: =DataInput!$B$15*RAND() -> 8.440076952 | AB11: =(IF('Xi,Yi'!AB11="","",(IF((('Xi,Yi'!AB11+AF11+AE11/SQRT(3))<DataInput!$B$18),"",(IF((('Xi,Yi'!AB11+AF11+AE11/SQRT(3))>DataInput!$B$19),"",(IF('Xi,Yi'!AC11="","",(IF(('Xi,Yi'!AC11+AE11<DataInput!$B$20),"",(IF((('Xi,Yi'!AC11+AE11)>DataInput!$B$21),"",('Xi,Yi'!AB11+AF11+AE11/SQRT(3)))))))))))))) ->  | AC11: =IF(AB11="","",(IF('Xi,Yi'!AC11="","",(IF(('Xi,Yi'!AC11+AE11<DataInput!$B$20),"",(IF((('Xi,Yi'!AC11+AE11)>DataInput!$B$21),"",('Xi,Yi'!AC11+AE11)))))))) ->  | AD11: =IF(AB11="","",IF(AC11="","",(DataInput!$B$4+(DataInput!$D$4-DataInput!$B$4)*RAND()))) ->  | AE11: =DataInput!$B$16*RAND() -> 15.66167598 | AF11: =DataInput!$B$15*RAND() -> 12.43248471 | AG11: =(IF('Xi,Yi'!AG11="","",(IF((('Xi,Yi'!AG11+AK11+AJ11/SQRT(3))<DataInput!$B$18),"",(IF((('Xi,Yi'!AG11+AK11+AJ11/SQRT(3))>DataInput!$B$19),"",(IF('Xi,Yi'!AH11="","",(IF(('Xi,Yi'!AH11+AJ11<DataInput!$B$20),"",(IF((('Xi,Yi'!AH11+AJ11)>DataInput!$B$21),"",('Xi,Yi'!AG11+AK11+AJ11/SQRT(3)))))))))))))) ->  | AH11: =IF(AG11="","",(IF('Xi,Yi'!AH11="","",(IF(('Xi,Yi'!AH11+AJ11<DataInput!$B$20),"",(IF((('Xi,Yi'!AH11+AJ11)>DataInput!$B$21),"",('Xi,Yi'!AH11+AJ11)))))))) ->  | AI11: =IF(AG11="","",IF(AH11="","",(DataInput!$B$4+(DataInput!$D$4-DataInput!$B$4)*RAND()))) ->  | AJ11: =DataInput!$B$16*RAND() -> 1.108608908 | AK11: =DataInput!$B$15*RAND() -> 19.13534856 | AL11: =(IF('Xi,Yi'!AL11="","",(IF((('Xi,Yi'!AL11+AP11+AO11/SQRT(3))<DataInput!$B$18),"",(IF((('Xi,Yi'!AL11+AP11+AO11/SQRT(3))>DataInput!$B$19),"",(IF('Xi,Yi'!AM11="","",(IF(('Xi,Yi'!AM11+AO11<DataInput!$B$20),"",(IF((('Xi,Yi'!AM11+AO11)>DataInput!$B$21),"",('Xi,Yi'!AL11+AP11+AO11/SQRT(3)))))))))))))) ->  | AM11: =IF(AL11="","",(IF('Xi,Yi'!AM11="","",(IF(('Xi,Yi'!AM11+AO11<DataInput!$B$20),"",(IF((('Xi,Yi'!AM11+AO11)>DataInput!$B$21),"",('Xi,Yi'!AM11+AO11)))))))) ->  | AN11: =IF(AL11="","",IF(AM11="","",(DataInput!$B$4+(DataInput!$D$4-DataInput!$B$4)*RAND()))) ->  | AO11: =DataInput!$B$16*RAND() -> 6.546850362 | AP11: =DataInput!$B$15*RAND() -> 16.57222472 | AQ11: =(IF('Xi,Yi'!AQ11="","",(IF((('Xi,Yi'!AQ11+AU11+AT11/SQRT(3))<DataInput!$B$18),"",(IF((('Xi,Yi'!AQ11+AU11+AT11/SQRT(3))>DataInput!$B$19),"",(IF('Xi,Yi'!AR11="","",(IF(('Xi,Yi'!AR11+AT11<DataInput!$B$20),"",(IF((('Xi,Yi'!AR11+AT11)>DataInput!$B$21),"",('Xi,Yi'!AQ11+AU11+AT11/SQRT(3)))))))))))))) ->  | AR11: =IF(AQ11="","",(IF('Xi,Yi'!AR11="","",(IF(('Xi,Yi'!AR11+AT11<DataInput!$B$20),"",(IF((('Xi,Yi'!AR11+AT11)>DataInput!$B$21),"",('Xi,Yi'!AR11+AT11)))))))) ->  | AS11: =IF(AQ11="","",IF(AR11="","",(DataInput!$B$4+(DataInput!$D$4-DataInput!$B$4)*RAND()))) ->  | AT11: =DataInput!$B$16*RAND() -> 8.525842681 | AU11: =DataInput!$B$15*RAND() -> 19.2164004 | AV11: =(IF('Xi,Yi'!AV11="","",(IF((('Xi,Yi'!AV11+AZ11+AY11/SQRT(3))<DataInput!$B$18),"",(IF((('Xi,Yi'!AV11+AZ11+AY11/SQRT(3))>DataInput!$B$19),"",(IF('Xi,Yi'!AW11="","",(IF(('Xi,Yi'!AW11+AY11<DataInput!$B$20),"",(IF((('Xi,Yi'!AW11+AY11)>DataInput!$B$21),"",('Xi,Yi'!AV11+AZ11+AY11/SQRT(3)))))))))))))) ->  | AW11: =IF(AV11="","",(IF('Xi,Yi'!AW11="","",(IF(('Xi,Yi'!AW11+AY11<DataInput!$B$20),"",(IF((('Xi,Yi'!AW11+AY11)>DataInput!$B$21),"",('Xi,Yi'!AW11+AY11)))))))) ->  | AX11: =IF(AV11="","",IF(AW11="","",(DataInput!$B$4+(DataInput!$D$4-DataInput!$B$4)*RAND()))) ->  | AY11: =DataInput!$B$16*RAND() -> 1.177514487 | AZ11: =DataInput!$B$15*RAND() -> 11.27135757 | BA11: =(IF('Xi,Yi'!BA11="","",(IF((('Xi,Yi'!BA11+BE11+BD11/SQRT(3))<DataInput!$B$18),"",(IF((('Xi,Yi'!BA11+BE11+BD11/SQRT(3))>DataInput!$B$19),"",(IF('Xi,Yi'!BB11="","",(IF(('Xi,Yi'!BB11+BD11<DataInput!$B$20),"",(IF((('Xi,Yi'!BB11+BD11)>DataInput!$B$21),"",('Xi,Yi'!BA11+BE11+BD11/SQRT(3)))))))))))))) ->  | BB11: =IF(BA11="","",(IF('Xi,Yi'!BB11="","",(IF(('Xi,Yi'!BB11+BD11<DataInput!$B$20),"",(IF((('Xi,Yi'!BB11+BD11)>DataInput!$B$21),"",('Xi,Yi'!BB11+BD11)))))))) ->  | BC11: =IF(BA11="","",IF(BB11="","",(DataInput!$B$4+(DataInput!$D$4-DataInput!$B$4)*RAND()))) ->  | BD11: =DataInput!$B$16*RAND() -> 16.20709996 | BE11: =DataInput!$B$15*RAND() -> 1.996634055
C12: =(IF('Xi,Yi'!C12="","",(IF((('Xi,Yi'!C12+G12+F12/SQRT(3))<DataInput!$B$18),"",(IF((('Xi,Yi'!C12+G12+F12/SQRT(3))>DataInput!$B$19),"",(IF('Xi,Yi'!D12="","",(IF(('Xi,Yi'!D12+F12<DataInput!$B$20),"",(IF((('Xi,Yi'!D12+F12)>DataInput!$B$21),"",('Xi,Yi'!C12+G12+F12/SQRT(3)))))))))))))) ->  | D12: =IF(C12="","",(IF('Xi,Yi'!D12="","",(IF(('Xi,Yi'!D12+F12<DataInput!$B$20),"",(IF((('Xi,Yi'!D12+F12)>DataInput!$B$21),"",('Xi,Yi'!D12+F12)))))))) ->  | E12: =IF(C12="","",IF(D12="","",(DataInput!$B$4+(DataInput!$D$4-DataInput!$B$4)*RAND()))) ->  | F12: =DataInput!$B$16*RAND() -> 4.060323842 | G12: =DataInput!$B$15*RAND() -> 14.73827944 | H12: =(IF('Xi,Yi'!H12="","",(IF((('Xi,Yi'!H12+L12+K12/SQRT(3))<DataInput!$B$18),"",(IF((('Xi,Yi'!H12+L12+K12/SQRT(3))>DataInput!$B$19),"",(IF('Xi,Yi'!I12="","",(IF(('Xi,Yi'!I12+K12<DataInput!$B$20),"",(IF((('Xi,Yi'!I12+K12)>DataInput!$B$21),"",('Xi,Yi'!H12+L12+K12/SQRT(3)))))))))))))) ->  | I12: =IF(H12="","",(IF('Xi,Yi'!I12="","",(IF(('Xi,Yi'!I12+K12<DataInput!$B$20),"",(IF((('Xi,Yi'!I12+K12)>DataInput!$B$21),"",('Xi,Yi'!I12+K12)))))))) ->  | J12: =IF(H12="","",IF(I12="","",(DataInput!$B$4+(DataInput!$D$4-DataInput!$B$4)*RAND()))) ->  | K12: =DataInput!$B$16*RAND() -> 16.06530596 | L12: =DataInput!$B$15*RAND() -> 19.53314567 | M12: =(IF('Xi,Yi'!M12="","",(IF((('Xi,Yi'!M12+Q12+P12/SQRT(3))<DataInput!$B$18),"",(IF((('Xi,Yi'!M12+Q12+P12/SQRT(3))>DataInput!$B$19),"",(IF('Xi,Yi'!N12="","",(IF(('Xi,Yi'!N12+P12<DataInput!$B$20),"",(IF((('Xi,Yi'!N12+P12)>DataInput!$B$21),"",('Xi,Yi'!M12+Q12+P12/SQRT(3)))))))))))))) ->  | N12: =IF(M12="","",(IF('Xi,Yi'!N12="","",(IF(('Xi,Yi'!N12+P12<DataInput!$B$20),"",(IF((('Xi,Yi'!N12+P12)>DataInput!$B$21),"",('Xi,Yi'!N12+P12)))))))) ->  | O12: =IF(M12="","",IF(N12="","",(DataInput!$B$4+(DataInput!$D$4-DataInput!$B$4)*RAND()))) ->  | P12: =DataInput!$B$16*RAND() -> 16.36313323 | Q12: =DataInput!$B$15*RAND() -> 13.33019477 | R12: =(IF('Xi,Yi'!R12="","",(IF((('Xi,Yi'!R12+V12+U12/SQRT(3))<DataInput!$B$18),"",(IF((('Xi,Yi'!R12+V12+U12/SQRT(3))>DataInput!$B$19),"",(IF('Xi,Yi'!S12="","",(IF(('Xi,Yi'!S12+U12<DataInput!$B$20),"",(IF((('Xi,Yi'!S12+U12)>DataInput!$B$21),"",('Xi,Yi'!R12+V12+U12/SQRT(3)))))))))))))) ->  | S12: =IF(R12="","",(IF('Xi,Yi'!S12="","",(IF(('Xi,Yi'!S12+U12<DataInput!$B$20),"",(IF((('Xi,Yi'!S12+U12)>DataInput!$B$21),"",('Xi,Yi'!S12+U12)))))))) ->  | T12: =IF(R12="","",IF(S12="","",(DataInput!$B$4+(DataInput!$D$4-DataInput!$B$4)*RAND()))) ->  | U12: =DataInput!$B$16*RAND() -> 5.592218017 | V12: =DataInput!$B$15*RAND() -> 9.31769637 | W12: =(IF('Xi,Yi'!W12="","",(IF((('Xi,Yi'!W12+AA12+Z12/SQRT(3))<DataInput!$B$18),"",(IF((('Xi,Yi'!W12+AA12+Z12/SQRT(3))>DataInput!$B$19),"",(IF('Xi,Yi'!X12="","",(IF(('Xi,Yi'!X12+Z12<DataInput!$B$20),"",(IF((('Xi,Yi'!X12+Z12)>DataInput!$B$21),"",('Xi,Yi'!W12+AA12+Z12/SQRT(3)))))))))))))) ->  | X12: =IF(W12="","",(IF('Xi,Yi'!X12="","",(IF(('Xi,Yi'!X12+Z12<DataInput!$B$20),"",(IF((('Xi,Yi'!X12+Z12)>DataInput!$B$21),"",('Xi,Yi'!X12+Z12)))))))) ->  | Y12: =IF(W12="","",IF(X12="","",(DataInput!$B$4+(DataInput!$D$4-DataInput!$B$4)*RAND()))) ->  | Z12: =DataInput!$B$16*RAND() -> 5.177837391 | AA12: =DataInput!$B$15*RAND() -> 11.94544224 | AB12: =(IF('Xi,Yi'!AB12="","",(IF((('Xi,Yi'!AB12+AF12+AE12/SQRT(3))<DataInput!$B$18),"",(IF((('Xi,Yi'!AB12+AF12+AE12/SQRT(3))>DataInput!$B$19),"",(IF('Xi,Yi'!AC12="","",(IF(('Xi,Yi'!AC12+AE12<DataInput!$B$20),"",(IF((('Xi,Yi'!AC12+AE12)>DataInput!$B$21),"",('Xi,Yi'!AB12+AF12+AE12/SQRT(3)))))))))))))) ->  | AC12: =IF(AB12="","",(IF('Xi,Yi'!AC12="","",(IF(('Xi,Yi'!AC12+AE12<DataInput!$B$20),"",(IF((('Xi,Yi'!AC12+AE12)>DataInput!$B$21),"",('Xi,Yi'!AC12+AE12)))))))) ->  | AD12: =IF(AB12="","",IF(AC12="","",(DataInput!$B$4+(DataInput!$D$4-DataInput!$B$4)*RAND()))) ->  | AE12: =DataInput!$B$16*RAND() -> 12.78630753 | AF12: =DataInput!$B$15*RAND() -> 3.252968868 | AG12: =(IF('Xi,Yi'!AG12="","",(IF((('Xi,Yi'!AG12+AK12+AJ12/SQRT(3))<DataInput!$B$18),"",(IF((('Xi,Yi'!AG12+AK12+AJ12/SQRT(3))>DataInput!$B$19),"",(IF('Xi,Yi'!AH12="","",(IF(('Xi,Yi'!AH12+AJ12<DataInput!$B$20),"",(IF((('Xi,Yi'!AH12+AJ12)>DataInput!$B$21),"",('Xi,Yi'!AG12+AK12+AJ12/SQRT(3)))))))))))))) ->  | AH12: =IF(AG12="","",(IF('Xi,Yi'!AH12="","",(IF(('Xi,Yi'!AH12+AJ12<DataInput!$B$20),"",(IF((('Xi,Yi'!AH12+AJ12)>DataInput!$B$21),"",('Xi,Yi'!AH12+AJ12)))))))) ->  | AI12: =IF(AG12="","",IF(AH12="","",(DataInput!$B$4+(DataInput!$D$4-DataInput!$B$4)*RAND()))) ->  | AJ12: =DataInput!$B$16*RAND() -> 2.910128417 | AK12: =DataInput!$B$15*RAND() -> 3.536485141 | AL12: =(IF('Xi,Yi'!AL12="","",(IF((('Xi,Yi'!AL12+AP12+AO12/SQRT(3))<DataInput!$B$18),"",(IF((('Xi,Yi'!AL12+AP12+AO12/SQRT(3))>DataInput!$B$19),"",(IF('Xi,Yi'!AM12="","",(IF(('Xi,Yi'!AM12+AO12<DataInput!$B$20),"",(IF((('Xi,Yi'!AM12+AO12)>DataInput!$B$21),"",('Xi,Yi'!AL12+AP12+AO12/SQRT(3)))))))))))))) ->  | AM12: =IF(AL12="","",(IF('Xi,Yi'!AM12="","",(IF(('Xi,Yi'!AM12+AO12<DataInput!$B$20),"",(IF((('Xi,Yi'!AM12+AO12)>DataInput!$B$21),"",('Xi,Yi'!AM12+AO12)))))))) ->  | AN12: =IF(AL12="","",IF(AM12="","",(DataInput!$B$4+(DataInput!$D$4-DataInput!$B$4)*RAND()))) ->  | AO12: =DataInput!$B$16*RAND() -> 16.66908634 | AP12: =DataInput!$B$15*RAND() -> 18.9685143 | AQ12: =(IF('Xi,Yi'!AQ12="","",(IF((('Xi,Yi'!AQ12+AU12+AT12/SQRT(3))<DataInput!$B$18),"",(IF((('Xi,Yi'!AQ12+AU12+AT12/SQRT(3))>DataInput!$B$19),"",(IF('Xi,Yi'!AR12="","",(IF(('Xi,Yi'!AR12+AT12<DataInput!$B$20),"",(IF((('Xi,Yi'!AR12+AT12)>DataInput!$B$21),"",('Xi,Yi'!AQ12+AU12+AT12/SQRT(3)))))))))))))) ->  | AR12: =IF(AQ12="","",(IF('Xi,Yi'!AR12="","",(IF(('Xi,Yi'!AR12+AT12<DataInput!$B$20),"",(IF((('Xi,Yi'!AR12+AT12)>DataInput!$B$21),"",('Xi,Yi'!AR12+AT12)))))))) ->  | AS12: =IF(AQ12="","",IF(AR12="","",(DataInput!$B$4+(DataInput!$D$4-DataInput!$B$4)*RAND()))) ->  | AT12: =DataInput!$B$16*RAND() -> 1.674772814 | AU12: =DataInput!$B$15*RAND() -> 0.6987062328 | AV12: =(IF('Xi,Yi'!AV12="","",(IF((('Xi,Yi'!AV12+AZ12+AY12/SQRT(3))<DataInput!$B$18),"",(IF((('Xi,Yi'!AV12+AZ12+AY12/SQRT(3))>DataInput!$B$19),"",(IF('Xi,Yi'!AW12="","",(IF(('Xi,Yi'!AW12+AY12<DataInput!$B$20),"",(IF((('Xi,Yi'!AW12+AY12)>DataInput!$B$21),"",('Xi,Yi'!AV12+AZ12+AY12/SQRT(3)))))))))))))) ->  | AW12: =IF(AV12="","",(IF('Xi,Yi'!AW12="","",(IF(('Xi,Yi'!AW12+AY12<DataInput!$B$20),"",(IF((('Xi,Yi'!AW12+AY12)>DataInput!$B$21),"",('Xi,Yi'!AW12+AY12)))))))) ->  | AX12: =IF(AV12="","",IF(AW12="","",(DataInput!$B$4+(DataInput!$D$4-DataInput!$B$4)*RAND()))) ->  | AY12: =DataInput!$B$16*RAND() -> 0.8404369182 | AZ12: =DataInput!$B$15*RAND() -> 17.0255455 | BA12: =(IF('Xi,Yi'!BA12="","",(IF((('Xi,Yi'!BA12+BE12+BD12/SQRT(3))<DataInput!$B$18),"",(IF((('Xi,Yi'!BA12+BE12+BD12/SQRT(3))>DataInput!$B$19),"",(IF('Xi,Yi'!BB12="","",(IF(('Xi,Yi'!BB12+BD12<DataInput!$B$20),"",(IF((('Xi,Yi'!BB12+BD12)>DataInput!$B$21),"",('Xi,Yi'!BA12+BE12+BD12/SQRT(3)))))))))))))) ->  | BB12: =IF(BA12="","",(IF('Xi,Yi'!BB12="","",(IF(('Xi,Yi'!BB12+BD12<DataInput!$B$20),"",(IF((('Xi,Yi'!BB12+BD12)>DataInput!$B$21),"",('Xi,Yi'!BB12+BD12)))))))) ->  | BC12: =IF(BA12="","",IF(BB12="","",(DataInput!$B$4+(DataInput!$D$4-DataInput!$B$4)*RAND()))) ->  | BD12: =DataInput!$B$16*RAND() -> 10.94306231 | BE12: =DataInput!$B$15*RAND() -> 17.22367605
C13: =(IF('Xi,Yi'!C13="","",(IF((('Xi,Yi'!C13+G13+F13/SQRT(3))<DataInput!$B$18),"",(IF((('Xi,Yi'!C13+G13+F13/SQRT(3))>DataInput!$B$19),"",(IF('Xi,Yi'!D13="","",(IF(('Xi,Yi'!D13+F13<DataInput!$B$20),"",(IF((('Xi,Yi'!D13+F13)>DataInput!$B$21),"",('Xi,Yi'!C13+G13+F13/SQRT(3)))))))))))))) ->  | D13: =IF(C13="","",(IF('Xi,Yi'!D13="","",(IF(('Xi,Yi'!D13+F13<DataInput!$B$20),"",(IF((('Xi,Yi'!D13+F13)>DataInput!$B$21),"",('Xi,Yi'!D13+F13)))))))) ->  | E13: =IF(C13="","",IF(D13="","",(DataInput!$B$4+(DataInput!$D$4-DataInput!$B$4)*RAND()))) ->  | F13: =DataInput!$B$16*RAND() -> 12.74904282 | G13: =DataInput!$B$15*RAND() -> 16.57009414 | H13: =(IF('Xi,Yi'!H13="","",(IF((('Xi,Yi'!H13+L13+K13/SQRT(3))<DataInput!$B$18),"",(IF((('Xi,Yi'!H13+L13+K13/SQRT(3))>DataInput!$B$19),"",(IF('Xi,Yi'!I13="","",(IF(('Xi,Yi'!I13+K13<DataInput!$B$20),"",(IF((('Xi,Yi'!I13+K13)>DataInput!$B$21),"",('Xi,Yi'!H13+L13+K13/SQRT(3)))))))))))))) ->  | I13: =IF(H13="","",(IF('Xi,Yi'!I13="","",(IF(('Xi,Yi'!I13+K13<DataInput!$B$20),"",(IF((('Xi,Yi'!I13+K13)>DataInput!$B$21),"",('Xi,Yi'!I13+K13)))))))) ->  | J13: =IF(H13="","",IF(I13="","",(DataInput!$B$4+(DataInput!$D$4-DataInput!$B$4)*RAND()))) ->  | K13: =DataInput!$B$16*RAND() -> 2.471497961 | L13: =DataInput!$B$15*RAND() -> 5.104535611 | M13: =(IF('Xi,Yi'!M13="","",(IF((('Xi,Yi'!M13+Q13+P13/SQRT(3))<DataInput!$B$18),"",(IF((('Xi,Yi'!M13+Q13+P13/SQRT(3))>DataInput!$B$19),"",(IF('Xi,Yi'!N13="","",(IF(('Xi,Yi'!N13+P13<DataInput!$B$20),"",(IF((('Xi,Yi'!N13+P13)>DataInput!$B$21),"",('Xi,Yi'!M13+Q13+P13/SQRT(3)))))))))))))) ->  | N13: =IF(M13="","",(IF('Xi,Yi'!N13="","",(IF(('Xi,Yi'!N13+P13<DataInput!$B$20),"",(IF((('Xi,Yi'!N13+P13)>DataInput!$B$21),"",('Xi,Yi'!N13+P13)))))))) ->  | O13: =IF(M13="","",IF(N13="","",(DataInput!$B$4+(DataInput!$D$4-DataInput!$B$4)*RAND()))) ->  | P13: =DataInput!$B$16*RAND() -> 8.763040869 | Q13: =DataInput!$B$15*RAND() -> 3.003150286 | R13: =(IF('Xi,Yi'!R13="","",(IF((('Xi,Yi'!R13+V13+U13/SQRT(3))<DataInput!$B$18),"",(IF((('Xi,Yi'!R13+V13+U13/SQRT(3))>DataInput!$B$19),"",(IF('Xi,Yi'!S13="","",(IF(('Xi,Yi'!S13+U13<DataInput!$B$20),"",(IF((('Xi,Yi'!S13+U13)>DataInput!$B$21),"",('Xi,Yi'!R13+V13+U13/SQRT(3)))))))))))))) ->  | S13: =IF(R13="","",(IF('Xi,Yi'!S13="","",(IF(('Xi,Yi'!S13+U13<DataInput!$B$20),"",(IF((('Xi,Yi'!S13+U13)>DataInput!$B$21),"",('Xi,Yi'!S13+U13)))))))) ->  | T13: =IF(R13="","",IF(S13="","",(DataInput!$B$4+(DataInput!$D$4-DataInput!$B$4)*RAND()))) ->  | U13: =DataInput!$B$16*RAND() -> 13.49792975 | V13: =DataInput!$B$15*RAND() -> 7.089808824 | W13: =(IF('Xi,Yi'!W13="","",(IF((('Xi,Yi'!W13+AA13+Z13/SQRT(3))<DataInput!$B$18),"",(IF((('Xi,Yi'!W13+AA13+Z13/SQRT(3))>DataInput!$B$19),"",(IF('Xi,Yi'!X13="","",(IF(('Xi,Yi'!X13+Z13<DataInput!$B$20),"",(IF((('Xi,Yi'!X13+Z13)>DataInput!$B$21),"",('Xi,Yi'!W13+AA13+Z13/SQRT(3)))))))))))))) ->  | X13: =IF(W13="","",(IF('Xi,Yi'!X13="","",(IF(('Xi,Yi'!X13+Z13<DataInput!$B$20),"",(IF((('Xi,Yi'!X13+Z13)>DataInput!$B$21),"",('Xi,Yi'!X13+Z13)))))))) ->  | Y13: =IF(W13="","",IF(X13="","",(DataInput!$B$4+(DataInput!$D$4-DataInput!$B$4)*RAND()))) ->  | Z13: =DataInput!$B$16*RAND() -> 1.210687408 | AA13: =DataInput!$B$15*RAND() -> 14.50886427 | AB13: =(IF('Xi,Yi'!AB13="","",(IF((('Xi,Yi'!AB13+AF13+AE13/SQRT(3))<DataInput!$B$18),"",(IF((('Xi,Yi'!AB13+AF13+AE13/SQRT(3))>DataInput!$B$19),"",(IF('Xi,Yi'!AC13="","",(IF(('Xi,Yi'!AC13+AE13<DataInput!$B$20),"",(IF((('Xi,Yi'!AC13+AE13)>DataInput!$B$21),"",('Xi,Yi'!AB13+AF13+AE13/SQRT(3)))))))))))))) ->  | AC13: =IF(AB13="","",(IF('Xi,Yi'!AC13="","",(IF(('Xi,Yi'!AC13+AE13<DataInput!$B$20),"",(IF((('Xi,Yi'!AC13+AE13)>DataInput!$B$21),"",('Xi,Yi'!AC13+AE13)))))))) ->  | AD13: =IF(AB13="","",IF(AC13="","",(DataInput!$B$4+(DataInput!$D$4-DataInput!$B$4)*RAND()))) ->  | AE13: =DataInput!$B$16*RAND() -> 0.406858169 | AF13: =DataInput!$B$15*RAND() -> 11.81815117 | AG13: =(IF('Xi,Yi'!AG13="","",(IF((('Xi,Yi'!AG13+AK13+AJ13/SQRT(3))<DataInput!$B$18),"",(IF((('Xi,Yi'!AG13+AK13+AJ13/SQRT(3))>DataInput!$B$19),"",(IF('Xi,Yi'!AH13="","",(IF(('Xi,Yi'!AH13+AJ13<DataInput!$B$20),"",(IF((('Xi,Yi'!AH13+AJ13)>DataInput!$B$21),"",('Xi,Yi'!AG13+AK13+AJ13/SQRT(3)))))))))))))) ->  | AH13: =IF(AG13="","",(IF('Xi,Yi'!AH13="","",(IF(('Xi,Yi'!AH13+AJ13<DataInput!$B$20),"",(IF((('Xi,Yi'!AH13+AJ13)>DataInput!$B$21),"",('Xi,Yi'!AH13+AJ13)))))))) ->  | AI13: =IF(AG13="","",IF(AH13="","",(DataInput!$B$4+(DataInput!$D$4-DataInput!$B$4)*RAND()))) ->  | AJ13: =DataInput!$B$16*RAND() -> 11.46760394 | AK13: =DataInput!$B$15*RAND() -> 4.933504795 | AL13: =(IF('Xi,Yi'!AL13="","",(IF((('Xi,Yi'!AL13+AP13+AO13/SQRT(3))<DataInput!$B$18),"",(IF((('Xi,Yi'!AL13+AP13+AO13/SQRT(3))>DataInput!$B$19),"",(IF('Xi,Yi'!AM13="","",(IF(('Xi,Yi'!AM13+AO13<DataInput!$B$20),"",(IF((('Xi,Yi'!AM13+AO13)>DataInput!$B$21),"",('Xi,Yi'!AL13+AP13+AO13/SQRT(3)))))))))))))) ->  | AM13: =IF(AL13="","",(IF('Xi,Yi'!AM13="","",(IF(('Xi,Yi'!AM13+AO13<DataInput!$B$20),"",(IF((('Xi,Yi'!AM13+AO13)>DataInput!$B$21),"",('Xi,Yi'!AM13+AO13)))))))) ->  | AN13: =IF(AL13="","",IF(AM13="","",(DataInput!$B$4+(DataInput!$D$4-DataInput!$B$4)*RAND()))) ->  | AO13: =DataInput!$B$16*RAND() -> 2.228663483 | AP13: =DataInput!$B$15*RAND() -> 8.224864586 | AQ13: =(IF('Xi,Yi'!AQ13="","",(IF((('Xi,Yi'!AQ13+AU13+AT13/SQRT(3))<DataInput!$B$18),"",(IF((('Xi,Yi'!AQ13+AU13+AT13/SQRT(3))>DataInput!$B$19),"",(IF('Xi,Yi'!AR13="","",(IF(('Xi,Yi'!AR13+AT13<DataInput!$B$20),"",(IF((('Xi,Yi'!AR13+AT13)>DataInput!$B$21),"",('Xi,Yi'!AQ13+AU13+AT13/SQRT(3)))))))))))))) ->  | AR13: =IF(AQ13="","",(IF('Xi,Yi'!AR13="","",(IF(('Xi,Yi'!AR13+AT13<DataInput!$B$20),"",(IF((('Xi,Yi'!AR13+AT13)>DataInput!$B$21),"",('Xi,Yi'!AR13+AT13)))))))) ->  | AS13: =IF(AQ13="","",IF(AR13="","",(DataInput!$B$4+(DataInput!$D$4-DataInput!$B$4)*RAND()))) ->  | AT13: =DataInput!$B$16*RAND() -> 7.14558204 | AU13: =DataInput!$B$15*RAND() -> 12.12765106 | AV13: =(IF('Xi,Yi'!AV13="","",(IF((('Xi,Yi'!AV13+AZ13+AY13/SQRT(3))<DataInput!$B$18),"",(IF((('Xi,Yi'!AV13+AZ13+AY13/SQRT(3))>DataInput!$B$19),"",(IF('Xi,Yi'!AW13="","",(IF(('Xi,Yi'!AW13+AY13<DataInput!$B$20),"",(IF((('Xi,Yi'!AW13+AY13)>DataInput!$B$21),"",('Xi,Yi'!AV13+AZ13+AY13/SQRT(3)))))))))))))) ->  | AW13: =IF(AV13="","",(IF('Xi,Yi'!AW13="","",(IF(('Xi,Yi'!AW13+AY13<DataInput!$B$20),"",(IF((('Xi,Yi'!AW13+AY13)>DataInput!$B$21),"",('Xi,Yi'!AW13+AY13)))))))) ->  | AX13: =IF(AV13="","",IF(AW13="","",(DataInput!$B$4+(DataInput!$D$4-DataInput!$B$4)*RAND()))) ->  | AY13: =DataInput!$B$16*RAND() -> 16.98722306 | AZ13: =DataInput!$B$15*RAND() -> 6.277033284 | BA13: =(IF('Xi,Yi'!BA13="","",(IF((('Xi,Yi'!BA13+BE13+BD13/SQRT(3))<DataInput!$B$18),"",(IF((('Xi,Yi'!BA13+BE13+BD13/SQRT(3))>DataInput!$B$19),"",(IF('Xi,Yi'!BB13="","",(IF(('Xi,Yi'!BB13+BD13<DataInput!$B$20),"",(IF((('Xi,Yi'!BB13+BD13)>DataInput!$B$21),"",('Xi,Yi'!BA13+BE13+BD13/SQRT(3)))))))))))))) ->  | BB13: =IF(BA13="","",(IF('Xi,Yi'!BB13="","",(IF(('Xi,Yi'!BB13+BD13<DataInput!$B$20),"",(IF((('Xi,Yi'!BB13+BD13)>DataInput!$B$21),"",('Xi,Yi'!BB13+BD13)))))))) ->  | BC13: =IF(BA13="","",IF(BB13="","",(DataInput!$B$4+(DataInput!$D$4-DataInput!$B$4)*RAND()))) ->  | BD13: =DataInput!$B$16*RAND() -> 6.761601466 | BE13: =DataInput!$B$15*RAND() -> 15.74593195
C14: =(IF('Xi,Yi'!C14="","",(IF((('Xi,Yi'!C14+G14+F14/SQRT(3))<DataInput!$B$18),"",(IF((('Xi,Yi'!C14+G14+F14/SQRT(3))>DataInput!$B$19),"",(IF('Xi,Yi'!D14="","",(IF(('Xi,Yi'!D14+F14<DataInput!$B$20),"",(IF((('Xi,Yi'!D14+F14)>DataInput!$B$21),"",('Xi,Yi'!C14+G14+F14/SQRT(3)))))))))))))) -> 4.634333446 | D14: =IF(C14="","",(IF('Xi,Yi'!D14="","",(IF(('Xi,Yi'!D14+F14<DataInput!$B$20),"",(IF((('Xi,Yi'!D14+F14)>DataInput!$B$21),"",('Xi,Yi'!D14+F14)))))))) -> 4.968063146 | E14: =IF(C14="","",IF(D14="","",(DataInput!$B$4+(DataInput!$D$4-DataInput!$B$4)*RAND()))) -> 2.887453088 | F14: =DataInput!$B$16*RAND() -> 0.8680631465 | G14: =DataInput!$B$15*RAND() -> 8.533156955 | H14: =(IF('Xi,Yi'!H14="","",(IF((('Xi,Yi'!H14+L14+K14/SQRT(3))<DataInput!$B$18),"",(IF((('Xi,Yi'!H14+L14+K14/SQRT(3))>DataInput!$B$19),"",(IF('Xi,Yi'!I14="","",(IF(('Xi,Yi'!I14+K14<DataInput!$B$20),"",(IF((('Xi,Yi'!I14+K14)>DataInput!$B$21),"",('Xi,Yi'!H14+L14+K14/SQRT(3)))))))))))))) -> 28.39721438 | I14: =IF(H14="","",(IF('Xi,Yi'!I14="","",(IF(('Xi,Yi'!I14+K14<DataInput!$B$20),"",(IF((('Xi,Yi'!I14+K14)>DataInput!$B$21),"",('Xi,Yi'!I14+K14)))))))) -> 32.9864832 | J14: =IF(H14="","",IF(I14="","",(DataInput!$B$4+(DataInput!$D$4-DataInput!$B$4)*RAND()))) -> 8.410455028 | K14: =DataInput!$B$16*RAND() -> 11.8864832 | L14: =DataInput!$B$15*RAND() -> 16.13455011 | M14: =(IF('Xi,Yi'!M14="","",(IF((('Xi,Yi'!M14+Q14+P14/SQRT(3))<DataInput!$B$18),"",(IF((('Xi,Yi'!M14+Q14+P14/SQRT(3))>DataInput!$B$19),"",(IF('Xi,Yi'!N14="","",(IF(('Xi,Yi'!N14+P14<DataInput!$B$20),"",(IF((('Xi,Yi'!N14+P14)>DataInput!$B$21),"",('Xi,Yi'!M14+Q14+P14/SQRT(3)))))))))))))) ->  | N14: =IF(M14="","",(IF('Xi,Yi'!N14="","",(IF(('Xi,Yi'!N14+P14<DataInput!$B$20),"",(IF((('Xi,Yi'!N14+P14)>DataInput!$B$21),"",('Xi,Yi'!N14+P14)))))))) ->  | O14: =IF(M14="","",IF(N14="","",(DataInput!$B$4+(DataInput!$D$4-DataInput!$B$4)*RAND()))) ->  | P14: =DataInput!$B$16*RAND() -> 15.42737905 | Q14: =DataInput!$B$15*RAND() -> 16.53766005 | R14: =(IF('Xi,Yi'!R14="","",(IF((('Xi,Yi'!R14+V14+U14/SQRT(3))<DataInput!$B$18),"",(IF((('Xi,Yi'!R14+V14+U14/SQRT(3))>DataInput!$B$19),"",(IF('Xi,Yi'!S14="","",(IF(('Xi,Yi'!S14+U14<DataInput!$B$20),"",(IF((('Xi,Yi'!S14+U14)>DataInput!$B$21),"",('Xi,Yi'!R14+V14+U14/SQRT(3)))))))))))))) ->  | S14: =IF(R14="","",(IF('Xi,Yi'!S14="","",(IF(('Xi,Yi'!S14+U14<DataInput!$B$20),"",(IF((('Xi,Yi'!S14+U14)>DataInput!$B$21),"",('Xi,Yi'!S14+U14)))))))) ->  | T14: =IF(R14="","",IF(S14="","",(DataInput!$B$4+(DataInput!$D$4-DataInput!$B$4)*RAND()))) ->  | U14: =DataInput!$B$16*RAND() -> 10.38156966 | V14: =DataInput!$B$15*RAND() -> 19.37882619 | W14: =(IF('Xi,Yi'!W14="","",(IF((('Xi,Yi'!W14+AA14+Z14/SQRT(3))<DataInput!$B$18),"",(IF((('Xi,Yi'!W14+AA14+Z14/SQRT(3))>DataInput!$B$19),"",(IF('Xi,Yi'!X14="","",(IF(('Xi,Yi'!X14+Z14<DataInput!$B$20),"",(IF((('Xi,Yi'!X14+Z14)>DataInput!$B$21),"",('Xi,Yi'!W14+AA14+Z14/SQRT(3)))))))))))))) ->  | X14: =IF(W14="","",(IF('Xi,Yi'!X14="","",(IF(('Xi,Yi'!X14+Z14<DataInput!$B$20),"",(IF((('Xi,Yi'!X14+Z14)>DataInput!$B$21),"",('Xi,Yi'!X14+Z14)))))))) ->  | Y14: =IF(W14="","",IF(X14="","",(DataInput!$B$4+(DataInput!$D$4-DataInput!$B$4)*RAND()))) ->  | Z14: =DataInput!$B$16*RAND() -> 0.817099706 | AA14: =DataInput!$B$15*RAND() -> 17.89712041 | AB14: =(IF('Xi,Yi'!AB14="","",(IF((('Xi,Yi'!AB14+AF14+AE14/SQRT(3))<DataInput!$B$18),"",(IF((('Xi,Yi'!AB14+AF14+AE14/SQRT(3))>DataInput!$B$19),"",(IF('Xi,Yi'!AC14="","",(IF(('Xi,Yi'!AC14+AE14<DataInput!$B$20),"",(IF((('Xi,Yi'!AC14+AE14)>DataInput!$B$21),"",('Xi,Yi'!AB14+AF14+AE14/SQRT(3)))))))))))))) ->  | AC14: =IF(AB14="","",(IF('Xi,Yi'!AC14="","",(IF(('Xi,Yi'!AC14+AE14<DataInput!$B$20),"",(IF((('Xi,Yi'!AC14+AE14)>DataInput!$B$21),"",('Xi,Yi'!AC14+AE14)))))))) ->  | AD14: =IF(AB14="","",IF(AC14="","",(DataInput!$B$4+(DataInput!$D$4-DataInput!$B$4)*RAND()))) ->  | AE14: =DataInput!$B$16*RAND() -> 1.18249025 | AF14: =DataInput!$B$15*RAND() -> 16.2646235 | AG14: =(IF('Xi,Yi'!AG14="","",(IF((('Xi,Yi'!AG14+AK14+AJ14/SQRT(3))<DataInput!$B$18),"",(IF((('Xi,Yi'!AG14+AK14+AJ14/SQRT(3))>DataInput!$B$19),"",(IF('Xi,Yi'!AH14="","",(IF(('Xi,Yi'!AH14+AJ14<DataInput!$B$20),"",(IF((('Xi,Yi'!AH14+AJ14)>DataInput!$B$21),"",('Xi,Yi'!AG14+AK14+AJ14/SQRT(3)))))))))))))) ->  | AH14: =IF(AG14="","",(IF('Xi,Yi'!AH14="","",(IF(('Xi,Yi'!AH14+AJ14<DataInput!$B$20),"",(IF((('Xi,Yi'!AH14+AJ14)>DataInput!$B$21),"",('Xi,Yi'!AH14+AJ14)))))))) ->  | AI14: =IF(AG14="","",IF(AH14="","",(DataInput!$B$4+(DataInput!$D$4-DataInput!$B$4)*RAND()))) ->  | AJ14: =DataInput!$B$16*RAND() -> 9.893195008 | AK14: =DataInput!$B$15*RAND() -> 0.2450260659 | AL14: =(IF('Xi,Yi'!AL14="","",(IF((('Xi,Yi'!AL14+AP14+AO14/SQRT(3))<DataInput!$B$18),"",(IF((('Xi,Yi'!AL14+AP14+AO14/SQRT(3))>DataInput!$B$19),"",(IF('Xi,Yi'!AM14="","",(IF(('Xi,Yi'!AM14+AO14<DataInput!$B$20),"",(IF((('Xi,Yi'!AM14+AO14)>DataInput!$B$21),"",('Xi,Yi'!AL14+AP14+AO14/SQRT(3)))))))))))))) ->  | AM14: =IF(AL14="","",(IF('Xi,Yi'!AM14="","",(IF(('Xi,Yi'!AM14+AO14<DataInput!$B$20),"",(IF((('Xi,Yi'!AM14+AO14)>DataInput!$B$21),"",('Xi,Yi'!AM14+AO14)))))))) ->  | AN14: =IF(AL14="","",IF(AM14="","",(DataInput!$B$4+(DataInput!$D$4-DataInput!$B$4)*RAND()))) ->  | AO14: =DataInput!$B$16*RAND() -> 13.90446109 | AP14: =DataInput!$B$15*RAND() -> 14.42868729 | AQ14: =(IF('Xi,Yi'!AQ14="","",(IF((('Xi,Yi'!AQ14+AU14+AT14/SQRT(3))<DataInput!$B$18),"",(IF((('Xi,Yi'!AQ14+AU14+AT14/SQRT(3))>DataInput!$B$19),"",(IF('Xi,Yi'!AR14="","",(IF(('Xi,Yi'!AR14+AT14<DataInput!$B$20),"",(IF((('Xi,Yi'!AR14+AT14)>DataInput!$B$21),"",('Xi,Yi'!AQ14+AU14+AT14/SQRT(3)))))))))))))) ->  | AR14: =IF(AQ14="","",(IF('Xi,Yi'!AR14="","",(IF(('Xi,Yi'!AR14+AT14<DataInput!$B$20),"",(IF((('Xi,Yi'!AR14+AT14)>DataInput!$B$21),"",('Xi,Yi'!AR14+AT14)))))))) ->  | AS14: =IF(AQ14="","",IF(AR14="","",(DataInput!$B$4+(DataInput!$D$4-DataInput!$B$4)*RAND()))) ->  | AT14: =DataInput!$B$16*RAND() -> 2.652278396 | AU14: =DataInput!$B$15*RAND() -> 5.35501423 | AV14: =(IF('Xi,Yi'!AV14="","",(IF((('Xi,Yi'!AV14+AZ14+AY14/SQRT(3))<DataInput!$B$18),"",(IF((('Xi,Yi'!AV14+AZ14+AY14/SQRT(3))>DataInput!$B$19),"",(IF('Xi,Yi'!AW14="","",(IF(('Xi,Yi'!AW14+AY14<DataInput!$B$20),"",(IF((('Xi,Yi'!AW14+AY14)>DataInput!$B$21),"",('Xi,Yi'!AV14+AZ14+AY14/SQRT(3)))))))))))))) ->  | AW14: =IF(AV14="","",(IF('Xi,Yi'!AW14="","",(IF(('Xi,Yi'!AW14+AY14<DataInput!$B$20),"",(IF((('Xi,Yi'!AW14+AY14)>DataInput!$B$21),"",('Xi,Yi'!AW14+AY14)))))))) ->  | AX14: =IF(AV14="","",IF(AW14="","",(DataInput!$B$4+(DataInput!$D$4-DataInput!$B$4)*RAND()))) ->  | AY14: =DataInput!$B$16*RAND() -> 6.073868215 | AZ14: =DataInput!$B$15*RAND() -> 13.52377925 | BA14: =(IF('Xi,Yi'!BA14="","",(IF((('Xi,Yi'!BA14+BE14+BD14/SQRT(3))<DataInput!$B$18),"",(IF((('Xi,Yi'!BA14+BE14+BD14/SQRT(3))>DataInput!$B$19),"",(IF('Xi,Yi'!BB14="","",(IF(('Xi,Yi'!BB14+BD14<DataInput!$B$20),"",(IF((('Xi,Yi'!BB14+BD14)>DataInput!$B$21),"",('Xi,Yi'!BA14+BE14+BD14/SQRT(3)))))))))))))) ->  | BB14: =IF(BA14="","",(IF('Xi,Yi'!BB14="","",(IF(('Xi,Yi'!BB14+BD14<DataInput!$B$20),"",(IF((('Xi,Yi'!BB14+BD14)>DataInput!$B$21),"",('Xi,Yi'!BB14+BD14)))))))) ->  | BC14: =IF(BA14="","",IF(BB14="","",(DataInput!$B$4+(DataInput!$D$4-DataInput!$B$4)*RAND()))) ->  | BD14: =DataInput!$B$16*RAND() -> 14.56232145 | BE14: =DataInput!$B$15*RAND() -> 2.762554584
C15: =(IF('Xi,Yi'!C15="","",(IF((('Xi,Yi'!C15+G15+F15/SQRT(3))<DataInput!$B$18),"",(IF((('Xi,Yi'!C15+G15+F15/SQRT(3))>DataInput!$B$19),"",(IF('Xi,Yi'!D15="","",(IF(('Xi,Yi'!D15+F15<DataInput!$B$20),"",(IF((('Xi,Yi'!D15+F15)>DataInput!$B$21),"",('Xi,Yi'!C15+G15+F15/SQRT(3)))))))))))))) -> 25.82106099 | D15: =IF(C15="","",(IF('Xi,Yi'!D15="","",(IF(('Xi,Yi'!D15+F15<DataInput!$B$20),"",(IF((('Xi,Yi'!D15+F15)>DataInput!$B$21),"",('Xi,Yi'!D15+F15)))))))) -> 16.95624722 | E15: =IF(C15="","",IF(D15="","",(DataInput!$B$4+(DataInput!$D$4-DataInput!$B$4)*RAND()))) -> 2.709531756 | F15: =DataInput!$B$16*RAND() -> 12.85624722 | G15: =DataInput!$B$15*RAND() -> 3.19850319 | H15: =(IF('Xi,Yi'!H15="","",(IF((('Xi,Yi'!H15+L15+K15/SQRT(3))<DataInput!$B$18),"",(IF((('Xi,Yi'!H15+L15+K15/SQRT(3))>DataInput!$B$19),"",(IF('Xi,Yi'!I15="","",(IF(('Xi,Yi'!I15+K15<DataInput!$B$20),"",(IF((('Xi,Yi'!I15+K15)>DataInput!$B$21),"",('Xi,Yi'!H15+L15+K15/SQRT(3)))))))))))))) -> 41.04669591 | I15: =IF(H15="","",(IF('Xi,Yi'!I15="","",(IF(('Xi,Yi'!I15+K15<DataInput!$B$20),"",(IF((('Xi,Yi'!I15+K15)>DataInput!$B$21),"",('Xi,Yi'!I15+K15)))))))) -> 32.40315382 | J15: =IF(H15="","",IF(I15="","",(DataInput!$B$4+(DataInput!$D$4-DataInput!$B$4)*RAND()))) -> 6.494888191 | K15: =DataInput!$B$16*RAND() -> 11.30315382 | L15: =DataInput!$B$15*RAND() -> 9.52081701 | M15: =(IF('Xi,Yi'!M15="","",(IF((('Xi,Yi'!M15+Q15+P15/SQRT(3))<DataInput!$B$18),"",(IF((('Xi,Yi'!M15+Q15+P15/SQRT(3))>DataInput!$B$19),"",(IF('Xi,Yi'!N15="","",(IF(('Xi,Yi'!N15+P15<DataInput!$B$20),"",(IF((('Xi,Yi'!N15+P15)>DataInput!$B$21),"",('Xi,Yi'!M15+Q15+P15/SQRT(3)))))))))))))) -> 23.49449427 | N15: =IF(M15="","",(IF('Xi,Yi'!N15="","",(IF(('Xi,Yi'!N15+P15<DataInput!$B$20),"",(IF((('Xi,Yi'!N15+P15)>DataInput!$B$21),"",('Xi,Yi'!N15+P15)))))))) -> 47.06532131 | O15: =IF(M15="","",IF(N15="","",(DataInput!$B$4+(DataInput!$D$4-DataInput!$B$4)*RAND()))) -> 4.557608036 | P15: =DataInput!$B$16*RAND() -> 8.965321315 | Q15: =DataInput!$B$15*RAND() -> 3.118363592 | R15: =(IF('Xi,Yi'!R15="","",(IF((('Xi,Yi'!R15+V15+U15/SQRT(3))<DataInput!$B$18),"",(IF((('Xi,Yi'!R15+V15+U15/SQRT(3))>DataInput!$B$19),"",(IF('Xi,Yi'!S15="","",(IF(('Xi,Yi'!S15+U15<DataInput!$B$20),"",(IF((('Xi,Yi'!S15+U15)>DataInput!$B$21),"",('Xi,Yi'!R15+V15+U15/SQRT(3)))))))))))))) ->  | S15: =IF(R15="","",(IF('Xi,Yi'!S15="","",(IF(('Xi,Yi'!S15+U15<DataInput!$B$20),"",(IF((('Xi,Yi'!S15+U15)>DataInput!$B$21),"",('Xi,Yi'!S15+U15)))))))) ->  | T15: =IF(R15="","",IF(S15="","",(DataInput!$B$4+(DataInput!$D$4-DataInput!$B$4)*RAND()))) ->  | U15: =DataInput!$B$16*RAND() -> 4.127850754 | V15: =DataInput!$B$15*RAND() -> 7.483614591 | W15: =(IF('Xi,Yi'!W15="","",(IF((('Xi,Yi'!W15+AA15+Z15/SQRT(3))<DataInput!$B$18),"",(IF((('Xi,Yi'!W15+AA15+Z15/SQRT(3))>DataInput!$B$19),"",(IF('Xi,Yi'!X15="","",(IF(('Xi,Yi'!X15+Z15<DataInput!$B$20),"",(IF((('Xi,Yi'!X15+Z15)>DataInput!$B$21),"",('Xi,Yi'!W15+AA15+Z15/SQRT(3)))))))))))))) ->  | X15: =IF(W15="","",(IF('Xi,Yi'!X15="","",(IF(('Xi,Yi'!X15+Z15<DataInput!$B$20),"",(IF((('Xi,Yi'!X15+Z15)>DataInput!$B$21),"",('Xi,Yi'!X15+Z15)))))))) ->  | Y15: =IF(W15="","",IF(X15="","",(DataInput!$B$4+(DataInput!$D$4-DataInput!$B$4)*RAND()))) ->  | Z15: =DataInput!$B$16*RAND() -> 1.988035471 | AA15: =DataInput!$B$15*RAND() -> 15.2477171 | AB15: =(IF('Xi,Yi'!AB15="","",(IF((('Xi,Yi'!AB15+AF15+AE15/SQRT(3))<DataInput!$B$18),"",(IF((('Xi,Yi'!AB15+AF15+AE15/SQRT(3))>DataInput!$B$19),"",(IF('Xi,Yi'!AC15="","",(IF(('Xi,Yi'!AC15+AE15<DataInput!$B$20),"",(IF((('Xi,Yi'!AC15+AE15)>DataInput!$B$21),"",('Xi,Yi'!AB15+AF15+AE15/SQRT(3)))))))))))))) ->  | AC15: =IF(AB15="","",(IF('Xi,Yi'!AC15="","",(IF(('Xi,Yi'!AC15+AE15<DataInput!$B$20),"",(IF((('Xi,Yi'!AC15+AE15)>DataInput!$B$21),"",('Xi,Yi'!AC15+AE15)))))))) ->  | AD15: =IF(AB15="","",IF(AC15="","",(DataInput!$B$4+(DataInput!$D$4-DataInput!$B$4)*RAND()))) ->  | AE15: =DataInput!$B$16*RAND() -> 10.68356055 | AF15: =DataInput!$B$15*RAND() -> 9.949204427 | AG15: =(IF('Xi,Yi'!AG15="","",(IF((('Xi,Yi'!AG15+AK15+AJ15/SQRT(3))<DataInput!$B$18),"",(IF((('Xi,Yi'!AG15+AK15+AJ15/SQRT(3))>DataInput!$B$19),"",(IF('Xi,Yi'!AH15="","",(IF(('Xi,Yi'!AH15+AJ15<DataInput!$B$20),"",(IF((('Xi,Yi'!AH15+AJ15)>DataInput!$B$21),"",('Xi,Yi'!AG15+AK15+AJ15/SQRT(3)))))))))))))) ->  | AH15: =IF(AG15="","",(IF('Xi,Yi'!AH15="","",(IF(('Xi,Yi'!AH15+AJ15<DataInput!$B$20),"",(IF((('Xi,Yi'!AH15+AJ15)>DataInput!$B$21),"",('Xi,Yi'!AH15+AJ15)))))))) ->  | AI15: =IF(AG15="","",IF(AH15="","",(DataInput!$B$4+(DataInput!$D$4-DataInput!$B$4)*RAND()))) ->  | AJ15: =DataInput!$B$16*RAND() -> 15.5555066 | AK15: =DataInput!$B$15*RAND() -> 3.262013895 | AL15: =(IF('Xi,Yi'!AL15="","",(IF((('Xi,Yi'!AL15+AP15+AO15/SQRT(3))<DataInput!$B$18),"",(IF((('Xi,Yi'!AL15+AP15+AO15/SQRT(3))>DataInput!$B$19),"",(IF('Xi,Yi'!AM15="","",(IF(('Xi,Yi'!AM15+AO15<DataInput!$B$20),"",(IF((('Xi,Yi'!AM15+AO15)>DataInput!$B$21),"",('Xi,Yi'!AL15+AP15+AO15/SQRT(3)))))))))))))) ->  | AM15: =IF(AL15="","",(IF('Xi,Yi'!AM15="","",(IF(('Xi,Yi'!AM15+AO15<DataInput!$B$20),"",(IF((('Xi,Yi'!AM15+AO15)>DataInput!$B$21),"",('Xi,Yi'!AM15+AO15)))))))) ->  | AN15: =IF(AL15="","",IF(AM15="","",(DataInput!$B$4+(DataInput!$D$4-DataInput!$B$4)*RAND()))) ->  | AO15: =DataInput!$B$16*RAND() -> 13.62048496 | AP15: =DataInput!$B$15*RAND() -> 12.03240745 | AQ15: =(IF('Xi,Yi'!AQ15="","",(IF((('Xi,Yi'!AQ15+AU15+AT15/SQRT(3))<DataInput!$B$18),"",(IF((('Xi,Yi'!AQ15+AU15+AT15/SQRT(3))>DataInput!$B$19),"",(IF('Xi,Yi'!AR15="","",(IF(('Xi,Yi'!AR15+AT15<DataInput!$B$20),"",(IF((('Xi,Yi'!AR15+AT15)>DataInput!$B$21),"",('Xi,Yi'!AQ15+AU15+AT15/SQRT(3)))))))))))))) ->  | AR15: =IF(AQ15="","",(IF('Xi,Yi'!AR15="","",(IF(('Xi,Yi'!AR15+AT15<DataInput!$B$20),"",(IF((('Xi,Yi'!AR15+AT15)>DataInput!$B$21),"",('Xi,Yi'!AR15+AT15)))))))) ->  | AS15: =IF(AQ15="","",IF(AR15="","",(DataInput!$B$4+(DataInput!$D$4-DataInput!$B$4)*RAND()))) ->  | AT15: =DataInput!$B$16*RAND() -> 4.989343802 | AU15: =DataInput!$B$15*RAND() -> 4.942455531 | AV15: =(IF('Xi,Yi'!AV15="","",(IF((('Xi,Yi'!AV15+AZ15+AY15/SQRT(3))<DataInput!$B$18),"",(IF((('Xi,Yi'!AV15+AZ15+AY15/SQRT(3))>DataInput!$B$19),"",(IF('Xi,Yi'!AW15="","",(IF(('Xi,Yi'!AW15+AY15<DataInput!$B$20),"",(IF((('Xi,Yi'!AW15+AY15)>DataInput!$B$21),"",('Xi,Yi'!AV15+AZ15+AY15/SQRT(3)))))))))))))) ->  | AW15: =IF(AV15="","",(IF('Xi,Yi'!AW15="","",(IF(('Xi,Yi'!AW15+AY15<DataInput!$B$20),"",(IF((('Xi,Yi'!AW15+AY15)>DataInput!$B$21),"",('Xi,Yi'!AW15+AY15)))))))) ->  | AX15: =IF(AV15="","",IF(AW15="","",(DataInput!$B$4+(DataInput!$D$4-DataInput!$B$4)*RAND()))) ->  | AY15: =DataInput!$B$16*RAND() -> 12.89087784 | AZ15: =DataInput!$B$15*RAND() -> 19.42171693 | BA15: =(IF('Xi,Yi'!BA15="","",(IF((('Xi,Yi'!BA15+BE15+BD15/SQRT(3))<DataInput!$B$18),"",(IF((('Xi,Yi'!BA15+BE15+BD15/SQRT(3))>DataInput!$B$19),"",(IF('Xi,Yi'!BB15="","",(IF(('Xi,Yi'!BB15+BD15<DataInput!$B$20),"",(IF((('Xi,Yi'!BB15+BD15)>DataInput!$B$21),"",('Xi,Yi'!BA15+BE15+BD15/SQRT(3)))))))))))))) ->  | BB15: =IF(BA15="","",(IF('Xi,Yi'!BB15="","",(IF(('Xi,Yi'!BB15+BD15<DataInput!$B$20),"",(IF((('Xi,Yi'!BB15+BD15)>DataInput!$B$21),"",('Xi,Yi'!BB15+BD15)))))))) ->  | BC15: =IF(BA15="","",IF(BB15="","",(DataInput!$B$4+(DataInput!$D$4-DataInput!$B$4)*RAND()))) ->  | BD15: =DataInput!$B$16*RAND() -> 7.498349868 | BE15: =DataInput!$B$15*RAND() -> 4.662241143
C16: =(IF('Xi,Yi'!C16="","",(IF((('Xi,Yi'!C16+G16+F16/SQRT(3))<DataInput!$B$18),"",(IF((('Xi,Yi'!C16+G16+F16/SQRT(3))>DataInput!$B$19),"",(IF('Xi,Yi'!D16="","",(IF(('Xi,Yi'!D16+F16<DataInput!$B$20),"",(IF((('Xi,Yi'!D16+F16)>DataInput!$B$21),"",('Xi,Yi'!C16+G16+F16/SQRT(3)))))))))))))) -> 39.87750241 | D16: =IF(C16="","",(IF('Xi,Yi'!D16="","",(IF(('Xi,Yi'!D16+F16<DataInput!$B$20),"",(IF((('Xi,Yi'!D16+F16)>DataInput!$B$21),"",('Xi,Yi'!D16+F16)))))))) -> 6.036031693 | E16: =IF(C16="","",IF(D16="","",(DataInput!$B$4+(DataInput!$D$4-DataInput!$B$4)*RAND()))) -> 8.015339489 | F16: =DataInput!$B$16*RAND() -> 1.936031693 | G16: =DataInput!$B$15*RAND() -> 3.959733989 | H16: =(IF('Xi,Yi'!H16="","",(IF((('Xi,Yi'!H16+L16+K16/SQRT(3))<DataInput!$B$18),"",(IF((('Xi,Yi'!H16+L16+K16/SQRT(3))>DataInput!$B$19),"",(IF('Xi,Yi'!I16="","",(IF(('Xi,Yi'!I16+K16<DataInput!$B$20),"",(IF((('Xi,Yi'!I16+K16)>DataInput!$B$21),"",('Xi,Yi'!H16+L16+K16/SQRT(3)))))))))))))) -> 68.95016025 | I16: =IF(H16="","",(IF('Xi,Yi'!I16="","",(IF(('Xi,Yi'!I16+K16<DataInput!$B$20),"",(IF((('Xi,Yi'!I16+K16)>DataInput!$B$21),"",('Xi,Yi'!I16+K16)))))))) -> 37.50333002 | J16: =IF(H16="","",IF(I16="","",(DataInput!$B$4+(DataInput!$D$4-DataInput!$B$4)*RAND()))) -> 9.525364021 | K16: =DataInput!$B$16*RAND() -> 16.40333002 | L16: =DataInput!$B$15*RAND() -> 14.87969324 | M16: =(IF('Xi,Yi'!M16="","",(IF((('Xi,Yi'!M16+Q16+P16/SQRT(3))<DataInput!$B$18),"",(IF((('Xi,Yi'!M16+Q16+P16/SQRT(3))>DataInput!$B$19),"",(IF('Xi,Yi'!N16="","",(IF(('Xi,Yi'!N16+P16<DataInput!$B$20),"",(IF((('Xi,Yi'!N16+P16)>DataInput!$B$21),"",('Xi,Yi'!M16+Q16+P16/SQRT(3)))))))))))))) ->  | N16: =IF(M16="","",(IF('Xi,Yi'!N16="","",(IF(('Xi,Yi'!N16+P16<DataInput!$B$20),"",(IF((('Xi,Yi'!N16+P16)>DataInput!$B$21),"",('Xi,Yi'!N16+P16)))))))) ->  | O16: =IF(M16="","",IF(N16="","",(DataInput!$B$4+(DataInput!$D$4-DataInput!$B$4)*RAND()))) ->  | P16: =DataInput!$B$16*RAND() -> 15.32862484 | Q16: =DataInput!$B$15*RAND() -> 17.91605211 | R16: =(IF('Xi,Yi'!R16="","",(IF((('Xi,Yi'!R16+V16+U16/SQRT(3))<DataInput!$B$18),"",(IF((('Xi,Yi'!R16+V16+U16/SQRT(3))>DataInput!$B$19),"",(IF('Xi,Yi'!S16="","",(IF(('Xi,Yi'!S16+U16<DataInput!$B$20),"",(IF((('Xi,Yi'!S16+U16)>DataInput!$B$21),"",('Xi,Yi'!R16+V16+U16/SQRT(3)))))))))))))) ->  | S16: =IF(R16="","",(IF('Xi,Yi'!S16="","",(IF(('Xi,Yi'!S16+U16<DataInput!$B$20),"",(IF((('Xi,Yi'!S16+U16)>DataInput!$B$21),"",('Xi,Yi'!S16+U16)))))))) ->  | T16: =IF(R16="","",IF(S16="","",(DataInput!$B$4+(DataInput!$D$4-DataInput!$B$4)*RAND()))) ->  | U16: =DataInput!$B$16*RAND() -> 12.73461675 | V16: =DataInput!$B$15*RAND() -> 12.67958922 | W16: =(IF('Xi,Yi'!W16="","",(IF((('Xi,Yi'!W16+AA16+Z16/SQRT(3))<DataInput!$B$18),"",(IF((('Xi,Yi'!W16+AA16+Z16/SQRT(3))>DataInput!$B$19),"",(IF('Xi,Yi'!X16="","",(IF(('Xi,Yi'!X16+Z16<DataInput!$B$20),"",(IF((('Xi,Yi'!X16+Z16)>DataInput!$B$21),"",('Xi,Yi'!W16+AA16+Z16/SQRT(3)))))))))))))) ->  | X16: =IF(W16="","",(IF('Xi,Yi'!X16="","",(IF(('Xi,Yi'!X16+Z16<DataInput!$B$20),"",(IF((('Xi,Yi'!X16+Z16)>DataInput!$B$21),"",('Xi,Yi'!X16+Z16)))))))) ->  | Y16: =IF(W16="","",IF(X16="","",(DataInput!$B$4+(DataInput!$D$4-DataInput!$B$4)*RAND()))) ->  | Z16: =DataInput!$B$16*RAND() -> 5.838172883 | AA16: =DataInput!$B$15*RAND() -> 1.035652283 | AB16: =(IF('Xi,Yi'!AB16="","",(IF((('Xi,Yi'!AB16+AF16+AE16/SQRT(3))<DataInput!$B$18),"",(IF((('Xi,Yi'!AB16+AF16+AE16/SQRT(3))>DataInput!$B$19),"",(IF('Xi,Yi'!AC16="","",(IF(('Xi,Yi'!AC16+AE16<DataInput!$B$20),"",(IF((('Xi,Yi'!AC16+AE16)>DataInput!$B$21),"",('Xi,Yi'!AB16+AF16+AE16/SQRT(3)))))))))))))) ->  | AC16: =IF(AB16="","",(IF('Xi,Yi'!AC16="","",(IF(('Xi,Yi'!AC16+AE16<DataInput!$B$20),"",(IF((('Xi,Yi'!AC16+AE16)>DataInput!$B$21),"",('Xi,Yi'!AC16+AE16)))))))) ->  | AD16: =IF(AB16="","",IF(AC16="","",(DataInput!$B$4+(DataInput!$D$4-DataInput!$B$4)*RAND()))) ->  | AE16: =DataInput!$B$16*RAND() -> 16.78761865 | AF16: =DataInput!$B$15*RAND() -> 16.96380983 | AG16: =(IF('Xi,Yi'!AG16="","",(IF((('Xi,Yi'!AG16+AK16+AJ16/SQRT(3))<DataInput!$B$18),"",(IF((('Xi,Yi'!AG16+AK16+AJ16/SQRT(3))>DataInput!$B$19),"",(IF('Xi,Yi'!AH16="","",(IF(('Xi,Yi'!AH16+AJ16<DataInput!$B$20),"",(IF((('Xi,Yi'!AH16+AJ16)>DataInput!$B$21),"",('Xi,Yi'!AG16+AK16+AJ16/SQRT(3)))))))))))))) ->  | AH16: =IF(AG16="","",(IF('Xi,Yi'!AH16="","",(IF(('Xi,Yi'!AH16+AJ16<DataInput!$B$20),"",(IF((('Xi,Yi'!AH16+AJ16)>DataInput!$B$21),"",('Xi,Yi'!AH16+AJ16)))))))) ->  | AI16: =IF(AG16="","",IF(AH16="","",(DataInput!$B$4+(DataInput!$D$4-DataInput!$B$4)*RAND()))) ->  | AJ16: =DataInput!$B$16*RAND() -> 13.68221012 | AK16: =DataInput!$B$15*RAND() -> 14.1630184 | AL16: =(IF('Xi,Yi'!AL16="","",(IF((('Xi,Yi'!AL16+AP16+AO16/SQRT(3))<DataInput!$B$18),"",(IF((('Xi,Yi'!AL16+AP16+AO16/SQRT(3))>DataInput!$B$19),"",(IF('Xi,Yi'!AM16="","",(IF(('Xi,Yi'!AM16+AO16<DataInput!$B$20),"",(IF((('Xi,Yi'!AM16+AO16)>DataInput!$B$21),"",('Xi,Yi'!AL16+AP16+AO16/SQRT(3)))))))))))))) ->  | AM16: =IF(AL16="","",(IF('Xi,Yi'!AM16="","",(IF(('Xi,Yi'!AM16+AO16<DataInput!$B$20),"",(IF((('Xi,Yi'!AM16+AO16)>DataInput!$B$21),"",('Xi,Yi'!AM16+AO16)))))))) ->  | AN16: =IF(AL16="","",IF(AM16="","",(DataInput!$B$4+(DataInput!$D$4-DataInput!$B$4)*RAND()))) ->  | AO16: =DataInput!$B$16*RAND() -> 6.907355224 | AP16: =DataInput!$B$15*RAND() -> 6.615839462 | AQ16: =(IF('Xi,Yi'!AQ16="","",(IF((('Xi,Yi'!AQ16+AU16+AT16/SQRT(3))<DataInput!$B$18),"",(IF((('Xi,Yi'!AQ16+AU16+AT16/SQRT(3))>DataInput!$B$19),"",(IF('Xi,Yi'!AR16="","",(IF(('Xi,Yi'!AR16+AT16<DataInput!$B$20),"",(IF((('Xi,Yi'!AR16+AT16)>DataInput!$B$21),"",('Xi,Yi'!AQ16+AU16+AT16/SQRT(3)))))))))))))) ->  | AR16: =IF(AQ16="","",(IF('Xi,Yi'!AR16="","",(IF(('Xi,Yi'!AR16+AT16<DataInput!$B$20),"",(IF((('Xi,Yi'!AR16+AT16)>DataInput!$B$21),"",('Xi,Yi'!AR16+AT16)))))))) ->  | AS16: =IF(AQ16="","",IF(AR16="","",(DataInput!$B$4+(DataInput!$D$4-DataInput!$B$4)*RAND()))) ->  | AT16: =DataInput!$B$16*RAND() -> 6.442242591 | AU16: =DataInput!$B$15*RAND() -> 18.1864502 | AV16: =(IF('Xi,Yi'!AV16="","",(IF((('Xi,Yi'!AV16+AZ16+AY16/SQRT(3))<DataInput!$B$18),"",(IF((('Xi,Yi'!AV16+AZ16+AY16/SQRT(3))>DataInput!$B$19),"",(IF('Xi,Yi'!AW16="","",(IF(('Xi,Yi'!AW16+AY16<DataInput!$B$20),"",(IF((('Xi,Yi'!AW16+AY16)>DataInput!$B$21),"",('Xi,Yi'!AV16+AZ16+AY16/SQRT(3)))))))))))))) ->  | AW16: =IF(AV16="","",(IF('Xi,Yi'!AW16="","",(IF(('Xi,Yi'!AW16+AY16<DataInput!$B$20),"",(IF((('Xi,Yi'!AW16+AY16)>DataInput!$B$21),"",('Xi,Yi'!AW16+AY16)))))))) ->  | AX16: =IF(AV16="","",IF(AW16="","",(DataInput!$B$4+(DataInput!$D$4-DataInput!$B$4)*RAND()))) ->  | AY16: =DataInput!$B$16*RAND() -> 9.035892953 | AZ16: =DataInput!$B$15*RAND() -> 11.87804348 | BA16: =(IF('Xi,Yi'!BA16="","",(IF((('Xi,Yi'!BA16+BE16+BD16/SQRT(3))<DataInput!$B$18),"",(IF((('Xi,Yi'!BA16+BE16+BD16/SQRT(3))>DataInput!$B$19),"",(IF('Xi,Yi'!BB16="","",(IF(('Xi,Yi'!BB16+BD16<DataInput!$B$20),"",(IF((('Xi,Yi'!BB16+BD16)>DataInput!$B$21),"",('Xi,Yi'!BA16+BE16+BD16/SQRT(3)))))))))))))) ->  | BB16: =IF(BA16="","",(IF('Xi,Yi'!BB16="","",(IF(('Xi,Yi'!BB16+BD16<DataInput!$B$20),"",(IF((('Xi,Yi'!BB16+BD16)>DataInput!$B$21),"",('Xi,Yi'!BB16+BD16)))))))) ->  | BC16: =IF(BA16="","",IF(BB16="","",(DataInput!$B$4+(DataInput!$D$4-DataInput!$B$4)*RAND()))) ->  | BD16: =DataInput!$B$16*RAND() -> 14.06076234 | BE16: =DataInput!$B$15*RAND() -> 5.62453627
C17: =(IF('Xi,Yi'!C17="","",(IF((('Xi,Yi'!C17+G17+F17/SQRT(3))<DataInput!$B$18),"",(IF((('Xi,Yi'!C17+G17+F17/SQRT(3))>DataInput!$B$19),"",(IF('Xi,Yi'!D17="","",(IF(('Xi,Yi'!D17+F17<DataInput!$B$20),"",(IF((('Xi,Yi'!D17+F17)>DataInput!$B$21),"",('Xi,Yi'!C17+G17+F17/SQRT(3)))))))))))))) -> 67.07501106 | D17: =IF(C17="","",(IF('Xi,Yi'!D17="","",(IF(('Xi,Yi'!D17+F17<DataInput!$B$20),"",(IF((('Xi,Yi'!D17+F17)>DataInput!$B$21),"",('Xi,Yi'!D17+F17)))))))) -> 19.33680457 | E17: =IF(C17="","",IF(D17="","",(DataInput!$B$4+(DataInput!$D$4-DataInput!$B$4)*RAND()))) -> 5.131614093 | F17: =DataInput!$B$16*RAND() -> 15.23680457 | G17: =DataInput!$B$15*RAND() -> 3.878037844 | H17: =(IF('Xi,Yi'!H17="","",(IF((('Xi,Yi'!H17+L17+K17/SQRT(3))<DataInput!$B$18),"",(IF((('Xi,Yi'!H17+L17+K17/SQRT(3))>DataInput!$B$19),"",(IF('Xi,Yi'!I17="","",(IF(('Xi,Yi'!I17+K17<DataInput!$B$20),"",(IF((('Xi,Yi'!I17+K17)>DataInput!$B$21),"",('Xi,Yi'!H17+L17+K17/SQRT(3)))))))))))))) -> 79.73507765 | I17: =IF(H17="","",(IF('Xi,Yi'!I17="","",(IF(('Xi,Yi'!I17+K17<DataInput!$B$20),"",(IF((('Xi,Yi'!I17+K17)>DataInput!$B$21),"",('Xi,Yi'!I17+K17)))))))) -> 29.92024803 | J17: =IF(H17="","",IF(I17="","",(DataInput!$B$4+(DataInput!$D$4-DataInput!$B$4)*RAND()))) -> 3.569793927 | K17: =DataInput!$B$16*RAND() -> 8.820248034 | L17: =DataInput!$B$15*RAND() -> 10.44270507 | M17: =(IF('Xi,Yi'!M17="","",(IF((('Xi,Yi'!M17+Q17+P17/SQRT(3))<DataInput!$B$18),"",(IF((('Xi,Yi'!M17+Q17+P17/SQRT(3))>DataInput!$B$19),"",(IF('Xi,Yi'!N17="","",(IF(('Xi,Yi'!N17+P17<DataInput!$B$20),"",(IF((('Xi,Yi'!N17+P17)>DataInput!$B$21),"",('Xi,Yi'!M17+Q17+P17/SQRT(3)))))))))))))) -> 59.52412952 | N17: =IF(M17="","",(IF('Xi,Yi'!N17="","",(IF(('Xi,Yi'!N17+P17<DataInput!$B$20),"",(IF((('Xi,Yi'!N17+P17)>DataInput!$B$21),"",('Xi,Yi'!N17+P17)))))))) -> 43.66671721 | O17: =IF(M17="","",IF(N17="","",(DataInput!$B$4+(DataInput!$D$4-DataInput!$B$4)*RAND()))) -> 2.649330236 | P17: =DataInput!$B$16*RAND() -> 5.566717208 | Q17: =DataInput!$B$15*RAND() -> 1.910183845 | R17: =(IF('Xi,Yi'!R17="","",(IF((('Xi,Yi'!R17+V17+U17/SQRT(3))<DataInput!$B$18),"",(IF((('Xi,Yi'!R17+V17+U17/SQRT(3))>DataInput!$B$19),"",(IF('Xi,Yi'!S17="","",(IF(('Xi,Yi'!S17+U17<DataInput!$B$20),"",(IF((('Xi,Yi'!S17+U17)>DataInput!$B$21),"",('Xi,Yi'!R17+V17+U17/SQRT(3)))))))))))))) ->  | S17: =IF(R17="","",(IF('Xi,Yi'!S17="","",(IF(('Xi,Yi'!S17+U17<DataInput!$B$20),"",(IF((('Xi,Yi'!S17+U17)>DataInput!$B$21),"",('Xi,Yi'!S17+U17)))))))) ->  | T17: =IF(R17="","",IF(S17="","",(DataInput!$B$4+(DataInput!$D$4-DataInput!$B$4)*RAND()))) ->  | U17: =DataInput!$B$16*RAND() -> 10.48404909 | V17: =DataInput!$B$15*RAND() -> 0.1676485405 | W17: =(IF('Xi,Yi'!W17="","",(IF((('Xi,Yi'!W17+AA17+Z17/SQRT(3))<DataInput!$B$18),"",(IF((('Xi,Yi'!W17+AA17+Z17/SQRT(3))>DataInput!$B$19),"",(IF('Xi,Yi'!X17="","",(IF(('Xi,Yi'!X17+Z17<DataInput!$B$20),"",(IF((('Xi,Yi'!X17+Z17)>DataInput!$B$21),"",('Xi,Yi'!W17+AA17+Z17/SQRT(3)))))))))))))) ->  | X17: =IF(W17="","",(IF('Xi,Yi'!X17="","",(IF(('Xi,Yi'!X17+Z17<DataInput!$B$20),"",(IF((('Xi,Yi'!X17+Z17)>DataInput!$B$21),"",('Xi,Yi'!X17+Z17)))))))) ->  | Y17: =IF(W17="","",IF(X17="","",(DataInput!$B$4+(DataInput!$D$4-DataInput!$B$4)*RAND()))) ->  | Z17: =DataInput!$B$16*RAND() -> 5.402884358 | AA17: =DataInput!$B$15*RAND() -> 9.927631939 | AB17: =(IF('Xi,Yi'!AB17="","",(IF((('Xi,Yi'!AB17+AF17+AE17/SQRT(3))<DataInput!$B$18),"",(IF((('Xi,Yi'!AB17+AF17+AE17/SQRT(3))>DataInput!$B$19),"",(IF('Xi,Yi'!AC17="","",(IF(('Xi,Yi'!AC17+AE17<DataInput!$B$20),"",(IF((('Xi,Yi'!AC17+AE17)>DataInput!$B$21),"",('Xi,Yi'!AB17+AF17+AE17/SQRT(3)))))))))))))) ->  | AC17: =IF(AB17="","",(IF('Xi,Yi'!AC17="","",(IF(('Xi,Yi'!AC17+AE17<DataInput!$B$20),"",(IF((('Xi,Yi'!AC17+AE17)>DataInput!$B$21),"",('Xi,Yi'!AC17+AE17)))))))) ->  | AD17: =IF(AB17="","",IF(AC17="","",(DataInput!$B$4+(DataInput!$D$4-DataInput!$B$4)*RAND()))) ->  | AE17: =DataInput!$B$16*RAND() -> 5.085910173 | AF17: =DataInput!$B$15*RAND() -> 1.432103085 | AG17: =(IF('Xi,Yi'!AG17="","",(IF((('Xi,Yi'!AG17+AK17+AJ17/SQRT(3))<DataInput!$B$18),"",(IF((('Xi,Yi'!AG17+AK17+AJ17/SQRT(3))>DataInput!$B$19),"",(IF('Xi,Yi'!AH17="","",(IF(('Xi,Yi'!AH17+AJ17<DataInput!$B$20),"",(IF((('Xi,Yi'!AH17+AJ17)>DataInput!$B$21),"",('Xi,Yi'!AG17+AK17+AJ17/SQRT(3)))))))))))))) ->  | AH17: =IF(AG17="","",(IF('Xi,Yi'!AH17="","",(IF(('Xi,Yi'!AH17+AJ17<DataInput!$B$20),"",(IF((('Xi,Yi'!AH17+AJ17)>DataInput!$B$21),"",('Xi,Yi'!AH17+AJ17)))))))) ->  | AI17: =IF(AG17="","",IF(AH17="","",(DataInput!$B$4+(DataInput!$D$4-DataInput!$B$4)*RAND()))) ->  | AJ17: =DataInput!$B$16*RAND() -> 15.88099215 | AK17: =DataInput!$B$15*RAND() -> 10.27753354 | AL17: =(IF('Xi,Yi'!AL17="","",(IF((('Xi,Yi'!AL17+AP17+AO17/SQRT(3))<DataInput!$B$18),"",(IF((('Xi,Yi'!AL17+AP17+AO17/SQRT(3))>DataInput!$B$19),"",(IF('Xi,Yi'!AM17="","",(IF(('Xi,Yi'!AM17+AO17<DataInput!$B$20),"",(IF((('Xi,Yi'!AM17+AO17)>DataInput!$B$21),"",('Xi,Yi'!AL17+AP17+AO17/SQRT(3)))))))))))))) ->  | AM17: =IF(AL17="","",(IF('Xi,Yi'!AM17="","",(IF(('Xi,Yi'!AM17+AO17<DataInput!$B$20),"",(IF((('Xi,Yi'!AM17+AO17)>DataInput!$B$21),"",('Xi,Yi'!AM17+AO17)))))))) ->  | AN17: =IF(AL17="","",IF(AM17="","",(DataInput!$B$4+(DataInput!$D$4-DataInput!$B$4)*RAND()))) ->  | AO17: =DataInput!$B$16*RAND() -> 14.37984516 | AP17: =DataInput!$B$15*RAND() -> 11.67626808 | AQ17: =(IF('Xi,Yi'!AQ17="","",(IF((('Xi,Yi'!AQ17+AU17+AT17/SQRT(3))<DataInput!$B$18),"",(IF((('Xi,Yi'!AQ17+AU17+AT17/SQRT(3))>DataInput!$B$19),"",(IF('Xi,Yi'!AR17="","",(IF(('Xi,Yi'!AR17+AT17<DataInput!$B$20),"",(IF((('Xi,Yi'!AR17+AT17)>DataInput!$B$21),"",('Xi,Yi'!AQ17+AU17+AT17/SQRT(3)))))))))))))) ->  | AR17: =IF(AQ17="","",(IF('Xi,Yi'!AR17="","",(IF(('Xi,Yi'!AR17+AT17<DataInput!$B$20),"",(IF((('Xi,Yi'!AR17+AT17)>DataInput!$B$21),"",('Xi,Yi'!AR17+AT17)))))))) ->  | AS17: =IF(AQ17="","",IF(AR17="","",(DataInput!$B$4+(DataInput!$D$4-DataInput!$B$4)*RAND()))) ->  | AT17: =DataInput!$B$16*RAND() -> 6.706999734 | AU17: =DataInput!$B$15*RAND() -> 8.740787098 | AV17: =(IF('Xi,Yi'!AV17="","",(IF((('Xi,Yi'!AV17+AZ17+AY17/SQRT(3))<DataInput!$B$18),"",(IF((('Xi,Yi'!AV17+AZ17+AY17/SQRT(3))>DataInput!$B$19),"",(IF('Xi,Yi'!AW17="","",(IF(('Xi,Yi'!AW17+AY17<DataInput!$B$20),"",(IF((('Xi,Yi'!AW17+AY17)>DataInput!$B$21),"",('Xi,Yi'!AV17+AZ17+AY17/SQRT(3)))))))))))))) ->  | AW17: =IF(AV17="","",(IF('Xi,Yi'!AW17="","",(IF(('Xi,Yi'!AW17+AY17<DataInput!$B$20),"",(IF((('Xi,Yi'!AW17+AY17)>DataInput!$B$21),"",('Xi,Yi'!AW17+AY17)))))))) ->  | AX17: =IF(AV17="","",IF(AW17="","",(DataInput!$B$4+(DataInput!$D$4-DataInput!$B$4)*RAND()))) ->  | AY17: =DataInput!$B$16*RAND() -> 0.6033549475 | AZ17: =DataInput!$B$15*RAND() -> 15.73006571 | BA17: =(IF('Xi,Yi'!BA17="","",(IF((('Xi,Yi'!BA17+BE17+BD17/SQRT(3))<DataInput!$B$18),"",(IF((('Xi,Yi'!BA17+BE17+BD17/SQRT(3))>DataInput!$B$19),"",(IF('Xi,Yi'!BB17="","",(IF(('Xi,Yi'!BB17+BD17<DataInput!$B$20),"",(IF((('Xi,Yi'!BB17+BD17)>DataInput!$B$21),"",('Xi,Yi'!BA17+BE17+BD17/SQRT(3)))))))))))))) ->  | BB17: =IF(BA17="","",(IF('Xi,Yi'!BB17="","",(IF(('Xi,Yi'!BB17+BD17<DataInput!$B$20),"",(IF((('Xi,Yi'!BB17+BD17)>DataInput!$B$21),"",('Xi,Yi'!BB17+BD17)))))))) ->  | BC17: =IF(BA17="","",IF(BB17="","",(DataInput!$B$4+(DataInput!$D$4-DataInput!$B$4)*RAND()))) ->  | BD17: =DataInput!$B$16*RAND() -> 1.619439636 | BE17: =DataInput!$B$15*RAND() -> 16.59698873
C18: =(IF('Xi,Yi'!C18="","",(IF((('Xi,Yi'!C18+G18+F18/SQRT(3))<DataInput!$B$18),"",(IF((('Xi,Yi'!C18+G18+F18/SQRT(3))>DataInput!$B$19),"",(IF('Xi,Yi'!D18="","",(IF(('Xi,Yi'!D18+F18<DataInput!$B$20),"",(IF((('Xi,Yi'!D18+F18)>DataInput!$B$21),"",('Xi,Yi'!C18+G18+F18/SQRT(3)))))))))))))) -> 78.90396398 | D18: =IF(C18="","",(IF('Xi,Yi'!D18="","",(IF(('Xi,Yi'!D18+F18<DataInput!$B$20),"",(IF((('Xi,Yi'!D18+F18)>DataInput!$B$21),"",('Xi,Yi'!D18+F18)))))))) -> 10.77850378 | E18: =IF(C18="","",IF(D18="","",(DataInput!$B$4+(DataInput!$D$4-DataInput!$B$4)*RAND()))) -> 8.503064116 | F18: =DataInput!$B$16*RAND() -> 6.678503777 | G18: =DataInput!$B$15*RAND() -> 1.048128029 | H18: =(IF('Xi,Yi'!H18="","",(IF((('Xi,Yi'!H18+L18+K18/SQRT(3))<DataInput!$B$18),"",(IF((('Xi,Yi'!H18+L18+K18/SQRT(3))>DataInput!$B$19),"",(IF('Xi,Yi'!I18="","",(IF(('Xi,Yi'!I18+K18<DataInput!$B$20),"",(IF((('Xi,Yi'!I18+K18)>DataInput!$B$21),"",('Xi,Yi'!H18+L18+K18/SQRT(3)))))))))))))) ->  | I18: =IF(H18="","",(IF('Xi,Yi'!I18="","",(IF(('Xi,Yi'!I18+K18<DataInput!$B$20),"",(IF((('Xi,Yi'!I18+K18)>DataInput!$B$21),"",('Xi,Yi'!I18+K18)))))))) ->  | J18: =IF(H18="","",IF(I18="","",(DataInput!$B$4+(DataInput!$D$4-DataInput!$B$4)*RAND()))) ->  | K18: =DataInput!$B$16*RAND() -> 2.114304459 | L18: =DataInput!$B$15*RAND() -> 17.4643628 | M18: =(IF('Xi,Yi'!M18="","",(IF((('Xi,Yi'!M18+Q18+P18/SQRT(3))<DataInput!$B$18),"",(IF((('Xi,Yi'!M18+Q18+P18/SQRT(3))>DataInput!$B$19),"",(IF('Xi,Yi'!N18="","",(IF(('Xi,Yi'!N18+P18<DataInput!$B$20),"",(IF((('Xi,Yi'!N18+P18)>DataInput!$B$21),"",('Xi,Yi'!M18+Q18+P18/SQRT(3)))))))))))))) -> 89.77483651 | N18: =IF(M18="","",(IF('Xi,Yi'!N18="","",(IF(('Xi,Yi'!N18+P18<DataInput!$B$20),"",(IF((('Xi,Yi'!N18+P18)>DataInput!$B$21),"",('Xi,Yi'!N18+P18)))))))) -> 45.86892702 | O18: =IF(M18="","",IF(N18="","",(DataInput!$B$4+(DataInput!$D$4-DataInput!$B$4)*RAND()))) -> 8.058409543 | P18: =DataInput!$B$16*RAND() -> 7.768927019 | Q18: =DataInput!$B$15*RAND() -> 11.2894444 | R18: =(IF('Xi,Yi'!R18="","",(IF((('Xi,Yi'!R18+V18+U18/SQRT(3))<DataInput!$B$18),"",(IF((('Xi,Yi'!R18+V18+U18/SQRT(3))>DataInput!$B$19),"",(IF('Xi,Yi'!S18="","",(IF(('Xi,Yi'!S18+U18<DataInput!$B$20),"",(IF((('Xi,Yi'!S18+U18)>DataInput!$B$21),"",('Xi,Yi'!R18+V18+U18/SQRT(3)))))))))))))) ->  | S18: =IF(R18="","",(IF('Xi,Yi'!S18="","",(IF(('Xi,Yi'!S18+U18<DataInput!$B$20),"",(IF((('Xi,Yi'!S18+U18)>DataInput!$B$21),"",('Xi,Yi'!S18+U18)))))))) ->  | T18: =IF(R18="","",IF(S18="","",(DataInput!$B$4+(DataInput!$D$4-DataInput!$B$4)*RAND()))) ->  | U18: =DataInput!$B$16*RAND() -> 3.098102606 | V18: =DataInput!$B$15*RAND() -> 19.14978718 | W18: =(IF('Xi,Yi'!W18="","",(IF((('Xi,Yi'!W18+AA18+Z18/SQRT(3))<DataInput!$B$18),"",(IF((('Xi,Yi'!W18+AA18+Z18/SQRT(3))>DataInput!$B$19),"",(IF('Xi,Yi'!X18="","",(IF(('Xi,Yi'!X18+Z18<DataInput!$B$20),"",(IF((('Xi,Yi'!X18+Z18)>DataInput!$B$21),"",('Xi,Yi'!W18+AA18+Z18/SQRT(3)))))))))))))) ->  | X18: =IF(W18="","",(IF('Xi,Yi'!X18="","",(IF(('Xi,Yi'!X18+Z18<DataInput!$B$20),"",(IF((('Xi,Yi'!X18+Z18)>DataInput!$B$21),"",('Xi,Yi'!X18+Z18)))))))) ->  | Y18: =IF(W18="","",IF(X18="","",(DataInput!$B$4+(DataInput!$D$4-DataInput!$B$4)*RAND()))) ->  | Z18: =DataInput!$B$16*RAND() -> 1.744952411 | AA18: =DataInput!$B$15*RAND() -> 17.82173895 | AB18: =(IF('Xi,Yi'!AB18="","",(IF((('Xi,Yi'!AB18+AF18+AE18/SQRT(3))<DataInput!$B$18),"",(IF((('Xi,Yi'!AB18+AF18+AE18/SQRT(3))>DataInput!$B$19),"",(IF('Xi,Yi'!AC18="","",(IF(('Xi,Yi'!AC18+AE18<DataInput!$B$20),"",(IF((('Xi,Yi'!AC18+AE18)>DataInput!$B$21),"",('Xi,Yi'!AB18+AF18+AE18/SQRT(3)))))))))))))) ->  | AC18: =IF(AB18="","",(IF('Xi,Yi'!AC18="","",(IF(('Xi,Yi'!AC18+AE18<DataInput!$B$20),"",(IF((('Xi,Yi'!AC18+AE18)>DataInput!$B$21),"",('Xi,Yi'!AC18+AE18)))))))) ->  | AD18: =IF(AB18="","",IF(AC18="","",(DataInput!$B$4+(DataInput!$D$4-DataInput!$B$4)*RAND()))) ->  | AE18: =DataInput!$B$16*RAND() -> 5.396468953 | AF18: =DataInput!$B$15*RAND() -> 7.834204971 | AG18: =(IF('Xi,Yi'!AG18="","",(IF((('Xi,Yi'!AG18+AK18+AJ18/SQRT(3))<DataInput!$B$18),"",(IF((('Xi,Yi'!AG18+AK18+AJ18/SQRT(3))>DataInput!$B$19),"",(IF('Xi,Yi'!AH18="","",(IF(('Xi,Yi'!AH18+AJ18<DataInput!$B$20),"",(IF((('Xi,Yi'!AH18+AJ18)>DataInput!$B$21),"",('Xi,Yi'!AG18+AK18+AJ18/SQRT(3)))))))))))))) ->  | AH18: =IF(AG18="","",(IF('Xi,Yi'!AH18="","",(IF(('Xi,Yi'!AH18+AJ18<DataInput!$B$20),"",(IF((('Xi,Yi'!AH18+AJ18)>DataInput!$B$21),"",('Xi,Yi'!AH18+AJ18)))))))) ->  | AI18: =IF(AG18="","",IF(AH18="","",(DataInput!$B$4+(DataInput!$D$4-DataInput!$B$4)*RAND()))) ->  | AJ18: =DataInput!$B$16*RAND() -> 15.30452535 | AK18: =DataInput!$B$15*RAND() -> 18.79210264 | AL18: =(IF('Xi,Yi'!AL18="","",(IF((('Xi,Yi'!AL18+AP18+AO18/SQRT(3))<DataInput!$B$18),"",(IF((('Xi,Yi'!AL18+AP18+AO18/SQRT(3))>DataInput!$B$19),"",(IF('Xi,Yi'!AM18="","",(IF(('Xi,Yi'!AM18+AO18<DataInput!$B$20),"",(IF((('Xi,Yi'!AM18+AO18)>DataInput!$B$21),"",('Xi,Yi'!AL18+AP18+AO18/SQRT(3)))))))))))))) ->  | AM18: =IF(AL18="","",(IF('Xi,Yi'!AM18="","",(IF(('Xi,Yi'!AM18+AO18<DataInput!$B$20),"",(IF((('Xi,Yi'!AM18+AO18)>DataInput!$B$21),"",('Xi,Yi'!AM18+AO18)))))))) ->  | AN18: =IF(AL18="","",IF(AM18="","",(DataInput!$B$4+(DataInput!$D$4-DataInput!$B$4)*RAND()))) ->  | AO18: =DataInput!$B$16*RAND() -> 11.82635263 | AP18: =DataInput!$B$15*RAND() -> 0.5816034256 | AQ18: =(IF('Xi,Yi'!AQ18="","",(IF((('Xi,Yi'!AQ18+AU18+AT18/SQRT(3))<DataInput!$B$18),"",(IF((('Xi,Yi'!AQ18+AU18+AT18/SQRT(3))>DataInput!$B$19),"",(IF('Xi,Yi'!AR18="","",(IF(('Xi,Yi'!AR18+AT18<DataInput!$B$20),"",(IF((('Xi,Yi'!AR18+AT18)>DataInput!$B$21),"",('Xi,Yi'!AQ18+AU18+AT18/SQRT(3)))))))))))))) ->  | AR18: =IF(AQ18="","",(IF('Xi,Yi'!AR18="","",(IF(('Xi,Yi'!AR18+AT18<DataInput!$B$20),"",(IF((('Xi,Yi'!AR18+AT18)>DataInput!$B$21),"",('Xi,Yi'!AR18+AT18)))))))) ->  | AS18: =IF(AQ18="","",IF(AR18="","",(DataInput!$B$4+(DataInput!$D$4-DataInput!$B$4)*RAND()))) ->  | AT18: =DataInput!$B$16*RAND() -> 11.51944499 | AU18: =DataInput!$B$15*RAND() -> 5.276789145 | AV18: =(IF('Xi,Yi'!AV18="","",(IF((('Xi,Yi'!AV18+AZ18+AY18/SQRT(3))<DataInput!$B$18),"",(IF((('Xi,Yi'!AV18+AZ18+AY18/SQRT(3))>DataInput!$B$19),"",(IF('Xi,Yi'!AW18="","",(IF(('Xi,Yi'!AW18+AY18<DataInput!$B$20),"",(IF((('Xi,Yi'!AW18+AY18)>DataInput!$B$21),"",('Xi,Yi'!AV18+AZ18+AY18/SQRT(3)))))))))))))) ->  | AW18: =IF(AV18="","",(IF('Xi,Yi'!AW18="","",(IF(('Xi,Yi'!AW18+AY18<DataInput!$B$20),"",(IF((('Xi,Yi'!AW18+AY18)>DataInput!$B$21),"",('Xi,Yi'!AW18+AY18)))))))) ->  | AX18: =IF(AV18="","",IF(AW18="","",(DataInput!$B$4+(DataInput!$D$4-DataInput!$B$4)*RAND()))) ->  | AY18: =DataInput!$B$16*RAND() -> 13.70024477 | AZ18: =DataInput!$B$15*RAND() -> 9.25719069 | BA18: =(IF('Xi,Yi'!BA18="","",(IF((('Xi,Yi'!BA18+BE18+BD18/SQRT(3))<DataInput!$B$18),"",(IF((('Xi,Yi'!BA18+BE18+BD18/SQRT(3))>DataInput!$B$19),"",(IF('Xi,Yi'!BB18="","",(IF(('Xi,Yi'!BB18+BD18<DataInput!$B$20),"",(IF((('Xi,Yi'!BB18+BD18)>DataInput!$B$21),"",('Xi,Yi'!BA18+BE18+BD18/SQRT(3)))))))))))))) ->  | BB18: =IF(BA18="","",(IF('Xi,Yi'!BB18="","",(IF(('Xi,Yi'!BB18+BD18<DataInput!$B$20),"",(IF((('Xi,Yi'!BB18+BD18)>DataInput!$B$21),"",('Xi,Yi'!BB18+BD18)))))))) ->  | BC18: =IF(BA18="","",IF(BB18="","",(DataInput!$B$4+(DataInput!$D$4-DataInput!$B$4)*RAND()))) ->  | BD18: =DataInput!$B$16*RAND() -> 4.941528793 | BE18: =DataInput!$B$15*RAND() -> 15.66676394
C19: =(IF('Xi,Yi'!C19="","",(IF((('Xi,Yi'!C19+G19+F19/SQRT(3))<DataInput!$B$18),"",(IF((('Xi,Yi'!C19+G19+F19/SQRT(3))>DataInput!$B$19),"",(IF('Xi,Yi'!D19="","",(IF(('Xi,Yi'!D19+F19<DataInput!$B$20),"",(IF((('Xi,Yi'!D19+F19)>DataInput!$B$21),"",('Xi,Yi'!C19+G19+F19/SQRT(3)))))))))))))) ->  | D19: =IF(C19="","",(IF('Xi,Yi'!D19="","",(IF(('Xi,Yi'!D19+F19<DataInput!$B$20),"",(IF((('Xi,Yi'!D19+F19)>DataInput!$B$21),"",('Xi,Yi'!D19+F19)))))))) ->  | E19: =IF(C19="","",IF(D19="","",(DataInput!$B$4+(DataInput!$D$4-DataInput!$B$4)*RAND()))) ->  | F19: =DataInput!$B$16*RAND() -> 4.146567139 | G19: =DataInput!$B$15*RAND() -> 19.59292216 | H19: =(IF('Xi,Yi'!H19="","",(IF((('Xi,Yi'!H19+L19+K19/SQRT(3))<DataInput!$B$18),"",(IF((('Xi,Yi'!H19+L19+K19/SQRT(3))>DataInput!$B$19),"",(IF('Xi,Yi'!I19="","",(IF(('Xi,Yi'!I19+K19<DataInput!$B$20),"",(IF((('Xi,Yi'!I19+K19)>DataInput!$B$21),"",('Xi,Yi'!H19+L19+K19/SQRT(3)))))))))))))) ->  | I19: =IF(H19="","",(IF('Xi,Yi'!I19="","",(IF(('Xi,Yi'!I19+K19<DataInput!$B$20),"",(IF((('Xi,Yi'!I19+K19)>DataInput!$B$21),"",('Xi,Yi'!I19+K19)))))))) ->  | J19: =IF(H19="","",IF(I19="","",(DataInput!$B$4+(DataInput!$D$4-DataInput!$B$4)*RAND()))) ->  | K19: =DataInput!$B$16*RAND() -> 16.67003723 | L19: =DataInput!$B$15*RAND() -> 5.985855221 | M19: =(IF('Xi,Yi'!M19="","",(IF((('Xi,Yi'!M19+Q19+P19/SQRT(3))<DataInput!$B$18),"",(IF((('Xi,Yi'!M19+Q19+P19/SQRT(3))>DataInput!$B$19),"",(IF('Xi,Yi'!N19="","",(IF(('Xi,Yi'!N19+P19<DataInput!$B$20),"",(IF((('Xi,Yi'!N19+P19)>DataInput!$B$21),"",('Xi,Yi'!M19+Q19+P19/SQRT(3)))))))))))))) ->  | N19: =IF(M19="","",(IF('Xi,Yi'!N19="","",(IF(('Xi,Yi'!N19+P19<DataInput!$B$20),"",(IF((('Xi,Yi'!N19+P19)>DataInput!$B$21),"",('Xi,Yi'!N19+P19)))))))) ->  | O19: =IF(M19="","",IF(N19="","",(DataInput!$B$4+(DataInput!$D$4-DataInput!$B$4)*RAND()))) ->  | P19: =DataInput!$B$16*RAND() -> 11.74094315 | Q19: =DataInput!$B$15*RAND() -> 0.2023130974 | R19: =(IF('Xi,Yi'!R19="","",(IF((('Xi,Yi'!R19+V19+U19/SQRT(3))<DataInput!$B$18),"",(IF((('Xi,Yi'!R19+V19+U19/SQRT(3))>DataInput!$B$19),"",(IF('Xi,Yi'!S19="","",(IF(('Xi,Yi'!S19+U19<DataInput!$B$20),"",(IF((('Xi,Yi'!S19+U19)>DataInput!$B$21),"",('Xi,Yi'!R19+V19+U19/SQRT(3)))))))))))))) ->  | S19: =IF(R19="","",(IF('Xi,Yi'!S19="","",(IF(('Xi,Yi'!S19+U19<DataInput!$B$20),"",(IF((('Xi,Yi'!S19+U19)>DataInput!$B$21),"",('Xi,Yi'!S19+U19)))))))) ->  | T19: =IF(R19="","",IF(S19="","",(DataInput!$B$4+(DataInput!$D$4-DataInput!$B$4)*RAND()))) ->  | U19: =DataInput!$B$16*RAND() -> 5.380870789 | V19: =DataInput!$B$15*RAND() -> 14.52470293 | W19: =(IF('Xi,Yi'!W19="","",(IF((('Xi,Yi'!W19+AA19+Z19/SQRT(3))<DataInput!$B$18),"",(IF((('Xi,Yi'!W19+AA19+Z19/SQRT(3))>DataInput!$B$19),"",(IF('Xi,Yi'!X19="","",(IF(('Xi,Yi'!X19+Z19<DataInput!$B$20),"",(IF((('Xi,Yi'!X19+Z19)>DataInput!$B$21),"",('Xi,Yi'!W19+AA19+Z19/SQRT(3)))))))))))))) ->  | X19: =IF(W19="","",(IF('Xi,Yi'!X19="","",(IF(('Xi,Yi'!X19+Z19<DataInput!$B$20),"",(IF((('Xi,Yi'!X19+Z19)>DataInput!$B$21),"",('Xi,Yi'!X19+Z19)))))))) ->  | Y19: =IF(W19="","",IF(X19="","",(DataInput!$B$4+(DataInput!$D$4-DataInput!$B$4)*RAND()))) ->  | Z19: =DataInput!$B$16*RAND() -> 16.46224995 | AA19: =DataInput!$B$15*RAND() -> 6.249928795 | AB19: =(IF('Xi,Yi'!AB19="","",(IF((('Xi,Yi'!AB19+AF19+AE19/SQRT(3))<DataInput!$B$18),"",(IF((('Xi,Yi'!AB19+AF19+AE19/SQRT(3))>DataInput!$B$19),"",(IF('Xi,Yi'!AC19="","",(IF(('Xi,Yi'!AC19+AE19<DataInput!$B$20),"",(IF((('Xi,Yi'!AC19+AE19)>DataInput!$B$21),"",('Xi,Yi'!AB19+AF19+AE19/SQRT(3)))))))))))))) ->  | AC19: =IF(AB19="","",(IF('Xi,Yi'!AC19="","",(IF(('Xi,Yi'!AC19+AE19<DataInput!$B$20),"",(IF((('Xi,Yi'!AC19+AE19)>DataInput!$B$21),"",('Xi,Yi'!AC19+AE19)))))))) ->  | AD19: =IF(AB19="","",IF(AC19="","",(DataInput!$B$4+(DataInput!$D$4-DataInput!$B$4)*RAND()))) ->  | AE19: =DataInput!$B$16*RAND() -> 8.334068646 | AF19: =DataInput!$B$15*RAND() -> 14.91148738 | AG19: =(IF('Xi,Yi'!AG19="","",(IF((('Xi,Yi'!AG19+AK19+AJ19/SQRT(3))<DataInput!$B$18),"",(IF((('Xi,Yi'!AG19+AK19+AJ19/SQRT(3))>DataInput!$B$19),"",(IF('Xi,Yi'!AH19="","",(IF(('Xi,Yi'!AH19+AJ19<DataInput!$B$20),"",(IF((('Xi,Yi'!AH19+AJ19)>DataInput!$B$21),"",('Xi,Yi'!AG19+AK19+AJ19/SQRT(3)))))))))))))) ->  | AH19: =IF(AG19="","",(IF('Xi,Yi'!AH19="","",(IF(('Xi,Yi'!AH19+AJ19<DataInput!$B$20),"",(IF((('Xi,Yi'!AH19+AJ19)>DataInput!$B$21),"",('Xi,Yi'!AH19+AJ19)))))))) ->  | AI19: =IF(AG19="","",IF(AH19="","",(DataInput!$B$4+(DataInput!$D$4-DataInput!$B$4)*RAND()))) ->  | AJ19: =DataInput!$B$16*RAND() -> 16.0340389 | AK19: =DataInput!$B$15*RAND() -> 4.270170506 | AL19: =(IF('Xi,Yi'!AL19="","",(IF((('Xi,Yi'!AL19+AP19+AO19/SQRT(3))<DataInput!$B$18),"",(IF((('Xi,Yi'!AL19+AP19+AO19/SQRT(3))>DataInput!$B$19),"",(IF('Xi,Yi'!AM19="","",(IF(('Xi,Yi'!AM19+AO19<DataInput!$B$20),"",(IF((('Xi,Yi'!AM19+AO19)>DataInput!$B$21),"",('Xi,Yi'!AL19+AP19+AO19/SQRT(3)))))))))))))) ->  | AM19: =IF(AL19="","",(IF('Xi,Yi'!AM19="","",(IF(('Xi,Yi'!AM19+AO19<DataInput!$B$20),"",(IF((('Xi,Yi'!AM19+AO19)>DataInput!$B$21),"",('Xi,Yi'!AM19+AO19)))))))) ->  | AN19: =IF(AL19="","",IF(AM19="","",(DataInput!$B$4+(DataInput!$D$4-DataInput!$B$4)*RAND()))) ->  | AO19: =DataInput!$B$16*RAND() -> 6.41015375 | AP19: =DataInput!$B$15*RAND() -> 7.04036509 | AQ19: =(IF('Xi,Yi'!AQ19="","",(IF((('Xi,Yi'!AQ19+AU19+AT19/SQRT(3))<DataInput!$B$18),"",(IF((('Xi,Yi'!AQ19+AU19+AT19/SQRT(3))>DataInput!$B$19),"",(IF('Xi,Yi'!AR19="","",(IF(('Xi,Yi'!AR19+AT19<DataInput!$B$20),"",(IF((('Xi,Yi'!AR19+AT19)>DataInput!$B$21),"",('Xi,Yi'!AQ19+AU19+AT19/SQRT(3)))))))))))))) ->  | AR19: =IF(AQ19="","",(IF('Xi,Yi'!AR19="","",(IF(('Xi,Yi'!AR19+AT19<DataInput!$B$20),"",(IF((('Xi,Yi'!AR19+AT19)>DataInput!$B$21),"",('Xi,Yi'!AR19+AT19)))))))) ->  | AS19: =IF(AQ19="","",IF(AR19="","",(DataInput!$B$4+(DataInput!$D$4-DataInput!$B$4)*RAND()))) ->  | AT19: =DataInput!$B$16*RAND() -> 16.30659626 | AU19: =DataInput!$B$15*RAND() -> 19.26794088 | AV19: =(IF('Xi,Yi'!AV19="","",(IF((('Xi,Yi'!AV19+AZ19+AY19/SQRT(3))<DataInput!$B$18),"",(IF((('Xi,Yi'!AV19+AZ19+AY19/SQRT(3))>DataInput!$B$19),"",(IF('Xi,Yi'!AW19="","",(IF(('Xi,Yi'!AW19+AY19<DataInput!$B$20),"",(IF((('Xi,Yi'!AW19+AY19)>DataInput!$B$21),"",('Xi,Yi'!AV19+AZ19+AY19/SQRT(3)))))))))))))) ->  | AW19: =IF(AV19="","",(IF('Xi,Yi'!AW19="","",(IF(('Xi,Yi'!AW19+AY19<DataInput!$B$20),"",(IF((('Xi,Yi'!AW19+AY19)>DataInput!$B$21),"",('Xi,Yi'!AW19+AY19)))))))) ->  | AX19: =IF(AV19="","",IF(AW19="","",(DataInput!$B$4+(DataInput!$D$4-DataInput!$B$4)*RAND()))) ->  | AY19: =DataInput!$B$16*RAND() -> 6.812751643 | AZ19: =DataInput!$B$15*RAND() -> 8.60655053 | BA19: =(IF('Xi,Yi'!BA19="","",(IF((('Xi,Yi'!BA19+BE19+BD19/SQRT(3))<DataInput!$B$18),"",(IF((('Xi,Yi'!BA19+BE19+BD19/SQRT(3))>DataInput!$B$19),"",(IF('Xi,Yi'!BB19="","",(IF(('Xi,Yi'!BB19+BD19<DataInput!$B$20),"",(IF((('Xi,Yi'!BB19+BD19)>DataInput!$B$21),"",('Xi,Yi'!BA19+BE19+BD19/SQRT(3)))))))))))))) ->  | BB19: =IF(BA19="","",(IF('Xi,Yi'!BB19="","",(IF(('Xi,Yi'!BB19+BD19<DataInput!$B$20),"",(IF((('Xi,Yi'!BB19+BD19)>DataInput!$B$21),"",('Xi,Yi'!BB19+BD19)))))))) ->  | BC19: =IF(BA19="","",IF(BB19="","",(DataInput!$B$4+(DataInput!$D$4-DataInput!$B$4)*RAND()))) ->  | BD19: =DataInput!$B$16*RAND() -> 12.76420705 | BE19: =DataInput!$B$15*RAND() -> 4.537399526
C20: =(IF('Xi,Yi'!C20="","",(IF((('Xi,Yi'!C20+G20+F20/SQRT(3))<DataInput!$B$18),"",(IF((('Xi,Yi'!C20+G20+F20/SQRT(3))>DataInput!$B$19),"",(IF('Xi,Yi'!D20="","",(IF(('Xi,Yi'!D20+F20<DataInput!$B$20),"",(IF((('Xi,Yi'!D20+F20)>DataInput!$B$21),"",('Xi,Yi'!C20+G20+F20/SQRT(3)))))))))))))) ->  | D20: =IF(C20="","",(IF('Xi,Yi'!D20="","",(IF(('Xi,Yi'!D20+F20<DataInput!$B$20),"",(IF((('Xi,Yi'!D20+F20)>DataInput!$B$21),"",('Xi,Yi'!D20+F20)))))))) ->  | E20: =IF(C20="","",IF(D20="","",(DataInput!$B$4+(DataInput!$D$4-DataInput!$B$4)*RAND()))) ->  | F20: =DataInput!$B$16*RAND() -> 0.07221394938 | G20: =DataInput!$B$15*RAND() -> 2.18746707 | H20: =(IF('Xi,Yi'!H20="","",(IF((('Xi,Yi'!H20+L20+K20/SQRT(3))<DataInput!$B$18),"",(IF((('Xi,Yi'!H20+L20+K20/SQRT(3))>DataInput!$B$19),"",(IF('Xi,Yi'!I20="","",(IF(('Xi,Yi'!I20+K20<DataInput!$B$20),"",(IF((('Xi,Yi'!I20+K20)>DataInput!$B$21),"",('Xi,Yi'!H20+L20+K20/SQRT(3)))))))))))))) ->  | I20: =IF(H20="","",(IF('Xi,Yi'!I20="","",(IF(('Xi,Yi'!I20+K20<DataInput!$B$20),"",(IF((('Xi,Yi'!I20+K20)>DataInput!$B$21),"",('Xi,Yi'!I20+K20)))))))) ->  | J20: =IF(H20="","",IF(I20="","",(DataInput!$B$4+(DataInput!$D$4-DataInput!$B$4)*RAND()))) ->  | K20: =DataInput!$B$16*RAND() -> 12.89608045 | L20: =DataInput!$B$15*RAND() -> 18.56416027 | M20: =(IF('Xi,Yi'!M20="","",(IF((('Xi,Yi'!M20+Q20+P20/SQRT(3))<DataInput!$B$18),"",(IF((('Xi,Yi'!M20+Q20+P20/SQRT(3))>DataInput!$B$19),"",(IF('Xi,Yi'!N20="","",(IF(('Xi,Yi'!N20+P20<DataInput!$B$20),"",(IF((('Xi,Yi'!N20+P20)>DataInput!$B$21),"",('Xi,Yi'!M20+Q20+P20/SQRT(3)))))))))))))) ->  | N20: =IF(M20="","",(IF('Xi,Yi'!N20="","",(IF(('Xi,Yi'!N20+P20<DataInput!$B$20),"",(IF((('Xi,Yi'!N20+P20)>DataInput!$B$21),"",('Xi,Yi'!N20+P20)))))))) ->  | O20: =IF(M20="","",IF(N20="","",(DataInput!$B$4+(DataInput!$D$4-DataInput!$B$4)*RAND()))) ->  | P20: =DataInput!$B$16*RAND() -> 16.71707711 | Q20: =DataInput!$B$15*RAND() -> 3.223685182 | R20: =(IF('Xi,Yi'!R20="","",(IF((('Xi,Yi'!R20+V20+U20/SQRT(3))<DataInput!$B$18),"",(IF((('Xi,Yi'!R20+V20+U20/SQRT(3))>DataInput!$B$19),"",(IF('Xi,Yi'!S20="","",(IF(('Xi,Yi'!S20+U20<DataInput!$B$20),"",(IF((('Xi,Yi'!S20+U20)>DataInput!$B$21),"",('Xi,Yi'!R20+V20+U20/SQRT(3)))))))))))))) ->  | S20: =IF(R20="","",(IF('Xi,Yi'!S20="","",(IF(('Xi,Yi'!S20+U20<DataInput!$B$20),"",(IF((('Xi,Yi'!S20+U20)>DataInput!$B$21),"",('Xi,Yi'!S20+U20)))))))) ->  | T20: =IF(R20="","",IF(S20="","",(DataInput!$B$4+(DataInput!$D$4-DataInput!$B$4)*RAND()))) ->  | U20: =DataInput!$B$16*RAND() -> 0.935044605 | V20: =DataInput!$B$15*RAND() -> 1.721120061 | W20: =(IF('Xi,Yi'!W20="","",(IF((('Xi,Yi'!W20+AA20+Z20/SQRT(3))<DataInput!$B$18),"",(IF((('Xi,Yi'!W20+AA20+Z20/SQRT(3))>DataInput!$B$19),"",(IF('Xi,Yi'!X20="","",(IF(('Xi,Yi'!X20+Z20<DataInput!$B$20),"",(IF((('Xi,Yi'!X20+Z20)>DataInput!$B$21),"",('Xi,Yi'!W20+AA20+Z20/SQRT(3)))))))))))))) ->  | X20: =IF(W20="","",(IF('Xi,Yi'!X20="","",(IF(('Xi,Yi'!X20+Z20<DataInput!$B$20),"",(IF((('Xi,Yi'!X20+Z20)>DataInput!$B$21),"",('Xi,Yi'!X20+Z20)))))))) ->  | Y20: =IF(W20="","",IF(X20="","",(DataInput!$B$4+(DataInput!$D$4-DataInput!$B$4)*RAND()))) ->  | Z20: =DataInput!$B$16*RAND() -> 8.845828561 | AA20: =DataInput!$B$15*RAND() -> 13.19782597 | AB20: =(IF('Xi,Yi'!AB20="","",(IF((('Xi,Yi'!AB20+AF20+AE20/SQRT(3))<DataInput!$B$18),"",(IF((('Xi,Yi'!AB20+AF20+AE20/SQRT(3))>DataInput!$B$19),"",(IF('Xi,Yi'!AC20="","",(IF(('Xi,Yi'!AC20+AE20<DataInput!$B$20),"",(IF((('Xi,Yi'!AC20+AE20)>DataInput!$B$21),"",('Xi,Yi'!AB20+AF20+AE20/SQRT(3)))))))))))))) ->  | AC20: =IF(AB20="","",(IF('Xi,Yi'!AC20="","",(IF(('Xi,Yi'!AC20+AE20<DataInput!$B$20),"",(IF((('Xi,Yi'!AC20+AE20)>DataInput!$B$21),"",('Xi,Yi'!AC20+AE20)))))))) ->  | AD20: =IF(AB20="","",IF(AC20="","",(DataInput!$B$4+(DataInput!$D$4-DataInput!$B$4)*RAND()))) ->  | AE20: =DataInput!$B$16*RAND() -> 10.8730839 | AF20: =DataInput!$B$15*RAND() -> 15.07782329 | AG20: =(IF('Xi,Yi'!AG20="","",(IF((('Xi,Yi'!AG20+AK20+AJ20/SQRT(3))<DataInput!$B$18),"",(IF((('Xi,Yi'!AG20+AK20+AJ20/SQRT(3))>DataInput!$B$19),"",(IF('Xi,Yi'!AH20="","",(IF(('Xi,Yi'!AH20+AJ20<DataInput!$B$20),"",(IF((('Xi,Yi'!AH20+AJ20)>DataInput!$B$21),"",('Xi,Yi'!AG20+AK20+AJ20/SQRT(3)))))))))))))) ->  | AH20: =IF(AG20="","",(IF('Xi,Yi'!AH20="","",(IF(('Xi,Yi'!AH20+AJ20<DataInput!$B$20),"",(IF((('Xi,Yi'!AH20+AJ20)>DataInput!$B$21),"",('Xi,Yi'!AH20+AJ20)))))))) ->  | AI20: =IF(AG20="","",IF(AH20="","",(DataInput!$B$4+(DataInput!$D$4-DataInput!$B$4)*RAND()))) ->  | AJ20: =DataInput!$B$16*RAND() -> 6.253811578 | AK20: =DataInput!$B$15*RAND() -> 10.10062988 | AL20: =(IF('Xi,Yi'!AL20="","",(IF((('Xi,Yi'!AL20+AP20+AO20/SQRT(3))<DataInput!$B$18),"",(IF((('Xi,Yi'!AL20+AP20+AO20/SQRT(3))>DataInput!$B$19),"",(IF('Xi,Yi'!AM20="","",(IF(('Xi,Yi'!AM20+AO20<DataInput!$B$20),"",(IF((('Xi,Yi'!AM20+AO20)>DataInput!$B$21),"",('Xi,Yi'!AL20+AP20+AO20/SQRT(3)))))))))))))) ->  | AM20: =IF(AL20="","",(IF('Xi,Yi'!AM20="","",(IF(('Xi,Yi'!AM20+AO20<DataInput!$B$20),"",(IF((('Xi,Yi'!AM20+AO20)>DataInput!$B$21),"",('Xi,Yi'!AM20+AO20)))))))) ->  | AN20: =IF(AL20="","",IF(AM20="","",(DataInput!$B$4+(DataInput!$D$4-DataInput!$B$4)*RAND()))) ->  | AO20: =DataInput!$B$16*RAND() -> 11.50599815 | AP20: =DataInput!$B$15*RAND() -> 8.567602344 | AQ20: =(IF('Xi,Yi'!AQ20="","",(IF((('Xi,Yi'!AQ20+AU20+AT20/SQRT(3))<DataInput!$B$18),"",(IF((('Xi,Yi'!AQ20+AU20+AT20/SQRT(3))>DataInput!$B$19),"",(IF('Xi,Yi'!AR20="","",(IF(('Xi,Yi'!AR20+AT20<DataInput!$B$20),"",(IF((('Xi,Yi'!AR20+AT20)>DataInput!$B$21),"",('Xi,Yi'!AQ20+AU20+AT20/SQRT(3)))))))))))))) ->  | AR20: =IF(AQ20="","",(IF('Xi,Yi'!AR20="","",(IF(('Xi,Yi'!AR20+AT20<DataInput!$B$20),"",(IF((('Xi,Yi'!AR20+AT20)>DataInput!$B$21),"",('Xi,Yi'!AR20+AT20)))))))) ->  | AS20: =IF(AQ20="","",IF(AR20="","",(DataInput!$B$4+(DataInput!$D$4-DataInput!$B$4)*RAND()))) ->  | AT20: =DataInput!$B$16*RAND() -> 16.45426562 | AU20: =DataInput!$B$15*RAND() -> 4.901373639 | AV20: =(IF('Xi,Yi'!AV20="","",(IF((('Xi,Yi'!AV20+AZ20+AY20/SQRT(3))<DataInput!$B$18),"",(IF((('Xi,Yi'!AV20+AZ20+AY20/SQRT(3))>DataInput!$B$19),"",(IF('Xi,Yi'!AW20="","",(IF(('Xi,Yi'!AW20+AY20<DataInput!$B$20),"",(IF((('Xi,Yi'!AW20+AY20)>DataInput!$B$21),"",('Xi,Yi'!AV20+AZ20+AY20/SQRT(3)))))))))))))) ->  | AW20: =IF(AV20="","",(IF('Xi,Yi'!AW20="","",(IF(('Xi,Yi'!AW20+AY20<DataInput!$B$20),"",(IF((('Xi,Yi'!AW20+AY20)>DataInput!$B$21),"",('Xi,Yi'!AW20+AY20)))))))) ->  | AX20: =IF(AV20="","",IF(AW20="","",(DataInput!$B$4+(DataInput!$D$4-DataInput!$B$4)*RAND()))) ->  | AY20: =DataInput!$B$16*RAND() -> 4.207902419 | AZ20: =DataInput!$B$15*RAND() -> 11.31022395 | BA20: =(IF('Xi,Yi'!BA20="","",(IF((('Xi,Yi'!BA20+BE20+BD20/SQRT(3))<DataInput!$B$18),"",(IF((('Xi,Yi'!BA20+BE20+BD20/SQRT(3))>DataInput!$B$19),"",(IF('Xi,Yi'!BB20="","",(IF(('Xi,Yi'!BB20+BD20<DataInput!$B$20),"",(IF((('Xi,Yi'!BB20+BD20)>DataInput!$B$21),"",('Xi,Yi'!BA20+BE20+BD20/SQRT(3)))))))))))))) ->  | BB20: =IF(BA20="","",(IF('Xi,Yi'!BB20="","",(IF(('Xi,Yi'!BB20+BD20<DataInput!$B$20),"",(IF((('Xi,Yi'!BB20+BD20)>DataInput!$B$21),"",('Xi,Yi'!BB20+BD20)))))))) ->  | BC20: =IF(BA20="","",IF(BB20="","",(DataInput!$B$4+(DataInput!$D$4-DataInput!$B$4)*RAND()))) ->  | BD20: =DataInput!$B$16*RAND() -> 15.69534063 | BE20: =DataInput!$B$15*RAND() -> 12.59183845
C21: =(IF('Xi,Yi'!C21="","",(IF((('Xi,Yi'!C21+G21+F21/SQRT(3))<DataInput!$B$18),"",(IF((('Xi,Yi'!C21+G21+F21/SQRT(3))>DataInput!$B$19),"",(IF('Xi,Yi'!D21="","",(IF(('Xi,Yi'!D21+F21<DataInput!$B$20),"",(IF((('Xi,Yi'!D21+F21)>DataInput!$B$21),"",('Xi,Yi'!C21+G21+F21/SQRT(3)))))))))))))) ->  | D21: =IF(C21="","",(IF('Xi,Yi'!D21="","",(IF(('Xi,Yi'!D21+F21<DataInput!$B$20),"",(IF((('Xi,Yi'!D21+F21)>DataInput!$B$21),"",('Xi,Yi'!D21+F21)))))))) ->  | E21: =IF(C21="","",IF(D21="","",(DataInput!$B$4+(DataInput!$D$4-DataInput!$B$4)*RAND()))) ->  | F21: =DataInput!$B$16*RAND() -> 1.756846057 | G21: =DataInput!$B$15*RAND() -> 13.77595976 | H21: =(IF('Xi,Yi'!H21="","",(IF((('Xi,Yi'!H21+L21+K21/SQRT(3))<DataInput!$B$18),"",(IF((('Xi,Yi'!H21+L21+K21/SQRT(3))>DataInput!$B$19),"",(IF('Xi,Yi'!I21="","",(IF(('Xi,Yi'!I21+K21<DataInput!$B$20),"",(IF((('Xi,Yi'!I21+K21)>DataInput!$B$21),"",('Xi,Yi'!H21+L21+K21/SQRT(3)))))))))))))) ->  | I21: =IF(H21="","",(IF('Xi,Yi'!I21="","",(IF(('Xi,Yi'!I21+K21<DataInput!$B$20),"",(IF((('Xi,Yi'!I21+K21)>DataInput!$B$21),"",('Xi,Yi'!I21+K21)))))))) ->  | J21: =IF(H21="","",IF(I21="","",(DataInput!$B$4+(DataInput!$D$4-DataInput!$B$4)*RAND()))) ->  | K21: =DataInput!$B$16*RAND() -> 16.9237777 | L21: =DataInput!$B$15*RAND() -> 8.26493298 | M21: =(IF('Xi,Yi'!M21="","",(IF((('Xi,Yi'!M21+Q21+P21/SQRT(3))<DataInput!$B$18),"",(IF((('Xi,Yi'!M21+Q21+P21/SQRT(3))>DataInput!$B$19),"",(IF('Xi,Yi'!N21="","",(IF(('Xi,Yi'!N21+P21<DataInput!$B$20),"",(IF((('Xi,Yi'!N21+P21)>DataInput!$B$21),"",('Xi,Yi'!M21+Q21+P21/SQRT(3)))))))))))))) ->  | N21: =IF(M21="","",(IF('Xi,Yi'!N21="","",(IF(('Xi,Yi'!N21+P21<DataInput!$B$20),"",(IF((('Xi,Yi'!N21+P21)>DataInput!$B$21),"",('Xi,Yi'!N21+P21)))))))) ->  | O21: =IF(M21="","",IF(N21="","",(DataInput!$B$4+(DataInput!$D$4-DataInput!$B$4)*RAND()))) ->  | P21: =DataInput!$B$16*RAND() -> 3.828814807 | Q21: =DataInput!$B$15*RAND() -> 4.869979143 | R21: =(IF('Xi,Yi'!R21="","",(IF((('Xi,Yi'!R21+V21+U21/SQRT(3))<DataInput!$B$18),"",(IF((('Xi,Yi'!R21+V21+U21/SQRT(3))>DataInput!$B$19),"",(IF('Xi,Yi'!S21="","",(IF(('Xi,Yi'!S21+U21<DataInput!$B$20),"",(IF((('Xi,Yi'!S21+U21)>DataInput!$B$21),"",('Xi,Yi'!R21+V21+U21/SQRT(3)))))))))))))) ->  | S21: =IF(R21="","",(IF('Xi,Yi'!S21="","",(IF(('Xi,Yi'!S21+U21<DataInput!$B$20),"",(IF((('Xi,Yi'!S21+U21)>DataInput!$B$21),"",('Xi,Yi'!S21+U21)))))))) ->  | T21: =IF(R21="","",IF(S21="","",(DataInput!$B$4+(DataInput!$D$4-DataInput!$B$4)*RAND()))) ->  | U21: =DataInput!$B$16*RAND() -> 11.42961178 | V21: =DataInput!$B$15*RAND() -> 2.963948507 | W21: =(IF('Xi,Yi'!W21="","",(IF((('Xi,Yi'!W21+AA21+Z21/SQRT(3))<DataInput!$B$18),"",(IF((('Xi,Yi'!W21+AA21+Z21/SQRT(3))>DataInput!$B$19),"",(IF('Xi,Yi'!X21="","",(IF(('Xi,Yi'!X21+Z21<DataInput!$B$20),"",(IF((('Xi,Yi'!X21+Z21)>DataInput!$B$21),"",('Xi,Yi'!W21+AA21+Z21/SQRT(3)))))))))))))) ->  | X21: =IF(W21="","",(IF('Xi,Yi'!X21="","",(IF(('Xi,Yi'!X21+Z21<DataInput!$B$20),"",(IF((('Xi,Yi'!X21+Z21)>DataInput!$B$21),"",('Xi,Yi'!X21+Z21)))))))) ->  | Y21: =IF(W21="","",IF(X21="","",(DataInput!$B$4+(DataInput!$D$4-DataInput!$B$4)*RAND()))) ->  | Z21: =DataInput!$B$16*RAND() -> 6.003151941 | AA21: =DataInput!$B$15*RAND() -> 8.859635777 | AB21: =(IF('Xi,Yi'!AB21="","",(IF((('Xi,Yi'!AB21+AF21+AE21/SQRT(3))<DataInput!$B$18),"",(IF((('Xi,Yi'!AB21+AF21+AE21/SQRT(3))>DataInput!$B$19),"",(IF('Xi,Yi'!AC21="","",(IF(('Xi,Yi'!AC21+AE21<DataInput!$B$20),"",(IF((('Xi,Yi'!AC21+AE21)>DataInput!$B$21),"",('Xi,Yi'!AB21+AF21+AE21/SQRT(3)))))))))))))) ->  | AC21: =IF(AB21="","",(IF('Xi,Yi'!AC21="","",(IF(('Xi,Yi'!AC21+AE21<DataInput!$B$20),"",(IF((('Xi,Yi'!AC21+AE21)>DataInput!$B$21),"",('Xi,Yi'!AC21+AE21)))))))) ->  | AD21: =IF(AB21="","",IF(AC21="","",(DataInput!$B$4+(DataInput!$D$4-DataInput!$B$4)*RAND()))) ->  | AE21: =DataInput!$B$16*RAND() -> 10.61371523 | AF21: =DataInput!$B$15*RAND() -> 17.5579292 | AG21: =(IF('Xi,Yi'!AG21="","",(IF((('Xi,Yi'!AG21+AK21+AJ21/SQRT(3))<DataInput!$B$18),"",(IF((('Xi,Yi'!AG21+AK21+AJ21/SQRT(3))>DataInput!$B$19),"",(IF('Xi,Yi'!AH21="","",(IF(('Xi,Yi'!AH21+AJ21<DataInput!$B$20),"",(IF((('Xi,Yi'!AH21+AJ21)>DataInput!$B$21),"",('Xi,Yi'!AG21+AK21+AJ21/SQRT(3)))))))))))))) ->  | AH21: =IF(AG21="","",(IF('Xi,Yi'!AH21="","",(IF(('Xi,Yi'!AH21+AJ21<DataInput!$B$20),"",(IF((('Xi,Yi'!AH21+AJ21)>DataInput!$B$21),"",('Xi,Yi'!AH21+AJ21)))))))) ->  | AI21: =IF(AG21="","",IF(AH21="","",(DataInput!$B$4+(DataInput!$D$4-DataInput!$B$4)*RAND()))) ->  | AJ21: =DataInput!$B$16*RAND() -> 4.873895169 | AK21: =DataInput!$B$15*RAND() -> 8.211441188 | AL21: =(IF('Xi,Yi'!AL21="","",(IF((('Xi,Yi'!AL21+AP21+AO21/SQRT(3))<DataInput!$B$18),"",(IF((('Xi,Yi'!AL21+AP21+AO21/SQRT(3))>DataInput!$B$19),"",(IF('Xi,Yi'!AM21="","",(IF(('Xi,Yi'!AM21+AO21<DataInput!$B$20),"",(IF((('Xi,Yi'!AM21+AO21)>DataInput!$B$21),"",('Xi,Yi'!AL21+AP21+AO21/SQRT(3)))))))))))))) ->  | AM21: =IF(AL21="","",(IF('Xi,Yi'!AM21="","",(IF(('Xi,Yi'!AM21+AO21<DataInput!$B$20),"",(IF((('Xi,Yi'!AM21+AO21)>DataInput!$B$21),"",('Xi,Yi'!AM21+AO21)))))))) ->  | AN21: =IF(AL21="","",IF(AM21="","",(DataInput!$B$4+(DataInput!$D$4-DataInput!$B$4)*RAND()))) ->  | AO21: =DataInput!$B$16*RAND() -> 3.725593134 | AP21: =DataInput!$B$15*RAND() -> 13.92028146 | AQ21: =(IF('Xi,Yi'!AQ21="","",(IF((('Xi,Yi'!AQ21+AU21+AT21/SQRT(3))<DataInput!$B$18),"",(IF((('Xi,Yi'!AQ21+AU21+AT21/SQRT(3))>DataInput!$B$19),"",(IF('Xi,Yi'!AR21="","",(IF(('Xi,Yi'!AR21+AT21<DataInput!$B$20),"",(IF((('Xi,Yi'!AR21+AT21)>DataInput!$B$21),"",('Xi,Yi'!AQ21+AU21+AT21/SQRT(3)))))))))))))) ->  | AR21: =IF(AQ21="","",(IF('Xi,Yi'!AR21="","",(IF(('Xi,Yi'!AR21+AT21<DataInput!$B$20),"",(IF((('Xi,Yi'!AR21+AT21)>DataInput!$B$21),"",('Xi,Yi'!AR21+AT21)))))))) ->  | AS21: =IF(AQ21="","",IF(AR21="","",(DataInput!$B$4+(DataInput!$D$4-DataInput!$B$4)*RAND()))) ->  | AT21: =DataInput!$B$16*RAND() -> 16.96828948 | AU21: =DataInput!$B$15*RAND() -> 4.4668222 | AV21: =(IF('Xi,Yi'!AV21="","",(IF((('Xi,Yi'!AV21+AZ21+AY21/SQRT(3))<DataInput!$B$18),"",(IF((('Xi,Yi'!AV21+AZ21+AY21/SQRT(3))>DataInput!$B$19),"",(IF('Xi,Yi'!AW21="","",(IF(('Xi,Yi'!AW21+AY21<DataInput!$B$20),"",(IF((('Xi,Yi'!AW21+AY21)>DataInput!$B$21),"",('Xi,Yi'!AV21+AZ21+AY21/SQRT(3)))))))))))))) ->  | AW21: =IF(AV21="","",(IF('Xi,Yi'!AW21="","",(IF(('Xi,Yi'!AW21+AY21<DataInput!$B$20),"",(IF((('Xi,Yi'!AW21+AY21)>DataInput!$B$21),"",('Xi,Yi'!AW21+AY21)))))))) ->  | AX21: =IF(AV21="","",IF(AW21="","",(DataInput!$B$4+(DataInput!$D$4-DataInput!$B$4)*RAND()))) ->  | AY21: =DataInput!$B$16*RAND() -> 0.1504303597 | AZ21: =DataInput!$B$15*RAND() -> 10.93102602 | BA21: =(IF('Xi,Yi'!BA21="","",(IF((('Xi,Yi'!BA21+BE21+BD21/SQRT(3))<DataInput!$B$18),"",(IF((('Xi,Yi'!BA21+BE21+BD21/SQRT(3))>DataInput!$B$19),"",(IF('Xi,Yi'!BB21="","",(IF(('Xi,Yi'!BB21+BD21<DataInput!$B$20),"",(IF((('Xi,Yi'!BB21+BD21)>DataInput!$B$21),"",('Xi,Yi'!BA21+BE21+BD21/SQRT(3)))))))))))))) ->  | BB21: =IF(BA21="","",(IF('Xi,Yi'!BB21="","",(IF(('Xi,Yi'!BB21+BD21<DataInput!$B$20),"",(IF((('Xi,Yi'!BB21+BD21)>DataInput!$B$21),"",('Xi,Yi'!BB21+BD21)))))))) ->  | BC21: =IF(BA21="","",IF(BB21="","",(DataInput!$B$4+(DataInput!$D$4-DataInput!$B$4)*RAND()))) ->  | BD21: =DataInput!$B$16*RAND() -> 14.66809132 | BE21: =DataInput!$B$15*RAND() -> 4.27960022
C22: =(IF('Xi,Yi'!C22="","",(IF((('Xi,Yi'!C22+G22+F22/SQRT(3))<DataInput!$B$18),"",(IF((('Xi,Yi'!C22+G22+F22/SQRT(3))>DataInput!$B$19),"",(IF('Xi,Yi'!D22="","",(IF(('Xi,Yi'!D22+F22<DataInput!$B$20),"",(IF((('Xi,Yi'!D22+F22)>DataInput!$B$21),"",('Xi,Yi'!C22+G22+F22/SQRT(3)))))))))))))) ->  | D22: =IF(C22="","",(IF('Xi,Yi'!D22="","",(IF(('Xi,Yi'!D22+F22<DataInput!$B$20),"",(IF((('Xi,Yi'!D22+F22)>DataInput!$B$21),"",('Xi,Yi'!D22+F22)))))))) ->  | E22: =IF(C22="","",IF(D22="","",(DataInput!$B$4+(DataInput!$D$4-DataInput!$B$4)*RAND()))) ->  | F22: =DataInput!$B$16*RAND() -> 13.73238322 | G22: =DataInput!$B$15*RAND() -> 17.57324855 | H22: =(IF('Xi,Yi'!H22="","",(IF((('Xi,Yi'!H22+L22+K22/SQRT(3))<DataInput!$B$18),"",(IF((('Xi,Yi'!H22+L22+K22/SQRT(3))>DataInput!$B$19),"",(IF('Xi,Yi'!I22="","",(IF(('Xi,Yi'!I22+K22<DataInput!$B$20),"",(IF((('Xi,Yi'!I22+K22)>DataInput!$B$21),"",('Xi,Yi'!H22+L22+K22/SQRT(3)))))))))))))) ->  | I22: =IF(H22="","",(IF('Xi,Yi'!I22="","",(IF(('Xi,Yi'!I22+K22<DataInput!$B$20),"",(IF((('Xi,Yi'!I22+K22)>DataInput!$B$21),"",('Xi,Yi'!I22+K22)))))))) ->  | J22: =IF(H22="","",IF(I22="","",(DataInput!$B$4+(DataInput!$D$4-DataInput!$B$4)*RAND()))) ->  | K22: =DataInput!$B$16*RAND() -> 8.368692372 | L22: =DataInput!$B$15*RAND() -> 16.17532085 | M22: =(IF('Xi,Yi'!M22="","",(IF((('Xi,Yi'!M22+Q22+P22/SQRT(3))<DataInput!$B$18),"",(IF((('Xi,Yi'!M22+Q22+P22/SQRT(3))>DataInput!$B$19),"",(IF('Xi,Yi'!N22="","",(IF(('Xi,Yi'!N22+P22<DataInput!$B$20),"",(IF((('Xi,Yi'!N22+P22)>DataInput!$B$21),"",('Xi,Yi'!M22+Q22+P22/SQRT(3)))))))))))))) ->  | N22: =IF(M22="","",(IF('Xi,Yi'!N22="","",(IF(('Xi,Yi'!N22+P22<DataInput!$B$20),"",(IF((('Xi,Yi'!N22+P22)>DataInput!$B$21),"",('Xi,Yi'!N22+P22)))))))) ->  | O22: =IF(M22="","",IF(N22="","",(DataInput!$B$4+(DataInput!$D$4-DataInput!$B$4)*RAND()))) ->  | P22: =DataInput!$B$16*RAND() -> 14.84801919 | Q22: =DataInput!$B$15*RAND() -> 1.320269001 | R22: =(IF('Xi,Yi'!R22="","",(IF((('Xi,Yi'!R22+V22+U22/SQRT(3))<DataInput!$B$18),"",(IF((('Xi,Yi'!R22+V22+U22/SQRT(3))>DataInput!$B$19),"",(IF('Xi,Yi'!S22="","",(IF(('Xi,Yi'!S22+U22<DataInput!$B$20),"",(IF((('Xi,Yi'!S22+U22)>DataInput!$B$21),"",('Xi,Yi'!R22+V22+U22/SQRT(3)))))))))))))) ->  | S22: =IF(R22="","",(IF('Xi,Yi'!S22="","",(IF(('Xi,Yi'!S22+U22<DataInput!$B$20),"",(IF((('Xi,Yi'!S22+U22)>DataInput!$B$21),"",('Xi,Yi'!S22+U22)))))))) ->  | T22: =IF(R22="","",IF(S22="","",(DataInput!$B$4+(DataInput!$D$4-DataInput!$B$4)*RAND()))) ->  | U22: =DataInput!$B$16*RAND() -> 13.07787953 | V22: =DataInput!$B$15*RAND() -> 7.805354436 | W22: =(IF('Xi,Yi'!W22="","",(IF((('Xi,Yi'!W22+AA22+Z22/SQRT(3))<DataInput!$B$18),"",(IF((('Xi,Yi'!W22+AA22+Z22/SQRT(3))>DataInput!$B$19),"",(IF('Xi,Yi'!X22="","",(IF(('Xi,Yi'!X22+Z22<DataInput!$B$20),"",(IF((('Xi,Yi'!X22+Z22)>DataInput!$B$21),"",('Xi,Yi'!W22+AA22+Z22/SQRT(3)))))))))))))) ->  | X22: =IF(W22="","",(IF('Xi,Yi'!X22="","",(IF(('Xi,Yi'!X22+Z22<DataInput!$B$20),"",(IF((('Xi,Yi'!X22+Z22)>DataInput!$B$21),"",('Xi,Yi'!X22+Z22)))))))) ->  | Y22: =IF(W22="","",IF(X22="","",(DataInput!$B$4+(DataInput!$D$4-DataInput!$B$4)*RAND()))) ->  | Z22: =DataInput!$B$16*RAND() -> 6.990170573 | AA22: =DataInput!$B$15*RAND() -> 14.55043938 | AB22: =(IF('Xi,Yi'!AB22="","",(IF((('Xi,Yi'!AB22+AF22+AE22/SQRT(3))<DataInput!$B$18),"",(IF((('Xi,Yi'!AB22+AF22+AE22/SQRT(3))>DataInput!$B$19),"",(IF('Xi,Yi'!AC22="","",(IF(('Xi,Yi'!AC22+AE22<DataInput!$B$20),"",(IF((('Xi,Yi'!AC22+AE22)>DataInput!$B$21),"",('Xi,Yi'!AB22+AF22+AE22/SQRT(3)))))))))))))) ->  | AC22: =IF(AB22="","",(IF('Xi,Yi'!AC22="","",(IF(('Xi,Yi'!AC22+AE22<DataInput!$B$20),"",(IF((('Xi,Yi'!AC22+AE22)>DataInput!$B$21),"",('Xi,Yi'!AC22+AE22)))))))) ->  | AD22: =IF(AB22="","",IF(AC22="","",(DataInput!$B$4+(DataInput!$D$4-DataInput!$B$4)*RAND()))) ->  | AE22: =DataInput!$B$16*RAND() -> 13.65061746 | AF22: =DataInput!$B$15*RAND() -> 0.5802986881 | AG22: =(IF('Xi,Yi'!AG22="","",(IF((('Xi,Yi'!AG22+AK22+AJ22/SQRT(3))<DataInput!$B$18),"",(IF((('Xi,Yi'!AG22+AK22+AJ22/SQRT(3))>DataInput!$B$19),"",(IF('Xi,Yi'!AH22="","",(IF(('Xi,Yi'!AH22+AJ22<DataInput!$B$20),"",(IF((('Xi,Yi'!AH22+AJ22)>DataInput!$B$21),"",('Xi,Yi'!AG22+AK22+AJ22/SQRT(3)))))))))))))) ->  | AH22: =IF(AG22="","",(IF('Xi,Yi'!AH22="","",(IF(('Xi,Yi'!AH22+AJ22<DataInput!$B$20),"",(IF((('Xi,Yi'!AH22+AJ22)>DataInput!$B$21),"",('Xi,Yi'!AH22+AJ22)))))))) ->  | AI22: =IF(AG22="","",IF(AH22="","",(DataInput!$B$4+(DataInput!$D$4-DataInput!$B$4)*RAND()))) ->  | AJ22: =DataInput!$B$16*RAND() -> 6.805240448 | AK22: =DataInput!$B$15*RAND() -> 12.96880948 | AL22: =(IF('Xi,Yi'!AL22="","",(IF((('Xi,Yi'!AL22+AP22+AO22/SQRT(3))<DataInput!$B$18),"",(IF((('Xi,Yi'!AL22+AP22+AO22/SQRT(3))>DataInput!$B$19),"",(IF('Xi,Yi'!AM22="","",(IF(('Xi,Yi'!AM22+AO22<DataInput!$B$20),"",(IF((('Xi,Yi'!AM22+AO22)>DataInput!$B$21),"",('Xi,Yi'!AL22+AP22+AO22/SQRT(3)))))))))))))) ->  | AM22: =IF(AL22="","",(IF('Xi,Yi'!AM22="","",(IF(('Xi,Yi'!AM22+AO22<DataInput!$B$20),"",(IF((('Xi,Yi'!AM22+AO22)>DataInput!$B$21),"",('Xi,Yi'!AM22+AO22)))))))) ->  | AN22: =IF(AL22="","",IF(AM22="","",(DataInput!$B$4+(DataInput!$D$4-DataInput!$B$4)*RAND()))) ->  | AO22: =DataInput!$B$16*RAND() -> 5.958335026 | AP22: =DataInput!$B$15*RAND() -> 10.27412919 | AQ22: =(IF('Xi,Yi'!AQ22="","",(IF((('Xi,Yi'!AQ22+AU22+AT22/SQRT(3))<DataInput!$B$18),"",(IF((('Xi,Yi'!AQ22+AU22+AT22/SQRT(3))>DataInput!$B$19),"",(IF('Xi,Yi'!AR22="","",(IF(('Xi,Yi'!AR22+AT22<DataInput!$B$20),"",(IF((('Xi,Yi'!AR22+AT22)>DataInput!$B$21),"",('Xi,Yi'!AQ22+AU22+AT22/SQRT(3)))))))))))))) ->  | AR22: =IF(AQ22="","",(IF('Xi,Yi'!AR22="","",(IF(('Xi,Yi'!AR22+AT22<DataInput!$B$20),"",(IF((('Xi,Yi'!AR22+AT22)>DataInput!$B$21),"",('Xi,Yi'!AR22+AT22)))))))) ->  | AS22: =IF(AQ22="","",IF(AR22="","",(DataInput!$B$4+(DataInput!$D$4-DataInput!$B$4)*RAND()))) ->  | AT22: =DataInput!$B$16*RAND() -> 12.88880324 | AU22: =DataInput!$B$15*RAND() -> 8.280402761 | AV22: =(IF('Xi,Yi'!AV22="","",(IF((('Xi,Yi'!AV22+AZ22+AY22/SQRT(3))<DataInput!$B$18),"",(IF((('Xi,Yi'!AV22+AZ22+AY22/SQRT(3))>DataInput!$B$19),"",(IF('Xi,Yi'!AW22="","",(IF(('Xi,Yi'!AW22+AY22<DataInput!$B$20),"",(IF((('Xi,Yi'!AW22+AY22)>DataInput!$B$21),"",('Xi,Yi'!AV22+AZ22+AY22/SQRT(3)))))))))))))) ->  | AW22: =IF(AV22="","",(IF('Xi,Yi'!AW22="","",(IF(('Xi,Yi'!AW22+AY22<DataInput!$B$20),"",(IF((('Xi,Yi'!AW22+AY22)>DataInput!$B$21),"",('Xi,Yi'!AW22+AY22)))))))) ->  | AX22: =IF(AV22="","",IF(AW22="","",(DataInput!$B$4+(DataInput!$D$4-DataInput!$B$4)*RAND()))) ->  | AY22: =DataInput!$B$16*RAND() -> 9.651765583 | AZ22: =DataInput!$B$15*RAND() -> 6.693356374 | BA22: =(IF('Xi,Yi'!BA22="","",(IF((('Xi,Yi'!BA22+BE22+BD22/SQRT(3))<DataInput!$B$18),"",(IF((('Xi,Yi'!BA22+BE22+BD22/SQRT(3))>DataInput!$B$19),"",(IF('Xi,Yi'!BB22="","",(IF(('Xi,Yi'!BB22+BD22<DataInput!$B$20),"",(IF((('Xi,Yi'!BB22+BD22)>DataInput!$B$21),"",('Xi,Yi'!BA22+BE22+BD22/SQRT(3)))))))))))))) ->  | BB22: =IF(BA22="","",(IF('Xi,Yi'!BB22="","",(IF(('Xi,Yi'!BB22+BD22<DataInput!$B$20),"",(IF((('Xi,Yi'!BB22+BD22)>DataInput!$B$21),"",('Xi,Yi'!BB22+BD22)))))))) ->  | BC22: =IF(BA22="","",IF(BB22="","",(DataInput!$B$4+(DataInput!$D$4-DataInput!$B$4)*RAND()))) ->  | BD22: =DataInput!$B$16*RAND() -> 15.58258579 | BE22: =DataInput!$B$15*RAND() -> 16.59591394
C23: =(IF('Xi,Yi'!C23="","",(IF((('Xi,Yi'!C23+G23+F23/SQRT(3))<DataInput!$B$18),"",(IF((('Xi,Yi'!C23+G23+F23/SQRT(3))>DataInput!$B$19),"",(IF('Xi,Yi'!D23="","",(IF(('Xi,Yi'!D23+F23<DataInput!$B$20),"",(IF((('Xi,Yi'!D23+F23)>DataInput!$B$21),"",('Xi,Yi'!C23+G23+F23/SQRT(3)))))))))))))) ->  | D23: =IF(C23="","",(IF('Xi,Yi'!D23="","",(IF(('Xi,Yi'!D23+F23<DataInput!$B$20),"",(IF((('Xi,Yi'!D23+F23)>DataInput!$B$21),"",('Xi,Yi'!D23+F23)))))))) ->  | E23: =IF(C23="","",IF(D23="","",(DataInput!$B$4+(DataInput!$D$4-DataInput!$B$4)*RAND()))) ->  | F23: =DataInput!$B$16*RAND() -> 2.924446759 | G23: =DataInput!$B$15*RAND() -> 9.353066737 | H23: =(IF('Xi,Yi'!H23="","",(IF((('Xi,Yi'!H23+L23+K23/SQRT(3))<DataInput!$B$18),"",(IF((('Xi,Yi'!H23+L23+K23/SQRT(3))>DataInput!$B$19),"",(IF('Xi,Yi'!I23="","",(IF(('Xi,Yi'!I23+K23<DataInput!$B$20),"",(IF((('Xi,Yi'!I23+K23)>DataInput!$B$21),"",('Xi,Yi'!H23+L23+K23/SQRT(3)))))))))))))) ->  | I23: =IF(H23="","",(IF('Xi,Yi'!I23="","",(IF(('Xi,Yi'!I23+K23<DataInput!$B$20),"",(IF((('Xi,Yi'!I23+K23)>DataInput!$B$21),"",('Xi,Yi'!I23+K23)))))))) ->  | J23: =IF(H23="","",IF(I23="","",(DataInput!$B$4+(DataInput!$D$4-DataInput!$B$4)*RAND()))) ->  | K23: =DataInput!$B$16*RAND() -> 15.69946872 | L23: =DataInput!$B$15*RAND() -> 1.038640133 | M23: =(IF('Xi,Yi'!M23="","",(IF((('Xi,Yi'!M23+Q23+P23/SQRT(3))<DataInput!$B$18),"",(IF((('Xi,Yi'!M23+Q23+P23/SQRT(3))>DataInput!$B$19),"",(IF('Xi,Yi'!N23="","",(IF(('Xi,Yi'!N23+P23<DataInput!$B$20),"",(IF((('Xi,Yi'!N23+P23)>DataInput!$B$21),"",('Xi,Yi'!M23+Q23+P23/SQRT(3)))))))))))))) ->  | N23: =IF(M23="","",(IF('Xi,Yi'!N23="","",(IF(('Xi,Yi'!N23+P23<DataInput!$B$20),"",(IF((('Xi,Yi'!N23+P23)>DataInput!$B$21),"",('Xi,Yi'!N23+P23)))))))) ->  | O23: =IF(M23="","",IF(N23="","",(DataInput!$B$4+(DataInput!$D$4-DataInput!$B$4)*RAND()))) ->  | P23: =DataInput!$B$16*RAND() -> 4.53258437 | Q23: =DataInput!$B$15*RAND() -> 18.68314566 | R23: =(IF('Xi,Yi'!R23="","",(IF((('Xi,Yi'!R23+V23+U23/SQRT(3))<DataInput!$B$18),"",(IF((('Xi,Yi'!R23+V23+U23/SQRT(3))>DataInput!$B$19),"",(IF('Xi,Yi'!S23="","",(IF(('Xi,Yi'!S23+U23<DataInput!$B$20),"",(IF((('Xi,Yi'!S23+U23)>DataInput!$B$21),"",('Xi,Yi'!R23+V23+U23/SQRT(3)))))))))))))) ->  | S23: =IF(R23="","",(IF('Xi,Yi'!S23="","",(IF(('Xi,Yi'!S23+U23<DataInput!$B$20),"",(IF((('Xi,Yi'!S23+U23)>DataInput!$B$21),"",('Xi,Yi'!S23+U23)))))))) ->  | T23: =IF(R23="","",IF(S23="","",(DataInput!$B$4+(DataInput!$D$4-DataInput!$B$4)*RAND()))) ->  | U23: =DataInput!$B$16*RAND() -> 2.433473833 | V23: =DataInput!$B$15*RAND() -> 1.886654183 | W23: =(IF('Xi,Yi'!W23="","",(IF((('Xi,Yi'!W23+AA23+Z23/SQRT(3))<DataInput!$B$18),"",(IF((('Xi,Yi'!W23+AA23+Z23/SQRT(3))>DataInput!$B$19),"",(IF('Xi,Yi'!X23="","",(IF(('Xi,Yi'!X23+Z23<DataInput!$B$20),"",(IF((('Xi,Yi'!X23+Z23)>DataInput!$B$21),"",('Xi,Yi'!W23+AA23+Z23/SQRT(3)))))))))))))) ->  | X23: =IF(W23="","",(IF('Xi,Yi'!X23="","",(IF(('Xi,Yi'!X23+Z23<DataInput!$B$20),"",(IF((('Xi,Yi'!X23+Z23)>DataInput!$B$21),"",('Xi,Yi'!X23+Z23)))))))) ->  | Y23: =IF(W23="","",IF(X23="","",(DataInput!$B$4+(DataInput!$D$4-DataInput!$B$4)*RAND()))) ->  | Z23: =DataInput!$B$16*RAND() -> 10.98690373 | AA23: =DataInput!$B$15*RAND() -> 4.224054405 | AB23: =(IF('Xi,Yi'!AB23="","",(IF((('Xi,Yi'!AB23+AF23+AE23/SQRT(3))<DataInput!$B$18),"",(IF((('Xi,Yi'!AB23+AF23+AE23/SQRT(3))>DataInput!$B$19),"",(IF('Xi,Yi'!AC23="","",(IF(('Xi,Yi'!AC23+AE23<DataInput!$B$20),"",(IF((('Xi,Yi'!AC23+AE23)>DataInput!$B$21),"",('Xi,Yi'!AB23+AF23+AE23/SQRT(3)))))))))))))) ->  | AC23: =IF(AB23="","",(IF('Xi,Yi'!AC23="","",(IF(('Xi,Yi'!AC23+AE23<DataInput!$B$20),"",(IF((('Xi,Yi'!AC23+AE23)>DataInput!$B$21),"",('Xi,Yi'!AC23+AE23)))))))) ->  | AD23: =IF(AB23="","",IF(AC23="","",(DataInput!$B$4+(DataInput!$D$4-DataInput!$B$4)*RAND()))) ->  | AE23: =DataInput!$B$16*RAND() -> 5.835798835 | AF23: =DataInput!$B$15*RAND() -> 3.169050001 | AG23: =(IF('Xi,Yi'!AG23="","",(IF((('Xi,Yi'!AG23+AK23+AJ23/SQRT(3))<DataInput!$B$18),"",(IF((('Xi,Yi'!AG23+AK23+AJ23/SQRT(3))>DataInput!$B$19),"",(IF('Xi,Yi'!AH23="","",(IF(('Xi,Yi'!AH23+AJ23<DataInput!$B$20),"",(IF((('Xi,Yi'!AH23+AJ23)>DataInput!$B$21),"",('Xi,Yi'!AG23+AK23+AJ23/SQRT(3)))))))))))))) ->  | AH23: =IF(AG23="","",(IF('Xi,Yi'!AH23="","",(IF(('Xi,Yi'!AH23+AJ23<DataInput!$B$20),"",(IF((('Xi,Yi'!AH23+AJ23)>DataInput!$B$21),"",('Xi,Yi'!AH23+AJ23)))))))) ->  | AI23: =IF(AG23="","",IF(AH23="","",(DataInput!$B$4+(DataInput!$D$4-DataInput!$B$4)*RAND()))) ->  | AJ23: =DataInput!$B$16*RAND() -> 13.68842778 | AK23: =DataInput!$B$15*RAND() -> 5.990730237 | AL23: =(IF('Xi,Yi'!AL23="","",(IF((('Xi,Yi'!AL23+AP23+AO23/SQRT(3))<DataInput!$B$18),"",(IF((('Xi,Yi'!AL23+AP23+AO23/SQRT(3))>DataInput!$B$19),"",(IF('Xi,Yi'!AM23="","",(IF(('Xi,Yi'!AM23+AO23<DataInput!$B$20),"",(IF((('Xi,Yi'!AM23+AO23)>DataInput!$B$21),"",('Xi,Yi'!AL23+AP23+AO23/SQRT(3)))))))))))))) ->  | AM23: =IF(AL23="","",(IF('Xi,Yi'!AM23="","",(IF(('Xi,Yi'!AM23+AO23<DataInput!$B$20),"",(IF((('Xi,Yi'!AM23+AO23)>DataInput!$B$21),"",('Xi,Yi'!AM23+AO23)))))))) ->  | AN23: =IF(AL23="","",IF(AM23="","",(DataInput!$B$4+(DataInput!$D$4-DataInput!$B$4)*RAND()))) ->  | AO23: =DataInput!$B$16*RAND() -> 13.01985637 | AP23: =DataInput!$B$15*RAND() -> 7.799678054 | AQ23: =(IF('Xi,Yi'!AQ23="","",(IF((('Xi,Yi'!AQ23+AU23+AT23/SQRT(3))<DataInput!$B$18),"",(IF((('Xi,Yi'!AQ23+AU23+AT23/SQRT(3))>DataInput!$B$19),"",(IF('Xi,Yi'!AR23="","",(IF(('Xi,Yi'!AR23+AT23<DataInput!$B$20),"",(IF((('Xi,Yi'!AR23+AT23)>DataInput!$B$21),"",('Xi,Yi'!AQ23+AU23+AT23/SQRT(3)))))))))))))) ->  | AR23: =IF(AQ23="","",(IF('Xi,Yi'!AR23="","",(IF(('Xi,Yi'!AR23+AT23<DataInput!$B$20),"",(IF((('Xi,Yi'!AR23+AT23)>DataInput!$B$21),"",('Xi,Yi'!AR23+AT23)))))))) ->  | AS23: =IF(AQ23="","",IF(AR23="","",(DataInput!$B$4+(DataInput!$D$4-DataInput!$B$4)*RAND()))) ->  | AT23: =DataInput!$B$16*RAND() -> 9.499339498 | AU23: =DataInput!$B$15*RAND() -> 0.8642417674 | AV23: =(IF('Xi,Yi'!AV23="","",(IF((('Xi,Yi'!AV23+AZ23+AY23/SQRT(3))<DataInput!$B$18),"",(IF((('Xi,Yi'!AV23+AZ23+AY23/SQRT(3))>DataInput!$B$19),"",(IF('Xi,Yi'!AW23="","",(IF(('Xi,Yi'!AW23+AY23<DataInput!$B$20),"",(IF((('Xi,Yi'!AW23+AY23)>DataInput!$B$21),"",('Xi,Yi'!AV23+AZ23+AY23/SQRT(3)))))))))))))) ->  | AW23: =IF(AV23="","",(IF('Xi,Yi'!AW23="","",(IF(('Xi,Yi'!AW23+AY23<DataInput!$B$20),"",(IF((('Xi,Yi'!AW23+AY23)>DataInput!$B$21),"",('Xi,Yi'!AW23+AY23)))))))) ->  | AX23: =IF(AV23="","",IF(AW23="","",(DataInput!$B$4+(DataInput!$D$4-DataInput!$B$4)*RAND()))) ->  | AY23: =DataInput!$B$16*RAND() -> 2.315269789 | AZ23: =DataInput!$B$15*RAND() -> 10.6494428 | BA23: =(IF('Xi,Yi'!BA23="","",(IF((('Xi,Yi'!BA23+BE23+BD23/SQRT(3))<DataInput!$B$18),"",(IF((('Xi,Yi'!BA23+BE23+BD23/SQRT(3))>DataInput!$B$19),"",(IF('Xi,Yi'!BB23="","",(IF(('Xi,Yi'!BB23+BD23<DataInput!$B$20),"",(IF((('Xi,Yi'!BB23+BD23)>DataInput!$B$21),"",('Xi,Yi'!BA23+BE23+BD23/SQRT(3)))))))))))))) ->  | BB23: =IF(BA23="","",(IF('Xi,Yi'!BB23="","",(IF(('Xi,Yi'!BB23+BD23<DataInput!$B$20),"",(IF((('Xi,Yi'!BB23+BD23)>DataInput!$B$21),"",('Xi,Yi'!BB23+BD23)))))))) ->  | BC23: =IF(BA23="","",IF(BB23="","",(DataInput!$B$4+(DataInput!$D$4-DataInput!$B$4)*RAND()))) ->  | BD23: =DataInput!$B$16*RAND() -> 13.8460468 | BE23: =DataInput!$B$15*RAND() -> 6.639674706
C24: =(IF('Xi,Yi'!C24="","",(IF((('Xi,Yi'!C24+G24+F24/SQRT(3))<DataInput!$B$18),"",(IF((('Xi,Yi'!C24+G24+F24/SQRT(3))>DataInput!$B$19),"",(IF('Xi,Yi'!D24="","",(IF(('Xi,Yi'!D24+F24<DataInput!$B$20),"",(IF((('Xi,Yi'!D24+F24)>DataInput!$B$21),"",('Xi,Yi'!C24+G24+F24/SQRT(3)))))))))))))) ->  | D24: =IF(C24="","",(IF('Xi,Yi'!D24="","",(IF(('Xi,Yi'!D24+F24<DataInput!$B$20),"",(IF((('Xi,Yi'!D24+F24)>DataInput!$B$21),"",('Xi,Yi'!D24+F24)))))))) ->  | E24: =IF(C24="","",IF(D24="","",(DataInput!$B$4+(DataInput!$D$4-DataInput!$B$4)*RAND()))) ->  | F24: =DataInput!$B$16*RAND() -> 1.069603687 | G24: =DataInput!$B$15*RAND() -> 7.127355947 | H24: =(IF('Xi,Yi'!H24="","",(IF((('Xi,Yi'!H24+L24+K24/SQRT(3))<DataInput!$B$18),"",(IF((('Xi,Yi'!H24+L24+K24/SQRT(3))>DataInput!$B$19),"",(IF('Xi,Yi'!I24="","",(IF(('Xi,Yi'!I24+K24<DataInput!$B$20),"",(IF((('Xi,Yi'!I24+K24)>DataInput!$B$21),"",('Xi,Yi'!H24+L24+K24/SQRT(3)))))))))))))) ->  | I24: =IF(H24="","",(IF('Xi,Yi'!I24="","",(IF(('Xi,Yi'!I24+K24<DataInput!$B$20),"",(IF((('Xi,Yi'!I24+K24)>DataInput!$B$21),"",('Xi,Yi'!I24+K24)))))))) ->  | J24: =IF(H24="","",IF(I24="","",(DataInput!$B$4+(DataInput!$D$4-DataInput!$B$4)*RAND()))) ->  | K24: =DataInput!$B$16*RAND() -> 12.96471355 | L24: =DataInput!$B$15*RAND() -> 6.535119544 | M24: =(IF('Xi,Yi'!M24="","",(IF((('Xi,Yi'!M24+Q24+P24/SQRT(3))<DataInput!$B$18),"",(IF((('Xi,Yi'!M24+Q24+P24/SQRT(3))>DataInput!$B$19),"",(IF('Xi,Yi'!N24="","",(IF(('Xi,Yi'!N24+P24<DataInput!$B$20),"",(IF((('Xi,Yi'!N24+P24)>DataInput!$B$21),"",('Xi,Yi'!M24+Q24+P24/SQRT(3)))))))))))))) ->  | N24: =IF(M24="","",(IF('Xi,Yi'!N24="","",(IF(('Xi,Yi'!N24+P24<DataInput!$B$20),"",(IF((('Xi,Yi'!N24+P24)>DataInput!$B$21),"",('Xi,Yi'!N24+P24)))))))) ->  | O24: =IF(M24="","",IF(N24="","",(DataInput!$B$4+(DataInput!$D$4-DataInput!$B$4)*RAND()))) ->  | P24: =DataInput!$B$16*RAND() -> 16.36770921 | Q24: =DataInput!$B$15*RAND() -> 14.63040557 | R24: =(IF('Xi,Yi'!R24="","",(IF((('Xi,Yi'!R24+V24+U24/SQRT(3))<DataInput!$B$18),"",(IF((('Xi,Yi'!R24+V24+U24/SQRT(3))>DataInput!$B$19),"",(IF('Xi,Yi'!S24="","",(IF(('Xi,Yi'!S24+U24<DataInput!$B$20),"",(IF((('Xi,Yi'!S24+U24)>DataInput!$B$21),"",('Xi,Yi'!R24+V24+U24/SQRT(3)))))))))))))) ->  | S24: =IF(R24="","",(IF('Xi,Yi'!S24="","",(IF(('Xi,Yi'!S24+U24<DataInput!$B$20),"",(IF((('Xi,Yi'!S24+U24)>DataInput!$B$21),"",('Xi,Yi'!S24+U24)))))))) ->  | T24: =IF(R24="","",IF(S24="","",(DataInput!$B$4+(DataInput!$D$4-DataInput!$B$4)*RAND()))) ->  | U24: =DataInput!$B$16*RAND() -> 4.934853455 | V24: =DataInput!$B$15*RAND() -> 15.23525951 | W24: =(IF('Xi,Yi'!W24="","",(IF((('Xi,Yi'!W24+AA24+Z24/SQRT(3))<DataInput!$B$18),"",(IF((('Xi,Yi'!W24+AA24+Z24/SQRT(3))>DataInput!$B$19),"",(IF('Xi,Yi'!X24="","",(IF(('Xi,Yi'!X24+Z24<DataInput!$B$20),"",(IF((('Xi,Yi'!X24+Z24)>DataInput!$B$21),"",('Xi,Yi'!W24+AA24+Z24/SQRT(3)))))))))))))) ->  | X24: =IF(W24="","",(IF('Xi,Yi'!X24="","",(IF(('Xi,Yi'!X24+Z24<DataInput!$B$20),"",(IF((('Xi,Yi'!X24+Z24)>DataInput!$B$21),"",('Xi,Yi'!X24+Z24)))))))) ->  | Y24: =IF(W24="","",IF(X24="","",(DataInput!$B$4+(DataInput!$D$4-DataInput!$B$4)*RAND()))) ->  | Z24: =DataInput!$B$16*RAND() -> 1.669658966 | AA24: =DataInput!$B$15*RAND() -> 17.61035116 | AB24: =(IF('Xi,Yi'!AB24="","",(IF((('Xi,Yi'!AB24+AF24+AE24/SQRT(3))<DataInput!$B$18),"",(IF((('Xi,Yi'!AB24+AF24+AE24/SQRT(3))>DataInput!$B$19),"",(IF('Xi,Yi'!AC24="","",(IF(('Xi,Yi'!AC24+AE24<DataInput!$B$20),"",(IF((('Xi,Yi'!AC24+AE24)>DataInput!$B$21),"",('Xi,Yi'!AB24+AF24+AE24/SQRT(3)))))))))))))) ->  | AC24: =IF(AB24="","",(IF('Xi,Yi'!AC24="","",(IF(('Xi,Yi'!AC24+AE24<DataInput!$B$20),"",(IF((('Xi,Yi'!AC24+AE24)>DataInput!$B$21),"",('Xi,Yi'!AC24+AE24)))))))) ->  | AD24: =IF(AB24="","",IF(AC24="","",(DataInput!$B$4+(DataInput!$D$4-DataInput!$B$4)*RAND()))) ->  | AE24: =DataInput!$B$16*RAND() -> 7.56055582 | AF24: =DataInput!$B$15*RAND() -> 5.642135892 | AG24: =(IF('Xi,Yi'!AG24="","",(IF((('Xi,Yi'!AG24+AK24+AJ24/SQRT(3))<DataInput!$B$18),"",(IF((('Xi,Yi'!AG24+AK24+AJ24/SQRT(3))>DataInput!$B$19),"",(IF('Xi,Yi'!AH24="","",(IF(('Xi,Yi'!AH24+AJ24<DataInput!$B$20),"",(IF((('Xi,Yi'!AH24+AJ24)>DataInput!$B$21),"",('Xi,Yi'!AG24+AK24+AJ24/SQRT(3)))))))))))))) ->  | AH24: =IF(AG24="","",(IF('Xi,Yi'!AH24="","",(IF(('Xi,Yi'!AH24+AJ24<DataInput!$B$20),"",(IF((('Xi,Yi'!AH24+AJ24)>DataInput!$B$21),"",('Xi,Yi'!AH24+AJ24)))))))) ->  | AI24: =IF(AG24="","",IF(AH24="","",(DataInput!$B$4+(DataInput!$D$4-DataInput!$B$4)*RAND()))) ->  | AJ24: =DataInput!$B$16*RAND() -> 3.814051988 | AK24: =DataInput!$B$15*RAND() -> 15.56111968 | AL24: =(IF('Xi,Yi'!AL24="","",(IF((('Xi,Yi'!AL24+AP24+AO24/SQRT(3))<DataInput!$B$18),"",(IF((('Xi,Yi'!AL24+AP24+AO24/SQRT(3))>DataInput!$B$19),"",(IF('Xi,Yi'!AM24="","",(IF(('Xi,Yi'!AM24+AO24<DataInput!$B$20),"",(IF((('Xi,Yi'!AM24+AO24)>DataInput!$B$21),"",('Xi,Yi'!AL24+AP24+AO24/SQRT(3)))))))))))))) ->  | AM24: =IF(AL24="","",(IF('Xi,Yi'!AM24="","",(IF(('Xi,Yi'!AM24+AO24<DataInput!$B$20),"",(IF((('Xi,Yi'!AM24+AO24)>DataInput!$B$21),"",('Xi,Yi'!AM24+AO24)))))))) ->  | AN24: =IF(AL24="","",IF(AM24="","",(DataInput!$B$4+(DataInput!$D$4-DataInput!$B$4)*RAND()))) ->  | AO24: =DataInput!$B$16*RAND() -> 8.586524386 | AP24: =DataInput!$B$15*RAND() -> 9.987531851 | AQ24: =(IF('Xi,Yi'!AQ24="","",(IF((('Xi,Yi'!AQ24+AU24+AT24/SQRT(3))<DataInput!$B$18),"",(IF((('Xi,Yi'!AQ24+AU24+AT24/SQRT(3))>DataInput!$B$19),"",(IF('Xi,Yi'!AR24="","",(IF(('Xi,Yi'!AR24+AT24<DataInput!$B$20),"",(IF((('Xi,Yi'!AR24+AT24)>DataInput!$B$21),"",('Xi,Yi'!AQ24+AU24+AT24/SQRT(3)))))))))))))) ->  | AR24: =IF(AQ24="","",(IF('Xi,Yi'!AR24="","",(IF(('Xi,Yi'!AR24+AT24<DataInput!$B$20),"",(IF((('Xi,Yi'!AR24+AT24)>DataInput!$B$21),"",('Xi,Yi'!AR24+AT24)))))))) ->  | AS24: =IF(AQ24="","",IF(AR24="","",(DataInput!$B$4+(DataInput!$D$4-DataInput!$B$4)*RAND()))) ->  | AT24: =DataInput!$B$16*RAND() -> 5.187912722 | AU24: =DataInput!$B$15*RAND() -> 9.140039267 | AV24: =(IF('Xi,Yi'!AV24="","",(IF((('Xi,Yi'!AV24+AZ24+AY24/SQRT(3))<DataInput!$B$18),"",(IF((('Xi,Yi'!AV24+AZ24+AY24/SQRT(3))>DataInput!$B$19),"",(IF('Xi,Yi'!AW24="","",(IF(('Xi,Yi'!AW24+AY24<DataInput!$B$20),"",(IF((('Xi,Yi'!AW24+AY24)>DataInput!$B$21),"",('Xi,Yi'!AV24+AZ24+AY24/SQRT(3)))))))))))))) ->  | AW24: =IF(AV24="","",(IF('Xi,Yi'!AW24="","",(IF(('Xi,Yi'!AW24+AY24<DataInput!$B$20),"",(IF((('Xi,Yi'!AW24+AY24)>DataInput!$B$21),"",('Xi,Yi'!AW24+AY24)))))))) ->  | AX24: =IF(AV24="","",IF(AW24="","",(DataInput!$B$4+(DataInput!$D$4-DataInput!$B$4)*RAND()))) ->  | AY24: =DataInput!$B$16*RAND() -> 11.71309823 | AZ24: =DataInput!$B$15*RAND() -> 12.23583617 | BA24: =(IF('Xi,Yi'!BA24="","",(IF((('Xi,Yi'!BA24+BE24+BD24/SQRT(3))<DataInput!$B$18),"",(IF((('Xi,Yi'!BA24+BE24+BD24/SQRT(3))>DataInput!$B$19),"",(IF('Xi,Yi'!BB24="","",(IF(('Xi,Yi'!BB24+BD24<DataInput!$B$20),"",(IF((('Xi,Yi'!BB24+BD24)>DataInput!$B$21),"",('Xi,Yi'!BA24+BE24+BD24/SQRT(3)))))))))))))) ->  | BB24: =IF(BA24="","",(IF('Xi,Yi'!BB24="","",(IF(('Xi,Yi'!BB24+BD24<DataInput!$B$20),"",(IF((('Xi,Yi'!BB24+BD24)>DataInput!$B$21),"",('Xi,Yi'!BB24+BD24)))))))) ->  | BC24: =IF(BA24="","",IF(BB24="","",(DataInput!$B$4+(DataInput!$D$4-DataInput!$B$4)*RAND()))) ->  | BD24: =DataInput!$B$16*RAND() -> 5.071020597 | BE24: =DataInput!$B$15*RAND() -> 10.77442537
C25: =(IF('Xi,Yi'!C25="","",(IF((('Xi,Yi'!C25+G25+F25/SQRT(3))<DataInput!$B$18),"",(IF((('Xi,Yi'!C25+G25+F25/SQRT(3))>DataInput!$B$19),"",(IF('Xi,Yi'!D25="","",(IF(('Xi,Yi'!D25+F25<DataInput!$B$20),"",(IF((('Xi,Yi'!D25+F25)>DataInput!$B$21),"",('Xi,Yi'!C25+G25+F25/SQRT(3)))))))))))))) ->  | D25: =IF(C25="","",(IF('Xi,Yi'!D25="","",(IF(('Xi,Yi'!D25+F25<DataInput!$B$20),"",(IF((('Xi,Yi'!D25+F25)>DataInput!$B$21),"",('Xi,Yi'!D25+F25)))))))) ->  | E25: =IF(C25="","",IF(D25="","",(DataInput!$B$4+(DataInput!$D$4-DataInput!$B$4)*RAND()))) ->  | F25: =DataInput!$B$16*RAND() -> 11.2379765 | G25: =DataInput!$B$15*RAND() -> 15.29044438 | H25: =(IF('Xi,Yi'!H25="","",(IF((('Xi,Yi'!H25+L25+K25/SQRT(3))<DataInput!$B$18),"",(IF((('Xi,Yi'!H25+L25+K25/SQRT(3))>DataInput!$B$19),"",(IF('Xi,Yi'!I25="","",(IF(('Xi,Yi'!I25+K25<DataInput!$B$20),"",(IF((('Xi,Yi'!I25+K25)>DataInput!$B$21),"",('Xi,Yi'!H25+L25+K25/SQRT(3)))))))))))))) ->  | I25: =IF(H25="","",(IF('Xi,Yi'!I25="","",(IF(('Xi,Yi'!I25+K25<DataInput!$B$20),"",(IF((('Xi,Yi'!I25+K25)>DataInput!$B$21),"",('Xi,Yi'!I25+K25)))))))) ->  | J25: =IF(H25="","",IF(I25="","",(DataInput!$B$4+(DataInput!$D$4-DataInput!$B$4)*RAND()))) ->  | K25: =DataInput!$B$16*RAND() -> 2.846355633 | L25: =DataInput!$B$15*RAND() -> 11.90083163 | M25: =(IF('Xi,Yi'!M25="","",(IF((('Xi,Yi'!M25+Q25+P25/SQRT(3))<DataInput!$B$18),"",(IF((('Xi,Yi'!M25+Q25+P25/SQRT(3))>DataInput!$B$19),"",(IF('Xi,Yi'!N25="","",(IF(('Xi,Yi'!N25+P25<DataInput!$B$20),"",(IF((('Xi,Yi'!N25+P25)>DataInput!$B$21),"",('Xi,Yi'!M25+Q25+P25/SQRT(3)))))))))))))) ->  | N25: =IF(M25="","",(IF('Xi,Yi'!N25="","",(IF(('Xi,Yi'!N25+P25<DataInput!$B$20),"",(IF((('Xi,Yi'!N25+P25)>DataInput!$B$21),"",('Xi,Yi'!N25+P25)))))))) ->  | O25: =IF(M25="","",IF(N25="","",(DataInput!$B$4+(DataInput!$D$4-DataInput!$B$4)*RAND()))) ->  | P25: =DataInput!$B$16*RAND() -> 10.14908361 | Q25: =DataInput!$B$15*RAND() -> 12.20265276 | R25: =(IF('Xi,Yi'!R25="","",(IF((('Xi,Yi'!R25+V25+U25/SQRT(3))<DataInput!$B$18),"",(IF((('Xi,Yi'!R25+V25+U25/SQRT(3))>DataInput!$B$19),"",(IF('Xi,Yi'!S25="","",(IF(('Xi,Yi'!S25+U25<DataInput!$B$20),"",(IF((('Xi,Yi'!S25+U25)>DataInput!$B$21),"",('Xi,Yi'!R25+V25+U25/SQRT(3)))))))))))))) ->  | S25: =IF(R25="","",(IF('Xi,Yi'!S25="","",(IF(('Xi,Yi'!S25+U25<DataInput!$B$20),"",(IF((('Xi,Yi'!S25+U25)>DataInput!$B$21),"",('Xi,Yi'!S25+U25)))))))) ->  | T25: =IF(R25="","",IF(S25="","",(DataInput!$B$4+(DataInput!$D$4-DataInput!$B$4)*RAND()))) ->  | U25: =DataInput!$B$16*RAND() -> 16.60767782 | V25: =DataInput!$B$15*RAND() -> 18.13786328 | W25: =(IF('Xi,Yi'!W25="","",(IF((('Xi,Yi'!W25+AA25+Z25/SQRT(3))<DataInput!$B$18),"",(IF((('Xi,Yi'!W25+AA25+Z25/SQRT(3))>DataInput!$B$19),"",(IF('Xi,Yi'!X25="","",(IF(('Xi,Yi'!X25+Z25<DataInput!$B$20),"",(IF((('Xi,Yi'!X25+Z25)>DataInput!$B$21),"",('Xi,Yi'!W25+AA25+Z25/SQRT(3)))))))))))))) ->  | X25: =IF(W25="","",(IF('Xi,Yi'!X25="","",(IF(('Xi,Yi'!X25+Z25<DataInput!$B$20),"",(IF((('Xi,Yi'!X25+Z25)>DataInput!$B$21),"",('Xi,Yi'!X25+Z25)))))))) ->  | Y25: =IF(W25="","",IF(X25="","",(DataInput!$B$4+(DataInput!$D$4-DataInput!$B$4)*RAND()))) ->  | Z25: =DataInput!$B$16*RAND() -> 1.973397878 | AA25: =DataInput!$B$15*RAND() -> 18.36168896 | AB25: =(IF('Xi,Yi'!AB25="","",(IF((('Xi,Yi'!AB25+AF25+AE25/SQRT(3))<DataInput!$B$18),"",(IF((('Xi,Yi'!AB25+AF25+AE25/SQRT(3))>DataInput!$B$19),"",(IF('Xi,Yi'!AC25="","",(IF(('Xi,Yi'!AC25+AE25<DataInput!$B$20),"",(IF((('Xi,Yi'!AC25+AE25)>DataInput!$B$21),"",('Xi,Yi'!AB25+AF25+AE25/SQRT(3)))))))))))))) ->  | AC25: =IF(AB25="","",(IF('Xi,Yi'!AC25="","",(IF(('Xi,Yi'!AC25+AE25<DataInput!$B$20),"",(IF((('Xi,Yi'!AC25+AE25)>DataInput!$B$21),"",('Xi,Yi'!AC25+AE25)))))))) ->  | AD25: =IF(AB25="","",IF(AC25="","",(DataInput!$B$4+(DataInput!$D$4-DataInput!$B$4)*RAND()))) ->  | AE25: =DataInput!$B$16*RAND() -> 1.591044696 | AF25: =DataInput!$B$15*RAND() -> 15.71040708 | AG25: =(IF('Xi,Yi'!AG25="","",(IF((('Xi,Yi'!AG25+AK25+AJ25/SQRT(3))<DataInput!$B$18),"",(IF((('Xi,Yi'!AG25+AK25+AJ25/SQRT(3))>DataInput!$B$19),"",(IF('Xi,Yi'!AH25="","",(IF(('Xi,Yi'!AH25+AJ25<DataInput!$B$20),"",(IF((('Xi,Yi'!AH25+AJ25)>DataInput!$B$21),"",('Xi,Yi'!AG25+AK25+AJ25/SQRT(3)))))))))))))) ->  | AH25: =IF(AG25="","",(IF('Xi,Yi'!AH25="","",(IF(('Xi,Yi'!AH25+AJ25<DataInput!$B$20),"",(IF((('Xi,Yi'!AH25+AJ25)>DataInput!$B$21),"",('Xi,Yi'!AH25+AJ25)))))))) ->  | AI25: =IF(AG25="","",IF(AH25="","",(DataInput!$B$4+(DataInput!$D$4-DataInput!$B$4)*RAND()))) ->  | AJ25: =DataInput!$B$16*RAND() -> 7.706027019 | AK25: =DataInput!$B$15*RAND() -> 18.8916973 | AL25: =(IF('Xi,Yi'!AL25="","",(IF((('Xi,Yi'!AL25+AP25+AO25/SQRT(3))<DataInput!$B$18),"",(IF((('Xi,Yi'!AL25+AP25+AO25/SQRT(3))>DataInput!$B$19),"",(IF('Xi,Yi'!AM25="","",(IF(('Xi,Yi'!AM25+AO25<DataInput!$B$20),"",(IF((('Xi,Yi'!AM25+AO25)>DataInput!$B$21),"",('Xi,Yi'!AL25+AP25+AO25/SQRT(3)))))))))))))) ->  | AM25: =IF(AL25="","",(IF('Xi,Yi'!AM25="","",(IF(('Xi,Yi'!AM25+AO25<DataInput!$B$20),"",(IF((('Xi,Yi'!AM25+AO25)>DataInput!$B$21),"",('Xi,Yi'!AM25+AO25)))))))) ->  | AN25: =IF(AL25="","",IF(AM25="","",(DataInput!$B$4+(DataInput!$D$4-DataInput!$B$4)*RAND()))) ->  | AO25: =DataInput!$B$16*RAND() -> 15.60883005 | AP25: =DataInput!$B$15*RAND() -> 12.46635088 | AQ25: =(IF('Xi,Yi'!AQ25="","",(IF((('Xi,Yi'!AQ25+AU25+AT25/SQRT(3))<DataInput!$B$18),"",(IF((('Xi,Yi'!AQ25+AU25+AT25/SQRT(3))>DataInput!$B$19),"",(IF('Xi,Yi'!AR25="","",(IF(('Xi,Yi'!AR25+AT25<DataInput!$B$20),"",(IF((('Xi,Yi'!AR25+AT25)>DataInput!$B$21),"",('Xi,Yi'!AQ25+AU25+AT25/SQRT(3)))))))))))))) ->  | AR25: =IF(AQ25="","",(IF('Xi,Yi'!AR25="","",(IF(('Xi,Yi'!AR25+AT25<DataInput!$B$20),"",(IF((('Xi,Yi'!AR25+AT25)>DataInput!$B$21),"",('Xi,Yi'!AR25+AT25)))))))) ->  | AS25: =IF(AQ25="","",IF(AR25="","",(DataInput!$B$4+(DataInput!$D$4-DataInput!$B$4)*RAND()))) ->  | AT25: =DataInput!$B$16*RAND() -> 0.9231514033 | AU25: =DataInput!$B$15*RAND() -> 2.999711012 | AV25: =(IF('Xi,Yi'!AV25="","",(IF((('Xi,Yi'!AV25+AZ25+AY25/SQRT(3))<DataInput!$B$18),"",(IF((('Xi,Yi'!AV25+AZ25+AY25/SQRT(3))>DataInput!$B$19),"",(IF('Xi,Yi'!AW25="","",(IF(('Xi,Yi'!AW25+AY25<DataInput!$B$20),"",(IF((('Xi,Yi'!AW25+AY25)>DataInput!$B$21),"",('Xi,Yi'!AV25+AZ25+AY25/SQRT(3)))))))))))))) ->  | AW25: =IF(AV25="","",(IF('Xi,Yi'!AW25="","",(IF(('Xi,Yi'!AW25+AY25<DataInput!$B$20),"",(IF((('Xi,Yi'!AW25+AY25)>DataInput!$B$21),"",('Xi,Yi'!AW25+AY25)))))))) ->  | AX25: =IF(AV25="","",IF(AW25="","",(DataInput!$B$4+(DataInput!$D$4-DataInput!$B$4)*RAND()))) ->  | AY25: =DataInput!$B$16*RAND() -> 2.437962375 | AZ25: =DataInput!$B$15*RAND() -> 5.411218304 | BA25: =(IF('Xi,Yi'!BA25="","",(IF((('Xi,Yi'!BA25+BE25+BD25/SQRT(3))<DataInput!$B$18),"",(IF((('Xi,Yi'!BA25+BE25+BD25/SQRT(3))>DataInput!$B$19),"",(IF('Xi,Yi'!BB25="","",(IF(('Xi,Yi'!BB25+BD25<DataInput!$B$20),"",(IF((('Xi,Yi'!BB25+BD25)>DataInput!$B$21),"",('Xi,Yi'!BA25+BE25+BD25/SQRT(3)))))))))))))) ->  | BB25: =IF(BA25="","",(IF('Xi,Yi'!BB25="","",(IF(('Xi,Yi'!BB25+BD25<DataInput!$B$20),"",(IF((('Xi,Yi'!BB25+BD25)>DataInput!$B$21),"",('Xi,Yi'!BB25+BD25)))))))) ->  | BC25: =IF(BA25="","",IF(BB25="","",(DataInput!$B$4+(DataInput!$D$4-DataInput!$B$4)*RAND()))) ->  | BD25: =DataInput!$B$16*RAND() -> 6.487780324 | BE25: =DataInput!$B$15*RAND() -> 15.77498939
D26: =IF(C26="","",Grid!$E$14) -> 
D27: =IF(C27="","",Grid!$E$14) ->  | H27: -1st Row | M27: -2nd Row | R27: -3rd Row | W27: -4th Row | AB27: -5th Row | AG27: -6th Row | AL27: -7th Row | AQ27: -8th Row | AV27: -9th Row | BA27: -10th Row
D28: =IF(C28="","",Grid!$E$14) ->  | H28: Xi, | I28: Yi | J28: Zi | M28: Xi, | N28: Yi | O28: Zi | R28: Xi, | S28: Yi | T28: Zi | W28: Xi, | X28: Yi | Y28: Zi | AB28: Xi, | AC28: Yi | AD28: Zi | AG28: Xi, | AH28: Yi | AI28: Zi | AL28: Xi, | AM28: Yi | AN28: Zi | AQ28: Xi, | AR28: Yi | AS28: Zi | AV28: Xi, | AW28: Yi | AX28: Zi | BA28: Xi, | BB28: Yi | BC28: Zi
H29: =(IF('Xi,Yi'!H29="","",(IF((('Xi,Yi'!H29+L29+K29/SQRT(3))<DataInput!$B$18),"",(IF((('Xi,Yi'!H29+L29+K29/SQRT(3))>DataInput!$B$19),"",(IF('Xi,Yi'!I29="","",(IF(('Xi,Yi'!I29+K29<DataInput!$B$20),"",(IF((('Xi,Yi'!I29+K29)>DataInput!$B$21),"",('Xi,Yi'!H29+L29+K29/SQRT(3)))))))))))))) ->  | I29: =IF(H29="","",(IF('Xi,Yi'!I29="","",(IF(('Xi,Yi'!I29+K29<DataInput!$B$20),"",(IF((('Xi,Yi'!I29+K29)>DataInput!$B$21),"",('Xi,Yi'!I29+K29)))))))) ->  | J29: =IF(H29="","",IF(I29="","",(DataInput!$B$4+(DataInput!$D$4-DataInput!$B$4)*RAND()))) ->  | K29: =DataInput!$B$16*RAND() -> 16.52334113 | L29: =DataInput!$B$15*RAND() -> 8.553687244 | M29: =(IF('Xi,Yi'!M29="","",(IF((('Xi,Yi'!M29+Q29+P29/SQRT(3))<DataInput!$B$18),"",(IF((('Xi,Yi'!M29+Q29+P29/SQRT(3))>DataInput!$B$19),"",(IF('Xi,Yi'!N29="","",(IF(('Xi,Yi'!N29+P29<DataInput!$B$20),"",(IF((('Xi,Yi'!N29+P29)>DataInput!$B$21),"",('Xi,Yi'!M29+Q29+P29/SQRT(3)))))))))))))) ->  | N29: =IF(M29="","",(IF('Xi,Yi'!N29="","",(IF(('Xi,Yi'!N29+P29<DataInput!$B$20),"",(IF((('Xi,Yi'!N29+P29)>DataInput!$B$21),"",('Xi,Yi'!N29+P29)))))))) ->  | O29: =IF(M29="","",IF(N29="","",(DataInput!$B$4+(DataInput!$D$4-DataInput!$B$4)*RAND()))) ->  | P29: =DataInput!$B$16*RAND() -> 2.139781909 | Q29: =DataInput!$B$15*RAND() -> 3.270526274 | R29: =(IF('Xi,Yi'!R29="","",(IF((('Xi,Yi'!R29+V29+U29/SQRT(3))<DataInput!$B$18),"",(IF((('Xi,Yi'!R29+V29+U29/SQRT(3))>DataInput!$B$19),"",(IF('Xi,Yi'!S29="","",(IF(('Xi,Yi'!S29+U29<DataInput!$B$20),"",(IF((('Xi,Yi'!S29+U29)>DataInput!$B$21),"",('Xi,Yi'!R29+V29+U29/SQRT(3)))))))))))))) ->  | S29: =IF(R29="","",(IF('Xi,Yi'!S29="","",(IF(('Xi,Yi'!S29+U29<DataInput!$B$20),"",(IF((('Xi,Yi'!S29+U29)>DataInput!$B$21),"",('Xi,Yi'!S29+U29)))))))) ->  | T29: =IF(R29="","",IF(S29="","",(DataInput!$B$4+(DataInput!$D$4-DataInput!$B$4)*RAND()))) ->  | U29: =DataInput!$B$16*RAND() -> 6.549903398 | V29: =DataInput!$B$15*RAND() -> 14.78785588 | W29: =(IF('Xi,Yi'!W29="","",(IF((('Xi,Yi'!W29+AA29+Z29/SQRT(3))<DataInput!$B$18),"",(IF((('Xi,Yi'!W29+AA29+Z29/SQRT(3))>DataInput!$B$19),"",(IF('Xi,Yi'!X29="","",(IF(('Xi,Yi'!X29+Z29<DataInput!$B$20),"",(IF((('Xi,Yi'!X29+Z29)>DataInput!$B$21),"",('Xi,Yi'!W29+AA29+Z29/SQRT(3)))))))))))))) ->  | X29: =IF(W29="","",(IF('Xi,Yi'!X29="","",(IF(('Xi,Yi'!X29+Z29<DataInput!$B$20),"",(IF((('Xi,Yi'!X29+Z29)>DataInput!$B$21),"",('Xi,Yi'!X29+Z29)))))))) ->  | Y29: =IF(W29="","",IF(X29="","",(DataInput!$B$4+(DataInput!$D$4-DataInput!$B$4)*RAND()))) ->  | Z29: =DataInput!$B$16*RAND() -> 5.73602807 | AA29: =DataInput!$B$15*RAND() -> 17.82304961 | AB29: =(IF('Xi,Yi'!AB29="","",(IF((('Xi,Yi'!AB29+AF29+AE29/SQRT(3))<DataInput!$B$18),"",(IF((('Xi,Yi'!AB29+AF29+AE29/SQRT(3))>DataInput!$B$19),"",(IF('Xi,Yi'!AC29="","",(IF(('Xi,Yi'!AC29+AE29<DataInput!$B$20),"",(IF((('Xi,Yi'!AC29+AE29)>DataInput!$B$21),"",('Xi,Yi'!AB29+AF29+AE29/SQRT(3)))))))))))))) ->  | AC29: =IF(AB29="","",(IF('Xi,Yi'!AC29="","",(IF(('Xi,Yi'!AC29+AE29<DataInput!$B$20),"",(IF((('Xi,Yi'!AC29+AE29)>DataInput!$B$21),"",('Xi,Yi'!AC29+AE29)))))))) ->  | AD29: =IF(AB29="","",IF(AC29="","",(DataInput!$B$4+(DataInput!$D$4-DataInput!$B$4)*RAND()))) ->  | AE29: =DataInput!$B$16*RAND() -> 15.24497794 | AF29: =DataInput!$B$15*RAND() -> 9.8742071 | AG29: =(IF('Xi,Yi'!AG29="","",(IF((('Xi,Yi'!AG29+AK29+AJ29/SQRT(3))<DataInput!$B$18),"",(IF((('Xi,Yi'!AG29+AK29+AJ29/SQRT(3))>DataInput!$B$19),"",(IF('Xi,Yi'!AH29="","",(IF(('Xi,Yi'!AH29+AJ29<DataInput!$B$20),"",(IF((('Xi,Yi'!AH29+AJ29)>DataInput!$B$21),"",('Xi,Yi'!AG29+AK29+AJ29/SQRT(3)))))))))))))) ->  | AH29: =IF(AG29="","",(IF('Xi,Yi'!AH29="","",(IF(('Xi,Yi'!AH29+AJ29<DataInput!$B$20),"",(IF((('Xi,Yi'!AH29+AJ29)>DataInput!$B$21),"",('Xi,Yi'!AH29+AJ29)))))))) ->  | AI29: =IF(AG29="","",IF(AH29="","",(DataInput!$B$4+(DataInput!$D$4-DataInput!$B$4)*RAND()))) ->  | AJ29: =DataInput!$B$16*RAND() -> 12.79458177 | AK29: =DataInput!$B$15*RAND() -> 13.81205493 | AL29: =(IF('Xi,Yi'!AL29="","",(IF((('Xi,Yi'!AL29+AP29+AO29/SQRT(3))<DataInput!$B$18),"",(IF((('Xi,Yi'!AL29+AP29+AO29/SQRT(3))>DataInput!$B$19),"",(IF('Xi,Yi'!AM29="","",(IF(('Xi,Yi'!AM29+AO29<DataInput!$B$20),"",(IF((('Xi,Yi'!AM29+AO29)>DataInput!$B$21),"",('Xi,Yi'!AL29+AP29+AO29/SQRT(3)))))))))))))) ->  | AM29: =IF(AL29="","",(IF('Xi,Yi'!AM29="","",(IF(('Xi,Yi'!AM29+AO29<DataInput!$B$20),"",(IF((('Xi,Yi'!AM29+AO29)>DataInput!$B$21),"",('Xi,Yi'!AM29+AO29)))))))) ->  | AN29: =IF(AL29="","",IF(AM29="","",(DataInput!$B$4+(DataInput!$D$4-DataInput!$B$4)*RAND()))) ->  | AO29: =DataInput!$B$16*RAND() -> 6.78178891 | AP29: =DataInput!$B$15*RAND() -> 16.89872863 | AQ29: =(IF('Xi,Yi'!AQ29="","",(IF((('Xi,Yi'!AQ29+AU29+AT29/SQRT(3))<DataInput!$B$18),"",(IF((('Xi,Yi'!AQ29+AU29+AT29/SQRT(3))>DataInput!$B$19),"",(IF('Xi,Yi'!AR29="","",(IF(('Xi,Yi'!AR29+AT29<DataInput!$B$20),"",(IF((('Xi,Yi'!AR29+AT29)>DataInput!$B$21),"",('Xi,Yi'!AQ29+AU29+AT29/SQRT(3)))))))))))))) ->  | AR29: =IF(AQ29="","",(IF('Xi,Yi'!AR29="","",(IF(('Xi,Yi'!AR29+AT29<DataInput!$B$20),"",(IF((('Xi,Yi'!AR29+AT29)>DataInput!$B$21),"",('Xi,Yi'!AR29+AT29)))))))) ->  | AS29: =IF(AQ29="","",IF(AR29="","",(DataInput!$B$4+(DataInput!$D$4-DataInput!$B$4)*RAND()))) ->  | AT29: =DataInput!$B$16*RAND() -> 15.03687797 | AU29: =DataInput!$B$15*RAND() -> 0.6683426428 | AV29: =(IF('Xi,Yi'!AV29="","",(IF((('Xi,Yi'!AV29+AZ29+AY29/SQRT(3))<DataInput!$B$18),"",(IF((('Xi,Yi'!AV29+AZ29+AY29/SQRT(3))>DataInput!$B$19),"",(IF('Xi,Yi'!AW29="","",(IF(('Xi,Yi'!AW29+AY29<DataInput!$B$20),"",(IF((('Xi,Yi'!AW29+AY29)>DataInput!$B$21),"",('Xi,Yi'!AV29+AZ29+AY29/SQRT(3)))))))))))))) ->  | AW29: =IF(AV29="","",(IF('Xi,Yi'!AW29="","",(IF(('Xi,Yi'!AW29+AY29<DataInput!$B$20),"",(IF((('Xi,Yi'!AW29+AY29)>DataInput!$B$21),"",('Xi,Yi'!AW29+AY29)))))))) ->  | AX29: =IF(AV29="","",IF(AW29="","",(DataInput!$B$4+(DataInput!$D$4-DataInput!$B$4)*RAND()))) ->  | AY29: =DataInput!$B$16*RAND() -> 0.9636339736 | AZ29: =DataInput!$B$15*RAND() -> 18.5460018 | BA29: =(IF('Xi,Yi'!BA29="","",(IF((('Xi,Yi'!BA29+BE29+BD29/SQRT(3))<DataInput!$B$18),"",(IF((('Xi,Yi'!BA29+BE29+BD29/SQRT(3))>DataInput!$B$19),"",(IF('Xi,Yi'!BB29="","",(IF(('Xi,Yi'!BB29+BD29<DataInput!$B$20),"",(IF((('Xi,Yi'!BB29+BD29)>DataInput!$B$21),"",('Xi,Yi'!BA29+BE29+BD29/SQRT(3)))))))))))))) ->  | BB29: =IF(BA29="","",(IF('Xi,Yi'!BB29="","",(IF(('Xi,Yi'!BB29+BD29<DataInput!$B$20),"",(IF((('Xi,Yi'!BB29+BD29)>DataInput!$B$21),"",('Xi,Yi'!BB29+BD29)))))))) ->  | BC29: =IF(BA29="","",IF(BB29="","",(DataInput!$B$4+(DataInput!$D$4-DataInput!$B$4)*RAND()))) ->  | BD29: =DataInput!$B$16*RAND() -> 4.289537216 | BE29: =DataInput!$B$15*RAND() -> 0.8554313375
H30: =(IF('Xi,Yi'!H30="","",(IF((('Xi,Yi'!H30+L30+K30/SQRT(3))<DataInput!$B$18),"",(IF((('Xi,Yi'!H30+L30+K30/SQRT(3))>DataInput!$B$19),"",(IF('Xi,Yi'!I30="","",(IF(('Xi,Yi'!I30+K30<DataInput!$B$20),"",(IF((('Xi,Yi'!I30+K30)>DataInput!$B$21),"",('Xi,Yi'!H30+L30+K30/SQRT(3)))))))))))))) ->  | I30: =IF(H30="","",(IF('Xi,Yi'!I30="","",(IF(('Xi,Yi'!I30+K30<DataInput!$B$20),"",(IF((('Xi,Yi'!I30+K30)>DataInput!$B$21),"",('Xi,Yi'!I30+K30)))))))) ->  | J30: =IF(H30="","",IF(I30="","",(DataInput!$B$4+(DataInput!$D$4-DataInput!$B$4)*RAND()))) ->  | K30: =DataInput!$B$16*RAND() -> 12.5384515 | L30: =DataInput!$B$15*RAND() -> 16.10984556 | M30: =(IF('Xi,Yi'!M30="","",(IF((('Xi,Yi'!M30+Q30+P30/SQRT(3))<DataInput!$B$18),"",(IF((('Xi,Yi'!M30+Q30+P30/SQRT(3))>DataInput!$B$19),"",(IF('Xi,Yi'!N30="","",(IF(('Xi,Yi'!N30+P30<DataInput!$B$20),"",(IF((('Xi,Yi'!N30+P30)>DataInput!$B$21),"",('Xi,Yi'!M30+Q30+P30/SQRT(3)))))))))))))) ->  | N30: =IF(M30="","",(IF('Xi,Yi'!N30="","",(IF(('Xi,Yi'!N30+P30<DataInput!$B$20),"",(IF((('Xi,Yi'!N30+P30)>DataInput!$B$21),"",('Xi,Yi'!N30+P30)))))))) ->  | O30: =IF(M30="","",IF(N30="","",(DataInput!$B$4+(DataInput!$D$4-DataInput!$B$4)*RAND()))) ->  | P30: =DataInput!$B$16*RAND() -> 15.49864012 | Q30: =DataInput!$B$15*RAND() -> 6.863245696 | R30: =(IF('Xi,Yi'!R30="","",(IF((('Xi,Yi'!R30+V30+U30/SQRT(3))<DataInput!$B$18),"",(IF((('Xi,Yi'!R30+V30+U30/SQRT(3))>DataInput!$B$19),"",(IF('Xi,Yi'!S30="","",(IF(('Xi,Yi'!S30+U30<DataInput!$B$20),"",(IF((('Xi,Yi'!S30+U30)>DataInput!$B$21),"",('Xi,Yi'!R30+V30+U30/SQRT(3)))))))))))))) ->  | S30: =IF(R30="","",(IF('Xi,Yi'!S30="","",(IF(('Xi,Yi'!S30+U30<DataInput!$B$20),"",(IF((('Xi,Yi'!S30+U30)>DataInput!$B$21),"",('Xi,Yi'!S30+U30)))))))) ->  | T30: =IF(R30="","",IF(S30="","",(DataInput!$B$4+(DataInput!$D$4-DataInput!$B$4)*RAND()))) ->  | U30: =DataInput!$B$16*RAND() -> 3.737763476 | V30: =DataInput!$B$15*RAND() -> 6.0041982 | W30: =(IF('Xi,Yi'!W30="","",(IF((('Xi,Yi'!W30+AA30+Z30/SQRT(3))<DataInput!$B$18),"",(IF((('Xi,Yi'!W30+AA30+Z30/SQRT(3))>DataInput!$B$19),"",(IF('Xi,Yi'!X30="","",(IF(('Xi,Yi'!X30+Z30<DataInput!$B$20),"",(IF((('Xi,Yi'!X30+Z30)>DataInput!$B$21),"",('Xi,Yi'!W30+AA30+Z30/SQRT(3)))))))))))))) ->  | X30: =IF(W30="","",(IF('Xi,Yi'!X30="","",(IF(('Xi,Yi'!X30+Z30<DataInput!$B$20),"",(IF((('Xi,Yi'!X30+Z30)>DataInput!$B$21),"",('Xi,Yi'!X30+Z30)))))))) ->  | Y30: =IF(W30="","",IF(X30="","",(DataInput!$B$4+(DataInput!$D$4-DataInput!$B$4)*RAND()))) ->  | Z30: =DataInput!$B$16*RAND() -> 14.01566727 | AA30: =DataInput!$B$15*RAND() -> 5.770595924 | AB30: =(IF('Xi,Yi'!AB30="","",(IF((('Xi,Yi'!AB30+AF30+AE30/SQRT(3))<DataInput!$B$18),"",(IF((('Xi,Yi'!AB30+AF30+AE30/SQRT(3))>DataInput!$B$19),"",(IF('Xi,Yi'!AC30="","",(IF(('Xi,Yi'!AC30+AE30<DataInput!$B$20),"",(IF((('Xi,Yi'!AC30+AE30)>DataInput!$B$21),"",('Xi,Yi'!AB30+AF30+AE30/SQRT(3)))))))))))))) ->  | AC30: =IF(AB30="","",(IF('Xi,Yi'!AC30="","",(IF(('Xi,Yi'!AC30+AE30<DataInput!$B$20),"",(IF((('Xi,Yi'!AC30+AE30)>DataInput!$B$21),"",('Xi,Yi'!AC30+AE30)))))))) ->  | AD30: =IF(AB30="","",IF(AC30="","",(DataInput!$B$4+(DataInput!$D$4-DataInput!$B$4)*RAND()))) ->  | AE30: =DataInput!$B$16*RAND() -> 8.234378911 | AF30: =DataInput!$B$15*RAND() -> 18.32994028 | AG30: =(IF('Xi,Yi'!AG30="","",(IF((('Xi,Yi'!AG30+AK30+AJ30/SQRT(3))<DataInput!$B$18),"",(IF((('Xi,Yi'!AG30+AK30+AJ30/SQRT(3))>DataInput!$B$19),"",(IF('Xi,Yi'!AH30="","",(IF(('Xi,Yi'!AH30+AJ30<DataInput!$B$20),"",(IF((('Xi,Yi'!AH30+AJ30)>DataInput!$B$21),"",('Xi,Yi'!AG30+AK30+AJ30/SQRT(3)))))))))))))) ->  | AH30: =IF(AG30="","",(IF('Xi,Yi'!AH30="","",(IF(('Xi,Yi'!AH30+AJ30<DataInput!$B$20),"",(IF((('Xi,Yi'!AH30+AJ30)>DataInput!$B$21),"",('Xi,Yi'!AH30+AJ30)))))))) ->  | AI30: =IF(AG30="","",IF(AH30="","",(DataInput!$B$4+(DataInput!$D$4-DataInput!$B$4)*RAND()))) ->  | AJ30: =DataInput!$B$16*RAND() -> 7.836381761 | AK30: =DataInput!$B$15*RAND() -> 17.96385363 | AL30: =(IF('Xi,Yi'!AL30="","",(IF((('Xi,Yi'!AL30+AP30+AO30/SQRT(3))<DataInput!$B$18),"",(IF((('Xi,Yi'!AL30+AP30+AO30/SQRT(3))>DataInput!$B$19),"",(IF('Xi,Yi'!AM30="","",(IF(('Xi,Yi'!AM30+AO30<DataInput!$B$20),"",(IF((('Xi,Yi'!AM30+AO30)>DataInput!$B$21),"",('Xi,Yi'!AL30+AP30+AO30/SQRT(3)))))))))))))) ->  | AM30: =IF(AL30="","",(IF('Xi,Yi'!AM30="","",(IF(('Xi,Yi'!AM30+AO30<DataInput!$B$20),"",(IF((('Xi,Yi'!AM30+AO30)>DataInput!$B$21),"",('Xi,Yi'!AM30+AO30)))))))) ->  | AN30: =IF(AL30="","",IF(AM30="","",(DataInput!$B$4+(DataInput!$D$4-DataInput!$B$4)*RAND()))) ->  | AO30: =DataInput!$B$16*RAND() -> 10.16499525 | AP30: =DataInput!$B$15*RAND() -> 3.219811568 | AQ30: =(IF('Xi,Yi'!AQ30="","",(IF((('Xi,Yi'!AQ30+AU30+AT30/SQRT(3))<DataInput!$B$18),"",(IF((('Xi,Yi'!AQ30+AU30+AT30/SQRT(3))>DataInput!$B$19),"",(IF('Xi,Yi'!AR30="","",(IF(('Xi,Yi'!AR30+AT30<DataInput!$B$20),"",(IF((('Xi,Yi'!AR30+AT30)>DataInput!$B$21),"",('Xi,Yi'!AQ30+AU30+AT30/SQRT(3)))))))))))))) ->  | AR30: =IF(AQ30="","",(IF('Xi,Yi'!AR30="","",(IF(('Xi,Yi'!AR30+AT30<DataInput!$B$20),"",(IF((('Xi,Yi'!AR30+AT30)>DataInput!$B$21),"",('Xi,Yi'!AR30+AT30)))))))) ->  | AS30: =IF(AQ30="","",IF(AR30="","",(DataInput!$B$4+(DataInput!$D$4-DataInput!$B$4)*RAND()))) ->  | AT30: =DataInput!$B$16*RAND() -> 14.91509104 | AU30: =DataInput!$B$15*RAND() -> 3.595532924 | AV30: =(IF('Xi,Yi'!AV30="","",(IF((('Xi,Yi'!AV30+AZ30+AY30/SQRT(3))<DataInput!$B$18),"",(IF((('Xi,Yi'!AV30+AZ30+AY30/SQRT(3))>DataInput!$B$19),"",(IF('Xi,Yi'!AW30="","",(IF(('Xi,Yi'!AW30+AY30<DataInput!$B$20),"",(IF((('Xi,Yi'!AW30+AY30)>DataInput!$B$21),"",('Xi,Yi'!AV30+AZ30+AY30/SQRT(3)))))))))))))) ->  | AW30: =IF(AV30="","",(IF('Xi,Yi'!AW30="","",(IF(('Xi,Yi'!AW30+AY30<DataInput!$B$20),"",(IF((('Xi,Yi'!AW30+AY30)>DataInput!$B$21),"",('Xi,Yi'!AW30+AY30)))))))) ->  | AX30: =IF(AV30="","",IF(AW30="","",(DataInput!$B$4+(DataInput!$D$4-DataInput!$B$4)*RAND()))) ->  | AY30: =DataInput!$B$16*RAND() -> 12.22755212 | AZ30: =DataInput!$B$15*RAND() -> 14.93922167 | BA30: =(IF('Xi,Yi'!BA30="","",(IF((('Xi,Yi'!BA30+BE30+BD30/SQRT(3))<DataInput!$B$18),"",(IF((('Xi,Yi'!BA30+BE30+BD30/SQRT(3))>DataInput!$B$19),"",(IF('Xi,Yi'!BB30="","",(IF(('Xi,Yi'!BB30+BD30<DataInput!$B$20),"",(IF((('Xi,Yi'!BB30+BD30)>DataInput!$B$21),"",('Xi,Yi'!BA30+BE30+BD30/SQRT(3)))))))))))))) ->  | BB30: =IF(BA30="","",(IF('Xi,Yi'!BB30="","",(IF(('Xi,Yi'!BB30+BD30<DataInput!$B$20),"",(IF((('Xi,Yi'!BB30+BD30)>DataInput!$B$21),"",('Xi,Yi'!BB30+BD30)))))))) ->  | BC30: =IF(BA30="","",IF(BB30="","",(DataInput!$B$4+(DataInput!$D$4-DataInput!$B$4)*RAND()))) ->  | BD30: =DataInput!$B$16*RAND() -> 5.346691518 | BE30: =DataInput!$B$15*RAND() -> 7.601711637
H31: =(IF('Xi,Yi'!H31="","",(IF((('Xi,Yi'!H31+L31+K31/SQRT(3))<DataInput!$B$18),"",(IF((('Xi,Yi'!H31+L31+K31/SQRT(3))>DataInput!$B$19),"",(IF('Xi,Yi'!I31="","",(IF(('Xi,Yi'!I31+K31<DataInput!$B$20),"",(IF((('Xi,Yi'!I31+K31)>DataInput!$B$21),"",('Xi,Yi'!H31+L31+K31/SQRT(3)))))))))))))) ->  | I31: =IF(H31="","",(IF('Xi,Yi'!I31="","",(IF(('Xi,Yi'!I31+K31<DataInput!$B$20),"",(IF((('Xi,Yi'!I31+K31)>DataInput!$B$21),"",('Xi,Yi'!I31+K31)))))))) ->  | J31: =IF(H31="","",IF(I31="","",(DataInput!$B$4+(DataInput!$D$4-DataInput!$B$4)*RAND()))) ->  | K31: =DataInput!$B$16*RAND() -> 12.23733392 | L31: =DataInput!$B$15*RAND() -> 17.94961817 | M31: =(IF('Xi,Yi'!M31="","",(IF((('Xi,Yi'!M31+Q31+P31/SQRT(3))<DataInput!$B$18),"",(IF((('Xi,Yi'!M31+Q31+P31/SQRT(3))>DataInput!$B$19),"",(IF('Xi,Yi'!N31="","",(IF(('Xi,Yi'!N31+P31<DataInput!$B$20),"",(IF((('Xi,Yi'!N31+P31)>DataInput!$B$21),"",('Xi,Yi'!M31+Q31+P31/SQRT(3)))))))))))))) ->  | N31: =IF(M31="","",(IF('Xi,Yi'!N31="","",(IF(('Xi,Yi'!N31+P31<DataInput!$B$20),"",(IF((('Xi,Yi'!N31+P31)>DataInput!$B$21),"",('Xi,Yi'!N31+P31)))))))) ->  | O31: =IF(M31="","",IF(N31="","",(DataInput!$B$4+(DataInput!$D$4-DataInput!$B$4)*RAND()))) ->  | P31: =DataInput!$B$16*RAND() -> 15.95261106 | Q31: =DataInput!$B$15*RAND() -> 5.649495455 | R31: =(IF('Xi,Yi'!R31="","",(IF((('Xi,Yi'!R31+V31+U31/SQRT(3))<DataInput!$B$18),"",(IF((('Xi,Yi'!R31+V31+U31/SQRT(3))>DataInput!$B$19),"",(IF('Xi,Yi'!S31="","",(IF(('Xi,Yi'!S31+U31<DataInput!$B$20),"",(IF((('Xi,Yi'!S31+U31)>DataInput!$B$21),"",('Xi,Yi'!R31+V31+U31/SQRT(3)))))))))))))) ->  | S31: =IF(R31="","",(IF('Xi,Yi'!S31="","",(IF(('Xi,Yi'!S31+U31<DataInput!$B$20),"",(IF((('Xi,Yi'!S31+U31)>DataInput!$B$21),"",('Xi,Yi'!S31+U31)))))))) ->  | T31: =IF(R31="","",IF(S31="","",(DataInput!$B$4+(DataInput!$D$4-DataInput!$B$4)*RAND()))) ->  | U31: =DataInput!$B$16*RAND() -> 4.170923235 | V31: =DataInput!$B$15*RAND() -> 5.455951564 | W31: =(IF('Xi,Yi'!W31="","",(IF((('Xi,Yi'!W31+AA31+Z31/SQRT(3))<DataInput!$B$18),"",(IF((('Xi,Yi'!W31+AA31+Z31/SQRT(3))>DataInput!$B$19),"",(IF('Xi,Yi'!X31="","",(IF(('Xi,Yi'!X31+Z31<DataInput!$B$20),"",(IF((('Xi,Yi'!X31+Z31)>DataInput!$B$21),"",('Xi,Yi'!W31+AA31+Z31/SQRT(3)))))))))))))) ->  | X31: =IF(W31="","",(IF('Xi,Yi'!X31="","",(IF(('Xi,Yi'!X31+Z31<DataInput!$B$20),"",(IF((('Xi,Yi'!X31+Z31)>DataInput!$B$21),"",('Xi,Yi'!X31+Z31)))))))) ->  | Y31: =IF(W31="","",IF(X31="","",(DataInput!$B$4+(DataInput!$D$4-DataInput!$B$4)*RAND()))) ->  | Z31: =DataInput!$B$16*RAND() -> 6.05953193 | AA31: =DataInput!$B$15*RAND() -> 4.934427928 | AB31: =(IF('Xi,Yi'!AB31="","",(IF((('Xi,Yi'!AB31+AF31+AE31/SQRT(3))<DataInput!$B$18),"",(IF((('Xi,Yi'!AB31+AF31+AE31/SQRT(3))>DataInput!$B$19),"",(IF('Xi,Yi'!AC31="","",(IF(('Xi,Yi'!AC31+AE31<DataInput!$B$20),"",(IF((('Xi,Yi'!AC31+AE31)>DataInput!$B$21),"",('Xi,Yi'!AB31+AF31+AE31/SQRT(3)))))))))))))) ->  | AC31: =IF(AB31="","",(IF('Xi,Yi'!AC31="","",(IF(('Xi,Yi'!AC31+AE31<DataInput!$B$20),"",(IF((('Xi,Yi'!AC31+AE31)>DataInput!$B$21),"",('Xi,Yi'!AC31+AE31)))))))) ->  | AD31: =IF(AB31="","",IF(AC31="","",(DataInput!$B$4+(DataInput!$D$4-DataInput!$B$4)*RAND()))) ->  | AE31: =DataInput!$B$16*RAND() -> 15.84116802 | AF31: =DataInput!$B$15*RAND() -> 3.396061186 | AG31: =(IF('Xi,Yi'!AG31="","",(IF((('Xi,Yi'!AG31+AK31+AJ31/SQRT(3))<DataInput!$B$18),"",(IF((('Xi,Yi'!AG31+AK31+AJ31/SQRT(3))>DataInput!$B$19),"",(IF('Xi,Yi'!AH31="","",(IF(('Xi,Yi'!AH31+AJ31<DataInput!$B$20),"",(IF((('Xi,Yi'!AH31+AJ31)>DataInput!$B$21),"",('Xi,Yi'!AG31+AK31+AJ31/SQRT(3)))))))))))))) ->  | AH31: =IF(AG31="","",(IF('Xi,Yi'!AH31="","",(IF(('Xi,Yi'!AH31+AJ31<DataInput!$B$20),"",(IF((('Xi,Yi'!AH31+AJ31)>DataInput!$B$21),"",('Xi,Yi'!AH31+AJ31)))))))) ->  | AI31: =IF(AG31="","",IF(AH31="","",(DataInput!$B$4+(DataInput!$D$4-DataInput!$B$4)*RAND()))) ->  | AJ31: =DataInput!$B$16*RAND() -> 6.09385117 | AK31: =DataInput!$B$15*RAND() -> 7.661463881 | AL31: =(IF('Xi,Yi'!AL31="","",(IF((('Xi,Yi'!AL31+AP31+AO31/SQRT(3))<DataInput!$B$18),"",(IF((('Xi,Yi'!AL31+AP31+AO31/SQRT(3))>DataInput!$B$19),"",(IF('Xi,Yi'!AM31="","",(IF(('Xi,Yi'!AM31+AO31<DataInput!$B$20),"",(IF((('Xi,Yi'!AM31+AO31)>DataInput!$B$21),"",('Xi,Yi'!AL31+AP31+AO31/SQRT(3)))))))))))))) ->  | AM31: =IF(AL31="","",(IF('Xi,Yi'!AM31="","",(IF(('Xi,Yi'!AM31+AO31<DataInput!$B$20),"",(IF((('Xi,Yi'!AM31+AO31)>DataInput!$B$21),"",('Xi,Yi'!AM31+AO31)))))))) ->  | AN31: =IF(AL31="","",IF(AM31="","",(DataInput!$B$4+(DataInput!$D$4-DataInput!$B$4)*RAND()))) ->  | AO31: =DataInput!$B$16*RAND() -> 10.88928301 | AP31: =DataInput!$B$15*RAND() -> 13.71341262 | AQ31: =(IF('Xi,Yi'!AQ31="","",(IF((('Xi,Yi'!AQ31+AU31+AT31/SQRT(3))<DataInput!$B$18),"",(IF((('Xi,Yi'!AQ31+AU31+AT31/SQRT(3))>DataInput!$B$19),"",(IF('Xi,Yi'!AR31="","",(IF(('Xi,Yi'!AR31+AT31<DataInput!$B$20),"",(IF((('Xi,Yi'!AR31+AT31)>DataInput!$B$21),"",('Xi,Yi'!AQ31+AU31+AT31/SQRT(3)))))))))))))) ->  | AR31: =IF(AQ31="","",(IF('Xi,Yi'!AR31="","",(IF(('Xi,Yi'!AR31+AT31<DataInput!$B$20),"",(IF((('Xi,Yi'!AR31+AT31)>DataInput!$B$21),"",('Xi,Yi'!AR31+AT31)))))))) ->  | AS31: =IF(AQ31="","",IF(AR31="","",(DataInput!$B$4+(DataInput!$D$4-DataInput!$B$4)*RAND()))) ->  | AT31: =DataInput!$B$16*RAND() -> 12.99023062 | AU31: =DataInput!$B$15*RAND() -> 0.4812175751 | AV31: =(IF('Xi,Yi'!AV31="","",(IF((('Xi,Yi'!AV31+AZ31+AY31/SQRT(3))<DataInput!$B$18),"",(IF((('Xi,Yi'!AV31+AZ31+AY31/SQRT(3))>DataInput!$B$19),"",(IF('Xi,Yi'!AW31="","",(IF(('Xi,Yi'!AW31+AY31<DataInput!$B$20),"",(IF((('Xi,Yi'!AW31+AY31)>DataInput!$B$21),"",('Xi,Yi'!AV31+AZ31+AY31/SQRT(3)))))))))))))) ->  | AW31: =IF(AV31="","",(IF('Xi,Yi'!AW31="","",(IF(('Xi,Yi'!AW31+AY31<DataInput!$B$20),"",(IF((('Xi,Yi'!AW31+AY31)>DataInput!$B$21),"",('Xi,Yi'!AW31+AY31)))))))) ->  | AX31: =IF(AV31="","",IF(AW31="","",(DataInput!$B$4+(DataInput!$D$4-DataInput!$B$4)*RAND()))) ->  | AY31: =DataInput!$B$16*RAND() -> 1.563098392 | AZ31: =DataInput!$B$15*RAND() -> 3.268297094 | BA31: =(IF('Xi,Yi'!BA31="","",(IF((('Xi,Yi'!BA31+BE31+BD31/SQRT(3))<DataInput!$B$18),"",(IF((('Xi,Yi'!BA31+BE31+BD31/SQRT(3))>DataInput!$B$19),"",(IF('Xi,Yi'!BB31="","",(IF(('Xi,Yi'!BB31+BD31<DataInput!$B$20),"",(IF((('Xi,Yi'!BB31+BD31)>DataInput!$B$21),"",('Xi,Yi'!BA31+BE31+BD31/SQRT(3)))))))))))))) ->  | BB31: =IF(BA31="","",(IF('Xi,Yi'!BB31="","",(IF(('Xi,Yi'!BB31+BD31<DataInput!$B$20),"",(IF((('Xi,Yi'!BB31+BD31)>DataInput!$B$21),"",('Xi,Yi'!BB31+BD31)))))))) ->  | BC31: =IF(BA31="","",IF(BB31="","",(DataInput!$B$4+(DataInput!$D$4-DataInput!$B$4)*RAND()))) ->  | BD31: =DataInput!$B$16*RAND() -> 6.768400675 | BE31: =DataInput!$B$15*RAND() -> 1.589165496
H32: =(IF('Xi,Yi'!H32="","",(IF((('Xi,Yi'!H32+L32+K32/SQRT(3))<DataInput!$B$18),"",(IF((('Xi,Yi'!H32+L32+K32/SQRT(3))>DataInput!$B$19),"",(IF('Xi,Yi'!I32="","",(IF(('Xi,Yi'!I32+K32<DataInput!$B$20),"",(IF((('Xi,Yi'!I32+K32)>DataInput!$B$21),"",('Xi,Yi'!H32+L32+K32/SQRT(3)))))))))))))) ->  | I32: =IF(H32="","",(IF('Xi,Yi'!I32="","",(IF(('Xi,Yi'!I32+K32<DataInput!$B$20),"",(IF((('Xi,Yi'!I32+K32)>DataInput!$B$21),"",('Xi,Yi'!I32+K32)))))))) ->  | J32: =IF(H32="","",IF(I32="","",(DataInput!$B$4+(DataInput!$D$4-DataInput!$B$4)*RAND()))) ->  | K32: =DataInput!$B$16*RAND() -> 11.24187822 | L32: =DataInput!$B$15*RAND() -> 13.19693415 | M32: =(IF('Xi,Yi'!M32="","",(IF((('Xi,Yi'!M32+Q32+P32/SQRT(3))<DataInput!$B$18),"",(IF((('Xi,Yi'!M32+Q32+P32/SQRT(3))>DataInput!$B$19),"",(IF('Xi,Yi'!N32="","",(IF(('Xi,Yi'!N32+P32<DataInput!$B$20),"",(IF((('Xi,Yi'!N32+P32)>DataInput!$B$21),"",('Xi,Yi'!M32+Q32+P32/SQRT(3)))))))))))))) ->  | N32: =IF(M32="","",(IF('Xi,Yi'!N32="","",(IF(('Xi,Yi'!N32+P32<DataInput!$B$20),"",(IF((('Xi,Yi'!N32+P32)>DataInput!$B$21),"",('Xi,Yi'!N32+P32)))))))) ->  | O32: =IF(M32="","",IF(N32="","",(DataInput!$B$4+(DataInput!$D$4-DataInput!$B$4)*RAND()))) ->  | P32: =DataInput!$B$16*RAND() -> 5.173496463 | Q32: =DataInput!$B$15*RAND() -> 4.39606141 | R32: =(IF('Xi,Yi'!R32="","",(IF((('Xi,Yi'!R32+V32+U32/SQRT(3))<DataInput!$B$18),"",(IF((('Xi,Yi'!R32+V32+U32/SQRT(3))>DataInput!$B$19),"",(IF('Xi,Yi'!S32="","",(IF(('Xi,Yi'!S32+U32<DataInput!$B$20),"",(IF((('Xi,Yi'!S32+U32)>DataInput!$B$21),"",('Xi,Yi'!R32+V32+U32/SQRT(3)))))))))))))) ->  | S32: =IF(R32="","",(IF('Xi,Yi'!S32="","",(IF(('Xi,Yi'!S32+U32<DataInput!$B$20),"",(IF((('Xi,Yi'!S32+U32)>DataInput!$B$21),"",('Xi,Yi'!S32+U32)))))))) ->  | T32: =IF(R32="","",IF(S32="","",(DataInput!$B$4+(DataInput!$D$4-DataInput!$B$4)*RAND()))) ->  | U32: =DataInput!$B$16*RAND() -> 11.2728393 | V32: =DataInput!$B$15*RAND() -> 3.037387026 | W32: =(IF('Xi,Yi'!W32="","",(IF((('Xi,Yi'!W32+AA32+Z32/SQRT(3))<DataInput!$B$18),"",(IF((('Xi,Yi'!W32+AA32+Z32/SQRT(3))>DataInput!$B$19),"",(IF('Xi,Yi'!X32="","",(IF(('Xi,Yi'!X32+Z32<DataInput!$B$20),"",(IF((('Xi,Yi'!X32+Z32)>DataInput!$B$21),"",('Xi,Yi'!W32+AA32+Z32/SQRT(3)))))))))))))) ->  | X32: =IF(W32="","",(IF('Xi,Yi'!X32="","",(IF(('Xi,Yi'!X32+Z32<DataInput!$B$20),"",(IF((('Xi,Yi'!X32+Z32)>DataInput!$B$21),"",('Xi,Yi'!X32+Z32)))))))) ->  | Y32: =IF(W32="","",IF(X32="","",(DataInput!$B$4+(DataInput!$D$4-DataInput!$B$4)*RAND()))) ->  | Z32: =DataInput!$B$16*RAND() -> 5.172502271 | AA32: =DataInput!$B$15*RAND() -> 12.49573354 | AB32: =(IF('Xi,Yi'!AB32="","",(IF((('Xi,Yi'!AB32+AF32+AE32/SQRT(3))<DataInput!$B$18),"",(IF((('Xi,Yi'!AB32+AF32+AE32/SQRT(3))>DataInput!$B$19),"",(IF('Xi,Yi'!AC32="","",(IF(('Xi,Yi'!AC32+AE32<DataInput!$B$20),"",(IF((('Xi,Yi'!AC32+AE32)>DataInput!$B$21),"",('Xi,Yi'!AB32+AF32+AE32/SQRT(3)))))))))))))) ->  | AC32: =IF(AB32="","",(IF('Xi,Yi'!AC32="","",(IF(('Xi,Yi'!AC32+AE32<DataInput!$B$20),"",(IF((('Xi,Yi'!AC32+AE32)>DataInput!$B$21),"",('Xi,Yi'!AC32+AE32)))))))) ->  | AD32: =IF(AB32="","",IF(AC32="","",(DataInput!$B$4+(DataInput!$D$4-DataInput!$B$4)*RAND()))) ->  | AE32: =DataInput!$B$16*RAND() -> 8.111125549 | AF32: =DataInput!$B$15*RAND() -> 3.367235681 | AG32: =(IF('Xi,Yi'!AG32="","",(IF((('Xi,Yi'!AG32+AK32+AJ32/SQRT(3))<DataInput!$B$18),"",(IF((('Xi,Yi'!AG32+AK32+AJ32/SQRT(3))>DataInput!$B$19),"",(IF('Xi,Yi'!AH32="","",(IF(('Xi,Yi'!AH32+AJ32<DataInput!$B$20),"",(IF((('Xi,Yi'!AH32+AJ32)>DataInput!$B$21),"",('Xi,Yi'!AG32+AK32+AJ32/SQRT(3)))))))))))))) ->  | AH32: =IF(AG32="","",(IF('Xi,Yi'!AH32="","",(IF(('Xi,Yi'!AH32+AJ32<DataInput!$B$20),"",(IF((('Xi,Yi'!AH32+AJ32)>DataInput!$B$21),"",('Xi,Yi'!AH32+AJ32)))))))) ->  | AI32: =IF(AG32="","",IF(AH32="","",(DataInput!$B$4+(DataInput!$D$4-DataInput!$B$4)*RAND()))) ->  | AJ32: =DataInput!$B$16*RAND() -> 13.42741205 | AK32: =DataInput!$B$15*RAND() -> 6.164278726 | AL32: =(IF('Xi,Yi'!AL32="","",(IF((('Xi,Yi'!AL32+AP32+AO32/SQRT(3))<DataInput!$B$18),"",(IF((('Xi,Yi'!AL32+AP32+AO32/SQRT(3))>DataInput!$B$19),"",(IF('Xi,Yi'!AM32="","",(IF(('Xi,Yi'!AM32+AO32<DataInput!$B$20),"",(IF((('Xi,Yi'!AM32+AO32)>DataInput!$B$21),"",('Xi,Yi'!AL32+AP32+AO32/SQRT(3)))))))))))))) ->  | AM32: =IF(AL32="","",(IF('Xi,Yi'!AM32="","",(IF(('Xi,Yi'!AM32+AO32<DataInput!$B$20),"",(IF((('Xi,Yi'!AM32+AO32)>DataInput!$B$21),"",('Xi,Yi'!AM32+AO32)))))))) ->  | AN32: =IF(AL32="","",IF(AM32="","",(DataInput!$B$4+(DataInput!$D$4-DataInput!$B$4)*RAND()))) ->  | AO32: =DataInput!$B$16*RAND() -> 9.453660848 | AP32: =DataInput!$B$15*RAND() -> 1.369248657 | AQ32: =(IF('Xi,Yi'!AQ32="","",(IF((('Xi,Yi'!AQ32+AU32+AT32/SQRT(3))<DataInput!$B$18),"",(IF((('Xi,Yi'!AQ32+AU32+AT32/SQRT(3))>DataInput!$B$19),"",(IF('Xi,Yi'!AR32="","",(IF(('Xi,Yi'!AR32+AT32<DataInput!$B$20),"",(IF((('Xi,Yi'!AR32+AT32)>DataInput!$B$21),"",('Xi,Yi'!AQ32+AU32+AT32/SQRT(3)))))))))))))) ->  | AR32: =IF(AQ32="","",(IF('Xi,Yi'!AR32="","",(IF(('Xi,Yi'!AR32+AT32<DataInput!$B$20),"",(IF((('Xi,Yi'!AR32+AT32)>DataInput!$B$21),"",('Xi,Yi'!AR32+AT32)))))))) ->  | AS32: =IF(AQ32="","",IF(AR32="","",(DataInput!$B$4+(DataInput!$D$4-DataInput!$B$4)*RAND()))) ->  | AT32: =DataInput!$B$16*RAND() -> 11.63666292 | AU32: =DataInput!$B$15*RAND() -> 2.636266881 | AV32: =(IF('Xi,Yi'!AV32="","",(IF((('Xi,Yi'!AV32+AZ32+AY32/SQRT(3))<DataInput!$B$18),"",(IF((('Xi,Yi'!AV32+AZ32+AY32/SQRT(3))>DataInput!$B$19),"",(IF('Xi,Yi'!AW32="","",(IF(('Xi,Yi'!AW32+AY32<DataInput!$B$20),"",(IF((('Xi,Yi'!AW32+AY32)>DataInput!$B$21),"",('Xi,Yi'!AV32+AZ32+AY32/SQRT(3)))))))))))))) ->  | AW32: =IF(AV32="","",(IF('Xi,Yi'!AW32="","",(IF(('Xi,Yi'!AW32+AY32<DataInput!$B$20),"",(IF((('Xi,Yi'!AW32+AY32)>DataInput!$B$21),"",('Xi,Yi'!AW32+AY32)))))))) ->  | AX32: =IF(AV32="","",IF(AW32="","",(DataInput!$B$4+(DataInput!$D$4-DataInput!$B$4)*RAND()))) ->  | AY32: =DataInput!$B$16*RAND() -> 8.685367147 | AZ32: =DataInput!$B$15*RAND() -> 2.278401655 | BA32: =(IF('Xi,Yi'!BA32="","",(IF((('Xi,Yi'!BA32+BE32+BD32/SQRT(3))<DataInput!$B$18),"",(IF((('Xi,Yi'!BA32+BE32+BD32/SQRT(3))>DataInput!$B$19),"",(IF('Xi,Yi'!BB32="","",(IF(('Xi,Yi'!BB32+BD32<DataInput!$B$20),"",(IF((('Xi,Yi'!BB32+BD32)>DataInput!$B$21),"",('Xi,Yi'!BA32+BE32+BD32/SQRT(3)))))))))))))) ->  | BB32: =IF(BA32="","",(IF('Xi,Yi'!BB32="","",(IF(('Xi,Yi'!BB32+BD32<DataInput!$B$20),"",(IF((('Xi,Yi'!BB32+BD32)>DataInput!$B$21),"",('Xi,Yi'!BB32+BD32)))))))) ->  | BC32: =IF(BA32="","",IF(BB32="","",(DataInput!$B$4+(DataInput!$D$4-DataInput!$B$4)*RAND()))) ->  | BD32: =DataInput!$B$16*RAND() -> 11.07045091 | BE32: =DataInput!$B$15*RAND() -> 12.85701064
H33: =(IF('Xi,Yi'!H33="","",(IF((('Xi,Yi'!H33+L33+K33/SQRT(3))<DataInput!$B$18),"",(IF((('Xi,Yi'!H33+L33+K33/SQRT(3))>DataInput!$B$19),"",(IF('Xi,Yi'!I33="","",(IF(('Xi,Yi'!I33+K33<DataInput!$B$20),"",(IF((('Xi,Yi'!I33+K33)>DataInput!$B$21),"",('Xi,Yi'!H33+L33+K33/SQRT(3)))))))))))))) ->  | I33: =IF(H33="","",(IF('Xi,Yi'!I33="","",(IF(('Xi,Yi'!I33+K33<DataInput!$B$20),"",(IF((('Xi,Yi'!I33+K33)>DataInput!$B$21),"",('Xi,Yi'!I33+K33)))))))) ->  | J33: =IF(H33="","",IF(I33="","",(DataInput!$B$4+(DataInput!$D$4-DataInput!$B$4)*RAND()))) ->  | K33: =DataInput!$B$16*RAND() -> 3.44615053 | L33: =DataInput!$B$15*RAND() -> 2.572703403 | M33: =(IF('Xi,Yi'!M33="","",(IF((('Xi,Yi'!M33+Q33+P33/SQRT(3))<DataInput!$B$18),"",(IF((('Xi,Yi'!M33+Q33+P33/SQRT(3))>DataInput!$B$19),"",(IF('Xi,Yi'!N33="","",(IF(('Xi,Yi'!N33+P33<DataInput!$B$20),"",(IF((('Xi,Yi'!N33+P33)>DataInput!$B$21),"",('Xi,Yi'!M33+Q33+P33/SQRT(3)))))))))))))) ->  | N33: =IF(M33="","",(IF('Xi,Yi'!N33="","",(IF(('Xi,Yi'!N33+P33<DataInput!$B$20),"",(IF((('Xi,Yi'!N33+P33)>DataInput!$B$21),"",('Xi,Yi'!N33+P33)))))))) ->  | O33: =IF(M33="","",IF(N33="","",(DataInput!$B$4+(DataInput!$D$4-DataInput!$B$4)*RAND()))) ->  | P33: =DataInput!$B$16*RAND() -> 12.95459204 | Q33: =DataInput!$B$15*RAND() -> 13.54002949 | R33: =(IF('Xi,Yi'!R33="","",(IF((('Xi,Yi'!R33+V33+U33/SQRT(3))<DataInput!$B$18),"",(IF((('Xi,Yi'!R33+V33+U33/SQRT(3))>DataInput!$B$19),"",(IF('Xi,Yi'!S33="","",(IF(('Xi,Yi'!S33+U33<DataInput!$B$20),"",(IF((('Xi,Yi'!S33+U33)>DataInput!$B$21),"",('Xi,Yi'!R33+V33+U33/SQRT(3)))))))))))))) ->  | S33: =IF(R33="","",(IF('Xi,Yi'!S33="","",(IF(('Xi,Yi'!S33+U33<DataInput!$B$20),"",(IF((('Xi,Yi'!S33+U33)>DataInput!$B$21),"",('Xi,Yi'!S33+U33)))))))) ->  | T33: =IF(R33="","",IF(S33="","",(DataInput!$B$4+(DataInput!$D$4-DataInput!$B$4)*RAND()))) ->  | U33: =DataInput!$B$16*RAND() -> 7.152626716 | V33: =DataInput!$B$15*RAND() -> 2.838832734 | W33: =(IF('Xi,Yi'!W33="","",(IF((('Xi,Yi'!W33+AA33+Z33/SQRT(3))<DataInput!$B$18),"",(IF((('Xi,Yi'!W33+AA33+Z33/SQRT(3))>DataInput!$B$19),"",(IF('Xi,Yi'!X33="","",(IF(('Xi,Yi'!X33+Z33<DataInput!$B$20),"",(IF((('Xi,Yi'!X33+Z33)>DataInput!$B$21),"",('Xi,Yi'!W33+AA33+Z33/SQRT(3)))))))))))))) ->  | X33: =IF(W33="","",(IF('Xi,Yi'!X33="","",(IF(('Xi,Yi'!X33+Z33<DataInput!$B$20),"",(IF((('Xi,Yi'!X33+Z33)>DataInput!$B$21),"",('Xi,Yi'!X33+Z33)))))))) ->  | Y33: =IF(W33="","",IF(X33="","",(DataInput!$B$4+(DataInput!$D$4-DataInput!$B$4)*RAND()))) ->  | Z33: =DataInput!$B$16*RAND() -> 5.659092807 | AA33: =DataInput!$B$15*RAND() -> 18.98368173 | AB33: =(IF('Xi,Yi'!AB33="","",(IF((('Xi,Yi'!AB33+AF33+AE33/SQRT(3))<DataInput!$B$18),"",(IF((('Xi,Yi'!AB33+AF33+AE33/SQRT(3))>DataInput!$B$19),"",(IF('Xi,Yi'!AC33="","",(IF(('Xi,Yi'!AC33+AE33<DataInput!$B$20),"",(IF((('Xi,Yi'!AC33+AE33)>DataInput!$B$21),"",('Xi,Yi'!AB33+AF33+AE33/SQRT(3)))))))))))))) ->  | AC33: =IF(AB33="","",(IF('Xi,Yi'!AC33="","",(IF(('Xi,Yi'!AC33+AE33<DataInput!$B$20),"",(IF((('Xi,Yi'!AC33+AE33)>DataInput!$B$21),"",('Xi,Yi'!AC33+AE33)))))))) ->  | AD33: =IF(AB33="","",IF(AC33="","",(DataInput!$B$4+(DataInput!$D$4-DataInput!$B$4)*RAND()))) ->  | AE33: =DataInput!$B$16*RAND() -> 11.10687499 | AF33: =DataInput!$B$15*RAND() -> 11.29798725 | AG33: =(IF('Xi,Yi'!AG33="","",(IF((('Xi,Yi'!AG33+AK33+AJ33/SQRT(3))<DataInput!$B$18),"",(IF((('Xi,Yi'!AG33+AK33+AJ33/SQRT(3))>DataInput!$B$19),"",(IF('Xi,Yi'!AH33="","",(IF(('Xi,Yi'!AH33+AJ33<DataInput!$B$20),"",(IF((('Xi,Yi'!AH33+AJ33)>DataInput!$B$21),"",('Xi,Yi'!AG33+AK33+AJ33/SQRT(3)))))))))))))) ->  | AH33: =IF(AG33="","",(IF('Xi,Yi'!AH33="","",(IF(('Xi,Yi'!AH33+AJ33<DataInput!$B$20),"",(IF((('Xi,Yi'!AH33+AJ33)>DataInput!$B$21),"",('Xi,Yi'!AH33+AJ33)))))))) ->  | AI33: =IF(AG33="","",IF(AH33="","",(DataInput!$B$4+(DataInput!$D$4-DataInput!$B$4)*RAND()))) ->  | AJ33: =DataInput!$B$16*RAND() -> 13.77856298 | AK33: =DataInput!$B$15*RAND() -> 16.69238215 | AL33: =(IF('Xi,Yi'!AL33="","",(IF((('Xi,Yi'!AL33+AP33+AO33/SQRT(3))<DataInput!$B$18),"",(IF((('Xi,Yi'!AL33+AP33+AO33/SQRT(3))>DataInput!$B$19),"",(IF('Xi,Yi'!AM33="","",(IF(('Xi,Yi'!AM33+AO33<DataInput!$B$20),"",(IF((('Xi,Yi'!AM33+AO33)>DataInput!$B$21),"",('Xi,Yi'!AL33+AP33+AO33/SQRT(3)))))))))))))) ->  | AM33: =IF(AL33="","",(IF('Xi,Yi'!AM33="","",(IF(('Xi,Yi'!AM33+AO33<DataInput!$B$20),"",(IF((('Xi,Yi'!AM33+AO33)>DataInput!$B$21),"",('Xi,Yi'!AM33+AO33)))))))) ->  | AN33: =IF(AL33="","",IF(AM33="","",(DataInput!$B$4+(DataInput!$D$4-DataInput!$B$4)*RAND()))) ->  | AO33: =DataInput!$B$16*RAND() -> 10.06601709 | AP33: =DataInput!$B$15*RAND() -> 18.05875688 | AQ33: =(IF('Xi,Yi'!AQ33="","",(IF((('Xi,Yi'!AQ33+AU33+AT33/SQRT(3))<DataInput!$B$18),"",(IF((('Xi,Yi'!AQ33+AU33+AT33/SQRT(3))>DataInput!$B$19),"",(IF('Xi,Yi'!AR33="","",(IF(('Xi,Yi'!AR33+AT33<DataInput!$B$20),"",(IF((('Xi,Yi'!AR33+AT33)>DataInput!$B$21),"",('Xi,Yi'!AQ33+AU33+AT33/SQRT(3)))))))))))))) ->  | AR33: =IF(AQ33="","",(IF('Xi,Yi'!AR33="","",(IF(('Xi,Yi'!AR33+AT33<DataInput!$B$20),"",(IF((('Xi,Yi'!AR33+AT33)>DataInput!$B$21),"",('Xi,Yi'!AR33+AT33)))))))) ->  | AS33: =IF(AQ33="","",IF(AR33="","",(DataInput!$B$4+(DataInput!$D$4-DataInput!$B$4)*RAND()))) ->  | AT33: =DataInput!$B$16*RAND() -> 10.93543138 | AU33: =DataInput!$B$15*RAND() -> 19.30709103 | AV33: =(IF('Xi,Yi'!AV33="","",(IF((('Xi,Yi'!AV33+AZ33+AY33/SQRT(3))<DataInput!$B$18),"",(IF((('Xi,Yi'!AV33+AZ33+AY33/SQRT(3))>DataInput!$B$19),"",(IF('Xi,Yi'!AW33="","",(IF(('Xi,Yi'!AW33+AY33<DataInput!$B$20),"",(IF((('Xi,Yi'!AW33+AY33)>DataInput!$B$21),"",('Xi,Yi'!AV33+AZ33+AY33/SQRT(3)))))))))))))) ->  | AW33: =IF(AV33="","",(IF('Xi,Yi'!AW33="","",(IF(('Xi,Yi'!AW33+AY33<DataInput!$B$20),"",(IF((('Xi,Yi'!AW33+AY33)>DataInput!$B$21),"",('Xi,Yi'!AW33+AY33)))))))) ->  | AX33: =IF(AV33="","",IF(AW33="","",(DataInput!$B$4+(DataInput!$D$4-DataInput!$B$4)*RAND()))) ->  | AY33: =DataInput!$B$16*RAND() -> 7.438241273 | AZ33: =DataInput!$B$15*RAND() -> 10.44183971 | BA33: =(IF('Xi,Yi'!BA33="","",(IF((('Xi,Yi'!BA33+BE33+BD33/SQRT(3))<DataInput!$B$18),"",(IF((('Xi,Yi'!BA33+BE33+BD33/SQRT(3))>DataInput!$B$19),"",(IF('Xi,Yi'!BB33="","",(IF(('Xi,Yi'!BB33+BD33<DataInput!$B$20),"",(IF((('Xi,Yi'!BB33+BD33)>DataInput!$B$21),"",('Xi,Yi'!BA33+BE33+BD33/SQRT(3)))))))))))))) ->  | BB33: =IF(BA33="","",(IF('Xi,Yi'!BB33="","",(IF(('Xi,Yi'!BB33+BD33<DataInput!$B$20),"",(IF((('Xi,Yi'!BB33+BD33)>DataInput!$B$21),"",('Xi,Yi'!BB33+BD33)))))))) ->  | BC33: =IF(BA33="","",IF(BB33="","",(DataInput!$B$4+(DataInput!$D$4-DataInput!$B$4)*RAND()))) ->  | BD33: =DataInput!$B$16*RAND() -> 16.85799876 | BE33: =DataInput!$B$15*RAND() -> 19.38848097
H34: =(IF('Xi,Yi'!H34="","",(IF((('Xi,Yi'!H34+L34+K34/SQRT(3))<DataInput!$B$18),"",(IF((('Xi,Yi'!H34+L34+K34/SQRT(3))>DataInput!$B$19),"",(IF('Xi,Yi'!I34="","",(IF(('Xi,Yi'!I34+K34<DataInput!$B$20),"",(IF((('Xi,Yi'!I34+K34)>DataInput!$B$21),"",('Xi,Yi'!H34+L34+K34/SQRT(3)))))))))))))) ->  | I34: =IF(H34="","",(IF('Xi,Yi'!I34="","",(IF(('Xi,Yi'!I34+K34<DataInput!$B$20),"",(IF((('Xi,Yi'!I34+K34)>DataInput!$B$21),"",('Xi,Yi'!I34+K34)))))))) ->  | J34: =IF(H34="","",IF(I34="","",(DataInput!$B$4+(DataInput!$D$4-DataInput!$B$4)*RAND()))) ->  | K34: =DataInput!$B$16*RAND() -> 12.56436635 | L34: =DataInput!$B$15*RAND() -> 1.355627951 | M34: =(IF('Xi,Yi'!M34="","",(IF((('Xi,Yi'!M34+Q34+P34/SQRT(3))<DataInput!$B$18),"",(IF((('Xi,Yi'!M34+Q34+P34/SQRT(3))>DataInput!$B$19),"",(IF('Xi,Yi'!N34="","",(IF(('Xi,Yi'!N34+P34<DataInput!$B$20),"",(IF((('Xi,Yi'!N34+P34)>DataInput!$B$21),"",('Xi,Yi'!M34+Q34+P34/SQRT(3)))))))))))))) ->  | N34: =IF(M34="","",(IF('Xi,Yi'!N34="","",(IF(('Xi,Yi'!N34+P34<DataInput!$B$20),"",(IF((('Xi,Yi'!N34+P34)>DataInput!$B$21),"",('Xi,Yi'!N34+P34)))))))) ->  | O34: =IF(M34="","",IF(N34="","",(DataInput!$B$4+(DataInput!$D$4-DataInput!$B$4)*RAND()))) ->  | P34: =DataInput!$B$16*RAND() -> 6.618459645 | Q34: =DataInput!$B$15*RAND() -> 12.5533178 | R34: =(IF('Xi,Yi'!R34="","",(IF((('Xi,Yi'!R34+V34+U34/SQRT(3))<DataInput!$B$18),"",(IF((('Xi,Yi'!R34+V34+U34/SQRT(3))>DataInput!$B$19),"",(IF('Xi,Yi'!S34="","",(IF(('Xi,Yi'!S34+U34<DataInput!$B$20),"",(IF((('Xi,Yi'!S34+U34)>DataInput!$B$21),"",('Xi,Yi'!R34+V34+U34/SQRT(3)))))))))))))) ->  | S34: =IF(R34="","",(IF('Xi,Yi'!S34="","",(IF(('Xi,Yi'!S34+U34<DataInput!$B$20),"",(IF((('Xi,Yi'!S34+U34)>DataInput!$B$21),"",('Xi,Yi'!S34+U34)))))))) ->  | T34: =IF(R34="","",IF(S34="","",(DataInput!$B$4+(DataInput!$D$4-DataInput!$B$4)*RAND()))) ->  | U34: =DataInput!$B$16*RAND() -> 11.31292537 | V34: =DataInput!$B$15*RAND() -> 6.827478835 | W34: =(IF('Xi,Yi'!W34="","",(IF((('Xi,Yi'!W34+AA34+Z34/SQRT(3))<DataInput!$B$18),"",(IF((('Xi,Yi'!W34+AA34+Z34/SQRT(3))>DataInput!$B$19),"",(IF('Xi,Yi'!X34="","",(IF(('Xi,Yi'!X34+Z34<DataInput!$B$20),"",(IF((('Xi,Yi'!X34+Z34)>DataInput!$B$21),"",('Xi,Yi'!W34+AA34+Z34/SQRT(3)))))))))))))) ->  | X34: =IF(W34="","",(IF('Xi,Yi'!X34="","",(IF(('Xi,Yi'!X34+Z34<DataInput!$B$20),"",(IF((('Xi,Yi'!X34+Z34)>DataInput!$B$21),"",('Xi,Yi'!X34+Z34)))))))) ->  | Y34: =IF(W34="","",IF(X34="","",(DataInput!$B$4+(DataInput!$D$4-DataInput!$B$4)*RAND()))) ->  | Z34: =DataInput!$B$16*RAND() -> 15.46760723 | AA34: =DataInput!$B$15*RAND() -> 4.347186321 | AB34: =(IF('Xi,Yi'!AB34="","",(IF((('Xi,Yi'!AB34+AF34+AE34/SQRT(3))<DataInput!$B$18),"",(IF((('Xi,Yi'!AB34+AF34+AE34/SQRT(3))>DataInput!$B$19),"",(IF('Xi,Yi'!AC34="","",(IF(('Xi,Yi'!AC34+AE34<DataInput!$B$20),"",(IF((('Xi,Yi'!AC34+AE34)>DataInput!$B$21),"",('Xi,Yi'!AB34+AF34+AE34/SQRT(3)))))))))))))) ->  | AC34: =IF(AB34="","",(IF('Xi,Yi'!AC34="","",(IF(('Xi,Yi'!AC34+AE34<DataInput!$B$20),"",(IF((('Xi,Yi'!AC34+AE34)>DataInput!$B$21),"",('Xi,Yi'!AC34+AE34)))))))) ->  | AD34: =IF(AB34="","",IF(AC34="","",(DataInput!$B$4+(DataInput!$D$4-DataInput!$B$4)*RAND()))) ->  | AE34: =DataInput!$B$16*RAND() -> 16.40103768 | AF34: =DataInput!$B$15*RAND() -> 12.45729686 | AG34: =(IF('Xi,Yi'!AG34="","",(IF((('Xi,Yi'!AG34+AK34+AJ34/SQRT(3))<DataInput!$B$18),"",(IF((('Xi,Yi'!AG34+AK34+AJ34/SQRT(3))>DataInput!$B$19),"",(IF('Xi,Yi'!AH34="","",(IF(('Xi,Yi'!AH34+AJ34<DataInput!$B$20),"",(IF((('Xi,Yi'!AH34+AJ34)>DataInput!$B$21),"",('Xi,Yi'!AG34+AK34+AJ34/SQRT(3)))))))))))))) ->  | AH34: =IF(AG34="","",(IF('Xi,Yi'!AH34="","",(IF(('Xi,Yi'!AH34+AJ34<DataInput!$B$20),"",(IF((('Xi,Yi'!AH34+AJ34)>DataInput!$B$21),"",('Xi,Yi'!AH34+AJ34)))))))) ->  | AI34: =IF(AG34="","",IF(AH34="","",(DataInput!$B$4+(DataInput!$D$4-DataInput!$B$4)*RAND()))) ->  | AJ34: =DataInput!$B$16*RAND() -> 6.613437808 | AK34: =DataInput!$B$15*RAND() -> 12.95315321 | AL34: =(IF('Xi,Yi'!AL34="","",(IF((('Xi,Yi'!AL34+AP34+AO34/SQRT(3))<DataInput!$B$18),"",(IF((('Xi,Yi'!AL34+AP34+AO34/SQRT(3))>DataInput!$B$19),"",(IF('Xi,Yi'!AM34="","",(IF(('Xi,Yi'!AM34+AO34<DataInput!$B$20),"",(IF((('Xi,Yi'!AM34+AO34)>DataInput!$B$21),"",('Xi,Yi'!AL34+AP34+AO34/SQRT(3)))))))))))))) ->  | AM34: =IF(AL34="","",(IF('Xi,Yi'!AM34="","",(IF(('Xi,Yi'!AM34+AO34<DataInput!$B$20),"",(IF((('Xi,Yi'!AM34+AO34)>DataInput!$B$21),"",('Xi,Yi'!AM34+AO34)))))))) ->  | AN34: =IF(AL34="","",IF(AM34="","",(DataInput!$B$4+(DataInput!$D$4-DataInput!$B$4)*RAND()))) ->  | AO34: =DataInput!$B$16*RAND() -> 12.73040762 | AP34: =DataInput!$B$15*RAND() -> 18.77570812 | AQ34: =(IF('Xi,Yi'!AQ34="","",(IF((('Xi,Yi'!AQ34+AU34+AT34/SQRT(3))<DataInput!$B$18),"",(IF((('Xi,Yi'!AQ34+AU34+AT34/SQRT(3))>DataInput!$B$19),"",(IF('Xi,Yi'!AR34="","",(IF(('Xi,Yi'!AR34+AT34<DataInput!$B$20),"",(IF((('Xi,Yi'!AR34+AT34)>DataInput!$B$21),"",('Xi,Yi'!AQ34+AU34+AT34/SQRT(3)))))))))))))) ->  | AR34: =IF(AQ34="","",(IF('Xi,Yi'!AR34="","",(IF(('Xi,Yi'!AR34+AT34<DataInput!$B$20),"",(IF((('Xi,Yi'!AR34+AT34)>DataInput!$B$21),"",('Xi,Yi'!AR34+AT34)))))))) ->  | AS34: =IF(AQ34="","",IF(AR34="","",(DataInput!$B$4+(DataInput!$D$4-DataInput!$B$4)*RAND()))) ->  | AT34: =DataInput!$B$16*RAND() -> 5.154244105 | AU34: =DataInput!$B$15*RAND() -> 3.398183442 | AV34: =(IF('Xi,Yi'!AV34="","",(IF((('Xi,Yi'!AV34+AZ34+AY34/SQRT(3))<DataInput!$B$18),"",(IF((('Xi,Yi'!AV34+AZ34+AY34/SQRT(3))>DataInput!$B$19),"",(IF('Xi,Yi'!AW34="","",(IF(('Xi,Yi'!AW34+AY34<DataInput!$B$20),"",(IF((('Xi,Yi'!AW34+AY34)>DataInput!$B$21),"",('Xi,Yi'!AV34+AZ34+AY34/SQRT(3)))))))))))))) ->  | AW34: =IF(AV34="","",(IF('Xi,Yi'!AW34="","",(IF(('Xi,Yi'!AW34+AY34<DataInput!$B$20),"",(IF((('Xi,Yi'!AW34+AY34)>DataInput!$B$21),"",('Xi,Yi'!AW34+AY34)))))))) ->  | AX34: =IF(AV34="","",IF(AW34="","",(DataInput!$B$4+(DataInput!$D$4-DataInput!$B$4)*RAND()))) ->  | AY34: =DataInput!$B$16*RAND() -> 2.042179205 | AZ34: =DataInput!$B$15*RAND() -> 11.55426939 | BA34: =(IF('Xi,Yi'!BA34="","",(IF((('Xi,Yi'!BA34+BE34+BD34/SQRT(3))<DataInput!$B$18),"",(IF((('Xi,Yi'!BA34+BE34+BD34/SQRT(3))>DataInput!$B$19),"",(IF('Xi,Yi'!BB34="","",(IF(('Xi,Yi'!BB34+BD34<DataInput!$B$20),"",(IF((('Xi,Yi'!BB34+BD34)>DataInput!$B$21),"",('Xi,Yi'!BA34+BE34+BD34/SQRT(3)))))))))))))) ->  | BB34: =IF(BA34="","",(IF('Xi,Yi'!BB34="","",(IF(('Xi,Yi'!BB34+BD34<DataInput!$B$20),"",(IF((('Xi,Yi'!BB34+BD34)>DataInput!$B$21),"",('Xi,Yi'!BB34+BD34)))))))) ->  | BC34: =IF(BA34="","",IF(BB34="","",(DataInput!$B$4+(DataInput!$D$4-DataInput!$B$4)*RAND()))) ->  | BD34: =DataInput!$B$16*RAND() -> 13.27643295 | BE34: =DataInput!$B$15*RAND() -> 12.71601202
H35: =(IF('Xi,Yi'!H35="","",(IF((('Xi,Yi'!H35+L35+K35/SQRT(3))<DataInput!$B$18),"",(IF((('Xi,Yi'!H35+L35+K35/SQRT(3))>DataInput!$B$19),"",(IF('Xi,Yi'!I35="","",(IF(('Xi,Yi'!I35+K35<DataInput!$B$20),"",(IF((('Xi,Yi'!I35+K35)>DataInput!$B$21),"",('Xi,Yi'!H35+L35+K35/SQRT(3)))))))))))))) ->  | I35: =IF(H35="","",(IF('Xi,Yi'!I35="","",(IF(('Xi,Yi'!I35+K35<DataInput!$B$20),"",(IF((('Xi,Yi'!I35+K35)>DataInput!$B$21),"",('Xi,Yi'!I35+K35)))))))) ->  | J35: =IF(H35="","",IF(I35="","",(DataInput!$B$4+(DataInput!$D$4-DataInput!$B$4)*RAND()))) ->  | K35: =DataInput!$B$16*RAND() -> 13.23143952 | L35: =DataInput!$B$15*RAND() -> 0.6949462803 | M35: =(IF('Xi,Yi'!M35="","",(IF((('Xi,Yi'!M35+Q35+P35/SQRT(3))<DataInput!$B$18),"",(IF((('Xi,Yi'!M35+Q35+P35/SQRT(3))>DataInput!$B$19),"",(IF('Xi,Yi'!N35="","",(IF(('Xi,Yi'!N35+P35<DataInput!$B$20),"",(IF((('Xi,Yi'!N35+P35)>DataInput!$B$21),"",('Xi,Yi'!M35+Q35+P35/SQRT(3)))))))))))))) ->  | N35: =IF(M35="","",(IF('Xi,Yi'!N35="","",(IF(('Xi,Yi'!N35+P35<DataInput!$B$20),"",(IF((('Xi,Yi'!N35+P35)>DataInput!$B$21),"",('Xi,Yi'!N35+P35)))))))) ->  | O35: =IF(M35="","",IF(N35="","",(DataInput!$B$4+(DataInput!$D$4-DataInput!$B$4)*RAND()))) ->  | P35: =DataInput!$B$16*RAND() -> 9.13263801 | Q35: =DataInput!$B$15*RAND() -> 4.450560538 | R35: =(IF('Xi,Yi'!R35="","",(IF((('Xi,Yi'!R35+V35+U35/SQRT(3))<DataInput!$B$18),"",(IF((('Xi,Yi'!R35+V35+U35/SQRT(3))>DataInput!$B$19),"",(IF('Xi,Yi'!S35="","",(IF(('Xi,Yi'!S35+U35<DataInput!$B$20),"",(IF((('Xi,Yi'!S35+U35)>DataInput!$B$21),"",('Xi,Yi'!R35+V35+U35/SQRT(3)))))))))))))) ->  | S35: =IF(R35="","",(IF('Xi,Yi'!S35="","",(IF(('Xi,Yi'!S35+U35<DataInput!$B$20),"",(IF((('Xi,Yi'!S35+U35)>DataInput!$B$21),"",('Xi,Yi'!S35+U35)))))))) ->  | T35: =IF(R35="","",IF(S35="","",(DataInput!$B$4+(DataInput!$D$4-DataInput!$B$4)*RAND()))) ->  | U35: =DataInput!$B$16*RAND() -> 10.39993104 | V35: =DataInput!$B$15*RAND() -> 0.5819840474 | W35: =(IF('Xi,Yi'!W35="","",(IF((('Xi,Yi'!W35+AA35+Z35/SQRT(3))<DataInput!$B$18),"",(IF((('Xi,Yi'!W35+AA35+Z35/SQRT(3))>DataInput!$B$19),"",(IF('Xi,Yi'!X35="","",(IF(('Xi,Yi'!X35+Z35<DataInput!$B$20),"",(IF((('Xi,Yi'!X35+Z35)>DataInput!$B$21),"",('Xi,Yi'!W35+AA35+Z35/SQRT(3)))))))))))))) ->  | X35: =IF(W35="","",(IF('Xi,Yi'!X35="","",(IF(('Xi,Yi'!X35+Z35<DataInput!$B$20),"",(IF((('Xi,Yi'!X35+Z35)>DataInput!$B$21),"",('Xi,Yi'!X35+Z35)))))))) ->  | Y35: =IF(W35="","",IF(X35="","",(DataInput!$B$4+(DataInput!$D$4-DataInput!$B$4)*RAND()))) ->  | Z35: =DataInput!$B$16*RAND() -> 6.248618696 | AA35: =DataInput!$B$15*RAND() -> 14.01681519 | AB35: =(IF('Xi,Yi'!AB35="","",(IF((('Xi,Yi'!AB35+AF35+AE35/SQRT(3))<DataInput!$B$18),"",(IF((('Xi,Yi'!AB35+AF35+AE35/SQRT(3))>DataInput!$B$19),"",(IF('Xi,Yi'!AC35="","",(IF(('Xi,Yi'!AC35+AE35<DataInput!$B$20),"",(IF((('Xi,Yi'!AC35+AE35)>DataInput!$B$21),"",('Xi,Yi'!AB35+AF35+AE35/SQRT(3)))))))))))))) ->  | AC35: =IF(AB35="","",(IF('Xi,Yi'!AC35="","",(IF(('Xi,Yi'!AC35+AE35<DataInput!$B$20),"",(IF((('Xi,Yi'!AC35+AE35)>DataInput!$B$21),"",('Xi,Yi'!AC35+AE35)))))))) ->  | AD35: =IF(AB35="","",IF(AC35="","",(DataInput!$B$4+(DataInput!$D$4-DataInput!$B$4)*RAND()))) ->  | AE35: =DataInput!$B$16*RAND() -> 3.586863953 | AF35: =DataInput!$B$15*RAND() -> 8.24574378 | AG35: =(IF('Xi,Yi'!AG35="","",(IF((('Xi,Yi'!AG35+AK35+AJ35/SQRT(3))<DataInput!$B$18),"",(IF((('Xi,Yi'!AG35+AK35+AJ35/SQRT(3))>DataInput!$B$19),"",(IF('Xi,Yi'!AH35="","",(IF(('Xi,Yi'!AH35+AJ35<DataInput!$B$20),"",(IF((('Xi,Yi'!AH35+AJ35)>DataInput!$B$21),"",('Xi,Yi'!AG35+AK35+AJ35/SQRT(3)))))))))))))) ->  | AH35: =IF(AG35="","",(IF('Xi,Yi'!AH35="","",(IF(('Xi,Yi'!AH35+AJ35<DataInput!$B$20),"",(IF((('Xi,Yi'!AH35+AJ35)>DataInput!$B$21),"",('Xi,Yi'!AH35+AJ35)))))))) ->  | AI35: =IF(AG35="","",IF(AH35="","",(DataInput!$B$4+(DataInput!$D$4-DataInput!$B$4)*RAND()))) ->  | AJ35: =DataInput!$B$16*RAND() -> 16.47412214 | AK35: =DataInput!$B$15*RAND() -> 3.619745044 | AL35: =(IF('Xi,Yi'!AL35="","",(IF((('Xi,Yi'!AL35+AP35+AO35/SQRT(3))<DataInput!$B$18),"",(IF((('Xi,Yi'!AL35+AP35+AO35/SQRT(3))>DataInput!$B$19),"",(IF('Xi,Yi'!AM35="","",(IF(('Xi,Yi'!AM35+AO35<DataInput!$B$20),"",(IF((('Xi,Yi'!AM35+AO35)>DataInput!$B$21),"",('Xi,Yi'!AL35+AP35+AO35/SQRT(3)))))))))))))) ->  | AM35: =IF(AL35="","",(IF('Xi,Yi'!AM35="","",(IF(('Xi,Yi'!AM35+AO35<DataInput!$B$20),"",(IF((('Xi,Yi'!AM35+AO35)>DataInput!$B$21),"",('Xi,Yi'!AM35+AO35)))))))) ->  | AN35: =IF(AL35="","",IF(AM35="","",(DataInput!$B$4+(DataInput!$D$4-DataInput!$B$4)*RAND()))) ->  | AO35: =DataInput!$B$16*RAND() -> 15.5711329 | AP35: =DataInput!$B$15*RAND() -> 4.52922298 | AQ35: =(IF('Xi,Yi'!AQ35="","",(IF((('Xi,Yi'!AQ35+AU35+AT35/SQRT(3))<DataInput!$B$18),"",(IF((('Xi,Yi'!AQ35+AU35+AT35/SQRT(3))>DataInput!$B$19),"",(IF('Xi,Yi'!AR35="","",(IF(('Xi,Yi'!AR35+AT35<DataInput!$B$20),"",(IF((('Xi,Yi'!AR35+AT35)>DataInput!$B$21),"",('Xi,Yi'!AQ35+AU35+AT35/SQRT(3)))))))))))))) ->  | AR35: =IF(AQ35="","",(IF('Xi,Yi'!AR35="","",(IF(('Xi,Yi'!AR35+AT35<DataInput!$B$20),"",(IF((('Xi,Yi'!AR35+AT35)>DataInput!$B$21),"",('Xi,Yi'!AR35+AT35)))))))) ->  | AS35: =IF(AQ35="","",IF(AR35="","",(DataInput!$B$4+(DataInput!$D$4-DataInput!$B$4)*RAND()))) ->  | AT35: =DataInput!$B$16*RAND() -> 15.94820585 | AU35: =DataInput!$B$15*RAND() -> 14.00442397 | AV35: =(IF('Xi,Yi'!AV35="","",(IF((('Xi,Yi'!AV35+AZ35+AY35/SQRT(3))<DataInput!$B$18),"",(IF((('Xi,Yi'!AV35+AZ35+AY35/SQRT(3))>DataInput!$B$19),"",(IF('Xi,Yi'!AW35="","",(IF(('Xi,Yi'!AW35+AY35<DataInput!$B$20),"",(IF((('Xi,Yi'!AW35+AY35)>DataInput!$B$21),"",('Xi,Yi'!AV35+AZ35+AY35/SQRT(3)))))))))))))) ->  | AW35: =IF(AV35="","",(IF('Xi,Yi'!AW35="","",(IF(('Xi,Yi'!AW35+AY35<DataInput!$B$20),"",(IF((('Xi,Yi'!AW35+AY35)>DataInput!$B$21),"",('Xi,Yi'!AW35+AY35)))))))) ->  | AX35: =IF(AV35="","",IF(AW35="","",(DataInput!$B$4+(DataInput!$D$4-DataInput!$B$4)*RAND()))) ->  | AY35: =DataInput!$B$16*RAND() -> 13.72774285 | AZ35: =DataInput!$B$15*RAND() -> 16.78312319 | BA35: =(IF('Xi,Yi'!BA35="","",(IF((('Xi,Yi'!BA35+BE35+BD35/SQRT(3))<DataInput!$B$18),"",(IF((('Xi,Yi'!BA35+BE35+BD35/SQRT(3))>DataInput!$B$19),"",(IF('Xi,Yi'!BB35="","",(IF(('Xi,Yi'!BB35+BD35<DataInput!$B$20),"",(IF((('Xi,Yi'!BB35+BD35)>DataInput!$B$21),"",('Xi,Yi'!BA35+BE35+BD35/SQRT(3)))))))))))))) ->  | BB35: =IF(BA35="","",(IF('Xi,Yi'!BB35="","",(IF(('Xi,Yi'!BB35+BD35<DataInput!$B$20),"",(IF((('Xi,Yi'!BB35+BD35)>DataInput!$B$21),"",('Xi,Yi'!BB35+BD35)))))))) ->  | BC35: =IF(BA35="","",IF(BB35="","",(DataInput!$B$4+(DataInput!$D$4-DataInput!$B$4)*RAND()))) ->  | BD35: =DataInput!$B$16*RAND() -> 6.495330001 | BE35: =DataInput!$B$15*RAND() -> 6.274161227
H36: =(IF('Xi,Yi'!H36="","",(IF((('Xi,Yi'!H36+L36+K36/SQRT(3))<DataInput!$B$18),"",(IF((('Xi,Yi'!H36+L36+K36/SQRT(3))>DataInput!$B$19),"",(IF('Xi,Yi'!I36="","",(IF(('Xi,Yi'!I36+K36<DataInput!$B$20),"",(IF((('Xi,Yi'!I36+K36)>DataInput!$B$21),"",('Xi,Yi'!H36+L36+K36/SQRT(3)))))))))))))) ->  | I36: =IF(H36="","",(IF('Xi,Yi'!I36="","",(IF(('Xi,Yi'!I36+K36<DataInput!$B$20),"",(IF((('Xi,Yi'!I36+K36)>DataInput!$B$21),"",('Xi,Yi'!I36+K36)))))))) ->  | J36: =IF(H36="","",IF(I36="","",(DataInput!$B$4+(DataInput!$D$4-DataInput!$B$4)*RAND()))) ->  | K36: =DataInput!$B$16*RAND() -> 15.30771628 | L36: =DataInput!$B$15*RAND() -> 2.99314913 | M36: =(IF('Xi,Yi'!M36="","",(IF((('Xi,Yi'!M36+Q36+P36/SQRT(3))<DataInput!$B$18),"",(IF((('Xi,Yi'!M36+Q36+P36/SQRT(3))>DataInput!$B$19),"",(IF('Xi,Yi'!N36="","",(IF(('Xi,Yi'!N36+P36<DataInput!$B$20),"",(IF((('Xi,Yi'!N36+P36)>DataInput!$B$21),"",('Xi,Yi'!M36+Q36+P36/SQRT(3)))))))))))))) ->  | N36: =IF(M36="","",(IF('Xi,Yi'!N36="","",(IF(('Xi,Yi'!N36+P36<DataInput!$B$20),"",(IF((('Xi,Yi'!N36+P36)>DataInput!$B$21),"",('Xi,Yi'!N36+P36)))))))) ->  | O36: =IF(M36="","",IF(N36="","",(DataInput!$B$4+(DataInput!$D$4-DataInput!$B$4)*RAND()))) ->  | P36: =DataInput!$B$16*RAND() -> 2.480505569 | Q36: =DataInput!$B$15*RAND() -> 1.751065811 | R36: =(IF('Xi,Yi'!R36="","",(IF((('Xi,Yi'!R36+V36+U36/SQRT(3))<DataInput!$B$18),"",(IF((('Xi,Yi'!R36+V36+U36/SQRT(3))>DataInput!$B$19),"",(IF('Xi,Yi'!S36="","",(IF(('Xi,Yi'!S36+U36<DataInput!$B$20),"",(IF((('Xi,Yi'!S36+U36)>DataInput!$B$21),"",('Xi,Yi'!R36+V36+U36/SQRT(3)))))))))))))) ->  | S36: =IF(R36="","",(IF('Xi,Yi'!S36="","",(IF(('Xi,Yi'!S36+U36<DataInput!$B$20),"",(IF((('Xi,Yi'!S36+U36)>DataInput!$B$21),"",('Xi,Yi'!S36+U36)))))))) ->  | T36: =IF(R36="","",IF(S36="","",(DataInput!$B$4+(DataInput!$D$4-DataInput!$B$4)*RAND()))) ->  | U36: =DataInput!$B$16*RAND() -> 16.67173685 | V36: =DataInput!$B$15*RAND() -> 10.47599006 | W36: =(IF('Xi,Yi'!W36="","",(IF((('Xi,Yi'!W36+AA36+Z36/SQRT(3))<DataInput!$B$18),"",(IF((('Xi,Yi'!W36+AA36+Z36/SQRT(3))>DataInput!$B$19),"",(IF('Xi,Yi'!X36="","",(IF(('Xi,Yi'!X36+Z36<DataInput!$B$20),"",(IF((('Xi,Yi'!X36+Z36)>DataInput!$B$21),"",('Xi,Yi'!W36+AA36+Z36/SQRT(3)))))))))))))) ->  | X36: =IF(W36="","",(IF('Xi,Yi'!X36="","",(IF(('Xi,Yi'!X36+Z36<DataInput!$B$20),"",(IF((('Xi,Yi'!X36+Z36)>DataInput!$B$21),"",('Xi,Yi'!X36+Z36)))))))) ->  | Y36: =IF(W36="","",IF(X36="","",(DataInput!$B$4+(DataInput!$D$4-DataInput!$B$4)*RAND()))) ->  | Z36: =DataInput!$B$16*RAND() -> 4.353546305 | AA36: =DataInput!$B$15*RAND() -> 8.245581057 | AB36: =(IF('Xi,Yi'!AB36="","",(IF((('Xi,Yi'!AB36+AF36+AE36/SQRT(3))<DataInput!$B$18),"",(IF((('Xi,Yi'!AB36+AF36+AE36/SQRT(3))>DataInput!$B$19),"",(IF('Xi,Yi'!AC36="","",(IF(('Xi,Yi'!AC36+AE36<DataInput!$B$20),"",(IF((('Xi,Yi'!AC36+AE36)>DataInput!$B$21),"",('Xi,Yi'!AB36+AF36+AE36/SQRT(3)))))))))))))) ->  | AC36: =IF(AB36="","",(IF('Xi,Yi'!AC36="","",(IF(('Xi,Yi'!AC36+AE36<DataInput!$B$20),"",(IF((('Xi,Yi'!AC36+AE36)>DataInput!$B$21),"",('Xi,Yi'!AC36+AE36)))))))) ->  | AD36: =IF(AB36="","",IF(AC36="","",(DataInput!$B$4+(DataInput!$D$4-DataInput!$B$4)*RAND()))) ->  | AE36: =DataInput!$B$16*RAND() -> 13.19233353 | AF36: =DataInput!$B$15*RAND() -> 16.28188584 | AG36: =(IF('Xi,Yi'!AG36="","",(IF((('Xi,Yi'!AG36+AK36+AJ36/SQRT(3))<DataInput!$B$18),"",(IF((('Xi,Yi'!AG36+AK36+AJ36/SQRT(3))>DataInput!$B$19),"",(IF('Xi,Yi'!AH36="","",(IF(('Xi,Yi'!AH36+AJ36<DataInput!$B$20),"",(IF((('Xi,Yi'!AH36+AJ36)>DataInput!$B$21),"",('Xi,Yi'!AG36+AK36+AJ36/SQRT(3)))))))))))))) ->  | AH36: =IF(AG36="","",(IF('Xi,Yi'!AH36="","",(IF(('Xi,Yi'!AH36+AJ36<DataInput!$B$20),"",(IF((('Xi,Yi'!AH36+AJ36)>DataInput!$B$21),"",('Xi,Yi'!AH36+AJ36)))))))) ->  | AI36: =IF(AG36="","",IF(AH36="","",(DataInput!$B$4+(DataInput!$D$4-DataInput!$B$4)*RAND()))) ->  | AJ36: =DataInput!$B$16*RAND() -> 13.89669817 | AK36: =DataInput!$B$15*RAND() -> 14.78524968 | AL36: =(IF('Xi,Yi'!AL36="","",(IF((('Xi,Yi'!AL36+AP36+AO36/SQRT(3))<DataInput!$B$18),"",(IF((('Xi,Yi'!AL36+AP36+AO36/SQRT(3))>DataInput!$B$19),"",(IF('Xi,Yi'!AM36="","",(IF(('Xi,Yi'!AM36+AO36<DataInput!$B$20),"",(IF((('Xi,Yi'!AM36+AO36)>DataInput!$B$21),"",('Xi,Yi'!AL36+AP36+AO36/SQRT(3)))))))))))))) ->  | AM36: =IF(AL36="","",(IF('Xi,Yi'!AM36="","",(IF(('Xi,Yi'!AM36+AO36<DataInput!$B$20),"",(IF((('Xi,Yi'!AM36+AO36)>DataInput!$B$21),"",('Xi,Yi'!AM36+AO36)))))))) ->  | AN36: =IF(AL36="","",IF(AM36="","",(DataInput!$B$4+(DataInput!$D$4-DataInput!$B$4)*RAND()))) ->  | AO36: =DataInput!$B$16*RAND() -> 11.12468672 | AP36: =DataInput!$B$15*RAND() -> 2.475296263 | AQ36: =(IF('Xi,Yi'!AQ36="","",(IF((('Xi,Yi'!AQ36+AU36+AT36/SQRT(3))<DataInput!$B$18),"",(IF((('Xi,Yi'!AQ36+AU36+AT36/SQRT(3))>DataInput!$B$19),"",(IF('Xi,Yi'!AR36="","",(IF(('Xi,Yi'!AR36+AT36<DataInput!$B$20),"",(IF((('Xi,Yi'!AR36+AT36)>DataInput!$B$21),"",('Xi,Yi'!AQ36+AU36+AT36/SQRT(3)))))))))))))) ->  | AR36: =IF(AQ36="","",(IF('Xi,Yi'!AR36="","",(IF(('Xi,Yi'!AR36+AT36<DataInput!$B$20),"",(IF((('Xi,Yi'!AR36+AT36)>DataInput!$B$21),"",('Xi,Yi'!AR36+AT36)))))))) ->  | AS36: =IF(AQ36="","",IF(AR36="","",(DataInput!$B$4+(DataInput!$D$4-DataInput!$B$4)*RAND()))) ->  | AT36: =DataInput!$B$16*RAND() -> 2.509120072 | AU36: =DataInput!$B$15*RAND() -> 13.65892994 | AV36: =(IF('Xi,Yi'!AV36="","",(IF((('Xi,Yi'!AV36+AZ36+AY36/SQRT(3))<DataInput!$B$18),"",(IF((('Xi,Yi'!AV36+AZ36+AY36/SQRT(3))>DataInput!$B$19),"",(IF('Xi,Yi'!AW36="","",(IF(('Xi,Yi'!AW36+AY36<DataInput!$B$20),"",(IF((('Xi,Yi'!AW36+AY36)>DataInput!$B$21),"",('Xi,Yi'!AV36+AZ36+AY36/SQRT(3)))))))))))))) ->  | AW36: =IF(AV36="","",(IF('Xi,Yi'!AW36="","",(IF(('Xi,Yi'!AW36+AY36<DataInput!$B$20),"",(IF((('Xi,Yi'!AW36+AY36)>DataInput!$B$21),"",('Xi,Yi'!AW36+AY36)))))))) ->  | AX36: =IF(AV36="","",IF(AW36="","",(DataInput!$B$4+(DataInput!$D$4-DataInput!$B$4)*RAND()))) ->  | AY36: =DataInput!$B$16*RAND() -> 6.821509545 | AZ36: =DataInput!$B$15*RAND() -> 19.31293348 | BA36: =(IF('Xi,Yi'!BA36="","",(IF((('Xi,Yi'!BA36+BE36+BD36/SQRT(3))<DataInput!$B$18),"",(IF((('Xi,Yi'!BA36+BE36+BD36/SQRT(3))>DataInput!$B$19),"",(IF('Xi,Yi'!BB36="","",(IF(('Xi,Yi'!BB36+BD36<DataInput!$B$20),"",(IF((('Xi,Yi'!BB36+BD36)>DataInput!$B$21),"",('Xi,Yi'!BA36+BE36+BD36/SQRT(3)))))))))))))) ->  | BB36: =IF(BA36="","",(IF('Xi,Yi'!BB36="","",(IF(('Xi,Yi'!BB36+BD36<DataInput!$B$20),"",(IF((('Xi,Yi'!BB36+BD36)>DataInput!$B$21),"",('Xi,Yi'!BB36+BD36)))))))) ->  | BC36: =IF(BA36="","",IF(BB36="","",(DataInput!$B$4+(DataInput!$D$4-DataInput!$B$4)*RAND()))) ->  | BD36: =DataInput!$B$16*RAND() -> 4.258217248 | BE36: =DataInput!$B$15*RAND() -> 18.3141829
H37: =(IF('Xi,Yi'!H37="","",(IF((('Xi,Yi'!H37+L37+K37/SQRT(3))<DataInput!$B$18),"",(IF((('Xi,Yi'!H37+L37+K37/SQRT(3))>DataInput!$B$19),"",(IF('Xi,Yi'!I37="","",(IF(('Xi,Yi'!I37+K37<DataInput!$B$20),"",(IF((('Xi,Yi'!I37+K37)>DataInput!$B$21),"",('Xi,Yi'!H37+L37+K37/SQRT(3)))))))))))))) ->  | I37: =IF(H37="","",(IF('Xi,Yi'!I37="","",(IF(('Xi,Yi'!I37+K37<DataInput!$B$20),"",(IF((('Xi,Yi'!I37+K37)>DataInput!$B$21),"",('Xi,Yi'!I37+K37)))))))) ->  | J37: =IF(H37="","",IF(I37="","",(DataInput!$B$4+(DataInput!$D$4-DataInput!$B$4)*RAND()))) ->  | K37: =DataInput!$B$16*RAND() -> 3.913860307 | L37: =DataInput!$B$15*RAND() -> 12.63123882 | M37: =(IF('Xi,Yi'!M37="","",(IF((('Xi,Yi'!M37+Q37+P37/SQRT(3))<DataInput!$B$18),"",(IF((('Xi,Yi'!M37+Q37+P37/SQRT(3))>DataInput!$B$19),"",(IF('Xi,Yi'!N37="","",(IF(('Xi,Yi'!N37+P37<DataInput!$B$20),"",(IF((('Xi,Yi'!N37+P37)>DataInput!$B$21),"",('Xi,Yi'!M37+Q37+P37/SQRT(3)))))))))))))) ->  | N37: =IF(M37="","",(IF('Xi,Yi'!N37="","",(IF(('Xi,Yi'!N37+P37<DataInput!$B$20),"",(IF((('Xi,Yi'!N37+P37)>DataInput!$B$21),"",('Xi,Yi'!N37+P37)))))))) ->  | O37: =IF(M37="","",IF(N37="","",(DataInput!$B$4+(DataInput!$D$4-DataInput!$B$4)*RAND()))) ->  | P37: =DataInput!$B$16*RAND() -> 15.87315639 | Q37: =DataInput!$B$15*RAND() -> 10.52385175 | R37: =(IF('Xi,Yi'!R37="","",(IF((('Xi,Yi'!R37+V37+U37/SQRT(3))<DataInput!$B$18),"",(IF((('Xi,Yi'!R37+V37+U37/SQRT(3))>DataInput!$B$19),"",(IF('Xi,Yi'!S37="","",(IF(('Xi,Yi'!S37+U37<DataInput!$B$20),"",(IF((('Xi,Yi'!S37+U37)>DataInput!$B$21),"",('Xi,Yi'!R37+V37+U37/SQRT(3)))))))))))))) ->  | S37: =IF(R37="","",(IF('Xi,Yi'!S37="","",(IF(('Xi,Yi'!S37+U37<DataInput!$B$20),"",(IF((('Xi,Yi'!S37+U37)>DataInput!$B$21),"",('Xi,Yi'!S37+U37)))))))) ->  | T37: =IF(R37="","",IF(S37="","",(DataInput!$B$4+(DataInput!$D$4-DataInput!$B$4)*RAND()))) ->  | U37: =DataInput!$B$16*RAND() -> 12.91361746 | V37: =DataInput!$B$15*RAND() -> 7.528421156 | W37: =(IF('Xi,Yi'!W37="","",(IF((('Xi,Yi'!W37+AA37+Z37/SQRT(3))<DataInput!$B$18),"",(IF((('Xi,Yi'!W37+AA37+Z37/SQRT(3))>DataInput!$B$19),"",(IF('Xi,Yi'!X37="","",(IF(('Xi,Yi'!X37+Z37<DataInput!$B$20),"",(IF((('Xi,Yi'!X37+Z37)>DataInput!$B$21),"",('Xi,Yi'!W37+AA37+Z37/SQRT(3)))))))))))))) ->  | X37: =IF(W37="","",(IF('Xi,Yi'!X37="","",(IF(('Xi,Yi'!X37+Z37<DataInput!$B$20),"",(IF((('Xi,Yi'!X37+Z37)>DataInput!$B$21),"",('Xi,Yi'!X37+Z37)))))))) ->  | Y37: =IF(W37="","",IF(X37="","",(DataInput!$B$4+(DataInput!$D$4-DataInput!$B$4)*RAND()))) ->  | Z37: =DataInput!$B$16*RAND() -> 6.905009879 | AA37: =DataInput!$B$15*RAND() -> 14.46351269 | AB37: =(IF('Xi,Yi'!AB37="","",(IF((('Xi,Yi'!AB37+AF37+AE37/SQRT(3))<DataInput!$B$18),"",(IF((('Xi,Yi'!AB37+AF37+AE37/SQRT(3))>DataInput!$B$19),"",(IF('Xi,Yi'!AC37="","",(IF(('Xi,Yi'!AC37+AE37<DataInput!$B$20),"",(IF((('Xi,Yi'!AC37+AE37)>DataInput!$B$21),"",('Xi,Yi'!AB37+AF37+AE37/SQRT(3)))))))))))))) ->  | AC37: =IF(AB37="","",(IF('Xi,Yi'!AC37="","",(IF(('Xi,Yi'!AC37+AE37<DataInput!$B$20),"",(IF((('Xi,Yi'!AC37+AE37)>DataInput!$B$21),"",('Xi,Yi'!AC37+AE37)))))))) ->  | AD37: =IF(AB37="","",IF(AC37="","",(DataInput!$B$4+(DataInput!$D$4-DataInput!$B$4)*RAND()))) ->  | AE37: =DataInput!$B$16*RAND() -> 3.118541144 | AF37: =DataInput!$B$15*RAND() -> 17.86267819 | AG37: =(IF('Xi,Yi'!AG37="","",(IF((('Xi,Yi'!AG37+AK37+AJ37/SQRT(3))<DataInput!$B$18),"",(IF((('Xi,Yi'!AG37+AK37+AJ37/SQRT(3))>DataInput!$B$19),"",(IF('Xi,Yi'!AH37="","",(IF(('Xi,Yi'!AH37+AJ37<DataInput!$B$20),"",(IF((('Xi,Yi'!AH37+AJ37)>DataInput!$B$21),"",('Xi,Yi'!AG37+AK37+AJ37/SQRT(3)))))))))))))) ->  | AH37: =IF(AG37="","",(IF('Xi,Yi'!AH37="","",(IF(('Xi,Yi'!AH37+AJ37<DataInput!$B$20),"",(IF((('Xi,Yi'!AH37+AJ37)>DataInput!$B$21),"",('Xi,Yi'!AH37+AJ37)))))))) ->  | AI37: =IF(AG37="","",IF(AH37="","",(DataInput!$B$4+(DataInput!$D$4-DataInput!$B$4)*RAND()))) ->  | AJ37: =DataInput!$B$16*RAND() -> 16.997873 | AK37: =DataInput!$B$15*RAND() -> 9.712486926 | AL37: =(IF('Xi,Yi'!AL37="","",(IF((('Xi,Yi'!AL37+AP37+AO37/SQRT(3))<DataInput!$B$18),"",(IF((('Xi,Yi'!AL37+AP37+AO37/SQRT(3))>DataInput!$B$19),"",(IF('Xi,Yi'!AM37="","",(IF(('Xi,Yi'!AM37+AO37<DataInput!$B$20),"",(IF((('Xi,Yi'!AM37+AO37)>DataInput!$B$21),"",('Xi,Yi'!AL37+AP37+AO37/SQRT(3)))))))))))))) ->  | AM37: =IF(AL37="","",(IF('Xi,Yi'!AM37="","",(IF(('Xi,Yi'!AM37+AO37<DataInput!$B$20),"",(IF((('Xi,Yi'!AM37+AO37)>DataInput!$B$21),"",('Xi,Yi'!AM37+AO37)))))))) ->  | AN37: =IF(AL37="","",IF(AM37="","",(DataInput!$B$4+(DataInput!$D$4-DataInput!$B$4)*RAND()))) ->  | AO37: =DataInput!$B$16*RAND() -> 11.7600135 | AP37: =DataInput!$B$15*RAND() -> 12.82152723 | AQ37: =(IF('Xi,Yi'!AQ37="","",(IF((('Xi,Yi'!AQ37+AU37+AT37/SQRT(3))<DataInput!$B$18),"",(IF((('Xi,Yi'!AQ37+AU37+AT37/SQRT(3))>DataInput!$B$19),"",(IF('Xi,Yi'!AR37="","",(IF(('Xi,Yi'!AR37+AT37<DataInput!$B$20),"",(IF((('Xi,Yi'!AR37+AT37)>DataInput!$B$21),"",('Xi,Yi'!AQ37+AU37+AT37/SQRT(3)))))))))))))) ->  | AR37: =IF(AQ37="","",(IF('Xi,Yi'!AR37="","",(IF(('Xi,Yi'!AR37+AT37<DataInput!$B$20),"",(IF((('Xi,Yi'!AR37+AT37)>DataInput!$B$21),"",('Xi,Yi'!AR37+AT37)))))))) ->  | AS37: =IF(AQ37="","",IF(AR37="","",(DataInput!$B$4+(DataInput!$D$4-DataInput!$B$4)*RAND()))) ->  | AT37: =DataInput!$B$16*RAND() -> 6.495671683 | AU37: =DataInput!$B$15*RAND() -> 15.79937214 | AV37: =(IF('Xi,Yi'!AV37="","",(IF((('Xi,Yi'!AV37+AZ37+AY37/SQRT(3))<DataInput!$B$18),"",(IF((('Xi,Yi'!AV37+AZ37+AY37/SQRT(3))>DataInput!$B$19),"",(IF('Xi,Yi'!AW37="","",(IF(('Xi,Yi'!AW37+AY37<DataInput!$B$20),"",(IF((('Xi,Yi'!AW37+AY37)>DataInput!$B$21),"",('Xi,Yi'!AV37+AZ37+AY37/SQRT(3)))))))))))))) ->  | AW37: =IF(AV37="","",(IF('Xi,Yi'!AW37="","",(IF(('Xi,Yi'!AW37+AY37<DataInput!$B$20),"",(IF((('Xi,Yi'!AW37+AY37)>DataInput!$B$21),"",('Xi,Yi'!AW37+AY37)))))))) ->  | AX37: =IF(AV37="","",IF(AW37="","",(DataInput!$B$4+(DataInput!$D$4-DataInput!$B$4)*RAND()))) ->  | AY37: =DataInput!$B$16*RAND() -> 12.41603982 | AZ37: =DataInput!$B$15*RAND() -> 19.2455143 | BA37: =(IF('Xi,Yi'!BA37="","",(IF((('Xi,Yi'!BA37+BE37+BD37/SQRT(3))<DataInput!$B$18),"",(IF((('Xi,Yi'!BA37+BE37+BD37/SQRT(3))>DataInput!$B$19),"",(IF('Xi,Yi'!BB37="","",(IF(('Xi,Yi'!BB37+BD37<DataInput!$B$20),"",(IF((('Xi,Yi'!BB37+BD37)>DataInput!$B$21),"",('Xi,Yi'!BA37+BE37+BD37/SQRT(3)))))))))))))) ->  | BB37: =IF(BA37="","",(IF('Xi,Yi'!BB37="","",(IF(('Xi,Yi'!BB37+BD37<DataInput!$B$20),"",(IF((('Xi,Yi'!BB37+BD37)>DataInput!$B$21),"",('Xi,Yi'!BB37+BD37)))))))) ->  | BC37: =IF(BA37="","",IF(BB37="","",(DataInput!$B$4+(DataInput!$D$4-DataInput!$B$4)*RAND()))) ->  | BD37: =DataInput!$B$16*RAND() -> 16.17557692 | BE37: =DataInput!$B$15*RAND() -> 14.8564451
H38: =(IF('Xi,Yi'!H38="","",(IF((('Xi,Yi'!H38+L38+K38/SQRT(3))<DataInput!$B$18),"",(IF((('Xi,Yi'!H38+L38+K38/SQRT(3))>DataInput!$B$19),"",(IF('Xi,Yi'!I38="","",(IF(('Xi,Yi'!I38+K38<DataInput!$B$20),"",(IF((('Xi,Yi'!I38+K38)>DataInput!$B$21),"",('Xi,Yi'!H38+L38+K38/SQRT(3)))))))))))))) ->  | I38: =IF(H38="","",(IF('Xi,Yi'!I38="","",(IF(('Xi,Yi'!I38+K38<DataInput!$B$20),"",(IF((('Xi,Yi'!I38+K38)>DataInput!$B$21),"",('Xi,Yi'!I38+K38)))))))) ->  | J38: =IF(H38="","",IF(I38="","",(DataInput!$B$4+(DataInput!$D$4-DataInput!$B$4)*RAND()))) ->  | K38: =DataInput!$B$16*RAND() -> 9.494522329 | L38: =DataInput!$B$15*RAND() -> 3.60364854 | M38: =(IF('Xi,Yi'!M38="","",(IF((('Xi,Yi'!M38+Q38+P38/SQRT(3))<DataInput!$B$18),"",(IF((('Xi,Yi'!M38+Q38+P38/SQRT(3))>DataInput!$B$19),"",(IF('Xi,Yi'!N38="","",(IF(('Xi,Yi'!N38+P38<DataInput!$B$20),"",(IF((('Xi,Yi'!N38+P38)>DataInput!$B$21),"",('Xi,Yi'!M38+Q38+P38/SQRT(3)))))))))))))) ->  | N38: =IF(M38="","",(IF('Xi,Yi'!N38="","",(IF(('Xi,Yi'!N38+P38<DataInput!$B$20),"",(IF((('Xi,Yi'!N38+P38)>DataInput!$B$21),"",('Xi,Yi'!N38+P38)))))))) ->  | O38: =IF(M38="","",IF(N38="","",(DataInput!$B$4+(DataInput!$D$4-DataInput!$B$4)*RAND()))) ->  | P38: =DataInput!$B$16*RAND() -> 15.27991912 | Q38: =DataInput!$B$15*RAND() -> 18.39618723 | R38: =(IF('Xi,Yi'!R38="","",(IF((('Xi,Yi'!R38+V38+U38/SQRT(3))<DataInput!$B$18),"",(IF((('Xi,Yi'!R38+V38+U38/SQRT(3))>DataInput!$B$19),"",(IF('Xi,Yi'!S38="","",(IF(('Xi,Yi'!S38+U38<DataInput!$B$20),"",(IF((('Xi,Yi'!S38+U38)>DataInput!$B$21),"",('Xi,Yi'!R38+V38+U38/SQRT(3)))))))))))))) ->  | S38: =IF(R38="","",(IF('Xi,Yi'!S38="","",(IF(('Xi,Yi'!S38+U38<DataInput!$B$20),"",(IF((('Xi,Yi'!S38+U38)>DataInput!$B$21),"",('Xi,Yi'!S38+U38)))))))) ->  | T38: =IF(R38="","",IF(S38="","",(DataInput!$B$4+(DataInput!$D$4-DataInput!$B$4)*RAND()))) ->  | U38: =DataInput!$B$16*RAND() -> 12.48664848 | V38: =DataInput!$B$15*RAND() -> 18.51540584 | W38: =(IF('Xi,Yi'!W38="","",(IF((('Xi,Yi'!W38+AA38+Z38/SQRT(3))<DataInput!$B$18),"",(IF((('Xi,Yi'!W38+AA38+Z38/SQRT(3))>DataInput!$B$19),"",(IF('Xi,Yi'!X38="","",(IF(('Xi,Yi'!X38+Z38<DataInput!$B$20),"",(IF((('Xi,Yi'!X38+Z38)>DataInput!$B$21),"",('Xi,Yi'!W38+AA38+Z38/SQRT(3)))))))))))))) ->  | X38: =IF(W38="","",(IF('Xi,Yi'!X38="","",(IF(('Xi,Yi'!X38+Z38<DataInput!$B$20),"",(IF((('Xi,Yi'!X38+Z38)>DataInput!$B$21),"",('Xi,Yi'!X38+Z38)))))))) ->  | Y38: =IF(W38="","",IF(X38="","",(DataInput!$B$4+(DataInput!$D$4-DataInput!$B$4)*RAND()))) ->  | Z38: =DataInput!$B$16*RAND() -> 9.322504439 | AA38: =DataInput!$B$15*RAND() -> 11.70984339 | AB38: =(IF('Xi,Yi'!AB38="","",(IF((('Xi,Yi'!AB38+AF38+AE38/SQRT(3))<DataInput!$B$18),"",(IF((('Xi,Yi'!AB38+AF38+AE38/SQRT(3))>DataInput!$B$19),"",(IF('Xi,Yi'!AC38="","",(IF(('Xi,Yi'!AC38+AE38<DataInput!$B$20),"",(IF((('Xi,Yi'!AC38+AE38)>DataInput!$B$21),"",('Xi,Yi'!AB38+AF38+AE38/SQRT(3)))))))))))))) ->  | AC38: =IF(AB38="","",(IF('Xi,Yi'!AC38="","",(IF(('Xi,Yi'!AC38+AE38<DataInput!$B$20),"",(IF((('Xi,Yi'!AC38+AE38)>DataInput!$B$21),"",('Xi,Yi'!AC38+AE38)))))))) ->  | AD38: =IF(AB38="","",IF(AC38="","",(DataInput!$B$4+(DataInput!$D$4-DataInput!$B$4)*RAND()))) ->  | AE38: =DataInput!$B$16*RAND() -> 11.54658115 | AF38: =DataInput!$B$15*RAND() -> 1.377661871 | AG38: =(IF('Xi,Yi'!AG38="","",(IF((('Xi,Yi'!AG38+AK38+AJ38/SQRT(3))<DataInput!$B$18),"",(IF((('Xi,Yi'!AG38+AK38+AJ38/SQRT(3))>DataInput!$B$19),"",(IF('Xi,Yi'!AH38="","",(IF(('Xi,Yi'!AH38+AJ38<DataInput!$B$20),"",(IF((('Xi,Yi'!AH38+AJ38)>DataInput!$B$21),"",('Xi,Yi'!AG38+AK38+AJ38/SQRT(3)))))))))))))) ->  | AH38: =IF(AG38="","",(IF('Xi,Yi'!AH38="","",(IF(('Xi,Yi'!AH38+AJ38<DataInput!$B$20),"",(IF((('Xi,Yi'!AH38+AJ38)>DataInput!$B$21),"",('Xi,Yi'!AH38+AJ38)))))))) ->  | AI38: =IF(AG38="","",IF(AH38="","",(DataInput!$B$4+(DataInput!$D$4-DataInput!$B$4)*RAND()))) ->  | AJ38: =DataInput!$B$16*RAND() -> 14.27362329 | AK38: =DataInput!$B$15*RAND() -> 15.28391077 | AL38: =(IF('Xi,Yi'!AL38="","",(IF((('Xi,Yi'!AL38+AP38+AO38/SQRT(3))<DataInput!$B$18),"",(IF((('Xi,Yi'!AL38+AP38+AO38/SQRT(3))>DataInput!$B$19),"",(IF('Xi,Yi'!AM38="","",(IF(('Xi,Yi'!AM38+AO38<DataInput!$B$20),"",(IF((('Xi,Yi'!AM38+AO38)>DataInput!$B$21),"",('Xi,Yi'!AL38+AP38+AO38/SQRT(3)))))))))))))) ->  | AM38: =IF(AL38="","",(IF('Xi,Yi'!AM38="","",(IF(('Xi,Yi'!AM38+AO38<DataInput!$B$20),"",(IF((('Xi,Yi'!AM38+AO38)>DataInput!$B$21),"",('Xi,Yi'!AM38+AO38)))))))) ->  | AN38: =IF(AL38="","",IF(AM38="","",(DataInput!$B$4+(DataInput!$D$4-DataInput!$B$4)*RAND()))) ->  | AO38: =DataInput!$B$16*RAND() -> 9.667531515 | AP38: =DataInput!$B$15*RAND() -> 3.04554243 | AQ38: =(IF('Xi,Yi'!AQ38="","",(IF((('Xi,Yi'!AQ38+AU38+AT38/SQRT(3))<DataInput!$B$18),"",(IF((('Xi,Yi'!AQ38+AU38+AT38/SQRT(3))>DataInput!$B$19),"",(IF('Xi,Yi'!AR38="","",(IF(('Xi,Yi'!AR38+AT38<DataInput!$B$20),"",(IF((('Xi,Yi'!AR38+AT38)>DataInput!$B$21),"",('Xi,Yi'!AQ38+AU38+AT38/SQRT(3)))))))))))))) ->  | AR38: =IF(AQ38="","",(IF('Xi,Yi'!AR38="","",(IF(('Xi,Yi'!AR38+AT38<DataInput!$B$20),"",(IF((('Xi,Yi'!AR38+AT38)>DataInput!$B$21),"",('Xi,Yi'!AR38+AT38)))))))) ->  | AS38: =IF(AQ38="","",IF(AR38="","",(DataInput!$B$4+(DataInput!$D$4-DataInput!$B$4)*RAND()))) ->  | AT38: =DataInput!$B$16*RAND() -> 3.022721137 | AU38: =DataInput!$B$15*RAND() -> 14.4559684 | AV38: =(IF('Xi,Yi'!AV38="","",(IF((('Xi,Yi'!AV38+AZ38+AY38/SQRT(3))<DataInput!$B$18),"",(IF((('Xi,Yi'!AV38+AZ38+AY38/SQRT(3))>DataInput!$B$19),"",(IF('Xi,Yi'!AW38="","",(IF(('Xi,Yi'!AW38+AY38<DataInput!$B$20),"",(IF((('Xi,Yi'!AW38+AY38)>DataInput!$B$21),"",('Xi,Yi'!AV38+AZ38+AY38/SQRT(3)))))))))))))) ->  | AW38: =IF(AV38="","",(IF('Xi,Yi'!AW38="","",(IF(('Xi,Yi'!AW38+AY38<DataInput!$B$20),"",(IF((('Xi,Yi'!AW38+AY38)>DataInput!$B$21),"",('Xi,Yi'!AW38+AY38)))))))) ->  | AX38: =IF(AV38="","",IF(AW38="","",(DataInput!$B$4+(DataInput!$D$4-DataInput!$B$4)*RAND()))) ->  | AY38: =DataInput!$B$16*RAND() -> 2.186160621 | AZ38: =DataInput!$B$15*RAND() -> 19.54882167 | BA38: =(IF('Xi,Yi'!BA38="","",(IF((('Xi,Yi'!BA38+BE38+BD38/SQRT(3))<DataInput!$B$18),"",(IF((('Xi,Yi'!BA38+BE38+BD38/SQRT(3))>DataInput!$B$19),"",(IF('Xi,Yi'!BB38="","",(IF(('Xi,Yi'!BB38+BD38<DataInput!$B$20),"",(IF((('Xi,Yi'!BB38+BD38)>DataInput!$B$21),"",('Xi,Yi'!BA38+BE38+BD38/SQRT(3)))))))))))))) ->  | BB38: =IF(BA38="","",(IF('Xi,Yi'!BB38="","",(IF(('Xi,Yi'!BB38+BD38<DataInput!$B$20),"",(IF((('Xi,Yi'!BB38+BD38)>DataInput!$B$21),"",('Xi,Yi'!BB38+BD38)))))))) ->  | BC38: =IF(BA38="","",IF(BB38="","",(DataInput!$B$4+(DataInput!$D$4-DataInput!$B$4)*RAND()))) ->  | BD38: =DataInput!$B$16*RAND() -> 15.42168043 | BE38: =DataInput!$B$15*RAND() -> 16.97789212
H39: =(IF('Xi,Yi'!H39="","",(IF((('Xi,Yi'!H39+L39+K39/SQRT(3))<DataInput!$B$18),"",(IF((('Xi,Yi'!H39+L39+K39/SQRT(3))>DataInput!$B$19),"",(IF('Xi,Yi'!I39="","",(IF(('Xi,Yi'!I39+K39<DataInput!$B$20),"",(IF((('Xi,Yi'!I39+K39)>DataInput!$B$21),"",('Xi,Yi'!H39+L39+K39/SQRT(3)))))))))))))) -> 35.13487534 | I39: =IF(H39="","",(IF('Xi,Yi'!I39="","",(IF(('Xi,Yi'!I39+K39<DataInput!$B$20),"",(IF((('Xi,Yi'!I39+K39)>DataInput!$B$21),"",('Xi,Yi'!I39+K39)))))))) -> 1.011720735 | J39: =IF(H39="","",IF(I39="","",(DataInput!$B$4+(DataInput!$D$4-DataInput!$B$4)*RAND()))) -> 8.763396742 | K39: =DataInput!$B$16*RAND() -> 13.91172074 | L39: =DataInput!$B$15*RAND() -> 2.10293963 | M39: =(IF('Xi,Yi'!M39="","",(IF((('Xi,Yi'!M39+Q39+P39/SQRT(3))<DataInput!$B$18),"",(IF((('Xi,Yi'!M39+Q39+P39/SQRT(3))>DataInput!$B$19),"",(IF('Xi,Yi'!N39="","",(IF(('Xi,Yi'!N39+P39<DataInput!$B$20),"",(IF((('Xi,Yi'!N39+P39)>DataInput!$B$21),"",('Xi,Yi'!M39+Q39+P39/SQRT(3)))))))))))))) ->  | N39: =IF(M39="","",(IF('Xi,Yi'!N39="","",(IF(('Xi,Yi'!N39+P39<DataInput!$B$20),"",(IF((('Xi,Yi'!N39+P39)>DataInput!$B$21),"",('Xi,Yi'!N39+P39)))))))) ->  | O39: =IF(M39="","",IF(N39="","",(DataInput!$B$4+(DataInput!$D$4-DataInput!$B$4)*RAND()))) ->  | P39: =DataInput!$B$16*RAND() -> 2.651439751 | Q39: =DataInput!$B$15*RAND() -> 3.233167778 | R39: =(IF('Xi,Yi'!R39="","",(IF((('Xi,Yi'!R39+V39+U39/SQRT(3))<DataInput!$B$18),"",(IF((('Xi,Yi'!R39+V39+U39/SQRT(3))>DataInput!$B$19),"",(IF('Xi,Yi'!S39="","",(IF(('Xi,Yi'!S39+U39<DataInput!$B$20),"",(IF((('Xi,Yi'!S39+U39)>DataInput!$B$21),"",('Xi,Yi'!R39+V39+U39/SQRT(3)))))))))))))) ->  | S39: =IF(R39="","",(IF('Xi,Yi'!S39="","",(IF(('Xi,Yi'!S39+U39<DataInput!$B$20),"",(IF((('Xi,Yi'!S39+U39)>DataInput!$B$21),"",('Xi,Yi'!S39+U39)))))))) ->  | T39: =IF(R39="","",IF(S39="","",(DataInput!$B$4+(DataInput!$D$4-DataInput!$B$4)*RAND()))) ->  | U39: =DataInput!$B$16*RAND() -> 1.068486674 | V39: =DataInput!$B$15*RAND() -> 9.979500792 | W39: =(IF('Xi,Yi'!W39="","",(IF((('Xi,Yi'!W39+AA39+Z39/SQRT(3))<DataInput!$B$18),"",(IF((('Xi,Yi'!W39+AA39+Z39/SQRT(3))>DataInput!$B$19),"",(IF('Xi,Yi'!X39="","",(IF(('Xi,Yi'!X39+Z39<DataInput!$B$20),"",(IF((('Xi,Yi'!X39+Z39)>DataInput!$B$21),"",('Xi,Yi'!W39+AA39+Z39/SQRT(3)))))))))))))) ->  | X39: =IF(W39="","",(IF('Xi,Yi'!X39="","",(IF(('Xi,Yi'!X39+Z39<DataInput!$B$20),"",(IF((('Xi,Yi'!X39+Z39)>DataInput!$B$21),"",('Xi,Yi'!X39+Z39)))))))) ->  | Y39: =IF(W39="","",IF(X39="","",(DataInput!$B$4+(DataInput!$D$4-DataInput!$B$4)*RAND()))) ->  | Z39: =DataInput!$B$16*RAND() -> 8.91237876 | AA39: =DataInput!$B$15*RAND() -> 9.84433122 | AB39: =(IF('Xi,Yi'!AB39="","",(IF((('Xi,Yi'!AB39+AF39+AE39/SQRT(3))<DataInput!$B$18),"",(IF((('Xi,Yi'!AB39+AF39+AE39/SQRT(3))>DataInput!$B$19),"",(IF('Xi,Yi'!AC39="","",(IF(('Xi,Yi'!AC39+AE39<DataInput!$B$20),"",(IF((('Xi,Yi'!AC39+AE39)>DataInput!$B$21),"",('Xi,Yi'!AB39+AF39+AE39/SQRT(3)))))))))))))) ->  | AC39: =IF(AB39="","",(IF('Xi,Yi'!AC39="","",(IF(('Xi,Yi'!AC39+AE39<DataInput!$B$20),"",(IF((('Xi,Yi'!AC39+AE39)>DataInput!$B$21),"",('Xi,Yi'!AC39+AE39)))))))) ->  | AD39: =IF(AB39="","",IF(AC39="","",(DataInput!$B$4+(DataInput!$D$4-DataInput!$B$4)*RAND()))) ->  | AE39: =DataInput!$B$16*RAND() -> 1.362957081 | AF39: =DataInput!$B$15*RAND() -> 13.31159925 | AG39: =(IF('Xi,Yi'!AG39="","",(IF((('Xi,Yi'!AG39+AK39+AJ39/SQRT(3))<DataInput!$B$18),"",(IF((('Xi,Yi'!AG39+AK39+AJ39/SQRT(3))>DataInput!$B$19),"",(IF('Xi,Yi'!AH39="","",(IF(('Xi,Yi'!AH39+AJ39<DataInput!$B$20),"",(IF((('Xi,Yi'!AH39+AJ39)>DataInput!$B$21),"",('Xi,Yi'!AG39+AK39+AJ39/SQRT(3)))))))))))))) ->  | AH39: =IF(AG39="","",(IF('Xi,Yi'!AH39="","",(IF(('Xi,Yi'!AH39+AJ39<DataInput!$B$20),"",(IF((('Xi,Yi'!AH39+AJ39)>DataInput!$B$21),"",('Xi,Yi'!AH39+AJ39)))))))) ->  | AI39: =IF(AG39="","",IF(AH39="","",(DataInput!$B$4+(DataInput!$D$4-DataInput!$B$4)*RAND()))) ->  | AJ39: =DataInput!$B$16*RAND() -> 16.55266601 | AK39: =DataInput!$B$15*RAND() -> 3.919368514 | AL39: =(IF('Xi,Yi'!AL39="","",(IF((('Xi,Yi'!AL39+AP39+AO39/SQRT(3))<DataInput!$B$18),"",(IF((('Xi,Yi'!AL39+AP39+AO39/SQRT(3))>DataInput!$B$19),"",(IF('Xi,Yi'!AM39="","",(IF(('Xi,Yi'!AM39+AO39<DataInput!$B$20),"",(IF((('Xi,Yi'!AM39+AO39)>DataInput!$B$21),"",('Xi,Yi'!AL39+AP39+AO39/SQRT(3)))))))))))))) ->  | AM39: =IF(AL39="","",(IF('Xi,Yi'!AM39="","",(IF(('Xi,Yi'!AM39+AO39<DataInput!$B$20),"",(IF((('Xi,Yi'!AM39+AO39)>DataInput!$B$21),"",('Xi,Yi'!AM39+AO39)))))))) ->  | AN39: =IF(AL39="","",IF(AM39="","",(DataInput!$B$4+(DataInput!$D$4-DataInput!$B$4)*RAND()))) ->  | AO39: =DataInput!$B$16*RAND() -> 13.88338693 | AP39: =DataInput!$B$15*RAND() -> 19.24895035 | AQ39: =(IF('Xi,Yi'!AQ39="","",(IF((('Xi,Yi'!AQ39+AU39+AT39/SQRT(3))<DataInput!$B$18),"",(IF((('Xi,Yi'!AQ39+AU39+AT39/SQRT(3))>DataInput!$B$19),"",(IF('Xi,Yi'!AR39="","",(IF(('Xi,Yi'!AR39+AT39<DataInput!$B$20),"",(IF((('Xi,Yi'!AR39+AT39)>DataInput!$B$21),"",('Xi,Yi'!AQ39+AU39+AT39/SQRT(3)))))))))))))) ->  | AR39: =IF(AQ39="","",(IF('Xi,Yi'!AR39="","",(IF(('Xi,Yi'!AR39+AT39<DataInput!$B$20),"",(IF((('Xi,Yi'!AR39+AT39)>DataInput!$B$21),"",('Xi,Yi'!AR39+AT39)))))))) ->  | AS39: =IF(AQ39="","",IF(AR39="","",(DataInput!$B$4+(DataInput!$D$4-DataInput!$B$4)*RAND()))) ->  | AT39: =DataInput!$B$16*RAND() -> 4.503248649 | AU39: =DataInput!$B$15*RAND() -> 0.9132594094 | AV39: =(IF('Xi,Yi'!AV39="","",(IF((('Xi,Yi'!AV39+AZ39+AY39/SQRT(3))<DataInput!$B$18),"",(IF((('Xi,Yi'!AV39+AZ39+AY39/SQRT(3))>DataInput!$B$19),"",(IF('Xi,Yi'!AW39="","",(IF(('Xi,Yi'!AW39+AY39<DataInput!$B$20),"",(IF((('Xi,Yi'!AW39+AY39)>DataInput!$B$21),"",('Xi,Yi'!AV39+AZ39+AY39/SQRT(3)))))))))))))) ->  | AW39: =IF(AV39="","",(IF('Xi,Yi'!AW39="","",(IF(('Xi,Yi'!AW39+AY39<DataInput!$B$20),"",(IF((('Xi,Yi'!AW39+AY39)>DataInput!$B$21),"",('Xi,Yi'!AW39+AY39)))))))) ->  | AX39: =IF(AV39="","",IF(AW39="","",(DataInput!$B$4+(DataInput!$D$4-DataInput!$B$4)*RAND()))) ->  | AY39: =DataInput!$B$16*RAND() -> 11.60851922 | AZ39: =DataInput!$B$15*RAND() -> 6.643503656 | BA39: =(IF('Xi,Yi'!BA39="","",(IF((('Xi,Yi'!BA39+BE39+BD39/SQRT(3))<DataInput!$B$18),"",(IF((('Xi,Yi'!BA39+BE39+BD39/SQRT(3))>DataInput!$B$19),"",(IF('Xi,Yi'!BB39="","",(IF(('Xi,Yi'!BB39+BD39<DataInput!$B$20),"",(IF((('Xi,Yi'!BB39+BD39)>DataInput!$B$21),"",('Xi,Yi'!BA39+BE39+BD39/SQRT(3)))))))))))))) ->  | BB39: =IF(BA39="","",(IF('Xi,Yi'!BB39="","",(IF(('Xi,Yi'!BB39+BD39<DataInput!$B$20),"",(IF((('Xi,Yi'!BB39+BD39)>DataInput!$B$21),"",('Xi,Yi'!BB39+BD39)))))))) ->  | BC39: =IF(BA39="","",IF(BB39="","",(DataInput!$B$4+(DataInput!$D$4-DataInput!$B$4)*RAND()))) ->  | BD39: =DataInput!$B$16*RAND() -> 1.803636558 | BE39: =DataInput!$B$15*RAND() -> 5.748638119
H40: =(IF('Xi,Yi'!H40="","",(IF((('Xi,Yi'!H40+L40+K40/SQRT(3))<DataInput!$B$18),"",(IF((('Xi,Yi'!H40+L40+K40/SQRT(3))>DataInput!$B$19),"",(IF('Xi,Yi'!I40="","",(IF(('Xi,Yi'!I40+K40<DataInput!$B$20),"",(IF((('Xi,Yi'!I40+K40)>DataInput!$B$21),"",('Xi,Yi'!H40+L40+K40/SQRT(3)))))))))))))) ->  | I40: =IF(H40="","",(IF('Xi,Yi'!I40="","",(IF(('Xi,Yi'!I40+K40<DataInput!$B$20),"",(IF((('Xi,Yi'!I40+K40)>DataInput!$B$21),"",('Xi,Yi'!I40+K40)))))))) ->  | J40: =IF(H40="","",IF(I40="","",(DataInput!$B$4+(DataInput!$D$4-DataInput!$B$4)*RAND()))) ->  | K40: =DataInput!$B$16*RAND() -> 12.06052593 | L40: =DataInput!$B$15*RAND() -> 9.648177292 | M40: =(IF('Xi,Yi'!M40="","",(IF((('Xi,Yi'!M40+Q40+P40/SQRT(3))<DataInput!$B$18),"",(IF((('Xi,Yi'!M40+Q40+P40/SQRT(3))>DataInput!$B$19),"",(IF('Xi,Yi'!N40="","",(IF(('Xi,Yi'!N40+P40<DataInput!$B$20),"",(IF((('Xi,Yi'!N40+P40)>DataInput!$B$21),"",('Xi,Yi'!M40+Q40+P40/SQRT(3)))))))))))))) ->  | N40: =IF(M40="","",(IF('Xi,Yi'!N40="","",(IF(('Xi,Yi'!N40+P40<DataInput!$B$20),"",(IF((('Xi,Yi'!N40+P40)>DataInput!$B$21),"",('Xi,Yi'!N40+P40)))))))) ->  | O40: =IF(M40="","",IF(N40="","",(DataInput!$B$4+(DataInput!$D$4-DataInput!$B$4)*RAND()))) ->  | P40: =DataInput!$B$16*RAND() -> 1.085653327 | Q40: =DataInput!$B$15*RAND() -> 14.73376527 | R40: =(IF('Xi,Yi'!R40="","",(IF((('Xi,Yi'!R40+V40+U40/SQRT(3))<DataInput!$B$18),"",(IF((('Xi,Yi'!R40+V40+U40/SQRT(3))>DataInput!$B$19),"",(IF('Xi,Yi'!S40="","",(IF(('Xi,Yi'!S40+U40<DataInput!$B$20),"",(IF((('Xi,Yi'!S40+U40)>DataInput!$B$21),"",('Xi,Yi'!R40+V40+U40/SQRT(3)))))))))))))) ->  | S40: =IF(R40="","",(IF('Xi,Yi'!S40="","",(IF(('Xi,Yi'!S40+U40<DataInput!$B$20),"",(IF((('Xi,Yi'!S40+U40)>DataInput!$B$21),"",('Xi,Yi'!S40+U40)))))))) ->  | T40: =IF(R40="","",IF(S40="","",(DataInput!$B$4+(DataInput!$D$4-DataInput!$B$4)*RAND()))) ->  | U40: =DataInput!$B$16*RAND() -> 4.559724689 | V40: =DataInput!$B$15*RAND() -> 3.35271456 | W40: =(IF('Xi,Yi'!W40="","",(IF((('Xi,Yi'!W40+AA40+Z40/SQRT(3))<DataInput!$B$18),"",(IF((('Xi,Yi'!W40+AA40+Z40/SQRT(3))>DataInput!$B$19),"",(IF('Xi,Yi'!X40="","",(IF(('Xi,Yi'!X40+Z40<DataInput!$B$20),"",(IF((('Xi,Yi'!X40+Z40)>DataInput!$B$21),"",('Xi,Yi'!W40+AA40+Z40/SQRT(3)))))))))))))) ->  | X40: =IF(W40="","",(IF('Xi,Yi'!X40="","",(IF(('Xi,Yi'!X40+Z40<DataInput!$B$20),"",(IF((('Xi,Yi'!X40+Z40)>DataInput!$B$21),"",('Xi,Yi'!X40+Z40)))))))) ->  | Y40: =IF(W40="","",IF(X40="","",(DataInput!$B$4+(DataInput!$D$4-DataInput!$B$4)*RAND()))) ->  | Z40: =DataInput!$B$16*RAND() -> 9.216935611 | AA40: =DataInput!$B$15*RAND() -> 0.9267099539 | AB40: =(IF('Xi,Yi'!AB40="","",(IF((('Xi,Yi'!AB40+AF40+AE40/SQRT(3))<DataInput!$B$18),"",(IF((('Xi,Yi'!AB40+AF40+AE40/SQRT(3))>DataInput!$B$19),"",(IF('Xi,Yi'!AC40="","",(IF(('Xi,Yi'!AC40+AE40<DataInput!$B$20),"",(IF((('Xi,Yi'!AC40+AE40)>DataInput!$B$21),"",('Xi,Yi'!AB40+AF40+AE40/SQRT(3)))))))))))))) ->  | AC40: =IF(AB40="","",(IF('Xi,Yi'!AC40="","",(IF(('Xi,Yi'!AC40+AE40<DataInput!$B$20),"",(IF((('Xi,Yi'!AC40+AE40)>DataInput!$B$21),"",('Xi,Yi'!AC40+AE40)))))))) ->  | AD40: =IF(AB40="","",IF(AC40="","",(DataInput!$B$4+(DataInput!$D$4-DataInput!$B$4)*RAND()))) ->  | AE40: =DataInput!$B$16*RAND() -> 10.65563141 | AF40: =DataInput!$B$15*RAND() -> 1.00218849 | AG40: =(IF('Xi,Yi'!AG40="","",(IF((('Xi,Yi'!AG40+AK40+AJ40/SQRT(3))<DataInput!$B$18),"",(IF((('Xi,Yi'!AG40+AK40+AJ40/SQRT(3))>DataInput!$B$19),"",(IF('Xi,Yi'!AH40="","",(IF(('Xi,Yi'!AH40+AJ40<DataInput!$B$20),"",(IF((('Xi,Yi'!AH40+AJ40)>DataInput!$B$21),"",('Xi,Yi'!AG40+AK40+AJ40/SQRT(3)))))))))))))) ->  | AH40: =IF(AG40="","",(IF('Xi,Yi'!AH40="","",(IF(('Xi,Yi'!AH40+AJ40<DataInput!$B$20),"",(IF((('Xi,Yi'!AH40+AJ40)>DataInput!$B$21),"",('Xi,Yi'!AH40+AJ40)))))))) ->  | AI40: =IF(AG40="","",IF(AH40="","",(DataInput!$B$4+(DataInput!$D$4-DataInput!$B$4)*RAND()))) ->  | AJ40: =DataInput!$B$16*RAND() -> 6.343245747 | AK40: =DataInput!$B$15*RAND() -> 16.2242948 | AL40: =(IF('Xi,Yi'!AL40="","",(IF((('Xi,Yi'!AL40+AP40+AO40/SQRT(3))<DataInput!$B$18),"",(IF((('Xi,Yi'!AL40+AP40+AO40/SQRT(3))>DataInput!$B$19),"",(IF('Xi,Yi'!AM40="","",(IF(('Xi,Yi'!AM40+AO40<DataInput!$B$20),"",(IF((('Xi,Yi'!AM40+AO40)>DataInput!$B$21),"",('Xi,Yi'!AL40+AP40+AO40/SQRT(3)))))))))))))) ->  | AM40: =IF(AL40="","",(IF('Xi,Yi'!AM40="","",(IF(('Xi,Yi'!AM40+AO40<DataInput!$B$20),"",(IF((('Xi,Yi'!AM40+AO40)>DataInput!$B$21),"",('Xi,Yi'!AM40+AO40)))))))) ->  | AN40: =IF(AL40="","",IF(AM40="","",(DataInput!$B$4+(DataInput!$D$4-DataInput!$B$4)*RAND()))) ->  | AO40: =DataInput!$B$16*RAND() -> 0.2315847193 | AP40: =DataInput!$B$15*RAND() -> 19.05839845 | AQ40: =(IF('Xi,Yi'!AQ40="","",(IF((('Xi,Yi'!AQ40+AU40+AT40/SQRT(3))<DataInput!$B$18),"",(IF((('Xi,Yi'!AQ40+AU40+AT40/SQRT(3))>DataInput!$B$19),"",(IF('Xi,Yi'!AR40="","",(IF(('Xi,Yi'!AR40+AT40<DataInput!$B$20),"",(IF((('Xi,Yi'!AR40+AT40)>DataInput!$B$21),"",('Xi,Yi'!AQ40+AU40+AT40/SQRT(3)))))))))))))) ->  | AR40: =IF(AQ40="","",(IF('Xi,Yi'!AR40="","",(IF(('Xi,Yi'!AR40+AT40<DataInput!$B$20),"",(IF((('Xi,Yi'!AR40+AT40)>DataInput!$B$21),"",('Xi,Yi'!AR40+AT40)))))))) ->  | AS40: =IF(AQ40="","",IF(AR40="","",(DataInput!$B$4+(DataInput!$D$4-DataInput!$B$4)*RAND()))) ->  | AT40: =DataInput!$B$16*RAND() -> 13.23867997 | AU40: =DataInput!$B$15*RAND() -> 16.88260927 | AV40: =(IF('Xi,Yi'!AV40="","",(IF((('Xi,Yi'!AV40+AZ40+AY40/SQRT(3))<DataInput!$B$18),"",(IF((('Xi,Yi'!AV40+AZ40+AY40/SQRT(3))>DataInput!$B$19),"",(IF('Xi,Yi'!AW40="","",(IF(('Xi,Yi'!AW40+AY40<DataInput!$B$20),"",(IF((('Xi,Yi'!AW40+AY40)>DataInput!$B$21),"",('Xi,Yi'!AV40+AZ40+AY40/SQRT(3)))))))))))))) ->  | AW40: =IF(AV40="","",(IF('Xi,Yi'!AW40="","",(IF(('Xi,Yi'!AW40+AY40<DataInput!$B$20),"",(IF((('Xi,Yi'!AW40+AY40)>DataInput!$B$21),"",('Xi,Yi'!AW40+AY40)))))))) ->  | AX40: =IF(AV40="","",IF(AW40="","",(DataInput!$B$4+(DataInput!$D$4-DataInput!$B$4)*RAND()))) ->  | AY40: =DataInput!$B$16*RAND() -> 0.8768340046 | AZ40: =DataInput!$B$15*RAND() -> 9.692561728 | BA40: =(IF('Xi,Yi'!BA40="","",(IF((('Xi,Yi'!BA40+BE40+BD40/SQRT(3))<DataInput!$B$18),"",(IF((('Xi,Yi'!BA40+BE40+BD40/SQRT(3))>DataInput!$B$19),"",(IF('Xi,Yi'!BB40="","",(IF(('Xi,Yi'!BB40+BD40<DataInput!$B$20),"",(IF((('Xi,Yi'!BB40+BD40)>DataInput!$B$21),"",('Xi,Yi'!BA40+BE40+BD40/SQRT(3)))))))))))))) ->  | BB40: =IF(BA40="","",(IF('Xi,Yi'!BB40="","",(IF(('Xi,Yi'!BB40+BD40<DataInput!$B$20),"",(IF((('Xi,Yi'!BB40+BD40)>DataInput!$B$21),"",('Xi,Yi'!BB40+BD40)))))))) ->  | BC40: =IF(BA40="","",IF(BB40="","",(DataInput!$B$4+(DataInput!$D$4-DataInput!$B$4)*RAND()))) ->  | BD40: =DataInput!$B$16*RAND() -> 3.594928818 | BE40: =DataInput!$B$15*RAND() -> 12.18706825
H41: =(IF('Xi,Yi'!H41="","",(IF((('Xi,Yi'!H41+L41+K41/SQRT(3))<DataInput!$B$18),"",(IF((('Xi,Yi'!H41+L41+K41/SQRT(3))>DataInput!$B$19),"",(IF('Xi,Yi'!I41="","",(IF(('Xi,Yi'!I41+K41<DataInput!$B$20),"",(IF((('Xi,Yi'!I41+K41)>DataInput!$B$21),"",('Xi,Yi'!H41+L41+K41/SQRT(3)))))))))))))) ->  | I41: =IF(H41="","",(IF('Xi,Yi'!I41="","",(IF(('Xi,Yi'!I41+K41<DataInput!$B$20),"",(IF((('Xi,Yi'!I41+K41)>DataInput!$B$21),"",('Xi,Yi'!I41+K41)))))))) ->  | J41: =IF(H41="","",IF(I41="","",(DataInput!$B$4+(DataInput!$D$4-DataInput!$B$4)*RAND()))) ->  | K41: =DataInput!$B$16*RAND() -> 12.08491668 | L41: =DataInput!$B$15*RAND() -> 4.043079692 | M41: =(IF('Xi,Yi'!M41="","",(IF((('Xi,Yi'!M41+Q41+P41/SQRT(3))<DataInput!$B$18),"",(IF((('Xi,Yi'!M41+Q41+P41/SQRT(3))>DataInput!$B$19),"",(IF('Xi,Yi'!N41="","",(IF(('Xi,Yi'!N41+P41<DataInput!$B$20),"",(IF((('Xi,Yi'!N41+P41)>DataInput!$B$21),"",('Xi,Yi'!M41+Q41+P41/SQRT(3)))))))))))))) ->  | N41: =IF(M41="","",(IF('Xi,Yi'!N41="","",(IF(('Xi,Yi'!N41+P41<DataInput!$B$20),"",(IF((('Xi,Yi'!N41+P41)>DataInput!$B$21),"",('Xi,Yi'!N41+P41)))))))) ->  | O41: =IF(M41="","",IF(N41="","",(DataInput!$B$4+(DataInput!$D$4-DataInput!$B$4)*RAND()))) ->  | P41: =DataInput!$B$16*RAND() -> 4.652797934 | Q41: =DataInput!$B$15*RAND() -> 9.994149797 | R41: =(IF('Xi,Yi'!R41="","",(IF((('Xi,Yi'!R41+V41+U41/SQRT(3))<DataInput!$B$18),"",(IF((('Xi,Yi'!R41+V41+U41/SQRT(3))>DataInput!$B$19),"",(IF('Xi,Yi'!S41="","",(IF(('Xi,Yi'!S41+U41<DataInput!$B$20),"",(IF((('Xi,Yi'!S41+U41)>DataInput!$B$21),"",('Xi,Yi'!R41+V41+U41/SQRT(3)))))))))))))) ->  | S41: =IF(R41="","",(IF('Xi,Yi'!S41="","",(IF(('Xi,Yi'!S41+U41<DataInput!$B$20),"",(IF((('Xi,Yi'!S41+U41)>DataInput!$B$21),"",('Xi,Yi'!S41+U41)))))))) ->  | T41: =IF(R41="","",IF(S41="","",(DataInput!$B$4+(DataInput!$D$4-DataInput!$B$4)*RAND()))) ->  | U41: =DataInput!$B$16*RAND() -> 13.30544764 | V41: =DataInput!$B$15*RAND() -> 11.19778464 | W41: =(IF('Xi,Yi'!W41="","",(IF((('Xi,Yi'!W41+AA41+Z41/SQRT(3))<DataInput!$B$18),"",(IF((('Xi,Yi'!W41+AA41+Z41/SQRT(3))>DataInput!$B$19),"",(IF('Xi,Yi'!X41="","",(IF(('Xi,Yi'!X41+Z41<DataInput!$B$20),"",(IF((('Xi,Yi'!X41+Z41)>DataInput!$B$21),"",('Xi,Yi'!W41+AA41+Z41/SQRT(3)))))))))))))) ->  | X41: =IF(W41="","",(IF('Xi,Yi'!X41="","",(IF(('Xi,Yi'!X41+Z41<DataInput!$B$20),"",(IF((('Xi,Yi'!X41+Z41)>DataInput!$B$21),"",('Xi,Yi'!X41+Z41)))))))) ->  | Y41: =IF(W41="","",IF(X41="","",(DataInput!$B$4+(DataInput!$D$4-DataInput!$B$4)*RAND()))) ->  | Z41: =DataInput!$B$16*RAND() -> 1.151629894 | AA41: =DataInput!$B$15*RAND() -> 1.9525812 | AB41: =(IF('Xi,Yi'!AB41="","",(IF((('Xi,Yi'!AB41+AF41+AE41/SQRT(3))<DataInput!$B$18),"",(IF((('Xi,Yi'!AB41+AF41+AE41/SQRT(3))>DataInput!$B$19),"",(IF('Xi,Yi'!AC41="","",(IF(('Xi,Yi'!AC41+AE41<DataInput!$B$20),"",(IF((('Xi,Yi'!AC41+AE41)>DataInput!$B$21),"",('Xi,Yi'!AB41+AF41+AE41/SQRT(3)))))))))))))) ->  | AC41: =IF(AB41="","",(IF('Xi,Yi'!AC41="","",(IF(('Xi,Yi'!AC41+AE41<DataInput!$B$20),"",(IF((('Xi,Yi'!AC41+AE41)>DataInput!$B$21),"",('Xi,Yi'!AC41+AE41)))))))) ->  | AD41: =IF(AB41="","",IF(AC41="","",(DataInput!$B$4+(DataInput!$D$4-DataInput!$B$4)*RAND()))) ->  | AE41: =DataInput!$B$16*RAND() -> 13.27245667 | AF41: =DataInput!$B$15*RAND() -> 17.71662347 | AG41: =(IF('Xi,Yi'!AG41="","",(IF((('Xi,Yi'!AG41+AK41+AJ41/SQRT(3))<DataInput!$B$18),"",(IF((('Xi,Yi'!AG41+AK41+AJ41/SQRT(3))>DataInput!$B$19),"",(IF('Xi,Yi'!AH41="","",(IF(('Xi,Yi'!AH41+AJ41<DataInput!$B$20),"",(IF((('Xi,Yi'!AH41+AJ41)>DataInput!$B$21),"",('Xi,Yi'!AG41+AK41+AJ41/SQRT(3)))))))))))))) ->  | AH41: =IF(AG41="","",(IF('Xi,Yi'!AH41="","",(IF(('Xi,Yi'!AH41+AJ41<DataInput!$B$20),"",(IF((('Xi,Yi'!AH41+AJ41)>DataInput!$B$21),"",('Xi,Yi'!AH41+AJ41)))))))) ->  | AI41: =IF(AG41="","",IF(AH41="","",(DataInput!$B$4+(DataInput!$D$4-DataInput!$B$4)*RAND()))) ->  | AJ41: =DataInput!$B$16*RAND() -> 8.46394336 | AK41: =DataInput!$B$15*RAND() -> 14.14163372 | AL41: =(IF('Xi,Yi'!AL41="","",(IF((('Xi,Yi'!AL41+AP41+AO41/SQRT(3))<DataInput!$B$18),"",(IF((('Xi,Yi'!AL41+AP41+AO41/SQRT(3))>DataInput!$B$19),"",(IF('Xi,Yi'!AM41="","",(IF(('Xi,Yi'!AM41+AO41<DataInput!$B$20),"",(IF((('Xi,Yi'!AM41+AO41)>DataInput!$B$21),"",('Xi,Yi'!AL41+AP41+AO41/SQRT(3)))))))))))))) ->  | AM41: =IF(AL41="","",(IF('Xi,Yi'!AM41="","",(IF(('Xi,Yi'!AM41+AO41<DataInput!$B$20),"",(IF((('Xi,Yi'!AM41+AO41)>DataInput!$B$21),"",('Xi,Yi'!AM41+AO41)))))))) ->  | AN41: =IF(AL41="","",IF(AM41="","",(DataInput!$B$4+(DataInput!$D$4-DataInput!$B$4)*RAND()))) ->  | AO41: =DataInput!$B$16*RAND() -> 11.32210064 | AP41: =DataInput!$B$15*RAND() -> 7.210689966 | AQ41: =(IF('Xi,Yi'!AQ41="","",(IF((('Xi,Yi'!AQ41+AU41+AT41/SQRT(3))<DataInput!$B$18),"",(IF((('Xi,Yi'!AQ41+AU41+AT41/SQRT(3))>DataInput!$B$19),"",(IF('Xi,Yi'!AR41="","",(IF(('Xi,Yi'!AR41+AT41<DataInput!$B$20),"",(IF((('Xi,Yi'!AR41+AT41)>DataInput!$B$21),"",('Xi,Yi'!AQ41+AU41+AT41/SQRT(3)))))))))))))) ->  | AR41: =IF(AQ41="","",(IF('Xi,Yi'!AR41="","",(IF(('Xi,Yi'!AR41+AT41<DataInput!$B$20),"",(IF((('Xi,Yi'!AR41+AT41)>DataInput!$B$21),"",('Xi,Yi'!AR41+AT41)))))))) ->  | AS41: =IF(AQ41="","",IF(AR41="","",(DataInput!$B$4+(DataInput!$D$4-DataInput!$B$4)*RAND()))) ->  | AT41: =DataInput!$B$16*RAND() -> 12.07549257 | AU41: =DataInput!$B$15*RAND() -> 9.998764174 | AV41: =(IF('Xi,Yi'!AV41="","",(IF((('Xi,Yi'!AV41+AZ41+AY41/SQRT(3))<DataInput!$B$18),"",(IF((('Xi,Yi'!AV41+AZ41+AY41/SQRT(3))>DataInput!$B$19),"",(IF('Xi,Yi'!AW41="","",(IF(('Xi,Yi'!AW41+AY41<DataInput!$B$20),"",(IF((('Xi,Yi'!AW41+AY41)>DataInput!$B$21),"",('Xi,Yi'!AV41+AZ41+AY41/SQRT(3)))))))))))))) ->  | AW41: =IF(AV41="","",(IF('Xi,Yi'!AW41="","",(IF(('Xi,Yi'!AW41+AY41<DataInput!$B$20),"",(IF((('Xi,Yi'!AW41+AY41)>DataInput!$B$21),"",('Xi,Yi'!AW41+AY41)))))))) ->  | AX41: =IF(AV41="","",IF(AW41="","",(DataInput!$B$4+(DataInput!$D$4-DataInput!$B$4)*RAND()))) ->  | AY41: =DataInput!$B$16*RAND() -> 2.679401316 | AZ41: =DataInput!$B$15*RAND() -> 8.91443901 | BA41: =(IF('Xi,Yi'!BA41="","",(IF((('Xi,Yi'!BA41+BE41+BD41/SQRT(3))<DataInput!$B$18),"",(IF((('Xi,Yi'!BA41+BE41+BD41/SQRT(3))>DataInput!$B$19),"",(IF('Xi,Yi'!BB41="","",(IF(('Xi,Yi'!BB41+BD41<DataInput!$B$20),"",(IF((('Xi,Yi'!BB41+BD41)>DataInput!$B$21),"",('Xi,Yi'!BA41+BE41+BD41/SQRT(3)))))))))))))) ->  | BB41: =IF(BA41="","",(IF('Xi,Yi'!BB41="","",(IF(('Xi,Yi'!BB41+BD41<DataInput!$B$20),"",(IF((('Xi,Yi'!BB41+BD41)>DataInput!$B$21),"",('Xi,Yi'!BB41+BD41)))))))) ->  | BC41: =IF(BA41="","",IF(BB41="","",(DataInput!$B$4+(DataInput!$D$4-DataInput!$B$4)*RAND()))) ->  | BD41: =DataInput!$B$16*RAND() -> 16.08828561 | BE41: =DataInput!$B$15*RAND() -> 7.314843615
H42: =(IF('Xi,Yi'!H42="","",(IF((('Xi,Yi'!H42+L42+K42/SQRT(3))<DataInput!$B$18),"",(IF((('Xi,Yi'!H42+L42+K42/SQRT(3))>DataInput!$B$19),"",(IF('Xi,Yi'!I42="","",(IF(('Xi,Yi'!I42+K42<DataInput!$B$20),"",(IF((('Xi,Yi'!I42+K42)>DataInput!$B$21),"",('Xi,Yi'!H42+L42+K42/SQRT(3)))))))))))))) -> 96.36705214 | I42: =IF(H42="","",(IF('Xi,Yi'!I42="","",(IF(('Xi,Yi'!I42+K42<DataInput!$B$20),"",(IF((('Xi,Yi'!I42+K42)>DataInput!$B$21),"",('Xi,Yi'!I42+K42)))))))) -> 1.029045714 | J42: =IF(H42="","",IF(I42="","",(DataInput!$B$4+(DataInput!$D$4-DataInput!$B$4)*RAND()))) -> 7.435245552 | K42: =DataInput!$B$16*RAND() -> 13.92904571 | L42: =DataInput!$B$15*RAND() -> 4.525113847 | M42: =(IF('Xi,Yi'!M42="","",(IF((('Xi,Yi'!M42+Q42+P42/SQRT(3))<DataInput!$B$18),"",(IF((('Xi,Yi'!M42+Q42+P42/SQRT(3))>DataInput!$B$19),"",(IF('Xi,Yi'!N42="","",(IF(('Xi,Yi'!N42+P42<DataInput!$B$20),"",(IF((('Xi,Yi'!N42+P42)>DataInput!$B$21),"",('Xi,Yi'!M42+Q42+P42/SQRT(3)))))))))))))) ->  | N42: =IF(M42="","",(IF('Xi,Yi'!N42="","",(IF(('Xi,Yi'!N42+P42<DataInput!$B$20),"",(IF((('Xi,Yi'!N42+P42)>DataInput!$B$21),"",('Xi,Yi'!N42+P42)))))))) ->  | O42: =IF(M42="","",IF(N42="","",(DataInput!$B$4+(DataInput!$D$4-DataInput!$B$4)*RAND()))) ->  | P42: =DataInput!$B$16*RAND() -> 13.23961263 | Q42: =DataInput!$B$15*RAND() -> 0.7393547414 | R42: =(IF('Xi,Yi'!R42="","",(IF((('Xi,Yi'!R42+V42+U42/SQRT(3))<DataInput!$B$18),"",(IF((('Xi,Yi'!R42+V42+U42/SQRT(3))>DataInput!$B$19),"",(IF('Xi,Yi'!S42="","",(IF(('Xi,Yi'!S42+U42<DataInput!$B$20),"",(IF((('Xi,Yi'!S42+U42)>DataInput!$B$21),"",('Xi,Yi'!R42+V42+U42/SQRT(3)))))))))))))) ->  | S42: =IF(R42="","",(IF('Xi,Yi'!S42="","",(IF(('Xi,Yi'!S42+U42<DataInput!$B$20),"",(IF((('Xi,Yi'!S42+U42)>DataInput!$B$21),"",('Xi,Yi'!S42+U42)))))))) ->  | T42: =IF(R42="","",IF(S42="","",(DataInput!$B$4+(DataInput!$D$4-DataInput!$B$4)*RAND()))) ->  | U42: =DataInput!$B$16*RAND() -> 1.439904025 | V42: =DataInput!$B$15*RAND() -> 13.96801721 | W42: =(IF('Xi,Yi'!W42="","",(IF((('Xi,Yi'!W42+AA42+Z42/SQRT(3))<DataInput!$B$18),"",(IF((('Xi,Yi'!W42+AA42+Z42/SQRT(3))>DataInput!$B$19),"",(IF('Xi,Yi'!X42="","",(IF(('Xi,Yi'!X42+Z42<DataInput!$B$20),"",(IF((('Xi,Yi'!X42+Z42)>DataInput!$B$21),"",('Xi,Yi'!W42+AA42+Z42/SQRT(3)))))))))))))) ->  | X42: =IF(W42="","",(IF('Xi,Yi'!X42="","",(IF(('Xi,Yi'!X42+Z42<DataInput!$B$20),"",(IF((('Xi,Yi'!X42+Z42)>DataInput!$B$21),"",('Xi,Yi'!X42+Z42)))))))) ->  | Y42: =IF(W42="","",IF(X42="","",(DataInput!$B$4+(DataInput!$D$4-DataInput!$B$4)*RAND()))) ->  | Z42: =DataInput!$B$16*RAND() -> 6.409834569 | AA42: =DataInput!$B$15*RAND() -> 7.09745383 | AB42: =(IF('Xi,Yi'!AB42="","",(IF((('Xi,Yi'!AB42+AF42+AE42/SQRT(3))<DataInput!$B$18),"",(IF((('Xi,Yi'!AB42+AF42+AE42/SQRT(3))>DataInput!$B$19),"",(IF('Xi,Yi'!AC42="","",(IF(('Xi,Yi'!AC42+AE42<DataInput!$B$20),"",(IF((('Xi,Yi'!AC42+AE42)>DataInput!$B$21),"",('Xi,Yi'!AB42+AF42+AE42/SQRT(3)))))))))))))) ->  | AC42: =IF(AB42="","",(IF('Xi,Yi'!AC42="","",(IF(('Xi,Yi'!AC42+AE42<DataInput!$B$20),"",(IF((('Xi,Yi'!AC42+AE42)>DataInput!$B$21),"",('Xi,Yi'!AC42+AE42)))))))) ->  | AD42: =IF(AB42="","",IF(AC42="","",(DataInput!$B$4+(DataInput!$D$4-DataInput!$B$4)*RAND()))) ->  | AE42: =DataInput!$B$16*RAND() -> 13.71836449 | AF42: =DataInput!$B$15*RAND() -> 5.321644246 | AG42: =(IF('Xi,Yi'!AG42="","",(IF((('Xi,Yi'!AG42+AK42+AJ42/SQRT(3))<DataInput!$B$18),"",(IF((('Xi,Yi'!AG42+AK42+AJ42/SQRT(3))>DataInput!$B$19),"",(IF('Xi,Yi'!AH42="","",(IF(('Xi,Yi'!AH42+AJ42<DataInput!$B$20),"",(IF((('Xi,Yi'!AH42+AJ42)>DataInput!$B$21),"",('Xi,Yi'!AG42+AK42+AJ42/SQRT(3)))))))))))))) ->  | AH42: =IF(AG42="","",(IF('Xi,Yi'!AH42="","",(IF(('Xi,Yi'!AH42+AJ42<DataInput!$B$20),"",(IF((('Xi,Yi'!AH42+AJ42)>DataInput!$B$21),"",('Xi,Yi'!AH42+AJ42)))))))) ->  | AI42: =IF(AG42="","",IF(AH42="","",(DataInput!$B$4+(DataInput!$D$4-DataInput!$B$4)*RAND()))) ->  | AJ42: =DataInput!$B$16*RAND() -> 14.70831172 | AK42: =DataInput!$B$15*RAND() -> 15.86051249 | AL42: =(IF('Xi,Yi'!AL42="","",(IF((('Xi,Yi'!AL42+AP42+AO42/SQRT(3))<DataInput!$B$18),"",(IF((('Xi,Yi'!AL42+AP42+AO42/SQRT(3))>DataInput!$B$19),"",(IF('Xi,Yi'!AM42="","",(IF(('Xi,Yi'!AM42+AO42<DataInput!$B$20),"",(IF((('Xi,Yi'!AM42+AO42)>DataInput!$B$21),"",('Xi,Yi'!AL42+AP42+AO42/SQRT(3)))))))))))))) ->  | AM42: =IF(AL42="","",(IF('Xi,Yi'!AM42="","",(IF(('Xi,Yi'!AM42+AO42<DataInput!$B$20),"",(IF((('Xi,Yi'!AM42+AO42)>DataInput!$B$21),"",('Xi,Yi'!AM42+AO42)))))))) ->  | AN42: =IF(AL42="","",IF(AM42="","",(DataInput!$B$4+(DataInput!$D$4-DataInput!$B$4)*RAND()))) ->  | AO42: =DataInput!$B$16*RAND() -> 1.720132903 | AP42: =DataInput!$B$15*RAND() -> 5.12791948 | AQ42: =(IF('Xi,Yi'!AQ42="","",(IF((('Xi,Yi'!AQ42+AU42+AT42/SQRT(3))<DataInput!$B$18),"",(IF((('Xi,Yi'!AQ42+AU42+AT42/SQRT(3))>DataInput!$B$19),"",(IF('Xi,Yi'!AR42="","",(IF(('Xi,Yi'!AR42+AT42<DataInput!$B$20),"",(IF((('Xi,Yi'!AR42+AT42)>DataInput!$B$21),"",('Xi,Yi'!AQ42+AU42+AT42/SQRT(3)))))))))))))) ->  | AR42: =IF(AQ42="","",(IF('Xi,Yi'!AR42="","",(IF(('Xi,Yi'!AR42+AT42<DataInput!$B$20),"",(IF((('Xi,Yi'!AR42+AT42)>DataInput!$B$21),"",('Xi,Yi'!AR42+AT42)))))))) ->  | AS42: =IF(AQ42="","",IF(AR42="","",(DataInput!$B$4+(DataInput!$D$4-DataInput!$B$4)*RAND()))) ->  | AT42: =DataInput!$B$16*RAND() -> 5.152190048 | AU42: =DataInput!$B$15*RAND() -> 13.707491 | AV42: =(IF('Xi,Yi'!AV42="","",(IF((('Xi,Yi'!AV42+AZ42+AY42/SQRT(3))<DataInput!$B$18),"",(IF((('Xi,Yi'!AV42+AZ42+AY42/SQRT(3))>DataInput!$B$19),"",(IF('Xi,Yi'!AW42="","",(IF(('Xi,Yi'!AW42+AY42<DataInput!$B$20),"",(IF((('Xi,Yi'!AW42+AY42)>DataInput!$B$21),"",('Xi,Yi'!AV42+AZ42+AY42/SQRT(3)))))))))))))) ->  | AW42: =IF(AV42="","",(IF('Xi,Yi'!AW42="","",(IF(('Xi,Yi'!AW42+AY42<DataInput!$B$20),"",(IF((('Xi,Yi'!AW42+AY42)>DataInput!$B$21),"",('Xi,Yi'!AW42+AY42)))))))) ->  | AX42: =IF(AV42="","",IF(AW42="","",(DataInput!$B$4+(DataInput!$D$4-DataInput!$B$4)*RAND()))) ->  | AY42: =DataInput!$B$16*RAND() -> 10.99617944 | AZ42: =DataInput!$B$15*RAND() -> 7.27135032 | BA42: =(IF('Xi,Yi'!BA42="","",(IF((('Xi,Yi'!BA42+BE42+BD42/SQRT(3))<DataInput!$B$18),"",(IF((('Xi,Yi'!BA42+BE42+BD42/SQRT(3))>DataInput!$B$19),"",(IF('Xi,Yi'!BB42="","",(IF(('Xi,Yi'!BB42+BD42<DataInput!$B$20),"",(IF((('Xi,Yi'!BB42+BD42)>DataInput!$B$21),"",('Xi,Yi'!BA42+BE42+BD42/SQRT(3)))))))))))))) ->  | BB42: =IF(BA42="","",(IF('Xi,Yi'!BB42="","",(IF(('Xi,Yi'!BB42+BD42<DataInput!$B$20),"",(IF((('Xi,Yi'!BB42+BD42)>DataInput!$B$21),"",('Xi,Yi'!BB42+BD42)))))))) ->  | BC42: =IF(BA42="","",IF(BB42="","",(DataInput!$B$4+(DataInput!$D$4-DataInput!$B$4)*RAND()))) ->  | BD42: =DataInput!$B$16*RAND() -> 16.76332807 | BE42: =DataInput!$B$15*RAND() -> 18.73307993
H43: =(IF('Xi,Yi'!H43="","",(IF((('Xi,Yi'!H43+L43+K43/SQRT(3))<DataInput!$B$18),"",(IF((('Xi,Yi'!H43+L43+K43/SQRT(3))>DataInput!$B$19),"",(IF('Xi,Yi'!I43="","",(IF(('Xi,Yi'!I43+K43<DataInput!$B$20),"",(IF((('Xi,Yi'!I43+K43)>DataInput!$B$21),"",('Xi,Yi'!H43+L43+K43/SQRT(3)))))))))))))) ->  | I43: =IF(H43="","",(IF('Xi,Yi'!I43="","",(IF(('Xi,Yi'!I43+K43<DataInput!$B$20),"",(IF((('Xi,Yi'!I43+K43)>DataInput!$B$21),"",('Xi,Yi'!I43+K43)))))))) ->  | J43: =IF(H43="","",IF(I43="","",(DataInput!$B$4+(DataInput!$D$4-DataInput!$B$4)*RAND()))) ->  | K43: =DataInput!$B$16*RAND() -> 3.146169989 | L43: =DataInput!$B$15*RAND() -> 18.25894518 | M43: =(IF('Xi,Yi'!M43="","",(IF((('Xi,Yi'!M43+Q43+P43/SQRT(3))<DataInput!$B$18),"",(IF((('Xi,Yi'!M43+Q43+P43/SQRT(3))>DataInput!$B$19),"",(IF('Xi,Yi'!N43="","",(IF(('Xi,Yi'!N43+P43<DataInput!$B$20),"",(IF((('Xi,Yi'!N43+P43)>DataInput!$B$21),"",('Xi,Yi'!M43+Q43+P43/SQRT(3)))))))))))))) ->  | N43: =IF(M43="","",(IF('Xi,Yi'!N43="","",(IF(('Xi,Yi'!N43+P43<DataInput!$B$20),"",(IF((('Xi,Yi'!N43+P43)>DataInput!$B$21),"",('Xi,Yi'!N43+P43)))))))) ->  | O43: =IF(M43="","",IF(N43="","",(DataInput!$B$4+(DataInput!$D$4-DataInput!$B$4)*RAND()))) ->  | P43: =DataInput!$B$16*RAND() -> 7.785724602 | Q43: =DataInput!$B$15*RAND() -> 0.7511963469 | R43: =(IF('Xi,Yi'!R43="","",(IF((('Xi,Yi'!R43+V43+U43/SQRT(3))<DataInput!$B$18),"",(IF((('Xi,Yi'!R43+V43+U43/SQRT(3))>DataInput!$B$19),"",(IF('Xi,Yi'!S43="","",(IF(('Xi,Yi'!S43+U43<DataInput!$B$20),"",(IF((('Xi,Yi'!S43+U43)>DataInput!$B$21),"",('Xi,Yi'!R43+V43+U43/SQRT(3)))))))))))))) ->  | S43: =IF(R43="","",(IF('Xi,Yi'!S43="","",(IF(('Xi,Yi'!S43+U43<DataInput!$B$20),"",(IF((('Xi,Yi'!S43+U43)>DataInput!$B$21),"",('Xi,Yi'!S43+U43)))))))) ->  | T43: =IF(R43="","",IF(S43="","",(DataInput!$B$4+(DataInput!$D$4-DataInput!$B$4)*RAND()))) ->  | U43: =DataInput!$B$16*RAND() -> 7.224857891 | V43: =DataInput!$B$15*RAND() -> 8.057456591 | W43: =(IF('Xi,Yi'!W43="","",(IF((('Xi,Yi'!W43+AA43+Z43/SQRT(3))<DataInput!$B$18),"",(IF((('Xi,Yi'!W43+AA43+Z43/SQRT(3))>DataInput!$B$19),"",(IF('Xi,Yi'!X43="","",(IF(('Xi,Yi'!X43+Z43<DataInput!$B$20),"",(IF((('Xi,Yi'!X43+Z43)>DataInput!$B$21),"",('Xi,Yi'!W43+AA43+Z43/SQRT(3)))))))))))))) ->  | X43: =IF(W43="","",(IF('Xi,Yi'!X43="","",(IF(('Xi,Yi'!X43+Z43<DataInput!$B$20),"",(IF((('Xi,Yi'!X43+Z43)>DataInput!$B$21),"",('Xi,Yi'!X43+Z43)))))))) ->  | Y43: =IF(W43="","",IF(X43="","",(DataInput!$B$4+(DataInput!$D$4-DataInput!$B$4)*RAND()))) ->  | Z43: =DataInput!$B$16*RAND() -> 4.849249853 | AA43: =DataInput!$B$15*RAND() -> 5.567257626 | AB43: =(IF('Xi,Yi'!AB43="","",(IF((('Xi,Yi'!AB43+AF43+AE43/SQRT(3))<DataInput!$B$18),"",(IF((('Xi,Yi'!AB43+AF43+AE43/SQRT(3))>DataInput!$B$19),"",(IF('Xi,Yi'!AC43="","",(IF(('Xi,Yi'!AC43+AE43<DataInput!$B$20),"",(IF((('Xi,Yi'!AC43+AE43)>DataInput!$B$21),"",('Xi,Yi'!AB43+AF43+AE43/SQRT(3)))))))))))))) ->  | AC43: =IF(AB43="","",(IF('Xi,Yi'!AC43="","",(IF(('Xi,Yi'!AC43+AE43<DataInput!$B$20),"",(IF((('Xi,Yi'!AC43+AE43)>DataInput!$B$21),"",('Xi,Yi'!AC43+AE43)))))))) ->  | AD43: =IF(AB43="","",IF(AC43="","",(DataInput!$B$4+(DataInput!$D$4-DataInput!$B$4)*RAND()))) ->  | AE43: =DataInput!$B$16*RAND() -> 2.988342984 | AF43: =DataInput!$B$15*RAND() -> 4.549144454 | AG43: =(IF('Xi,Yi'!AG43="","",(IF((('Xi,Yi'!AG43+AK43+AJ43/SQRT(3))<DataInput!$B$18),"",(IF((('Xi,Yi'!AG43+AK43+AJ43/SQRT(3))>DataInput!$B$19),"",(IF('Xi,Yi'!AH43="","",(IF(('Xi,Yi'!AH43+AJ43<DataInput!$B$20),"",(IF((('Xi,Yi'!AH43+AJ43)>DataInput!$B$21),"",('Xi,Yi'!AG43+AK43+AJ43/SQRT(3)))))))))))))) ->  | AH43: =IF(AG43="","",(IF('Xi,Yi'!AH43="","",(IF(('Xi,Yi'!AH43+AJ43<DataInput!$B$20),"",(IF((('Xi,Yi'!AH43+AJ43)>DataInput!$B$21),"",('Xi,Yi'!AH43+AJ43)))))))) ->  | AI43: =IF(AG43="","",IF(AH43="","",(DataInput!$B$4+(DataInput!$D$4-DataInput!$B$4)*RAND()))) ->  | AJ43: =DataInput!$B$16*RAND() -> 11.47110078 | AK43: =DataInput!$B$15*RAND() -> 10.48519142 | AL43: =(IF('Xi,Yi'!AL43="","",(IF((('Xi,Yi'!AL43+AP43+AO43/SQRT(3))<DataInput!$B$18),"",(IF((('Xi,Yi'!AL43+AP43+AO43/SQRT(3))>DataInput!$B$19),"",(IF('Xi,Yi'!AM43="","",(IF(('Xi,Yi'!AM43+AO43<DataInput!$B$20),"",(IF((('Xi,Yi'!AM43+AO43)>DataInput!$B$21),"",('Xi,Yi'!AL43+AP43+AO43/SQRT(3)))))))))))))) ->  | AM43: =IF(AL43="","",(IF('Xi,Yi'!AM43="","",(IF(('Xi,Yi'!AM43+AO43<DataInput!$B$20),"",(IF((('Xi,Yi'!AM43+AO43)>DataInput!$B$21),"",('Xi,Yi'!AM43+AO43)))))))) ->  | AN43: =IF(AL43="","",IF(AM43="","",(DataInput!$B$4+(DataInput!$D$4-DataInput!$B$4)*RAND()))) ->  | AO43: =DataInput!$B$16*RAND() -> 4.691083208 | AP43: =DataInput!$B$15*RAND() -> 13.80010319 | AQ43: =(IF('Xi,Yi'!AQ43="","",(IF((('Xi,Yi'!AQ43+AU43+AT43/SQRT(3))<DataInput!$B$18),"",(IF((('Xi,Yi'!AQ43+AU43+AT43/SQRT(3))>DataInput!$B$19),"",(IF('Xi,Yi'!AR43="","",(IF(('Xi,Yi'!AR43+AT43<DataInput!$B$20),"",(IF((('Xi,Yi'!AR43+AT43)>DataInput!$B$21),"",('Xi,Yi'!AQ43+AU43+AT43/SQRT(3)))))))))))))) ->  | AR43: =IF(AQ43="","",(IF('Xi,Yi'!AR43="","",(IF(('Xi,Yi'!AR43+AT43<DataInput!$B$20),"",(IF((('Xi,Yi'!AR43+AT43)>DataInput!$B$21),"",('Xi,Yi'!AR43+AT43)))))))) ->  | AS43: =IF(AQ43="","",IF(AR43="","",(DataInput!$B$4+(DataInput!$D$4-DataInput!$B$4)*RAND()))) ->  | AT43: =DataInput!$B$16*RAND() -> 12.03564919 | AU43: =DataInput!$B$15*RAND() -> 11.10636547 | AV43: =(IF('Xi,Yi'!AV43="","",(IF((('Xi,Yi'!AV43+AZ43+AY43/SQRT(3))<DataInput!$B$18),"",(IF((('Xi,Yi'!AV43+AZ43+AY43/SQRT(3))>DataInput!$B$19),"",(IF('Xi,Yi'!AW43="","",(IF(('Xi,Yi'!AW43+AY43<DataInput!$B$20),"",(IF((('Xi,Yi'!AW43+AY43)>DataInput!$B$21),"",('Xi,Yi'!AV43+AZ43+AY43/SQRT(3)))))))))))))) ->  | AW43: =IF(AV43="","",(IF('Xi,Yi'!AW43="","",(IF(('Xi,Yi'!AW43+AY43<DataInput!$B$20),"",(IF((('Xi,Yi'!AW43+AY43)>DataInput!$B$21),"",('Xi,Yi'!AW43+AY43)))))))) ->  | AX43: =IF(AV43="","",IF(AW43="","",(DataInput!$B$4+(DataInput!$D$4-DataInput!$B$4)*RAND()))) ->  | AY43: =DataInput!$B$16*RAND() -> 6.320283275 | AZ43: =DataInput!$B$15*RAND() -> 0.492369204 | BA43: =(IF('Xi,Yi'!BA43="","",(IF((('Xi,Yi'!BA43+BE43+BD43/SQRT(3))<DataInput!$B$18),"",(IF((('Xi,Yi'!BA43+BE43+BD43/SQRT(3))>DataInput!$B$19),"",(IF('Xi,Yi'!BB43="","",(IF(('Xi,Yi'!BB43+BD43<DataInput!$B$20),"",(IF((('Xi,Yi'!BB43+BD43)>DataInput!$B$21),"",('Xi,Yi'!BA43+BE43+BD43/SQRT(3)))))))))))))) ->  | BB43: =IF(BA43="","",(IF('Xi,Yi'!BB43="","",(IF(('Xi,Yi'!BB43+BD43<DataInput!$B$20),"",(IF((('Xi,Yi'!BB43+BD43)>DataInput!$B$21),"",('Xi,Yi'!BB43+BD43)))))))) ->  | BC43: =IF(BA43="","",IF(BB43="","",(DataInput!$B$4+(DataInput!$D$4-DataInput!$B$4)*RAND()))) ->  | BD43: =DataInput!$B$16*RAND() -> 10.95048181 | BE43: =DataInput!$B$15*RAND() -> 8.584291261
H44: =(IF('Xi,Yi'!H44="","",(IF((('Xi,Yi'!H44+L44+K44/SQRT(3))<DataInput!$B$18),"",(IF((('Xi,Yi'!H44+L44+K44/SQRT(3))>DataInput!$B$19),"",(IF('Xi,Yi'!I44="","",(IF(('Xi,Yi'!I44+K44<DataInput!$B$20),"",(IF((('Xi,Yi'!I44+K44)>DataInput!$B$21),"",('Xi,Yi'!H44+L44+K44/SQRT(3)))))))))))))) ->  | I44: =IF(H44="","",(IF('Xi,Yi'!I44="","",(IF(('Xi,Yi'!I44+K44<DataInput!$B$20),"",(IF((('Xi,Yi'!I44+K44)>DataInput!$B$21),"",('Xi,Yi'!I44+K44)))))))) ->  | J44: =IF(H44="","",IF(I44="","",(DataInput!$B$4+(DataInput!$D$4-DataInput!$B$4)*RAND()))) ->  | K44: =DataInput!$B$16*RAND() -> 16.36715952 | L44: =DataInput!$B$15*RAND() -> 4.798060324 | M44: =(IF('Xi,Yi'!M44="","",(IF((('Xi,Yi'!M44+Q44+P44/SQRT(3))<DataInput!$B$18),"",(IF((('Xi,Yi'!M44+Q44+P44/SQRT(3))>DataInput!$B$19),"",(IF('Xi,Yi'!N44="","",(IF(('Xi,Yi'!N44+P44<DataInput!$B$20),"",(IF((('Xi,Yi'!N44+P44)>DataInput!$B$21),"",('Xi,Yi'!M44+Q44+P44/SQRT(3)))))))))))))) ->  | N44: =IF(M44="","",(IF('Xi,Yi'!N44="","",(IF(('Xi,Yi'!N44+P44<DataInput!$B$20),"",(IF((('Xi,Yi'!N44+P44)>DataInput!$B$21),"",('Xi,Yi'!N44+P44)))))))) ->  | O44: =IF(M44="","",IF(N44="","",(DataInput!$B$4+(DataInput!$D$4-DataInput!$B$4)*RAND()))) ->  | P44: =DataInput!$B$16*RAND() -> 12.93125556 | Q44: =DataInput!$B$15*RAND() -> 18.84663344 | R44: =(IF('Xi,Yi'!R44="","",(IF((('Xi,Yi'!R44+V44+U44/SQRT(3))<DataInput!$B$18),"",(IF((('Xi,Yi'!R44+V44+U44/SQRT(3))>DataInput!$B$19),"",(IF('Xi,Yi'!S44="","",(IF(('Xi,Yi'!S44+U44<DataInput!$B$20),"",(IF((('Xi,Yi'!S44+U44)>DataInput!$B$21),"",('Xi,Yi'!R44+V44+U44/SQRT(3)))))))))))))) ->  | S44: =IF(R44="","",(IF('Xi,Yi'!S44="","",(IF(('Xi,Yi'!S44+U44<DataInput!$B$20),"",(IF((('Xi,Yi'!S44+U44)>DataInput!$B$21),"",('Xi,Yi'!S44+U44)))))))) ->  | T44: =IF(R44="","",IF(S44="","",(DataInput!$B$4+(DataInput!$D$4-DataInput!$B$4)*RAND()))) ->  | U44: =DataInput!$B$16*RAND() -> 16.95858743 | V44: =DataInput!$B$15*RAND() -> 4.313795867 | W44: =(IF('Xi,Yi'!W44="","",(IF((('Xi,Yi'!W44+AA44+Z44/SQRT(3))<DataInput!$B$18),"",(IF((('Xi,Yi'!W44+AA44+Z44/SQRT(3))>DataInput!$B$19),"",(IF('Xi,Yi'!X44="","",(IF(('Xi,Yi'!X44+Z44<DataInput!$B$20),"",(IF((('Xi,Yi'!X44+Z44)>DataInput!$B$21),"",('Xi,Yi'!W44+AA44+Z44/SQRT(3)))))))))))))) ->  | X44: =IF(W44="","",(IF('Xi,Yi'!X44="","",(IF(('Xi,Yi'!X44+Z44<DataInput!$B$20),"",(IF((('Xi,Yi'!X44+Z44)>DataInput!$B$21),"",('Xi,Yi'!X44+Z44)))))))) ->  | Y44: =IF(W44="","",IF(X44="","",(DataInput!$B$4+(DataInput!$D$4-DataInput!$B$4)*RAND()))) ->  | Z44: =DataInput!$B$16*RAND() -> 3.890488739 | AA44: =DataInput!$B$15*RAND() -> 10.47017414 | AB44: =(IF('Xi,Yi'!AB44="","",(IF((('Xi,Yi'!AB44+AF44+AE44/SQRT(3))<DataInput!$B$18),"",(IF((('Xi,Yi'!AB44+AF44+AE44/SQRT(3))>DataInput!$B$19),"",(IF('Xi,Yi'!AC44="","",(IF(('Xi,Yi'!AC44+AE44<DataInput!$B$20),"",(IF((('Xi,Yi'!AC44+AE44)>DataInput!$B$21),"",('Xi,Yi'!AB44+AF44+AE44/SQRT(3)))))))))))))) ->  | AC44: =IF(AB44="","",(IF('Xi,Yi'!AC44="","",(IF(('Xi,Yi'!AC44+AE44<DataInput!$B$20),"",(IF((('Xi,Yi'!AC44+AE44)>DataInput!$B$21),"",('Xi,Yi'!AC44+AE44)))))))) ->  | AD44: =IF(AB44="","",IF(AC44="","",(DataInput!$B$4+(DataInput!$D$4-DataInput!$B$4)*RAND()))) ->  | AE44: =DataInput!$B$16*RAND() -> 3.602684872 | AF44: =DataInput!$B$15*RAND() -> 17.04792802 | AG44: =(IF('Xi,Yi'!AG44="","",(IF((('Xi,Yi'!AG44+AK44+AJ44/SQRT(3))<DataInput!$B$18),"",(IF((('Xi,Yi'!AG44+AK44+AJ44/SQRT(3))>DataInput!$B$19),"",(IF('Xi,Yi'!AH44="","",(IF(('Xi,Yi'!AH44+AJ44<DataInput!$B$20),"",(IF((('Xi,Yi'!AH44+AJ44)>DataInput!$B$21),"",('Xi,Yi'!AG44+AK44+AJ44/SQRT(3)))))))))))))) ->  | AH44: =IF(AG44="","",(IF('Xi,Yi'!AH44="","",(IF(('Xi,Yi'!AH44+AJ44<DataInput!$B$20),"",(IF((('Xi,Yi'!AH44+AJ44)>DataInput!$B$21),"",('Xi,Yi'!AH44+AJ44)))))))) ->  | AI44: =IF(AG44="","",IF(AH44="","",(DataInput!$B$4+(DataInput!$D$4-DataInput!$B$4)*RAND()))) ->  | AJ44: =DataInput!$B$16*RAND() -> 15.99947673 | AK44: =DataInput!$B$15*RAND() -> 17.36493105 | AL44: =(IF('Xi,Yi'!AL44="","",(IF((('Xi,Yi'!AL44+AP44+AO44/SQRT(3))<DataInput!$B$18),"",(IF((('Xi,Yi'!AL44+AP44+AO44/SQRT(3))>DataInput!$B$19),"",(IF('Xi,Yi'!AM44="","",(IF(('Xi,Yi'!AM44+AO44<DataInput!$B$20),"",(IF((('Xi,Yi'!AM44+AO44)>DataInput!$B$21),"",('Xi,Yi'!AL44+AP44+AO44/SQRT(3)))))))))))))) ->  | AM44: =IF(AL44="","",(IF('Xi,Yi'!AM44="","",(IF(('Xi,Yi'!AM44+AO44<DataInput!$B$20),"",(IF((('Xi,Yi'!AM44+AO44)>DataInput!$B$21),"",('Xi,Yi'!AM44+AO44)))))))) ->  | AN44: =IF(AL44="","",IF(AM44="","",(DataInput!$B$4+(DataInput!$D$4-DataInput!$B$4)*RAND()))) ->  | AO44: =DataInput!$B$16*RAND() -> 6.661632445 | AP44: =DataInput!$B$15*RAND() -> 0.778715488 | AQ44: =(IF('Xi,Yi'!AQ44="","",(IF((('Xi,Yi'!AQ44+AU44+AT44/SQRT(3))<DataInput!$B$18),"",(IF((('Xi,Yi'!AQ44+AU44+AT44/SQRT(3))>DataInput!$B$19),"",(IF('Xi,Yi'!AR44="","",(IF(('Xi,Yi'!AR44+AT44<DataInput!$B$20),"",(IF((('Xi,Yi'!AR44+AT44)>DataInput!$B$21),"",('Xi,Yi'!AQ44+AU44+AT44/SQRT(3)))))))))))))) ->  | AR44: =IF(AQ44="","",(IF('Xi,Yi'!AR44="","",(IF(('Xi,Yi'!AR44+AT44<DataInput!$B$20),"",(IF((('Xi,Yi'!AR44+AT44)>DataInput!$B$21),"",('Xi,Yi'!AR44+AT44)))))))) ->  | AS44: =IF(AQ44="","",IF(AR44="","",(DataInput!$B$4+(DataInput!$D$4-DataInput!$B$4)*RAND()))) ->  | AT44: =DataInput!$B$16*RAND() -> 1.682002193 | AU44: =DataInput!$B$15*RAND() -> 11.01577798 | AV44: =(IF('Xi,Yi'!AV44="","",(IF((('Xi,Yi'!AV44+AZ44+AY44/SQRT(3))<DataInput!$B$18),"",(IF((('Xi,Yi'!AV44+AZ44+AY44/SQRT(3))>DataInput!$B$19),"",(IF('Xi,Yi'!AW44="","",(IF(('Xi,Yi'!AW44+AY44<DataInput!$B$20),"",(IF((('Xi,Yi'!AW44+AY44)>DataInput!$B$21),"",('Xi,Yi'!AV44+AZ44+AY44/SQRT(3)))))))))))))) ->  | AW44: =IF(AV44="","",(IF('Xi,Yi'!AW44="","",(IF(('Xi,Yi'!AW44+AY44<DataInput!$B$20),"",(IF((('Xi,Yi'!AW44+AY44)>DataInput!$B$21),"",('Xi,Yi'!AW44+AY44)))))))) ->  | AX44: =IF(AV44="","",IF(AW44="","",(DataInput!$B$4+(DataInput!$D$4-DataInput!$B$4)*RAND()))) ->  | AY44: =DataInput!$B$16*RAND() -> 7.535132706 | AZ44: =DataInput!$B$15*RAND() -> 17.22360733 | BA44: =(IF('Xi,Yi'!BA44="","",(IF((('Xi,Yi'!BA44+BE44+BD44/SQRT(3))<DataInput!$B$18),"",(IF((('Xi,Yi'!BA44+BE44+BD44/SQRT(3))>DataInput!$B$19),"",(IF('Xi,Yi'!BB44="","",(IF(('Xi,Yi'!BB44+BD44<DataInput!$B$20),"",(IF((('Xi,Yi'!BB44+BD44)>DataInput!$B$21),"",('Xi,Yi'!BA44+BE44+BD44/SQRT(3)))))))))))))) ->  | BB44: =IF(BA44="","",(IF('Xi,Yi'!BB44="","",(IF(('Xi,Yi'!BB44+BD44<DataInput!$B$20),"",(IF((('Xi,Yi'!BB44+BD44)>DataInput!$B$21),"",('Xi,Yi'!BB44+BD44)))))))) ->  | BC44: =IF(BA44="","",IF(BB44="","",(DataInput!$B$4+(DataInput!$D$4-DataInput!$B$4)*RAND()))) ->  | BD44: =DataInput!$B$16*RAND() -> 13.6229302 | BE44: =DataInput!$B$15*RAND() -> 4.072256905
H45: =(IF('Xi,Yi'!H45="","",(IF((('Xi,Yi'!H45+L45+K45/SQRT(3))<DataInput!$B$18),"",(IF((('Xi,Yi'!H45+L45+K45/SQRT(3))>DataInput!$B$19),"",(IF('Xi,Yi'!I45="","",(IF(('Xi,Yi'!I45+K45<DataInput!$B$20),"",(IF((('Xi,Yi'!I45+K45)>DataInput!$B$21),"",('Xi,Yi'!H45+L45+K45/SQRT(3)))))))))))))) ->  | I45: =IF(H45="","",(IF('Xi,Yi'!I45="","",(IF(('Xi,Yi'!I45+K45<DataInput!$B$20),"",(IF((('Xi,Yi'!I45+K45)>DataInput!$B$21),"",('Xi,Yi'!I45+K45)))))))) ->  | J45: =IF(H45="","",IF(I45="","",(DataInput!$B$4+(DataInput!$D$4-DataInput!$B$4)*RAND()))) ->  | K45: =DataInput!$B$16*RAND() -> 0.3238878827 | L45: =DataInput!$B$15*RAND() -> 9.442425025 | M45: =(IF('Xi,Yi'!M45="","",(IF((('Xi,Yi'!M45+Q45+P45/SQRT(3))<DataInput!$B$18),"",(IF((('Xi,Yi'!M45+Q45+P45/SQRT(3))>DataInput!$B$19),"",(IF('Xi,Yi'!N45="","",(IF(('Xi,Yi'!N45+P45<DataInput!$B$20),"",(IF((('Xi,Yi'!N45+P45)>DataInput!$B$21),"",('Xi,Yi'!M45+Q45+P45/SQRT(3)))))))))))))) ->  | N45: =IF(M45="","",(IF('Xi,Yi'!N45="","",(IF(('Xi,Yi'!N45+P45<DataInput!$B$20),"",(IF((('Xi,Yi'!N45+P45)>DataInput!$B$21),"",('Xi,Yi'!N45+P45)))))))) ->  | O45: =IF(M45="","",IF(N45="","",(DataInput!$B$4+(DataInput!$D$4-DataInput!$B$4)*RAND()))) ->  | P45: =DataInput!$B$16*RAND() -> 10.91203761 | Q45: =DataInput!$B$15*RAND() -> 10.09300792 | R45: =(IF('Xi,Yi'!R45="","",(IF((('Xi,Yi'!R45+V45+U45/SQRT(3))<DataInput!$B$18),"",(IF((('Xi,Yi'!R45+V45+U45/SQRT(3))>DataInput!$B$19),"",(IF('Xi,Yi'!S45="","",(IF(('Xi,Yi'!S45+U45<DataInput!$B$20),"",(IF((('Xi,Yi'!S45+U45)>DataInput!$B$21),"",('Xi,Yi'!R45+V45+U45/SQRT(3)))))))))))))) ->  | S45: =IF(R45="","",(IF('Xi,Yi'!S45="","",(IF(('Xi,Yi'!S45+U45<DataInput!$B$20),"",(IF((('Xi,Yi'!S45+U45)>DataInput!$B$21),"",('Xi,Yi'!S45+U45)))))))) ->  | T45: =IF(R45="","",IF(S45="","",(DataInput!$B$4+(DataInput!$D$4-DataInput!$B$4)*RAND()))) ->  | U45: =DataInput!$B$16*RAND() -> 15.80585515 | V45: =DataInput!$B$15*RAND() -> 8.784544194 | W45: =(IF('Xi,Yi'!W45="","",(IF((('Xi,Yi'!W45+AA45+Z45/SQRT(3))<DataInput!$B$18),"",(IF((('Xi,Yi'!W45+AA45+Z45/SQRT(3))>DataInput!$B$19),"",(IF('Xi,Yi'!X45="","",(IF(('Xi,Yi'!X45+Z45<DataInput!$B$20),"",(IF((('Xi,Yi'!X45+Z45)>DataInput!$B$21),"",('Xi,Yi'!W45+AA45+Z45/SQRT(3)))))))))))))) ->  | X45: =IF(W45="","",(IF('Xi,Yi'!X45="","",(IF(('Xi,Yi'!X45+Z45<DataInput!$B$20),"",(IF((('Xi,Yi'!X45+Z45)>DataInput!$B$21),"",('Xi,Yi'!X45+Z45)))))))) ->  | Y45: =IF(W45="","",IF(X45="","",(DataInput!$B$4+(DataInput!$D$4-DataInput!$B$4)*RAND()))) ->  | Z45: =DataInput!$B$16*RAND() -> 14.9869961 | AA45: =DataInput!$B$15*RAND() -> 19.54068389 | AB45: =(IF('Xi,Yi'!AB45="","",(IF((('Xi,Yi'!AB45+AF45+AE45/SQRT(3))<DataInput!$B$18),"",(IF((('Xi,Yi'!AB45+AF45+AE45/SQRT(3))>DataInput!$B$19),"",(IF('Xi,Yi'!AC45="","",(IF(('Xi,Yi'!AC45+AE45<DataInput!$B$20),"",(IF((('Xi,Yi'!AC45+AE45)>DataInput!$B$21),"",('Xi,Yi'!AB45+AF45+AE45/SQRT(3)))))))))))))) ->  | AC45: =IF(AB45="","",(IF('Xi,Yi'!AC45="","",(IF(('Xi,Yi'!AC45+AE45<DataInput!$B$20),"",(IF((('Xi,Yi'!AC45+AE45)>DataInput!$B$21),"",('Xi,Yi'!AC45+AE45)))))))) ->  | AD45: =IF(AB45="","",IF(AC45="","",(DataInput!$B$4+(DataInput!$D$4-DataInput!$B$4)*RAND()))) ->  | AE45: =DataInput!$B$16*RAND() -> 7.396442392 | AF45: =DataInput!$B$15*RAND() -> 13.05749919 | AG45: =(IF('Xi,Yi'!AG45="","",(IF((('Xi,Yi'!AG45+AK45+AJ45/SQRT(3))<DataInput!$B$18),"",(IF((('Xi,Yi'!AG45+AK45+AJ45/SQRT(3))>DataInput!$B$19),"",(IF('Xi,Yi'!AH45="","",(IF(('Xi,Yi'!AH45+AJ45<DataInput!$B$20),"",(IF((('Xi,Yi'!AH45+AJ45)>DataInput!$B$21),"",('Xi,Yi'!AG45+AK45+AJ45/SQRT(3)))))))))))))) ->  | AH45: =IF(AG45="","",(IF('Xi,Yi'!AH45="","",(IF(('Xi,Yi'!AH45+AJ45<DataInput!$B$20),"",(IF((('Xi,Yi'!AH45+AJ45)>DataInput!$B$21),"",('Xi,Yi'!AH45+AJ45)))))))) ->  | AI45: =IF(AG45="","",IF(AH45="","",(DataInput!$B$4+(DataInput!$D$4-DataInput!$B$4)*RAND()))) ->  | AJ45: =DataInput!$B$16*RAND() -> 3.131410049 | AK45: =DataInput!$B$15*RAND() -> 13.42819103 | AL45: =(IF('Xi,Yi'!AL45="","",(IF((('Xi,Yi'!AL45+AP45+AO45/SQRT(3))<DataInput!$B$18),"",(IF((('Xi,Yi'!AL45+AP45+AO45/SQRT(3))>DataInput!$B$19),"",(IF('Xi,Yi'!AM45="","",(IF(('Xi,Yi'!AM45+AO45<DataInput!$B$20),"",(IF((('Xi,Yi'!AM45+AO45)>DataInput!$B$21),"",('Xi,Yi'!AL45+AP45+AO45/SQRT(3)))))))))))))) ->  | AM45: =IF(AL45="","",(IF('Xi,Yi'!AM45="","",(IF(('Xi,Yi'!AM45+AO45<DataInput!$B$20),"",(IF((('Xi,Yi'!AM45+AO45)>DataInput!$B$21),"",('Xi,Yi'!AM45+AO45)))))))) ->  | AN45: =IF(AL45="","",IF(AM45="","",(DataInput!$B$4+(DataInput!$D$4-DataInput!$B$4)*RAND()))) ->  | AO45: =DataInput!$B$16*RAND() -> 2.413922864 | AP45: =DataInput!$B$15*RAND() -> 7.636184427 | AQ45: =(IF('Xi,Yi'!AQ45="","",(IF((('Xi,Yi'!AQ45+AU45+AT45/SQRT(3))<DataInput!$B$18),"",(IF((('Xi,Yi'!AQ45+AU45+AT45/SQRT(3))>DataInput!$B$19),"",(IF('Xi,Yi'!AR45="","",(IF(('Xi,Yi'!AR45+AT45<DataInput!$B$20),"",(IF((('Xi,Yi'!AR45+AT45)>DataInput!$B$21),"",('Xi,Yi'!AQ45+AU45+AT45/SQRT(3)))))))))))))) ->  | AR45: =IF(AQ45="","",(IF('Xi,Yi'!AR45="","",(IF(('Xi,Yi'!AR45+AT45<DataInput!$B$20),"",(IF((('Xi,Yi'!AR45+AT45)>DataInput!$B$21),"",('Xi,Yi'!AR45+AT45)))))))) ->  | AS45: =IF(AQ45="","",IF(AR45="","",(DataInput!$B$4+(DataInput!$D$4-DataInput!$B$4)*RAND()))) ->  | AT45: =DataInput!$B$16*RAND() -> 7.402399343 | AU45: =DataInput!$B$15*RAND() -> 14.57526569 | AV45: =(IF('Xi,Yi'!AV45="","",(IF((('Xi,Yi'!AV45+AZ45+AY45/SQRT(3))<DataInput!$B$18),"",(IF((('Xi,Yi'!AV45+AZ45+AY45/SQRT(3))>DataInput!$B$19),"",(IF('Xi,Yi'!AW45="","",(IF(('Xi,Yi'!AW45+AY45<DataInput!$B$20),"",(IF((('Xi,Yi'!AW45+AY45)>DataInput!$B$21),"",('Xi,Yi'!AV45+AZ45+AY45/SQRT(3)))))))))))))) ->  | AW45: =IF(AV45="","",(IF('Xi,Yi'!AW45="","",(IF(('Xi,Yi'!AW45+AY45<DataInput!$B$20),"",(IF((('Xi,Yi'!AW45+AY45)>DataInput!$B$21),"",('Xi,Yi'!AW45+AY45)))))))) ->  | AX45: =IF(AV45="","",IF(AW45="","",(DataInput!$B$4+(DataInput!$D$4-DataInput!$B$4)*RAND()))) ->  | AY45: =DataInput!$B$16*RAND() -> 13.0896886 | AZ45: =DataInput!$B$15*RAND() -> 6.459234213 | BA45: =(IF('Xi,Yi'!BA45="","",(IF((('Xi,Yi'!BA45+BE45+BD45/SQRT(3))<DataInput!$B$18),"",(IF((('Xi,Yi'!BA45+BE45+BD45/SQRT(3))>DataInput!$B$19),"",(IF('Xi,Yi'!BB45="","",(IF(('Xi,Yi'!BB45+BD45<DataInput!$B$20),"",(IF((('Xi,Yi'!BB45+BD45)>DataInput!$B$21),"",('Xi,Yi'!BA45+BE45+BD45/SQRT(3)))))))))))))) ->  | BB45: =IF(BA45="","",(IF('Xi,Yi'!BB45="","",(IF(('Xi,Yi'!BB45+BD45<DataInput!$B$20),"",(IF((('Xi,Yi'!BB45+BD45)>DataInput!$B$21),"",('Xi,Yi'!BB45+BD45)))))))) ->  | BC45: =IF(BA45="","",IF(BB45="","",(DataInput!$B$4+(DataInput!$D$4-DataInput!$B$4)*RAND()))) ->  | BD45: =DataInput!$B$16*RAND() -> 16.05989401 | BE45: =DataInput!$B$15*RAND() -> 15.74193423
